Workbook

Sheet MENUDATOS (hidden)
A2: PRIMERA RONDA
A3: Cuadro 1.1 | B3: COSTA RICA: POR PROVINCIA, SEGÚN PARTIDO POLÍTICO | C3: C1.1
A4: Gráfico 1.1 | B4: GRÁFICO COSTA RICA: VOTOS SEGÚN PARTIDO POLÍTICO | C4: G1.1
A5: Cuadro 1.2 | B5: COSTA RICA: POR PARTIDO POLÍTICO, SEGÚN PROVINCIA, CANTÓN Y EXTRANJERO | C5: C1.2
A6: Cuadro 1.3 | B6: SAN JOSÉ: POR PARTIDO POLÍTICO, SEGÚN CANTÓN Y DISTRITO ADMINISTRATIVO | C6: C1.3
A7: Cuadro 1.4 | B7: ALAJUELA: POR PARTIDO POLÍTICO, SEGÚN CANTÓN Y DISTRITO ADMINISTRATIVO | C7: C1.4
A8: Cuadro 1.5 | B8: CARTAGO: POR PARTIDO POLÍTICO, SEGÚN CANTÓN Y DISTRITO ADMINISTRATIVO | C8: C1.5
A9: Cuadro 1.6 | B9: HEREDIA: POR PARTIDO POLÍTICO, SEGÚN CANTÓN Y DISTRITO ADMINISTRATIVO | C9: C1.6
A10: Cuadro 1.7 | B10: GUANACASTE: POR PARTIDO POLÍTICO, SEGÚN CANTÓN Y DISTRITO ADMINISTRATIVO | C10: C1.7
A11: Cuadro 1.8 | B11: PUNTARENAS: POR PARTIDO POLÍTICO, SEGÚN CANTÓN Y DISTRITO ADMINISTRATIVO | C11: C1.8
A12: Cuadro 1.9 | B12: LIMÓN: POR PARTIDO POLÍTICO, SEGÚN CANTÓN Y DISTRITO ADMINISTRATIVO | C12: C1.9
A13: Mapa 1.1 | B13: COSTA RICA: PARTIDO GANADOR POR DISTRITO ADMINISTRATIVO | C13: M1.1
A14: Mapa 1.2 | B14: COSTA RICA: PARTICIPACIÓN POR DISTRITO ADMINISTRATIVO | C14: M1.2
A15: Mapa 1.3 | B15: COSTA RICA: ABSTENCIONISMO POR DISTRITO ADMINISTRATIVO | C15: M1.3
A16: Cuadro 1.10 | B16: VOTO EN EL EXTRANJERO: POR PARTIDO POLÍTICO, SEGÚN CONTINENTE Y PAÍS | C16: C1.10
A17: Cuadro 1.11 | B17: SAN JOSÉ: POR PARTIDO POLÍTICO, SEGÚN CANTÓN Y DISTRITO ELECTORAL | C17: C1.11
A18: Cuadro 1.12 | B18: ALAJUELA: POR PARTIDO POLÍTICO, SEGÚN CANTÓN Y DISTRITO ELECTORAL | C18: C1.12
A19: Cuadro 1.13 | B19: CARTAGO: POR PARTIDO POLÍTICO, SEGÚN CANTÓN Y DISTRITO ELECTORAL | C19: C1.13
A20: Cuadro 1.14 | B20: HEREDIA: POR PARTIDO POLÍTICO, SEGÚN CANTÓN Y DISTRITO ELECTORAL | C20: C1.14
A21: Cuadro 1.15 | B21: GUANACASTE: POR PARTIDO POLÍTICO, SEGÚN CANTÓN Y DISTRITO ELECTORAL | C21: C1.15
A22: Cuadro 1.16 | B22: PUNTARENAS: POR PARTIDO POLÍTICO, SEGÚN CANTÓN Y DISTRITO ELECTORAL | C22: C1.16
A23: Cuadro 1.17 | B23: LIMÓN: POR PARTIDO POLÍTICO, SEGÚN CANTÓN Y DISTRITO ELECTORAL | C23: C1.17
A24: Cuadro 1.18 | B24: COSTA RICA: POR PARTIDO POLÍTICO, SEGÚN PROVINCIA Y CENTRO DE VOTACIÓN | C24: C1.18
A25: Cuadro 1.19 | B25: SAN JOSÉ: POR PARTIDO POLÍTICO, SEGÚN CENTRO DE VOTACIÓN | C25: C1.19
A26: Cuadro 1.20 | B26: ALAJUELA: POR PARTIDO POLÍTICO, SEGÚN CENTRO DE VOTACIÓN | C26: C1.20
A27: Cuadro 1.21 | B27: CARTAGO: POR PARTIDO POLÍTICO, SEGÚN CENTRO DE VOTACIÓN | C27: C1.21
A28: Cuadro 1.22 | B28: HEREDIA: POR PARTIDO POLÍTICO, SEGÚN CENTRO DE VOTACIÓN | C28: C1.22
A29: Cuadro 1.23 | B29: GUANACASTE: POR PARTIDO POLÍTICO, SEGÚN CENTRO DE VOTACIÓN | C29: C1.23
A30: Cuadro 1.24 | B30: PUNTARENAS: POR PARTIDO POLÍTICO, SEGÚN CENTRO DE VOTACIÓN | C30: C1.24
A31: Cuadro 1.25 | B31: LIMÓN: POR PARTIDO POLÍTICO, SEGÚN CENTRO DE VOTACIÓN | C31: C1.25
B32: ---- CERRAR ---- | C32: CERRAR
A34: DIPUTACIONES
A35: Cuadro 2.1 | B35: COSTA RICA: POR PROVINCIA, SEGÚN PARTIDO POLÍTICO | C35: C2.1
A36: Cuadro 2.2 | B36: COSTA RICA: POR PARTIDO POLÍTICO SEGÚN PROVINCIA Y CANTÓN | C36: C2.2
A37: Cuadro 2.3 | B37: SAN JOSÉ: POR PARTIDO POLÍTICO, SEGÚN CANTÓN Y DISTRITO ADMINISTRATIVO | C37: C2.3
A38: Cuadro 2.4 | B38: ALAJUELA: POR PARTIDO POLÍTICO, SEGÚN CANTÓN Y DISTRITO ADMINISTRATIVO | C38: C2.4
A39: Cuadro 2.5 | B39: CARTAGO: POR PARTIDO POLÍTICO, SEGÚN CANTÓN Y DISTRITO ADMINISTRATIVO | C39: C2.5
A40: Cuadro 2.6 | B40: HEREDIA: POR PARTIDO POLÍTICO, SEGÚN CANTÓN Y DISTRITO ADMINISTRATIVO | C40: C2.6
A41: Cuadro 2.7 | B41: GUANACASTE: POR PARTIDO POLÍTICO, SEGÚN CANTÓN Y DISTRITO ADMINISTRATIVO | C41: C2.7
A42: Cuadro 2.8 | B42: PUNTARENAS: POR PARTIDO POLÍTICO, SEGÚN CANTÓN Y DISTRITO ADMINISTRATIVO | C42: C2.8
A43: Cuadro 2.9 | B43: LIMÓN: POR PARTIDO POLÍTICO, SEGÚN CANTÓN Y DISTRITO ADMINISTRATIVO | C43: C2.9
A44: Cuadro 2.10 | B44: COSTA RICA: POR PARTIDO POLÍTICO, SEGÚN PROVINCIA Y CENTRO DE VOTACIÓN | C44: C2.10
A45: Cuadro 2.11 | B45: SAN JOSÉ: POR PARTIDO POLÍTICO, SEGÚN CANTÓN Y CENTRO DE VOTACIÓN | C45: C2.11
A46: Cuadro 2.12 | B46: ALAJUELA: POR PARTIDO POLÍTICO, SEGÚN CANTÓN Y CENTRO DE VOTACIÓN | C46: C2.12
A47: Cuadro 2.13 | B47: CARTAGO: POR PARTIDO POLÍTICO, SEGÚN CANTÓN Y CENTRO DE VOTACIÓN | C47: C2.13
A48: Cuadro 2.14 | B48: HEREDIA: POR PARTIDO POLÍTICO, SEGÚN CANTÓN Y CENTRO DE VOTACIÓN | C48: C2.14
A49: Cuadro 2.15 | B49: GUANACASTE: POR PARTIDO POLÍTICO, SEGÚN CANTÓN Y CENTRO DE VOTACIÓN | C49: C2.15
A50: Cuadro 2.16 | B50: PUNTARENAS: POR PARTIDO POLÍTICO, SEGÚN CANTÓN Y CENTRO DE VOTACIÓN | C50: C2.16
A51: Cuadro 2.17 | B51: LIMÓN: POR PARTIDO POLÍTICO, SEGÚN CANTÓN Y CENTRO DE VOTACIÓN | C51: C2.17
B52: ---- CERRAR ---- | C52: CERRAR
A54: SEGUNDA RONDA
A55: Cuadro 3.1 | B55: COSTA RICA: POR PROVINCIA, SEGÚN PARTIDO POLÍTICO | C55: C3.1
A56: Cuadro 3.2 | B56: COSTA RICA: POR PARTIDO POLÍTICO, SEGÚN PROVINCIA, CANTÓN Y EXTRANJERO | C56: C3.2
A57: Cuadro 3.3 | B57: SAN JOSÉ: POR PARTIDO POLÍTICO, SEGÚN CANTÓN Y DISTRITO ADMINISTRATIVO | C57: C3.3
A58: Cuadro 3.4 | B58: ALAJUELA: POR PARTIDO POLÍTICO, SEGÚN CANTÓN Y DISTRITO ADMINISTRATIVO | C58: C3.4
A59: Cuadro 3.5 | B59: CARTAGO: POR PARTIDO POLÍTICO, SEGÚN CANTÓN Y DISTRITO ADMINISTRATIVO | C59: C3.5
A60: Cuadro 3.6 | B60: HEREDIA: POR PARTIDO POLÍTICO, SEGÚN CANTÓN Y DISTRITO ADMINISTRATIVO | C60: C3.6
A61: Cuadro 3.7 | B61: GUANACASTE: POR PARTIDO POLÍTICO, SEGÚN CANTÓN Y DISTRITO ADMINISTRATIVO | C61: C3.7
A62: Cuadro 3.8 | B62: PUNTARENAS: POR PARTIDO POLÍTICO, SEGÚN CANTÓN Y DISTRITO ADMINISTRATIVO | C62: C3.8
A63: Cuadro 3.9 | B63: LIMÓN: POR PARTIDO POLÍTICO, SEGÚN DISTRITO ADMINISTRATIVO | C63: C3.9
A64: Cuadro 3.10 | B64: VOTO EN EL EXTRANJERO: POR PARTIDO POLÍTICO, SEGÚN CONTINENTE Y PAÍS | C64: C3.10
A65: Mapa 3.1 | B65: COSTA RICA: INTENSIDAD DEL GANE POR DISTRITO ADMINISTRATIVO | C65: M3.1
A66: Mapa 3.2 | B66: COSTA RICA: PARTICIPACIÓN Y PARTIDO GANADOR POR PROVINCIA | C66: M3.2
A67: Mapa 3.3 | B67: COSTA RICA: PARTIDO GANADOR POR DISTRITO ADMINISTRATIVO | C67: M3.3
A68: Mapa 3.4 | B68: COSTA RICA: PARTICIPACIÓN POR DISTRITO ADMINISTRATIVO | C68: M3.4
A69: Mapa 3.5 | B69: COSTA RICA: ABSTENCIONISMO POR DISTRITO ADMINISTRATIVO | C69: M3.5
A70: Cuadro 3.11 | B70: SAN JOSÉ: POR PARTIDO POLÍTICO, SEGÚN DISTRITO ELECTORAL | C70: C3.11
A71: Cuadro 3.12 | B71: ALAJUELA: POR PARTIDO POLÍTICO, SEGÚN DISTRITO ELECTORAL | C71: C3.12
A72: Cuadro 3.13 | B72: CARTAGO: POR PARTIDO POLÍTICO, SEGÚN DISTRITO ELECTORAL | C72: C3.13
A73: Cuadro 3.14 | B73: HEREDIA: POR PARTIDO POLÍTICO, SEGÚN DISTRITO ELECTORAL | C73: C3.14
A74: Cuadro 3.15 | B74: GUANACASTE: POR PARTIDO POLÍTICO, SEGÚN DISTRITO ELECTORAL | C74: C3.15
A75: Cuadro 3.16 | B75: PUNTARENAS: POR PARTIDO POLÍTICO, SEGÚN DISTRITO ELECTORAL | C75: C3.16
A76: Cuadro 3.17 | B76: LIMÓN: POR PARTIDO POLÍTICO, SEGÚN DISTRITO ELECTORAL | C76: C3.17
A77: Cuadro 3.18 | B77: COSTA RICA: POR PARTIDO POLÍTICO, SEGÚN PROVINCIA Y CENTRO DE VOTACIÓN | C77: C3.18
A78: Cuadro 3.19 | B78: SAN JOSÉ: POR PARTIDO POLÍTICO, SEGÚN CANTÓN Y DISTRITO ELECTORAL | C78: C3.19
A79: Cuadro 3.20 | B79: ALAJUELA: POR PARTIDO POLÍTICO, SEGÚN CANTÓN Y DISTRITO ELECTORAL | C79: C3.20
A80: Cuadro 3.21 | B80: CARTAGO: POR PARTIDO POLÍTICO, SEGÚN CANTÓN Y DISTRITO ELECTORAL | C80: C3.21
A81: Cuadro 3.22 | B81: HEREDIA: POR PARTIDO POLÍTICO, SEGÚN CANTÓN Y DISTRITO ELECTORAL | C81: C3.22
A82: Cuadro 3.23 | B82: GUANACASTE: POR PARTIDO POLÍTICO, SEGÚN CANTÓN Y DISTRITO ELECTORAL | C82: C3.23
A83: Cuadro 3.24 | B83: PUNTARENAS: POR PARTIDO POLÍTICO, SEGÚN CANTÓN Y DISTRITO ELECTORAL | C83: C3.24
A84: Cuadro 3.25 | B84: LIMÓN: POR PARTIDO POLÍTICO, SEGÚN CANTÓN Y DISTRITO ELECTORAL | C84: C3.25
B85: ---- CERRAR ---- | C85: CERRAR
A87: CANDIDATURAS
A88: Cuadro 4.1 | B88: CANDIDATURAS PRESIDENCIA Y VICEPRESIDENCIAS, POR SEXO, SEGÚN GRUPOS DE EDAD | C88: C4.1
A89: Cuadro 4.2 | B89: CANDIDATURAS A DIPUTACIONES, POR CARGO Y SEXO, SEGÚN GRUPOS DE EDAD | C89: C4.2
A90: Gráfico 4.1 | B90: GRÁFICO CANDIDATURAS A DIPUTACIONES, POR SEXO Y GRUPOS DE EDAD | C90: G4.1
A91: Cuadro 4.3 | B91: EDAD PROMEDIO DE CANDIDATOS INCRITOS A DIPUTACIONES, POR CARGO, SEGÚN PARTIDO | C91: C4.3
A92: Cuadro 4.4 | B92: CANDIDATURAS A DIPUTACIONES 2006, 2010, 2014 y 2018 SEGÚN PROVINCIA | C92: C4.4
A93: Cuadro 4.5 | B93: CANDIDATURAS POR SEXO, SEGÚN TIPO DE PUESTO | C93: C4.5
A94: Gráfico 4.2 | B94: GRÁFICO TIPOS DE CANDIDATURAS POR SEXO | C94: G4.2
A95: Cuadro 4.6 | B95: CANDIDATURAS A DIPUTACIONES EN PROPIEDAD Y SUPLENCIA, POR SEXO, SEGÚN PARTIDO | C95: C4.6
A96: Cuadro 4.7 | B96: CANDIDATURAS A DIPUTACIONES EN PROPIEDAD Y SUPLENCIA, POR SEXO, SEGÚN PROVINCIA | C96: C4.7
A97: Cuadro 4.8 | B97: DIPUTADOS/AS ELECTOS/AS, POR PROVINCIA, SEGÚN PARTIDO | C97: C4.8
A98: Gráfico 4.3 | B98: GRÁFICO DIPUTADOS/AS ELECTOS/AS, POR PARTIDO POLÍTICO | C98: G4.3
A99: Mapa 4.1 | B99: COSTA RICA: DISTRIBUCIÓN DE ESCAÑOS POR PROVINCIA Y PARTIDO | C99: M4.1
A100: Cuadro 4.9 | B100: DIPUTADOS/AS ELECTOS/AS Y EDAD PROMEDIO, POR SEXO, SEGÚN PARTIDO | C100: C4.9
A101: Mapa 4.2 | B101: COSTA RICA: DISTRIBUCIÓN DE ESCAÑOS POR PROVINCIA Y SEXO | C101: M4.2
A102: Cuadro 4.10 | B102: EDAD PROMEDIO DIPUTADOS/AS ELECTOS/AS, POR PROVINCIA, SEGÚN PARTIDO | C102: C4.10
A103: Cuadro 4.11 | B103: DIPUTADOS/AS ELECTOS/AS, POR GRUPO DE EDAD, SEGÚN PARTIDO | C103: C4.11
A104: Cuadro 4.12 | B104: DIPUTADOS/AS ELECTOS/AS, POR SEXO, SEGÚN GRUPO DE EDAD | C104: C4.12
A105: Gráfico 4.4 | B105: DISTRIBUCIÓN DE FRECUENCIAS DE DIPUTACIONES ELECTAS, SEGÚN GRUPO DE EDAD | C105: G4.4
A106: Tabla 4.1 | B106: LISTA DE DIPUTADOS/AS ELECTOS/AS POR PROVINCIA Y PARTIDO | C106: T4.1
B107: ---- CERRAR ---- | C107: CERRAR
A109: RESULTADOS EN ZONAS ESPECIALES
A110: Cuadro 5.1 | B110: RESULTADOS PRESIDENCIA PRIMERA RONDA: CENTROS PENITENCIARIOS, POR PARTIDO POLÍTICO | C110: C5.1
A111: Cuadro 5.2 | B111: RESULTADOS PRESIDENCIA PRIMERA RONDA: HOGARES DE ANCIANOS, POR PARTIDO POLÍTICO | C111: C5.2
A112: Cuadro 5.3 | B112: RESULTADOS PRESIDENCIA PRIMERA RONDA: ZONAS INDÍGENAS, POR PARTIDO POLÍTICO | C112: C5.3
A113: Cuadro 5.4 | B113: RESULTADOS PRESIDENCIA PRIMERA RONDA: CENTROS DE SALUD MENTAL, POR PARTIDO POLÍTICO | C113: C5.4
A114: Cuadro 5.5 | B114: RESULTADOS DIPUTACIONES: CENTROS PENITENCIARIOS, POR PARTIDO POLÍTICO | C114: C5.5
A115: Cuadro 5.6 | B115: RESULTADOS DIPUTACIONES: HOGARES DE ANCIANOS, POR PARTIDO POLÍTICO | C115: C5.6
A116: Cuadro 5.7 | B116: RESULTADOS DIPUTACIONES: ZONAS INDÍGENAS, POR PARTIDO POLÍTICO | C116: C5.7
A117: Cuadro 5.8 | B117: RESULTADOS DIPUTACIONES: CENTROS DE SALUD MENTAL, POR PARTIDO POLÍTICO | C117: C5.8
A118: Cuadro 5.9 | B118: RESULTADOS PRESIDENCIA SEGUNDA RONDA: CENTROS PENITENCIARIOS, POR PARTIDO POLÍTICO | C118: C5.9
A119: Cuadro 5.10 | B119: RESULTADOS PRESIDENCIA SEGUNDA RONDA: HOGARES DE ANCIANOS, POR PARTIDO POLÍTICO | C119: C5.10
A120: Cuadro 5.11 | B120: RESULTADOS PRESIDENCIA SEGUNDA RONDA: ZONAS INDÍGENAS, POR PARTIDO POLÍTICO | C120: C5.11
A121: Cuadro 5.12 | B121: RESULTADOS PRESIDENCIA SEGUNDA RONDA: CENTROS DE SALUD MENTAL, POR PARTIDO POLÍTICO | C121: C5.12
B122: ---- CERRAR ---- | C122: CERRAR
A124: QUIEBRE DEL VOTO
A125: Cuadro 6.1 | B125: INDICADOR 1: POR PROVINCIA, SEGÚN PARTIDO | C125: C6.1
A126: Cuadro 6.2 | B126: INDICADOR 1: POR PARTIDO, SEGÚN PROVINCIA Y CANTÓN | C126: C6.2
A127: Cuadro 6.3 | B127: INDICADOR 2: POR PROVINCIA, SEGÚN PARTIDO | C127: C6.3
A128: Cuadro 6.4 | B128: INDICADOR 2: POR PARTIDO, SEGÚN PROVINCIA Y CANTÓN | C128: C6.4
A129: Cuadro 6.5 | B129: INDICADOR 2: POR PARTIDO, SEGÚN PROVINCIA, CANTÓN Y DISTRITO ADMINISTRATIVO | C129: C6.5
A130: Mapa 6.1 | B130: COSTA RICA: PORCENTAJE DE ELECTORES QUE CAMBIARON DE PARTIDO | C130: M6.1
B131: ---- CERRAR ---- | C131: CERRAR

Sheet C1.1
A2: CUADRO 1.1 COSTA RICA: JUNTAS, ELECTORADO, VOTOS POR PARTIDO, NULOS, BLANCOS Y ABSTENCIONISMO, PARA PRESIDENCIA Y
A3: VICEPRESIDENCIAS DE LA REPÚBLICA, POR PROVINCIA Y EXTRANJERO, ELECCIONES 4 DE FEBRERO 2018
A5: JUNTAS, ELECTORADO, VOTOS POR PARTIDO, NULOS, BLANCOS Y ABSTENCIONISMO | B5: COSTA RICA | C5: PROVINCIA | J5: EXTRANJERO
C6: SAN JOSÉ | D6: ALAJUELA | E6: CARTAGO | F6: HEREDIA | G6: GUANACASTE | H6: PUNTARENAS | I6: LIMÓN
B8: =SUM(C8:J8) -> 6612 | C8: 2092 | D8: 1266 | E8: 740 | F8: 613 | G8: 565 | H8: 716 | I8: 550 | J8: 70
A10: ELECTORADO | B10: =SUM(C10:J10) -> 3322329 | C10: 1114779 | D10: 630990 | E10: 387905 | F10: 332859 | G10: 240637 | H10: 310662 | I10: 272633 | J10: 31864
A12: VOTOS RECIBIDOS | B12: =SUM(C12:J12) -> 2182764 | C12: =C15+C29+C30 -> 762422 | D12: 428247 | E12: 278545 | F12: 238377 | G12: 142830 | H12: 172338 | I12: 155574 | J12: 4431
A13: PARTICIPACIÓN 1/ | B13: =B12/B10*100 -> 65.6998148 | C13: =C12/C10*100 -> 68.39221047 | D13: 67.8690629 | E13: 71.80753019 | F13: 71.61500816 | G13: 59.35496204 | H13: 55.47443846 | I13: 57.06352496 | J13: 13.9059754
A15: VOTOS VÁLIDOS | B15: =SUM(B16:B28) -> 2154697 | C15: 755616 | D15: 423114 | E15: 274459 | F15: 236246 | G15: 139808 | H15: 169076 | I15: 151987 | J15: 4391
A16: ACCESIBILIDAD SIN EXCLUSIÓN | B16: =SUM(C16:J16) -> 7539 | C16: 2339 | D16: 1381 | E16: 1061 | F16: 580 | G16: 528 | H16: 655 | I16: 989 | J16: 6
A17: ACCIÓN CIUDADANA | B17: =SUM(C17:J17) -> 466129 | C17: 177643 | D17: 92385 | E17: 72528 | F17: 64449 | G17: 21089 | H17: 20330 | I17: 16050 | J17: 1655
A18: ALIANZA DEMÓCRATA CRISTIANA | B18: 12638 | C18: 2659 | D18: 1313 | E18: 5920 | F18: 682 | G18: 438 | H18: 607 | I18: 1003 | J18: 16
A19: DE LOS TRABAJADORES | B19: 4351 | C19: 1497 | D19: 888 | E19: 527 | F19: 401 | G19: 255 | H19: 324 | I19: 453 | J19: 6
A20: FRENTE AMPLIO | B20: 16862 | C20: 5889 | D20: 3177 | E20: 2097 | F20: 1896 | G20: 942 | H20: 1347 | I20: 1434 | J20: 80
A21: INTEGRACIÓN NACIONAL | B21: 205602 | C21: 68058 | D21: 37462 | E21: 29839 | F21: 19075 | G21: 15653 | H21: 19462 | I21: 15810 | J21: 243
A22: LIBERACIÓN NACIONAL | B22: 401505 | C22: 135883 | D22: 76848 | E22: 55345 | F22: 41780 | G22: 32937 | H22: 31280 | I22: 26684 | J22: 748
A23: MOVIMIENTO LIBERTARIO | B23: 21890 | C23: 7674 | D23: 3847 | E23: 2814 | F23: 2410 | G23: 1346 | H23: 1805 | I23: 1963 | J23: 31
A24: NUEVA GENERACIÓN | B24: 16329 | C24: 6395 | D24: 3039 | E24: 2361 | F24: 2207 | G24: 691 | H24: 947 | I24: 657 | J24: 32
A25: RENOVACIÓN COSTARRICENSE | B25: 12309 | C25: 4048 | D25: 2058 | E25: 1955 | F25: 1236 | G25: 822 | H25: 954 | I25: 1215 | J25: 21
A26: REPUBLICANO SOCIAL CRISTIANO | B26: 106444 | C26: 34676 | D26: 23023 | E26: 17464 | F26: 8792 | G26: 7266 | H26: 8202 | I26: 6978 | J26: 43
A27: RESTAURACIÓN NACIONAL | B27: 538504 | C27: 172975 | D27: 113234 | E27: 41211 | F27: 50033 | G27: 35733 | H27: 60096 | I27: 64710 | J27: 512
A28: UNIDAD SOCIAL CRISTIANA | B28: 344595 | C28: 135880 | D28: 64459 | E28: 41337 | F28: 42705 | G28: 22108 | H28: 23067 | I28: 14041 | J28: 998
A29: VOTOS NULOS | B29: =SUM(C29:J29) -> 22974 | C29: 5643 | D29: 4244 | E29: 3401 | F29: 1780 | G29: 2392 | H29: 2659 | I29: 2818 | J29: 37
A30: VOTOS BLANCOS | B30: =SUM(C30:J30) -> 5093 | C30: 1163 | D30: 889 | E30: 685 | F30: 351 | G30: 630 | H30: 603 | I30: 769 | J30: 3
A32: ABSTENCIONISMO | B32: =SUM(C32:J32) -> 1139565 | C32: =C10-C12 -> 352357 | D32: =D10-D12 -> 202743 | E32: 109360 | F32: 94482 | G32: 97807 | H32: 138324 | I32: 117059 | J32: 27433
B33: 34.30022475 | C33: 31.59269398 | D33: 32.15889109 | E33: 28.19931845 | F33: 28.3826251 | G33: 40.64183124 | H33: 44.53127515 | I33: 42.92349516 | J33: 86.09620634
A36: 1/ Porcentaje de participación: se calcula dividiendo la cantidad de votos recibidos entre el electorado.
A38: FUENTE: Tribunal Supremo de Elecciones.

Sheet G1.1
A2: GRÁFICO 1.1 COSTA RICA: PORCENTAJE DE VOTOS VÁLIDOS, PARA PRESIDENCIA Y VICEPRESIDENCIAS DE LA REPÚBLICA
A3: SEGÚN PARTIDO POLÍTICO, ELECCIONES 4 DE FEBRERO 2018
A8: DE LOS TRABAJADORES | B8: 4351 | C8: =+B8/$B$22 -> 0.002019309444
A9: ACCESIBILIDAD SIN EXCLUSIÓN | B9: 7539 | C9: 0.003498867822
A10: RENOVACIÓN COSTARRICENSE | B10: 12309 | C10: 0.005712636162
A11: ALIANZA DEMÓCRATA CRISTIANA | B11: 12638 | C11: 0.005865325844
A12: NUEVA GENERACIÓN | B12: 16329 | C12: 0.007578327718
A13: FRENTE AMPLIO | B13: 16862 | C13: 0.007825694286
A14: MOVIMIENTO LIBERTARIO | B14: 21890 | C14: 0.01015920104
A15: REPUBLICANO SOCIAL CRISTIANO | B15: 106444 | C15: 0.04940091345
A16: INTEGRACIÓN NACIONAL | B16: 205602 | C16: 0.09542037697
A17: UNIDAD SOCIAL CRISTIANA | B17: 344595 | C17: 0.1599273587
A18: LIBERACIÓN NACIONAL | B18: 401505 | C18: 0.186339425
A19: ACCIÓN CIUDADANA | B19: 466129 | C19: 0.216331577
A20: RESTAURACIÓN NACIONAL | B20: 538504 | C20: 0.2499209866
B22: =SUM(B8:B21) -> 2154697
A40: FUENTE: Cuadro 1.

Sheet C1.2
A2: CUADRO 1.2 COSTA RICA: JUNTAS, ELECTORADO, PARTICIPACIÓN, VOTOS POR PARTIDO, NULOS, BLANCOS Y ABSTENCIONISMO, PARA PRESIDENCIA Y VICEPRESIDENCIAS DE LA REPÚBLICA, SEGÚN PROVINCIA, CANTÓN Y EXTRANJERO ELECCIONES 4 DE FEBRERO 2018
A4: PROVINCIA, CANTÓN Y EXTRANJERO | B4: JUNTAS | C4: ELECTORADO | D4: VOTOS RECIBIDOS | V4: ABSTENCIONISMO
D5: TOTAL GENERAL | E5: % PARTICIPACIÓN | F5: VOTOS VÁLIDOS | T5: NULOS | U5: BLANCOS | V5: ABSOLUTO | W5: %
F6: TOTAL | G6: ACCESIBILIDAD SIN EXCLUSIÓN | H6: ACCIÓN CIUDADANA | I6: ALIANZA DEMÓCRATA CRISTIANA | J6: DE LOS TRABAJADORES | K6: FRENTE AMPLIO | L6: INTEGRACIÓN NACIONAL | M6: LIBERACIÓN NACIONAL | N6: MOVIMIENTO LIBERTARIO | O6: NUEVA GENERACIÓN | P6: RENOVACIÓN COSTARRICENSE | Q6: REPUBLICANO SOCIAL CRISTIANO | R6: RESTAURACIÓN NACIONAL | S6: UNIDAD SOCIAL CRISTIANA
A8: COSTA RICA | B8: =B9+B30+B46+B55+B66+B78+B90+B97 -> 6612 | C8: =C9+C30+C46+C55+C66+C78+C90+C97 -> 3322329 | D8: =D9+D30+D46+D55+D66+D78+D90+D97 -> 2182764 | E8: =D8/C8*100 -> 65.6998148 | F8: =F9+F30+F46+F55+F66+F78+F90+F97 -> 2154697 | G8: 7539 | H8: 466129 | I8: 12638 | J8: 4351 | K8: 16862 | L8: 205602 | M8: 401505 | N8: 21890 | O8: 16329 | P8: 12309 | Q8: 106444 | R8: 538504 | S8: 344595 | T8: 22974 | U8: 5093 | V8: 1139319 | W8: 34.3001852
A9: PROVINCIA SAN JOSÉ | B9: =SUM(B10:B29) -> 2092 | C9: 1114779 | D9: 762422 | E9: =D9/C9*100 -> 68.39221047 | F9: 755616 | G9: 2339 | H9: 177643 | I9: 2659 | J9: 1497 | K9: 5889 | L9: 68058 | M9: 135883 | N9: 7674 | O9: 6395 | P9: 4048 | Q9: 34676 | R9: 172975 | S9: 135880 | T9: 5643 | U9: 1163 | V9: 352111 | W9: 31.60778953
A10: SAN JOSÉ | B10: 409 | C10: 234558 | D10: =F10+U10+T10 -> 156152 | E10: =D10/C10*100 -> 66.57287323 | F10: =SUM(G10:S10) -> 154842 | G10: 416 | H10: 34657 | I10: 575 | J10: 303 | K10: 1260 | L10: 15513 | M10: 27669 | N10: 1608 | O10: 1316 | P10: 769 | Q10: 6227 | R10: 37931 | S10: 26598 | T10: 1106 | U10: 204 | V10: 78200 | W10: 33.42712677
A11: ESCAZÚ | B11: 81 | C11: 46971 | D11: =F11+U11+T11 -> 33472 | E11: =D11/C11*100 -> 71.26099082 | F11: 33252 | G11: 94 | H11: 7246 | I11: 60 | J11: 69 | K11: 227 | L11: 2674 | M11: 7261 | N11: 407 | O11: 262 | P11: 156 | Q11: 1166 | R11: 4667 | S11: 8963 | T11: 194 | U11: 26 | V11: 13499 | W11: 28.73900918
A12: DESAMPARADOS | B12: 289 | C12: 160243 | D12: 109313 | E12: 68.2170204 | F12: 108371 | G12: 397 | H12: 24445 | I12: 388 | J12: 219 | K12: 816 | L12: 10014 | M12: 19343 | N12: 1182 | O12: 887 | P12: 593 | Q12: 5428 | R12: 29462 | S12: 15197 | T12: 797 | U12: 145 | V12: 50931 | W12: 31.7829796
A13: PURISCAL | B13: 72 | C13: 28424 | D13: 19815 | E13: 69.71221503 | F13: 19570 | G13: 54 | H13: 4651 | I13: 43 | J13: 25 | K13: 109 | L13: 1945 | M13: 4983 | N13: 147 | O13: 129 | P13: 98 | Q13: 1722 | R13: 2561 | S13: 3103 | T13: 189 | U13: 56 | V13: 8609 | W13: 30.28778497
A14: TARRAZÚ | B14: 28 | C14: 12188 | D14: 7984 | E14: 65.50705612 | F14: 7872 | G14: 31 | H14: 2293 | I14: 34 | J14: 11 | K14: 96 | L14: 494 | M14: 1498 | N14: 65 | O14: 60 | P14: 66 | Q14: 661 | R14: 1051 | S14: 1512 | T14: 93 | U14: 19 | V14: 4204 | W14: 34.49294388
A15: ASERRÍ | B15: 83 | C15: 42853 | D15: 28799 | E15: 67.20416307 | F15: 28516 | G15: 107 | H15: 6424 | I15: 84 | J15: 59 | K15: 201 | L15: 2700 | M15: 6024 | N15: 296 | O15: 204 | P15: 167 | Q15: 1902 | R15: 6351 | S15: 3997 | T15: 234 | U15: 49 | V15: 14054 | W15: 32.79583693
A16: MORA | B16: 47 | C16: 21361 | D16: 14723 | E16: 68.92467581 | F16: 14550 | G16: 38 | H16: 3686 | I16: 43 | J16: 14 | K16: 91 | L16: 1324 | M16: 2584 | N16: 139 | O16: 135 | P16: 74 | Q16: 680 | R16: 2916 | S16: 2826 | T16: 128 | U16: 45 | V16: 6638 | W16: 31.07532419
A17: GOICOECHEA | B17: 156 | C17: 90058 | D17: 62088 | E17: 68.94223722 | F17: 61615 | G17: 167 | H17: 15556 | I17: 270 | J17: 113 | K17: 516 | L17: 5432 | M17: 9590 | N17: 650 | O17: 576 | P17: 387 | Q17: 2564 | R17: 15887 | S17: 9907 | T17: 396 | U17: 77 | V17: 27970 | W17: 31.05776278
A18: SANTA ANA | B18: 64 | C18: 35074 | D18: 25323 | E18: 72.19877972 | F18: 25127 | G18: 42 | H18: 5701 | I18: 60 | J18: 65 | K18: 100 | L18: 2043 | M18: 5528 | N18: 269 | O18: 213 | P18: 98 | Q18: 947 | R18: 3554 | S18: 6507 | T18: 165 | U18: 31 | V18: 9751 | W18: 27.80122028
A19: ALAJUELITA | B19: 88 | C19: 50373 | D19: 32210 | E19: 63.94298533 | F19: 31811 | G19: 145 | H19: 5813 | I19: 132 | J19: 89 | K19: 217 | L19: 3543 | M19: 4020 | N19: 433 | O19: 517 | P19: 239 | Q19: 1930 | R19: 11106 | S19: 3627 | T19: 347 | U19: 52 | V19: 18163 | W19: 36.05701467
A20: VÁZQUEZ DE CORONADO | B20: 92 | C20: 53496 | D20: 38700 | E20: 72.34185734 | F20: 38432 | G20: 124 | H20: 10608 | I20: 181 | J20: 80 | K20: 306 | L20: 3209 | M20: 6063 | N20: 417 | O20: 317 | P20: 218 | Q20: 2033 | R20: 9270 | S20: 5606 | T20: 230 | U20: 38 | V20: 14796 | W20: 27.65814266
A21: ACOSTA | B21: 43 | C21: 16608 | D21: 10981 | E21: 66.11873796 | F21: 10860 | G21: 34 | H21: 2934 | I21: 33 | J21: 15 | K21: 82 | L21: 1207 | M21: 2478 | N21: 68 | O21: 54 | P21: 72 | Q21: 639 | R21: 1547 | S21: 1697 | T21: 102 | U21: 19 | V21: 5627 | W21: 33.88126204
A22: TIBÁS | B22: 96 | C22: 55965 | D22: 39009 | E22: 69.70249263 | F22: 38740 | G22: 94 | H22: 9852 | I22: 172 | J22: 68 | K22: 272 | L22: 3556 | M22: 6862 | N22: 393 | O22: 343 | P22: 163 | Q22: 1336 | R22: 8609 | S22: 7020 | T22: 228 | U22: 41 | V22: 16956 | W22: 30.29750737
A23: MORAVIA | B23: 77 | C23: 44209 | D23: 32439 | E23: 73.37646181 | F23: 32247 | G23: 79 | H23: 9120 | I23: 119 | J23: 53 | K23: 280 | L23: 2708 | M23: 5379 | N23: 299 | O23: 311 | P23: 154 | Q23: 1000 | R23: 6242 | S23: 6503 | T23: 166 | U23: 26 | V23: 11770 | W23: 26.62353819
A24: MONTES DE OCA | B24: 74 | C24: 42391 | D24: 31246 | E24: 73.70904201 | F24: 31063 | G24: 53 | H24: 10987 | I24: 102 | J24: 70 | K24: 362 | L24: 2249 | M24: 5323 | N24: 265 | O24: 288 | P24: 133 | Q24: 773 | R24: 3732 | S24: 6726 | T24: 151 | U24: 32 | V24: 11145 | W24: 26.29095799
A25: TURRUBARES | B25: 16 | C25: 4593 | D25: 2924 | E25: 63.66209449 | F25: 2902 | G25: 7 | H25: 378 | I25: 2 | J25: 7 | K25: 6 | L25: 207 | M25: 1148 | N25: 22 | O25: 5 | P25: 8 | Q25: 133 | R25: 367 | S25: 612 | T25: 15 | U25: 7 | V25: 1669 | W25: 36.33790551
A26: DOTA | B26: 14 | C26: 5566 | D26: 3686 | E26: 66.22349982 | F26: 3637 | G26: 17 | H26: 1243 | I26: 8 | J26: 10 | K26: 41 | L26: 299 | M26: 764 | N26: 18 | O26: 31 | P26: 24 | Q26: 217 | R26: 400 | S26: 565 | T26: 41 | U26: 8 | V26: 1880 | W26: 33.77650018
A27: CURRIDABAT | B27: 86 | C27: 48859 | D27: 35032 | E27: 71.70019853 | F27: 34832 | G27: 100 | H27: 9016 | I27: 128 | J27: 62 | K27: 294 | L27: 2598 | M27: 6728 | N27: 351 | O27: 277 | P27: 122 | Q27: 1074 | R27: 6153 | S27: 7929 | T27: 174 | U27: 26 | V27: 13827 | W27: 28.29980147
A28: PÉREZ ZELEDÓN | B28: 251 | C28: 111779 | D28: 72612 | E28: 64.9603235 | F28: 71552 | G28: 320 | H28: 11554 | I28: 209 | J28: 153 | K28: 562 | L28: 5914 | M28: 11294 | N28: 583 | O28: 431 | P28: 448 | Q28: 3771 | R28: 20444 | S28: 15869 | T28: 825 | U28: 235 | V28: 39126 | W28: 35.0396765
A29: LEÓN CORTÉS | B29: 26 | C29: 9210 | D29: 5914 | E29: 64.21281216 | F29: 5825 | G29: 20 | H29: 1479 | I29: 16 | J29: 12 | K29: 51 | L29: 429 | M29: 1344 | N29: 62 | O29: 39 | P29: 59 | Q29: 473 | R29: 725 | S29: 1116 | T29: 62 | U29: 27 | V29: 3296 | W29: 35.78718784
A30: PROVINCIA ALAJUELA | B30: =SUM(B31:B45) -> 1266 | C30: =SUM(C31:C45) -> 630990 | D30: =SUM(D31:D45) -> 428247 | E30: 67.8690629 | F30: =SUM(F31:F45) -> 423114 | G30: 1381 | H30: 92385 | I30: 1313 | J30: 888 | K30: 3177 | L30: 37462 | M30: 76848 | N30: 3847 | O30: 3039 | P30: 2058 | Q30: 23023 | R30: 113234 | S30: 64459 | T30: 4244 | U30: 889 | V30: 202743 | W30: 32.1309371
A31: ALAJUELA | B31: 371 | C31: 201480 | D31: =F31+U31+T31 -> 135288 | E31: 67.14711138 | F31: =SUM(G31:S31) -> 133977 | G31: 450 | H31: 29960 | I31: 420 | J31: 259 | K31: 783 | L31: 11788 | M31: 23677 | N31: 1338 | O31: 1070 | P31: 641 | Q31: 6898 | R31: 36581 | S31: 20112 | T31: 1116 | U31: 195 | V31: 66192 | W31: 32.85288862
A32: SAN RAMÓN | B32: 130 | C32: 63586 | D32: 44369 | E32: 69.77793854 | F32: 43804 | G32: 139 | H32: 14033 | I32: 131 | J32: 107 | K32: 440 | L32: 4534 | M32: 6922 | N32: 445 | O32: 464 | P32: 228 | Q32: 2589 | R32: 9310 | S32: 4462 | T32: 442 | U32: 123 | V32: 19217 | W32: 30.22206146
A33: GRECIA | B33: 120 | C33: 59285 | D33: 42337 | E33: 71.41266762 | F33: 41907 | G33: 125 | H33: 9328 | I33: 141 | J33: 85 | K33: 341 | L33: 3325 | M33: 7314 | N33: 255 | O33: 283 | P33: 202 | Q33: 2984 | R33: 10834 | S33: 6690 | T33: 355 | U33: 75 | V33: 16948 | W33: 28.58733238
A34: SAN MATEO | B34: 12 | C34: 4602 | D34: 2993 | E34: 65.03694046 | F34: 2956 | G34: 8 | H34: 470 | I34: 4 | J34: 5 | K34: 19 | L34: 255 | M34: 860 | N34: 39 | O34: 10 | P34: 9 | Q34: 250 | R34: 471 | S34: 556 | T34: 30 | U34: 7 | V34: 1609 | W34: 34.96305954
A35: ATENAS | B35: 40 | C35: 20429 | D35: 14706 | E35: 71.98590239 | F35: 14565 | G35: 46 | H35: 4028 | I35: 46 | J35: 26 | K35: 95 | L35: 1196 | M35: 2466 | N35: 117 | O35: 87 | P35: 66 | Q35: 684 | R35: 2772 | S35: 2936 | T35: 122 | U35: 19 | V35: 5723 | W35: 28.01409761
A36: NARANJO | B36: 63 | C36: 31782 | D36: 22206 | E36: 69.86973759 | F36: 21930 | G36: 52 | H36: 5525 | I36: 72 | J36: 50 | K36: 103 | L36: 1831 | M36: 3913 | N36: 139 | O36: 162 | P36: 118 | Q36: 1513 | R36: 4572 | S36: 3880 | T36: 228 | U36: 48 | V36: 9576 | W36: 30.13026241
A37: PALMARES | B37: 53 | C37: 28973 | D37: 21170 | E37: 73.06802885 | F37: 20944 | G37: 45 | H37: 5862 | I37: 39 | J37: 57 | K37: 171 | L37: 1958 | M37: 4264 | N37: 139 | O37: 158 | P37: 94 | Q37: 839 | R37: 3633 | S37: 3685 | T37: 196 | U37: 30 | V37: 7803 | W37: 26.93197115
A38: POÁS | B38: 41 | C38: 21821 | D38: 15937 | E38: 73.03514963 | F38: 15781 | G38: 61 | H38: 3596 | I38: 49 | J38: 25 | K38: 85 | L38: 1174 | M38: 3272 | N38: 114 | O38: 89 | P38: 72 | Q38: 892 | R38: 3842 | S38: 2510 | T38: 126 | U38: 30 | V38: 5884 | W38: 26.96485037
A39: OROTINA | B39: 31 | C39: 15594 | D39: 9402 | E39: 60.29242016 | F39: 9294 | G39: 19 | H39: 1319 | I39: 19 | J39: 15 | K39: 41 | L39: 799 | M39: 2316 | N39: 62 | O39: 52 | P39: 30 | Q39: 494 | R39: 2147 | S39: 1981 | T39: 90 | U39: 18 | V39: 6192 | W39: 39.70757984
A40: SAN CARLOS | B40: 228 | C40: 108240 | D40: 74106 | E40: 68.46452328 | F40: 73054 | G40: 281 | H40: 11928 | I40: 246 | J40: 105 | K40: 718 | L40: 7029 | M40: 12431 | N40: 695 | O40: 440 | P40: 362 | Q40: 3608 | R40: 24762 | S40: 10449 | T40: 873 | U40: 179 | V40: 34134 | W40: 31.53547672
A41: ZARCERO | B41: 22 | C41: 9056 | D41: 7183 | E41: 79.31757951 | F41: 7108 | G41: 12 | H41: 1618 | I41: 20 | J41: 21 | K41: 39 | L41: 390 | M41: 1919 | N41: 46 | O41: 45 | P41: 29 | Q41: 410 | R41: 899 | S41: 1660 | T41: 54 | U41: 21 | V41: 1873 | W41: 20.68242049
A42: VALVERDE VEGA | B42: 29 | C42: 14668 | D42: 9807 | E42: 66.85983092 | F42: 9706 | G42: 30 | H42: 1877 | I42: 30 | J42: 25 | K42: 77 | L42: 915 | M42: 1594 | N42: 126 | O42: 61 | P42: 38 | Q42: 633 | R42: 2398 | S42: 1902 | T42: 83 | U42: 18 | V42: 4861 | W42: 33.14016908
A43: UPALA | B43: 69 | C43: 28352 | D43: 15647 | E43: 55.1883465 | F43: 15254 | G43: 70 | H43: 1646 | I43: 51 | J43: 45 | K43: 127 | L43: 1052 | M43: 3307 | N43: 192 | O43: 63 | P43: 95 | Q43: 514 | R43: 6191 | S43: 1901 | T43: 310 | U43: 83 | V43: 12705 | W43: 44.8116535
A44: LOS CHILES | B44: 31 | C44: 12152 | D44: 6499 | E44: 53.48090849 | F44: 6374 | G44: 26 | H44: 791 | I44: 24 | J44: 54 | K44: 103 | L44: 824 | M44: 1049 | N44: 63 | O44: 23 | P44: 51 | Q44: 287 | R44: 2103 | S44: 976 | T44: 108 | U44: 17 | V44: 5653 | W44: 46.51909151
A45: GUATUSO | B45: 26 | C45: 10970 | D45: 6597 | E45: 60.13673655 | F45: 6460 | G45: 17 | H45: 404 | I45: 21 | J45: 9 | K45: 35 | L45: 392 | M45: 1544 | N45: 77 | O45: 32 | P45: 23 | Q45: 428 | R45: 2719 | S45: 759 | T45: 111 | U45: 26 | V45: 4373 | W45: 39.86326345
A46: PROVINCIA CARTAGO | B46: =SUM(B47:B54) -> 740 | C46: =SUM(C47:C54) -> 387905 | D46: =SUM(D47:D54) -> 278545 | E46: 71.80753019 | F46: 274459 | G46: 1061 | H46: 72528 | I46: 5920 | J46: 527 | K46: 2097 | L46: 29839 | M46: 55345 | N46: 2814 | O46: 2361 | P46: 1955 | Q46: 17464 | R46: 41211 | S46: 41337 | T46: 3401 | U46: 685 | V46: 109360 | W46: 28.19246981
A47: CARTAGO | B47: 217 | C47: 121426 | D47: =F47+U47+T47 -> 90683 | E47: 74.68169914 | F47: =SUM(G47:S47) -> 89391 | G47: 270 | H47: 24665 | I47: 3295 | J47: 174 | K47: 575 | L47: 9491 | M47: 19042 | N47: 951 | O47: 856 | P47: 613 | Q47: 5269 | R47: 10318 | S47: 13872 | T47: 1108 | U47: 184 | V47: 30743 | W47: 25.31830086
A48: PARAÍSO | B48: 86 | C48: 46757 | D48: 34009 | E48: 72.73563317 | F48: 33460 | G48: 212 | H48: 8478 | I48: 421 | J48: 69 | K48: 268 | L48: 6342 | M48: 5418 | N48: 316 | O48: 269 | P48: 282 | Q48: 2872 | R48: 4613 | S48: 3900 | T48: 460 | U48: 89 | V48: 12748 | W48: 27.26436683
A49: LA UNIÓN | B49: 127 | C49: 70313 | D49: 49210 | E49: 69.98705787 | F49: 48768 | G49: 192 | H49: 11902 | I49: 397 | J49: 83 | K49: 378 | L49: 4145 | M49: 8441 | N49: 599 | O49: 468 | P49: 300 | Q49: 2501 | R49: 10656 | S49: 8706 | T49: 369 | U49: 73 | V49: 21103 | W49: 30.01294213
A50: JIMÉNEZ | B50: 27 | C50: 12064 | D50: 8428 | E50: 69.86074271 | F50: 8248 | G50: 37 | H50: 2042 | I50: 128 | J50: 19 | K50: 94 | L50: 776 | M50: 2105 | N50: 72 | O50: 81 | P50: 46 | Q50: 748 | R50: 1319 | S50: 781 | T50: 148 | U50: 32 | V50: 3636 | W50: 30.13925729
A51: TURRIALBA | B51: 134 | C51: 57210 | D51: 37991 | E51: 66.40622269 | F51: 37347 | G51: 127 | H51: 10185 | I51: 461 | J51: 71 | K51: 337 | L51: 3022 | M51: 7631 | N51: 292 | O51: 186 | P51: 267 | Q51: 2024 | R51: 7507 | S51: 5237 | T51: 506 | U51: 138 | V51: 19219 | W51: 33.59377731
A52: ALVARADO | B52: 22 | C52: 10590 | D52: 7360 | E52: 69.49952786 | F52: 7194 | G52: 33 | H52: 1938 | I52: 76 | J52: 19 | K52: 25 | L52: 735 | M52: 1562 | N52: 59 | O52: 96 | P52: 57 | Q52: 705 | R52: 925 | S52: 964 | T52: 134 | U52: 32 | V52: 3230 | W52: 30.50047214
A53: OREAMUNO | B53: 64 | C53: 36202 | D53: 26135 | E53: 72.19214408 | F53: 25679 | G53: 100 | H53: 7171 | I53: 602 | J53: 52 | K53: 285 | L53: 2779 | M53: 5452 | N53: 259 | O53: 189 | P53: 220 | Q53: 1815 | R53: 2985 | S53: 3770 | T53: 396 | U53: 60 | V53: 10067 | W53: 27.80785592
A54: EL GUARCO1/ | B54: 63 | C54: 33343 | D54: 24729 | E54: 74.1 | F54: 24372 | G54: 90 | H54: 6147 | I54: 540 | J54: 40 | K54: 135 | L54: 2549 | M54: 5694 | N54: 266 | O54: 216 | P54: 170 | Q54: 1530 | R54: 2888 | S54: 4107 | T54: 280 | U54: 77 | V54: 8614 | W54: 25.9
A55: PROVINCIA HEREDIA | B55: =SUM(B56:B65) -> 613 | C55: =SUM(C56:C65) -> 332859 | D55: =SUM(D56:D65) -> 238377 | E55: 71.61500816 | F55: 236246 | G55: =SUM(G56:G65) -> 580 | H55: 64449 | I55: 682 | J55: 401 | K55: 1896 | L55: 19075 | M55: 41780 | N55: 2410 | O55: 2207 | P55: 1236 | Q55: 8792 | R55: 50033 | S55: 42705 | T55: 1780 | U55: 351 | V55: 94482 | W55: 28.4
A56: HEREDIA | B56: 167 | C56: 96661 | D56: =F56+U56+T56 -> 69101 | E56: 71.48798378 | F56: =SUM(G56:S56) -> 68559 | G56: 175 | H56: 20130 | I56: 220 | J56: 130 | K56: 566 | L56: 5073 | M56: 12235 | N56: 701 | O56: 693 | P56: 360 | Q56: 2232 | R56: 13913 | S56: 12131 | T56: 458 | U56: 84 | V56: 27560 | W56: 28.51201622
A57: BARVA | B57: 60 | C57: 32786 | D57: 24614 | E57: 75.07472702 | F57: 24450 | G57: 37 | H57: 7331 | I57: 69 | J57: 42 | K57: 269 | L57: 1925 | M57: 4065 | N57: 256 | O57: 274 | P57: 111 | Q57: 1174 | R57: 4975 | S57: 3922 | T57: 143 | U57: 21 | V57: 8172 | W57: 24.92527298
A58: SANTO DOMINGO | B58: 61 | C58: 34421 | D58: 25701 | E58: 74.66662793 | F58: 25454 | G58: 57 | H58: 6906 | I58: 82 | J58: 35 | K58: 167 | L58: 2051 | M58: 4732 | N58: 223 | O58: 239 | P58: 201 | Q58: 760 | R58: 4657 | S58: 5344 | T58: 211 | U58: 36 | V58: 8720 | W58: 25.33337207
A59: SANTA BÁRBARA | B59: 48 | C59: 26746 | D59: 19102 | E59: 71.42002542 | F59: 18938 | G59: 50 | H59: 4739 | I59: 50 | J59: 27 | K59: 123 | L59: 1702 | M59: 3193 | N59: 187 | O59: 173 | P59: 87 | Q59: 1115 | R59: 4710 | S59: 2782 | T59: 146 | U59: 18 | V59: 7644 | W59: 28.57997458
A60: SAN RAFAEL | B60: 64 | C60: 35395 | D60: 25287 | E60: 71.44229411 | F60: 25067 | G60: 67 | H60: 7442 | I60: 69 | J60: 46 | K60: 220 | L60: 2064 | M60: 4039 | N60: 224 | O60: 243 | P60: 129 | Q60: 942 | R60: 5238 | S60: 4344 | T60: 180 | U60: 40 | V60: 10108 | W60: 28.55770589
A61: SAN ISIDRO2/ | B61: 33 | C61: 16081 | D61: 11663 | E61: 72.6 | F61: 11559 | G61: 26 | H61: 3393 | I61: 34 | J61: 27 | K61: 87 | L61: 1031 | M61: 2268 | N61: 119 | O61: 103 | P61: 65 | Q61: 348 | R61: 1719 | S61: 2339 | T61: 83 | U61: 21 | V61: 4418 | W61: 27.4
A62: BELÉN | B62: 33 | C62: 18745 | D62: 14078 | E62: 75.10269405 | F62: 13979 | G62: 28 | H62: 3841 | I62: 23 | J62: 14 | K62: 120 | L62: 999 | M62: 2965 | N62: 149 | O62: 107 | P62: 49 | Q62: 356 | R62: 1575 | S62: 3753 | T62: 82 | U62: 17 | V62: 4667 | W62: 24.89730595
A63: FLORES | B63: 29 | C63: 16683 | D63: 12650 | E63: 75.82569082 | F63: 12584 | G63: 20 | H63: 3389 | I63: 23 | J63: 18 | K63: 83 | L63: 1094 | M63: 2532 | N63: 94 | O63: 112 | P63: 52 | Q63: 545 | R63: 1806 | S63: 2816 | T63: 55 | U63: 11 | V63: 4033 | W63: 24.17430918
A64: SAN PABLO | B64: 39 | C64: 21950 | D64: 16307 | E64: 74.29157175 | F64: 16188 | G64: 31 | H64: 4689 | I64: 38 | J64: 24 | K64: 115 | L64: 1075 | M64: 2676 | N64: 124 | O64: 132 | P64: 66 | Q64: 508 | R64: 3018 | S64: 3692 | T64: 103 | U64: 16 | V64: 5643 | W64: 25.70842825
A65: SARAPIQUÍ | B65: 79 | C65: 33391 | D65: 19874 | E65: 59.51903207 | F65: 19468 | G65: 89 | H65: 2589 | I65: 74 | J65: 38 | K65: 146 | L65: 2061 | M65: 3075 | N65: 333 | O65: 131 | P65: 116 | Q65: 812 | R65: 8422 | S65: 1582 | T65: 319 | U65: 87 | V65: 13517 | W65: 40.48096793
A66: PROVINCIA GUANACASTE | B66: =SUM(B67:B77) -> 565 | C66: =SUM(C67:C77) -> 240637 | D66: =SUM(D67:D77) -> 142830 | E66: 59.35496204 | F66: 139808 | G66: 528 | H66: =SUM(H67:H77) -> 21089 | I66: 438 | J66: 255 | K66: 942 | L66: 15653 | M66: 32937 | N66: 1346 | O66: 691 | P66: 822 | Q66: 7266 | R66: 35733 | S66: 22108 | T66: 2392 | U66: 630 | V66: 97807 | W66: 40.64503796
A67: LIBERIA3/ | B67: 87 | C67: 44938 | D67: =F67+U67+T67 -> 25813 | E67: 57.5 | F67: =SUM(G67:S67) -> 25399 | G67: 163 | H67: 4384 | I67: 74 | J67: 51 | K67: 178 | L67: 2635 | M67: 5346 | N67: 216 | O67: 159 | P67: 185 | Q67: 1432 | R67: 6902 | S67: 3674 | T67: 327 | U67: 87 | V67: 19125 | W67: 42.5
A68: NICOYA | B68: 106 | C68: 40987 | D68: 25935 | E68: 63.27616073 | F68: 25336 | G68: 58 | H68: 3347 | I68: 83 | J68: 41 | K68: 248 | L68: 2617 | M68: 6603 | N68: 232 | O68: 116 | P68: 126 | Q68: 1350 | R68: 5775 | S68: 4740 | T68: 474 | U68: 125 | V68: 15052 | W68: 36.72383927
A69: SANTA CRUZ | B69: 92 | C69: 41107 | D69: 23881 | E69: 58.09472839 | F69: 23243 | G69: 105 | H69: 3319 | I69: 64 | J69: 54 | K69: 143 | L69: 3722 | M69: 5625 | N69: 211 | O69: 87 | P69: 120 | Q69: 1302 | R69: 4622 | S69: 3869 | T69: 480 | U69: 158 | V69: 17226 | W69: 41.90527161
A70: BAGACES | B70: 32 | C70: 13686 | D70: 7922 | E70: 57.88396902 | F70: 7801 | G70: 24 | H70: 1401 | I70: 17 | J70: 17 | K70: 83 | L70: 785 | M70: 1467 | N70: 59 | O70: 47 | P70: 47 | Q70: 303 | R70: 2470 | S70: 1081 | T70: 101 | U70: 20 | V70: 5764 | W70: 42.11603098
A71: CARRILLO | B71: 48 | C71: 24283 | D71: 13523 | E71: 55.68916526 | F71: 13141 | G71: 54 | H71: 1571 | I71: 50 | J71: 25 | K71: 66 | L71: 1365 | M71: 3327 | N71: 149 | O71: 77 | P71: 69 | Q71: 710 | R71: 3576 | S71: 2102 | T71: 311 | U71: 71 | V71: 10760 | W71: 44.31083474
A72: CAÑAS | B72: 42 | C72: 19476 | D72: 11011 | E72: 56.53624974 | F72: 10804 | G72: 33 | H72: 1557 | I72: 28 | J72: 17 | K72: 75 | L72: 1170 | M72: 2331 | N72: 80 | O72: 47 | P72: 69 | Q72: 423 | R72: 3667 | S72: 1307 | T72: 176 | U72: 31 | V72: 8465 | W72: 43.46375026
A73: ABANGARES | B73: 39 | C73: 13610 | D73: 8242 | E73: 60.55841293 | F73: 8062 | G73: 27 | H73: 1156 | I73: 65 | J73: 12 | K73: 51 | L73: 985 | M73: 1934 | N73: 127 | O73: 26 | P73: 50 | Q73: 445 | R73: 1920 | S73: 1264 | T73: 150 | U73: 30 | V73: 5368 | W73: 39.44158707
A74: TILARÁN | B74: 38 | C74: 15049 | D74: 10136 | E74: 67.35331251 | F74: 10032 | G74: 25 | H74: 1936 | I74: 21 | J74: 11 | K74: 30 | L74: 661 | M74: 2207 | N74: 63 | O74: 51 | P74: 49 | Q74: 693 | R74: 2522 | S74: 1763 | T74: 88 | U74: 16 | V74: 4913 | W74: 32.64668749
A75: NANDAYURE | B75: 30 | C75: 8464 | D75: 5575 | E75: =D75/C75*100 -> 65.86720227 | F75: 5432 | G75: 21 | H75: 898 | I75: 18 | J75: 9 | K75: 39 | L75: 579 | M75: 1330 | N75: 106 | O75: 48 | P75: 47 | Q75: 326 | R75: 1390 | S75: 621 | T75: 110 | U75: 33 | V75: 2889 | W75: 34.13279773
A76: LA CRUZ | B76: 32 | C76: 13023 | D76: 6744 | E76: 51.78530293 | F76: 6589 | G76: 11 | H76: 713 | I76: 14 | J76: 13 | K76: 20 | L76: 638 | M76: 1617 | N76: 44 | O76: 22 | P76: 38 | Q76: 142 | R76: 2221 | S76: 1096 | T76: 116 | U76: 39 | V76: 6279 | W76: 48.21469707
A77: HOJANCHA | B77: 19 | C77: 6014 | D77: 4048 | E77: 67.30961091 | F77: 3969 | G77: 7 | H77: 807 | I77: 4 | J77: 5 | K77: 9 | L77: 496 | M77: 1150 | N77: 59 | O77: 11 | P77: 22 | Q77: 140 | R77: 668 | S77: 591 | T77: 59 | U77: 20 | V77: 1966 | W77: 32.69038909
A78: PROVINCIA PUNTARENAS | B78: =SUM(B79:B89) -> 716 | C78: =SUM(C79:C89) -> 310662 | D78: =SUM(D79:D89) -> 172338 | E78: 55.47443846 | F78: 169076 | G78: 655 | H78: 20330 | I78: 607 | J78: 324 | K78: 1347 | L78: 19462 | M78: 31280 | N78: 1805 | O78: 947 | P78: 954 | Q78: 8202 | R78: 60096 | S78: 23067 | T78: 2659 | U78: 603 | V78: 138324 | W78: 44.52556154
A79: PUNTARENAS | B79: 194 | C79: 86571 | D79: =F79+U79+T79 -> 49356 | E79: 57.01216343 | F79: =SUM(G79:S79) -> 48540 | G79: 157 | H79: 6519 | I79: 107 | J79: 92 | K79: 369 | L79: 6470 | M79: 8041 | N79: 399 | O79: 312 | P79: 250 | Q79: 2815 | R79: 15979 | S79: 7030 | T79: 671 | U79: 145 | V79: 37215 | W79: 42.98783657
A80: ESPARZA | B80: 48 | C80: 22598 | D80: 14833 | E80: 65.63855208 | F80: 14673 | G80: 29 | H80: 2140 | I80: 39 | J80: 19 | K80: 105 | L80: 1409 | M80: 2985 | N80: 114 | O80: 84 | P80: 47 | Q80: 1052 | R80: 4470 | S80: 2180 | T80: 128 | U80: 32 | V80: 7765 | W80: 34.36144792
A81: BUENOS AIRES | B81: 79 | C81: 31975 | D81: 16843 | E81: 52.67552776 | F81: 16458 | G81: 59 | H81: 1530 | I81: 61 | J81: 36 | K81: 194 | L81: 2060 | M81: 3110 | N81: 236 | O81: 144 | P81: 169 | Q81: 764 | R81: 5983 | S81: 2112 | T81: 305 | U81: 80 | V81: 15132 | W81: 47.32447224
A82: MONTES DE ORO | B82: 26 | C82: 10241 | D82: 6817 | E82: 66.56576506 | F82: 6722 | G82: 19 | H82: 1211 | I82: 17 | J82: 9 | K82: 38 | L82: 558 | M82: 1054 | N82: 54 | O82: 43 | P82: 36 | Q82: 224 | R82: 2441 | S82: 1018 | T82: 79 | U82: 16 | V82: 3424 | W82: 33.43423494
A83: OSA | B83: 59 | C83: 22210 | D83: 11507 | E83: 51.8099955 | F83: 11236 | G83: 44 | H83: 1012 | I83: 68 | J83: 22 | K83: 133 | L83: 1396 | M83: 1973 | N83: 122 | O83: 61 | P83: 48 | Q83: 725 | R83: 4532 | S83: 1100 | T83: 235 | U83: 36 | V83: 10703 | W83: 48.1900045
A84: AGUIRRE | B84: 45 | C84: 19595 | D84: 10684 | E84: 54.52411329 | F84: 10501 | G84: 56 | H84: 1166 | I84: 39 | J84: 17 | K84: 47 | L84: 1287 | M84: 1739 | N84: 110 | O84: 78 | P84: 58 | Q84: 457 | R84: 3948 | S84: 1499 | T84: 142 | U84: 41 | V84: 8911 | W84: 45.47588671
A85: GOLFITO | B85: 68 | C85: 29563 | D85: 14768 | E85: 49.95433481 | F85: 14426 | G85: 80 | H85: 1590 | I85: 75 | J85: 32 | K85: 118 | L85: 1601 | M85: 2578 | N85: 160 | O85: 54 | P85: 100 | Q85: 665 | R85: 5681 | S85: 1692 | T85: 287 | U85: 55 | V85: 14795 | W85: 50.04566519
A86: COTO BRUS | B86: 71 | C86: 29923 | D86: 16631 | E86: 55.57932026 | F86: 16271 | G86: 106 | H86: 2060 | I86: 82 | J86: 38 | K86: 96 | L86: 1433 | M86: 3524 | N86: 236 | O86: 71 | P86: 83 | Q86: 667 | R86: 5429 | S86: 2446 | T86: 281 | U86: 79 | V86: 13292 | W86: 44.42067974
A87: PARRITA | B87: 34 | C87: 12052 | D87: 7044 | E87: 58.44673083 | F87: 6892 | G87: 19 | H87: 572 | I87: 14 | J87: 16 | K87: 32 | L87: 625 | M87: 1453 | N87: 103 | O87: 16 | P87: 25 | Q87: 221 | R87: 2718 | S87: 1078 | T87: 120 | U87: 32 | V87: 5008 | W87: 41.55326917
A88: CORREDORES | B88: 70 | C88: 34163 | D88: 17731 | E88: 51.90117964 | F88: 17312 | G88: 70 | H88: 1716 | I88: 95 | J88: 32 | K88: 175 | L88: 1728 | M88: 3360 | N88: 178 | O88: 62 | P88: 101 | Q88: 445 | R88: 7499 | S88: 1851 | T88: 344 | U88: 75 | V88: 16432 | W88: 48.09882036
A89: GARABITO | B89: 22 | C89: 11771 | D89: 6124 | E89: 52.026166 | F89: 6045 | G89: 16 | H89: 814 | I89: 10 | J89: 11 | K89: 40 | L89: 895 | M89: 1463 | N89: 93 | O89: 22 | P89: 37 | Q89: 167 | R89: 1416 | S89: 1061 | T89: 67 | U89: 12 | V89: 5647 | W89: 47.973834
A90: PROVINCIA LIMÓN | B90: =SUM(B91:B96) -> 550 | C90: =SUM(C91:C96) -> 272633 | D90: =SUM(D91:D96) -> 155574 | E90: 57.06352496 | F90: =SUM(F91:F96) -> 151987 | G90: 989 | H90: 16050 | I90: 1003 | J90: 453 | K90: 1434 | L90: 15810 | M90: 26684 | N90: 1963 | O90: 657 | P90: 1215 | Q90: 6978 | R90: 64710 | S90: 14041 | T90: 2818 | U90: 769 | V90: 117059 | W90: 42.93647504
A91: LIMÓN4/ | B91: 138 | C91: 68866 | D91: =F91+U91+T91 -> 37241 | E91: 54 | F91: =SUM(G91:S91) -> 36258 | G91: 225 | H91: 3277 | I91: 274 | J91: 97 | K91: 266 | L91: 4336 | M91: 5553 | N91: 357 | O91: 162 | P91: 335 | Q91: 1943 | R91: 15704 | S91: 3729 | T91: 736 | U91: 247 | V91: 31625 | W91: 46
A92: POCOCÍ5/ | B92: 180 | C92: 92004 | D92: 55843 | E92: 60.8 | F92: 54788 | G92: 423 | H92: 7438 | I92: 317 | J92: 200 | K92: 381 | L92: 6829 | M92: 9586 | N92: 884 | O92: 267 | P92: 382 | Q92: 1785 | R92: 21662 | S92: 4634 | T92: 881 | U92: 174 | V92: 36161 | W92: 39.2
A93: SIQUIRRES | B93: 86 | C93: 40171 | D93: 23059 | E93: 57.402106 | F93: 22557 | G93: 141 | H93: 2030 | I93: 102 | J93: 57 | K93: 274 | L93: 1737 | M93: 4460 | N93: 302 | O93: 95 | P93: 202 | Q93: 963 | R93: 10253 | S93: 1941 | T93: 395 | U93: 107 | V93: 17112 | W93: 42.597894
A94: TALAMANCA | B94: 46 | C94: 20870 | D94: 10518 | E94: 50.39770005 | F94: 10193 | G94: 30 | H94: 872 | I94: 70 | J94: 26 | K94: 268 | L94: 724 | M94: 1614 | N94: 78 | O94: 38 | P94: 92 | Q94: 1259 | R94: 3662 | S94: 1460 | T94: 218 | U94: 107 | V94: 10352 | W94: 49.60229995
A95: MATINA | B95: 44 | C95: 21862 | D95: 11890 | E95: 54.3866069 | F95: 11591 | G95: 56 | H95: 731 | I95: 76 | J95: 35 | K95: 94 | L95: 771 | M95: 2246 | N95: 122 | O95: 28 | P95: 67 | Q95: 423 | R95: 5839 | S95: 1103 | T95: 231 | U95: 68 | V95: 9972 | W95: 45.6133931
A96: GUÁCIMO | B96: 56 | C96: 28860 | D96: 17023 | E96: 58.98475398 | F96: 16600 | G96: 114 | H96: 1702 | I96: 164 | J96: 38 | K96: 151 | L96: 1413 | M96: 3225 | N96: 220 | O96: 67 | P96: 137 | Q96: 605 | R96: 7590 | S96: 1174 | T96: 357 | U96: 66 | V96: 11837 | W96: 41.01524602
A97: EXTRANJERO | B97: 70 | C97: 31864 | D97: 4431 | E97: =D97/C97*100 -> 13.9059754 | F97: 4391 | G97: 6 | H97: 1655 | I97: 16 | J97: 6 | K97: 80 | L97: 243 | M97: 748 | N97: 31 | O97: 32 | P97: 21 | Q97: 43 | R97: 512 | S97: 998 | T97: 37 | U97: 3 | V97: 27433 | W97: 86.0940246
A100: 1/ En la resolución DGRA-039-2018 se realiza un cambio dentro del Padrón Nacional Electoral en las Juntas Receptoras de Votos número 4069 y 4070, modificando el dato del abstencionismo.
A101: 2/ En la resolución DGRA-039-2018 se realiza un cambio dentro del Padrón Nacional Electoral en la Junta Receptora de Votos número 4521, modificando el dato del abstencionismo.
A102: 3/ En la resolución DGRA-039-2018 se realiza un cambio dentro del Padrón Nacional Electoral en las Juntas Receptoras de Votos número 4726, 4780 y 4784 modificando el dato del abstencionismo.
A103: 4/ En la resolución DGRA-039-2018 se realiza un cambio dentro del Padrón Nacional Electoral en las Juntas Receptoras de Votos número 6116 y 6117, modificando el dato del abstencionismo.
A104: 5/ En la resolución DGRA-039-2018 se realiza un cambio dentro del Padrón Nacional Electoral en las Juntas Receptoras de Votos número 6239, 6240 y 6245, modificando el dato del abstencionismo.
A106: FUENTE: Tribunal Supremo de Elecciones.

Sheet C1.3
A2: CUADRO 1.3 SAN JOSÉ: JUNTAS, ELECTORADO, PARTICIPACIÓN, VOTOS POR PARTIDO, NULOS, BLANCOS Y ABSTENCIONISMO, PARA PRESIDENCIA Y VICEPRESIDENCIAS DE LA REPÚBLICA, SEGÚN CANTÓN Y DISTRITO ADMINISTRATIVO ELECCIONES 4 DE FEBRERO 2018
A4: CANTÓN Y DISTRITO ADMINISTRATIVO | B4: JUNTAS | C4: ELECTORADO | D4: VOTOS RECIBIDOS | V4: ABSTENCIONISMO
D5: TOTAL GENERAL | E5: % PARTICIPACIÓN | F5: VOTOS VÁLIDOS | T5: NULOS | U5: BLANCOS | V5: ABSOLUTO | W5: %
F6: TOTAL | G6: ACCESIBILIDAD SIN EXCLUSIÓN | H6: ACCIÓN CIUDADANA | I6: ALIANZA DEMÓCRATA CRISTIANA | J6: DE LOS TRABAJADORES | K6: FRENTE AMPLIO | L6: INTEGRACIÓN NACIONAL | M6: LIBERACIÓN NACIONAL | N6: MOVIMIENTO LIBERTARIO | O6: NUEVA GENERACIÓN | P6: RENOVACIÓN COSTARRICENSE | Q6: REPUBLICANO SOCIAL CRISTIANO | R6: RESTAURACIÓN NACIONAL | S6: UNIDAD SOCIAL CRISTIANA
A8: PROVINCIA SAN JOSÉ | B8: =B9+B21+B25+B39+B49+B53+B61+B69+B77+B84+B90+B96+B102+B108+B112+B117+B123+B127+B132+B145 -> 2092 | C8: =C9+C21+C25+C39+C49+C53+C61+C69+C77+C84+C90+C96+C102+C108+C112+C117+C123+C127+C132+C145 -> 1114779 | D8: =D9+D21+D25+D39+D49+D53+D61+D69+D77+D84+D90+D96+D102+D108+D112+D117+D123+D127+D132+D145 -> 762422 | E8: =D8/C8*100 -> 68.39221047 | F8: =F9+F21+F25+F39+F49+F53+F61+F69+F77+F84+F90+F96+F102+F108+F112+F117+F123+F127+F132+F145 -> 755616 | G8: 2339 | H8: 177643 | I8: 2659 | J8: 1497 | K8: 5889 | L8: 68058 | M8: 135883 | N8: 7674 | O8: 6395 | P8: 4048 | Q8: 34676 | R8: 172975 | S8: 135880 | T8: 5643 | U8: 1163 | V8: 352111 | W8: 31.60778953
A9: CANTÓN 1 SAN JOSÉ | B9: 409 | C9: 234558 | D9: =SUM(D10:D20) -> 156152 | E9: =D9/C9*100 -> 66.57287323 | F9: =SUM(F10:F20) -> 154842 | G9: 416 | H9: 34657 | I9: 575 | J9: 303 | K9: 1260 | L9: 15513 | M9: 27669 | N9: 1608 | O9: 1316 | P9: 769 | Q9: 6227 | R9: 37931 | S9: 26598 | T9: 1106 | U9: 204 | V9: 78200 | W9: 33.42712677
A10: CARMEN | B10: 9 | C10: 4967 | D10: =+F10+T10+U10 -> 3216 | E10: =D10/C10*100 -> 64.74733239 | F10: =SUM(G10:S10) -> 3195 | G10: 7 | H10: 822 | I10: 11 | J10: 5 | K10: 53 | L10: 298 | M10: 683 | N10: 21 | O10: 28 | P10: 7 | Q10: 98 | R10: 349 | S10: 813 | T10: 18 | U10: 3 | V10: 1751 | W10: 35.25266761
A11: MERCED | B11: 17 | C11: 9904 | D11: 6139 | E11: 61.98505654 | F11: 6067 | G11: 21 | H11: 1424 | I11: 19 | J11: 14 | K11: 49 | L11: 735 | M11: 1182 | N11: 81 | O11: 44 | P11: 32 | Q11: 274 | R11: 1263 | S11: 929 | T11: 52 | U11: 20 | V11: 3765 | W11: 38.01494346
A12: HOSPITAL1/ | B12: 34 | C12: 19095 | D12: 11625 | E12: 61.5 | F12: 11517 | G12: 45 | H12: 2176 | I12: 59 | J12: 21 | K12: 96 | L12: 1410 | M12: 2174 | N12: 111 | O12: 109 | P12: 72 | Q12: 596 | R12: 3053 | S12: 1595 | T12: 86 | U12: 22 | V12: 7265 | W12: 38.5
A13: CATEDRAL | B13: 27 | C13: 15321 | D13: 10164 | E13: 66.34031721 | F13: 10094 | G13: 26 | H13: 2509 | I13: 37 | J13: 24 | K13: 91 | L13: 1129 | M13: 1948 | N13: 109 | O13: 69 | P13: 61 | Q13: 444 | R13: 1797 | S13: 1850 | T13: 57 | U13: 13 | V13: 5157 | W13: 33.65968279
A14: ZAPOTE | B14: 32 | C14: 18251 | D14: 13224 | E14: 72.45630376 | F14: 13149 | G14: 22 | H14: 3628 | I14: 48 | J14: 29 | K14: 112 | L14: 1279 | M14: 2422 | N14: 129 | O14: 127 | P14: 61 | Q14: 455 | R14: 2304 | S14: 2533 | T14: 64 | U14: 11 | V14: 5027 | W14: 27.54369624
A15: SAN FRANCISCO DE DOS RÍOS | B15: 32 | C15: 18366 | D15: 13607 | E15: 74.08798867 | F15: 13546 | G15: 22 | H15: 3823 | I15: 51 | J15: 17 | K15: 140 | L15: 1220 | M15: 2675 | N15: 106 | O15: 121 | P15: 48 | Q15: 367 | R15: 2159 | S15: 2797 | T15: 53 | U15: 8 | V15: 4759 | W15: 25.91201133
A16: URUCA | B16: 29 | C16: 15982 | D16: 9908 | E16: 61.99474409 | F16: 9799 | G16: 27 | H16: 2073 | I16: 31 | J16: 21 | K16: 73 | L16: 737 | M16: 1705 | N16: 119 | O16: 77 | P16: 37 | Q16: 273 | R16: 2699 | S16: 1927 | T16: 94 | U16: 15 | V16: 6074 | W16: 38.00525591
A17: MATA REDONDA | B17: 13 | C17: 7579 | D17: 5304 | E17: 69.98284734 | F17: 5271 | G17: 8 | H17: 1200 | I17: 16 | J17: 11 | K17: 32 | L17: 468 | M17: 1209 | N17: 48 | O17: 44 | P17: 17 | Q17: 107 | R17: 585 | S17: 1526 | T17: 28 | U17: 5 | V17: 2275 | W17: 30.01715266
A18: PAVAS | B18: 87 | C18: 50685 | D18: 33098 | E18: 65.30137121 | F18: 32755 | G18: 81 | H18: 5971 | I18: 121 | J18: 55 | K18: 205 | L18: 2916 | M18: 5598 | N18: 394 | O18: 266 | P18: 149 | Q18: 1294 | R18: 10154 | S18: 5551 | T18: 290 | U18: 53 | V18: 17586 | W18: 34.69862879
A19: HATILLO | B19: 76 | C19: 43972 | D19: 28893 | E19: 65.7077231 | F19: 28640 | G19: 111 | H19: 6169 | I19: 110 | J19: 61 | K19: 224 | L19: 3103 | M19: 4804 | N19: 279 | O19: 242 | P19: 166 | Q19: 1398 | R19: 8106 | S19: 3867 | T19: 218 | U19: 35 | V19: 15079 | W19: 34.2922769
A20: SAN SEBASTIÁN | B20: 53 | C20: 30436 | D20: 20974 | E20: 68.91181496 | F20: 20809 | G20: 46 | H20: 4862 | I20: 72 | J20: 45 | K20: 185 | L20: 2218 | M20: 3269 | N20: 211 | O20: 189 | P20: 119 | Q20: 921 | R20: 5462 | S20: 3210 | T20: 146 | U20: 19 | V20: 9462 | W20: 31.08818504
A21: CANTÓN 2 ESCAZÚ | B21: 81 | C21: 46971 | D21: 33472 | E21: 71.26099082 | F21: =SUM(F22:F24) -> 33252 | G21: 94 | H21: 7246 | I21: 60 | J21: 69 | K21: 227 | L21: 2674 | M21: 7261 | N21: 407 | O21: 262 | P21: 156 | Q21: 1166 | R21: 4667 | S21: 8963 | T21: 194 | U21: 26 | V21: 13499 | W21: 28.73900918
A22: ESCAZÚ | B22: 21 | C22: 12370 | D22: 8910 | E22: =D22/C22*100 -> 72.02910267 | F22: =SUM(G22:S22) -> 8851 | G22: 26 | H22: 2100 | I22: 20 | J22: 18 | K22: 75 | L22: 811 | M22: 1811 | N22: 96 | O22: 75 | P22: 50 | Q22: 349 | R22: 1288 | S22: 2132 | T22: 51 | U22: 8 | V22: 3460 | W22: 27.97089733
A23: SAN ANTONIO | B23: 26 | C23: 15243 | D23: 10383 | E23: =D23/C23*100 -> 68.1165125 | F23: =SUM(G23:S23) -> 10296 | G23: 55 | H23: 2585 | I23: 19 | J23: 23 | K23: 91 | L23: 1003 | M23: 1793 | N23: 142 | O23: 96 | P23: 79 | Q23: 554 | R23: 2063 | S23: 1793 | T23: 77 | U23: 10 | V23: 4860 | W23: 31.8834875
A24: SAN RAFAEL | B24: 34 | C24: 19358 | D24: 14179 | E24: =D24/C24*100 -> 73.24620312 | F24: =SUM(G24:S24) -> 14105 | G24: 13 | H24: 2561 | I24: 21 | J24: 28 | K24: 61 | L24: 860 | M24: 3657 | N24: 169 | O24: 91 | P24: 27 | Q24: 263 | R24: 1316 | S24: 5038 | T24: 66 | U24: 8 | V24: 5179 | W24: 26.75379688
A25: CANTÓN 3 DESAMPARADOS | B25: 289 | C25: 160243 | D25: 109313 | E25: =D25/C25*100 -> 68.2170204 | F25: =SUM(F26:F38) -> 108371 | G25: 397 | H25: 24445 | I25: 388 | J25: 219 | K25: 816 | L25: 10014 | M25: 19343 | N25: 1182 | O25: 887 | P25: 593 | Q25: 5428 | R25: 29462 | S25: 15197 | T25: 797 | U25: 145 | V25: 50931 | W25: 31.7829796
A26: DESAMPARADOS | B26: 53 | C26: 30885 | D26: 21767 | E26: =D26/C26*100 -> 70.47757811 | F26: =SUM(G26:S26) -> 21591 | G26: 69 | H26: 5285 | I26: 92 | J26: 41 | K26: 183 | L26: 2045 | M26: 3805 | N26: 187 | O26: 192 | P26: 116 | Q26: 946 | R26: 5384 | S26: 3246 | T26: 156 | U26: 20 | V26: 9118 | W26: 29.52242189
A27: SAN MIGUEL | B27: 52 | C27: 28465 | D27: 18952 | E27: 66.58001054 | F27: 18789 | G27: 59 | H27: 3746 | I27: 50 | J27: 32 | K27: 111 | L27: 1642 | M27: 3169 | N27: 215 | O27: 131 | P27: 106 | Q27: 1102 | R27: 6315 | S27: 2111 | T27: 147 | U27: 16 | V27: 9513 | W27: 33.41998946
A28: SAN JUAN DE DIOS | B28: 22 | C28: 12997 | D28: 8426 | E28: 64.83034546 | F28: 8362 | G28: 37 | H28: 1739 | I28: 21 | J28: 30 | K28: 51 | L28: 938 | M28: 1277 | N28: 117 | O28: 58 | P28: 53 | Q28: 506 | R28: 2288 | S28: 1247 | T28: 57 | U28: 7 | V28: 4571 | W28: 35.16965454
A29: SAN RAFAEL ARRIBA | B29: 22 | C29: 11494 | D29: 7849 | E29: 68.28780233 | F29: 7804 | G29: 28 | H29: 1924 | I29: 41 | J29: 16 | K29: 61 | L29: 653 | M29: 1430 | N29: 89 | O29: 72 | P29: 34 | Q29: 341 | R29: 1893 | S29: 1222 | T29: 33 | U29: 12 | V29: 3646 | W29: 31.71219767
A30: SAN ANTONIO | B30: 16 | C30: 9192 | D30: 6859 | E30: 74.61923412 | F30: 6821 | G30: 15 | H30: 1966 | I30: 27 | J30: 9 | K30: 59 | L30: 561 | M30: 1294 | N30: 64 | O30: 63 | P30: 25 | Q30: 271 | R30: 1171 | S30: 1296 | T30: 32 | U30: 6 | V30: 2333 | W30: 25.38076588
A31: FRAILES | B31: 6 | C31: 2955 | D31: 2053 | E31: 69.47546531 | F31: 2017 | G31: 14 | H31: 461 | I31: 6 | J31: 4 | K31: 16 | L31: 140 | M31: 706 | N31: 20 | O31: 13 | P31: 13 | Q31: 155 | R31: 236 | S31: 233 | T31: 28 | U31: 8 | V31: 902 | W31: 30.52453469
A32: PATARRÁ | B32: 12 | C32: 6858 | D32: 4470 | E32: 65.17935258 | F32: 4433 | G32: 19 | H32: 877 | I32: 8 | J32: 7 | K32: 49 | L32: 436 | M32: 774 | N32: 68 | O32: 36 | P32: 19 | Q32: 302 | R32: 1192 | S32: 646 | T32: 31 | U32: 6 | V32: 2388 | W32: 34.82064742
A33: SAN CRISTÓBAL | B33: 7 | C33: 3216 | D33: 2359 | E33: 73.35199005 | F33: 2319 | G33: 8 | H33: 577 | I33: 3 | J33: 8 | K33: 14 | L33: 218 | M33: 820 | N33: 21 | O33: 24 | P33: 21 | Q33: 169 | R33: 238 | S33: 198 | T33: 30 | U33: 10 | V33: 857 | W33: 26.64800995
A34: ROSARIO | B34: 9 | C34: 3034 | D34: 2036 | E34: 67.10613052 | F34: 2005 | G34: 17 | H34: 389 | I34: 2 | J34: 2 | K34: 15 | L34: 207 | M34: 670 | N34: 30 | O34: 8 | P34: 7 | Q34: 184 | R34: 310 | S34: 164 | T34: 24 | U34: 7 | V34: 998 | W34: 32.89386948
A35: DAMAS | B35: 17 | C35: 9294 | D35: 6597 | E35: 70.98127824 | F35: 6547 | G35: 25 | H35: 1608 | I35: 22 | J35: 16 | K35: 39 | L35: 571 | M35: 997 | N35: 63 | O35: 57 | P35: 33 | Q35: 310 | R35: 1905 | S35: 901 | T35: 44 | U35: 6 | V35: 2697 | W35: 29.01872176
A36: SAN RAFAEL ABAJO | B36: 28 | C36: 16128 | D36: 11367 | E36: 70.47991071 | F36: 11288 | G36: 25 | H36: 2715 | I36: 44 | J36: 22 | K36: 85 | L36: 1175 | M36: 1777 | N36: 116 | O36: 81 | P36: 56 | Q36: 489 | R36: 3011 | S36: 1692 | T36: 69 | U36: 10 | V36: 4761 | W36: 29.52008929
A37: GRAVILIAS | B37: 23 | C37: 12889 | D37: 9654 | E37: 74.90107844 | F37: 9592 | G37: 33 | H37: 2504 | I37: 43 | J37: 13 | K37: 85 | L37: 875 | M37: 1680 | N37: 88 | O37: 106 | P37: 59 | Q37: 380 | R37: 2111 | S37: 1615 | T37: 47 | U37: 15 | V37: 3235 | W37: 25.09892156
A38: LOS GUIDO | B38: 22 | C38: 12836 | D38: 6924 | E38: 53.94203802 | F38: 6803 | G38: 48 | H38: 654 | I38: 29 | J38: 19 | K38: 48 | L38: 553 | M38: 944 | N38: 104 | O38: 46 | P38: 51 | Q38: 273 | R38: 3408 | S38: 626 | T38: 99 | U38: 22 | V38: 5912 | W38: 46.05796198
A39: CANTÓN 4 PURISCAL | B39: 72 | C39: 28424 | D39: 19815 | E39: 69.71221503 | F39: 19570 | G39: 54 | H39: 4651 | I39: 43 | J39: 25 | K39: 109 | L39: 1945 | M39: 4983 | N39: 147 | O39: 129 | P39: 98 | Q39: 1722 | R39: 2561 | S39: 3103 | T39: 189 | U39: 56 | V39: 8609 | W39: 30.28778497
A40: SANTIAGO | B40: 22 | C40: 10631 | D40: 7529 | E40: 70.82118333 | F40: 7472 | G40: 12 | H40: 2110 | I40: 19 | J40: 10 | K40: 48 | L40: 684 | M40: 1690 | N40: 49 | O40: 61 | P40: 26 | Q40: 523 | R40: 887 | S40: 1353 | T40: 47 | U40: 10 | V40: 3102 | W40: 29.17881667
A41: MERCEDES SUR | B41: 14 | C41: 4481 | D41: 3080 | E41: 68.73465744 | F41: 3020 | G41: 16 | H41: 674 | I41: 5 | J41: 1 | K41: 29 | L41: 337 | M41: 835 | N41: 23 | O41: 17 | P41: 21 | Q41: 224 | R41: 400 | S41: 438 | T41: 48 | U41: 12 | V41: 1401 | W41: 31.26534256
A42: BARBACOAS | B42: 8 | C42: 3640 | D42: 2632 | E42: 72.30769231 | F42: 2600 | G42: 11 | H42: 519 | I42: 4 | J42: 4 | K42: 11 | L42: 287 | M42: 611 | N42: 14 | O42: 14 | P42: 17 | Q42: 295 | R42: 425 | S42: 388 | T42: 21 | U42: 11 | V42: 1008 | W42: 27.69230769
A43: GRIFO ALTO | B43: 3 | C43: 984 | D43: 719 | E43: 73.06910569 | F43: 717 | G43: 0 | H43: 128 | I43: 1 | J43: 0 | K43: 6 | L43: 77 | M43: 223 | N43: 4 | O43: 5 | P43: 2 | Q43: 55 | R43: 63 | S43: 153 | T43: 1 | U43: 1 | V43: 265 | W43: 26.93089431
A44: SAN RAFAEL | B44: 3 | C44: 1306 | D44: 896 | E44: 68.60643185 | F44: 883 | G44: 2 | H44: 163 | I44: 3 | J44: 2 | K44: 2 | L44: 115 | M44: 248 | N44: 5 | O44: 3 | P44: 3 | Q44: 205 | R44: 52 | S44: 80 | T44: 9 | U44: 4 | V44: 410 | W44: 31.39356815
A45: CANDELARITA | B45: 4 | C45: 1431 | D45: 984 | E45: 68.76310273 | F45: 963 | G45: 1 | H45: 193 | I45: 2 | J45: 2 | K45: 1 | L45: 68 | M45: 407 | N45: 23 | O45: 2 | P45: 10 | Q45: 65 | R45: 68 | S45: 121 | T45: 18 | U45: 3 | V45: 447 | W45: 31.23689727
A46: DESAMPARADITOS | B46: 1 | C46: 591 | D46: 453 | E46: 76.64974619 | F46: 444 | G46: 0 | H46: 128 | I46: 3 | J46: 1 | K46: 0 | L46: 41 | M46: 80 | N46: 3 | O46: 5 | P46: 0 | Q46: 43 | R46: 44 | S46: 96 | T46: 6 | U46: 3 | V46: 138 | W46: 23.35025381
A47: SAN ANTONIO | B47: 6 | C47: 3109 | D47: 2106 | E47: 67.73882277 | F47: 2088 | G47: 6 | H47: 579 | I47: 5 | J47: 4 | K47: 6 | L47: 212 | M47: 438 | N47: 17 | O47: 13 | P47: 10 | Q47: 133 | R47: 390 | S47: 275 | T47: 14 | U47: 4 | V47: 1003 | W47: 32.26117723
A48: CHIRES | B48: 11 | C48: 2251 | D48: 1416 | E48: 62.90537539 | F48: 1383 | G48: 6 | H48: 157 | I48: 1 | J48: 1 | K48: 6 | L48: 124 | M48: 451 | N48: 9 | O48: 9 | P48: 9 | Q48: 179 | R48: 232 | S48: 199 | T48: 25 | U48: 8 | V48: 835 | W48: 37.09462461
A49: CANTÓN 5 TARRAZÚ | B49: 28 | C49: 12188 | D49: 7984 | E49: 65.50705612 | F49: 7872 | G49: 31 | H49: 2293 | I49: 34 | J49: 11 | K49: 96 | L49: 494 | M49: 1498 | N49: 65 | O49: 60 | P49: 66 | Q49: 661 | R49: 1051 | S49: 1512 | T49: 93 | U49: 19 | V49: 4204 | W49: 34.49294388
A50: SAN MARCOS | B50: 15 | C50: 7736 | D50: 5165 | E50: =D50/C50*100 -> 66.76577042 | F50: 5097 | G50: 24 | H50: 1663 | I50: 22 | J50: 6 | K50: 72 | L50: 335 | M50: 892 | N50: 38 | O50: 48 | P50: 41 | Q50: 407 | R50: 635 | S50: 914 | T50: 57 | U50: 11 | V50: 2571 | W50: 33.23422958
A51: SAN LORENZO | B51: 10 | C51: 3010 | D51: 1891 | E51: =D51/C51*100 -> 62.82392027 | F51: 1866 | G51: 4 | H51: 463 | I51: 5 | J51: 4 | K51: 14 | L51: 110 | M51: 435 | N51: 17 | O51: 9 | P51: 18 | Q51: 184 | R51: 269 | S51: 334 | T51: 18 | U51: 7 | V51: 1119 | W51: 37.17607973
A52: SAN CARLOS | B52: 3 | C52: 1442 | D52: 928 | E52: =D52/C52*100 -> 64.35506241 | F52: 909 | G52: 3 | H52: 167 | I52: 7 | J52: 1 | K52: 10 | L52: 49 | M52: 171 | N52: 10 | O52: 3 | P52: 7 | Q52: 70 | R52: 147 | S52: 264 | T52: 18 | U52: 1 | V52: 514 | W52: 35.64493759
A53: CANTÓN 6 ASERRÍ | B53: 83 | C53: 42853 | D53: 28799 | E53: =D53/C53*100 -> 67.20416307 | F53: =SUM(F54:F60) -> 28516 | G53: 107 | H53: 6424 | I53: 84 | J53: 59 | K53: 201 | L53: 2700 | M53: 6024 | N53: 296 | O53: 204 | P53: 167 | Q53: 1902 | R53: 6351 | S53: 3997 | T53: 234 | U53: 49 | V53: 14054 | W53: 32.79583693
A54: ASERRÍ | B54: 42 | C54: 24220 | D54: 16358 | E54: =D54/C54*100 -> 67.53922378 | F54: =SUM(G54:S54) -> 16239 | G54: 48 | H54: 3502 | I54: 51 | J54: 36 | K54: 128 | L54: 1568 | M54: 3103 | N54: 164 | O54: 133 | P54: 97 | Q54: 964 | R54: 3920 | S54: 2525 | T54: 102 | U54: 17 | V54: 7862 | W54: 32.46077622
A55: TARBACA | B55: 5 | C55: 1785 | D55: 1166 | E55: =D55/C55*100 -> 65.32212885 | F55: 1147 | G55: 6 | H55: 250 | I55: 7 | J55: 1 | K55: 12 | L55: 112 | M55: 297 | N55: 16 | O55: 8 | P55: 5 | Q55: 77 | R55: 166 | S55: 190 | T55: 13 | U55: 6 | V55: 619 | W55: 34.67787115
A56: VUELTA DE JORCO | B56: 11 | C56: 5056 | D56: 3441 | E56: 68.05775316 | F56: 3407 | G56: 19 | H56: 947 | I56: 10 | J56: 6 | K56: 18 | L56: 327 | M56: 746 | N56: 27 | O56: 15 | P56: 26 | Q56: 314 | R56: 584 | S56: 368 | T56: 25 | U56: 9 | V56: 1615 | W56: 31.94224684
A57: SAN GABRIEL | B57: 8 | C57: 3919 | D57: 2729 | E57: 69.635111 | F57: 2697 | G57: 12 | H57: 769 | I57: 5 | J57: 8 | K57: 11 | L57: 270 | M57: 598 | N57: 26 | O57: 18 | P57: 12 | Q57: 205 | R57: 479 | S57: 284 | T57: 25 | U57: 7 | V57: 1190 | W57: 30.364889
A58: LEGUA | B58: 4 | C58: 962 | D58: 628 | E58: 65.28066528 | F58: 613 | G58: 3 | H58: 165 | I58: 0 | J58: 4 | K58: 5 | L58: 50 | M58: 166 | N58: 7 | O58: 1 | P58: 4 | Q58: 34 | R58: 79 | S58: 95 | T58: 13 | U58: 2 | V58: 334 | W58: 34.71933472
A59: MONTERREY | B59: 2 | C59: 729 | D59: 471 | E59: 64.6090535 | F59: 456 | G59: 3 | H59: 55 | I59: 0 | J59: 0 | K59: 0 | L59: 36 | M59: 223 | N59: 4 | O59: 1 | P59: 2 | Q59: 28 | R59: 61 | S59: 43 | T59: 11 | U59: 4 | V59: 258 | W59: 35.3909465
A60: SALITRILLOS | B60: 11 | C60: 6182 | D60: 4006 | E60: 64.80103526 | F60: 3957 | G60: 16 | H60: 736 | I60: 11 | J60: 4 | K60: 27 | L60: 337 | M60: 891 | N60: 52 | O60: 28 | P60: 21 | Q60: 280 | R60: 1062 | S60: 492 | T60: 45 | U60: 4 | V60: 2176 | W60: 35.19896474
A61: CANTÓN 7 MORA | B61: 47 | C61: 21361 | D61: 14723 | E61: 68.92467581 | F61: 14550 | G61: 38 | H61: 3686 | I61: 43 | J61: 14 | K61: 91 | L61: 1324 | M61: 2584 | N61: 139 | O61: 135 | P61: 74 | Q61: 680 | R61: 2916 | S61: 2826 | T61: 128 | U61: 45 | V61: 6638 | W61: 31.07532419
A62: COLÓN | B62: 22 | C62: 12140 | D62: 8613 | E62: 70.94728171 | F62: 8533 | G62: 20 | H62: 2481 | I62: 28 | J62: 10 | K62: 55 | L62: 725 | M62: 1480 | N62: 70 | O62: 85 | P62: 41 | Q62: 342 | R62: 1483 | S62: 1713 | T62: 66 | U62: 14 | V62: 3527 | W62: 29.05271829
A63: GUAYABO | B63: 7 | C63: 3174 | D63: 2077 | E63: 65.43793321 | F63: 2052 | G63: 3 | H63: 472 | I63: 5 | J63: 2 | K63: 13 | L63: 200 | M63: 354 | N63: 21 | O63: 21 | P63: 6 | Q63: 110 | R63: 525 | S63: 320 | T63: 17 | U63: 8 | V63: 1097 | W63: 34.56206679
A64: TABARCIA | B64: 10 | C64: 3388 | D64: 2278 | E64: 67.23730815 | F64: 2250 | G64: 10 | H64: 426 | I64: 8 | J64: 1 | K64: 7 | L64: 235 | M64: 377 | N64: 20 | O64: 14 | P64: 15 | Q64: 97 | R64: 531 | S64: 509 | T64: 20 | U64: 8 | V64: 1110 | W64: 32.76269185
A65: PIEDRAS NEGRAS | B65: 1 | C65: 258 | D65: 176 | E65: 68.21705426 | F65: 175 | G65: 0 | H65: 44 | I65: 0 | J65: 0 | K65: 2 | L65: 13 | M65: 39 | N65: 2 | O65: 1 | P65: 1 | Q65: 14 | R65: 34 | S65: 25 | T65: 0 | U65: 1 | V65: 82 | W65: 31.78294574
A66: PICAGRES | B66: 3 | C66: 561 | D66: 392 | E66: 69.87522282 | F66: 387 | G66: 0 | H66: 63 | I66: 1 | J66: 1 | K66: 0 | L66: 47 | M66: 104 | N66: 15 | O66: 3 | P66: 1 | Q66: 20 | R66: 58 | S66: 74 | T66: 3 | U66: 2 | V66: 169 | W66: 30.12477718
A67: JARIS | B67: 2 | C67: 885 | D67: 574 | E67: 64.85875706 | F67: 560 | G67: 3 | H67: 117 | I67: 1 | J67: 0 | K67: 12 | L67: 59 | M67: 147 | N67: 7 | O67: 7 | P67: 1 | Q67: 54 | R67: 91 | S67: 61 | T67: 10 | U67: 4 | V67: 311 | W67: 35.14124294
A68: QUITIRRISÍ | B68: 2 | C68: 955 | D68: 613 | E68: 64.18848168 | F68: 593 | G68: 2 | H68: 83 | I68: 0 | J68: 0 | K68: 2 | L68: 45 | M68: 83 | N68: 4 | O68: 4 | P68: 9 | Q68: 43 | R68: 194 | S68: 124 | T68: 12 | U68: 8 | V68: 342 | W68: 35.81151832
A69: CANTÓN 8 GOICOECHEA | B69: 156 | C69: 90058 | D69: 62088 | E69: 68.94223722 | F69: 61615 | G69: 167 | H69: 15556 | I69: 270 | J69: 113 | K69: 516 | L69: 5432 | M69: 9590 | N69: 650 | O69: 576 | P69: 387 | Q69: 2564 | R69: 15887 | S69: 9907 | T69: 396 | U69: 77 | V69: 27970 | W69: 31.05776278
A70: GUADALUPE | B70: 36 | C70: 20659 | D70: 14612 | E70: 70.72946416 | F70: 14514 | G70: 42 | H70: 4101 | I70: 58 | J70: 27 | K70: 131 | L70: 1344 | M70: 2603 | N70: 127 | O70: 123 | P70: 78 | Q70: 484 | R70: 2699 | S70: 2697 | T70: 80 | U70: 18 | V70: 6047 | W70: 29.27053584
A71: SAN FRANCISCO | B71: 4 | C71: 2049 | D71: 1475 | E71: 71.9863348 | F71: 1457 | G71: 6 | H71: 338 | I71: 4 | J71: 4 | K71: 9 | L71: 163 | M71: 244 | N71: 18 | O71: 14 | P71: 11 | Q71: 89 | R71: 262 | S71: 295 | T71: 15 | U71: 3 | V71: 574 | W71: 28.0136652
A72: CALLE BLANCOS | B72: 21 | C72: 11883 | D72: 8633 | E72: 72.65000421 | F72: 8574 | G72: 18 | H72: 2442 | I72: 33 | J72: 15 | K72: 91 | L72: 772 | M72: 1395 | N72: 107 | O72: 86 | P72: 53 | Q72: 305 | R72: 1460 | S72: 1797 | T72: 50 | U72: 9 | V72: 3250 | W72: 27.34999579
A73: MATA DE PLÁTANO | B73: 22 | C73: 13140 | D73: 9500 | E73: 72.29832572 | F73: 9450 | G73: 19 | H73: 2887 | I73: 38 | J73: 10 | K73: 73 | L73: 670 | M73: 1487 | N73: 82 | O73: 111 | P73: 35 | Q73: 314 | R73: 2107 | S73: 1617 | T73: 39 | U73: 11 | V73: 3640 | W73: 27.70167428
A74: IPÍS | B74: 40 | C74: 23272 | D74: =+F74+T74+U74 -> 16148 | E74: 69.38810588 | F74: 16025 | G74: 43 | H74: 3550 | I74: 80 | J74: 37 | K74: 137 | L74: 1520 | M74: 2214 | N74: 157 | O74: 132 | P74: 111 | Q74: 789 | R74: 5205 | S74: 2050 | T74: 105 | U74: 18 | V74: 7124 | W74: 30.61189412
A75: RANCHO REDONDO | B75: 6 | C75: 3237 | D75: 2071 | E75: 63.97899289 | F75: 2044 | G75: 8 | H75: 374 | I75: 6 | J75: 3 | K75: 10 | L75: 166 | M75: 381 | N75: 47 | O75: 22 | P75: 29 | Q75: 111 | R75: 612 | S75: 275 | T75: 25 | U75: 2 | V75: 1166 | W75: 36.02100711
A76: PURRAL | B76: 27 | C76: 15818 | D76: 9649 | E76: 61.00012644 | F76: 9551 | G76: 31 | H76: 1864 | I76: 51 | J76: 17 | K76: 65 | L76: 797 | M76: 1266 | N76: 112 | O76: 88 | P76: 70 | Q76: 472 | R76: 3542 | S76: 1176 | T76: 82 | U76: 16 | V76: 6169 | W76: 38.99987356
A77: CANTÓN 9 SANTA ANA | B77: 64 | C77: 35074 | D77: 25323 | E77: 72.19877972 | F77: 25127 | G77: 42 | H77: 5701 | I77: 60 | J77: 65 | K77: 100 | L77: 2043 | M77: 5528 | N77: 269 | O77: 213 | P77: 98 | Q77: 947 | R77: 3554 | S77: 6507 | T77: 165 | U77: 31 | V77: 9751 | W77: 27.80122028
A78: SANTA ANA | B78: 15 | C78: 8863 | D78: 6642 | E78: 74.94076498 | F78: 6601 | G78: 13 | H78: 1550 | I78: 19 | J78: 17 | K78: 38 | L78: 520 | M78: 1483 | N78: 49 | O78: 54 | P78: 25 | Q78: 197 | R78: 809 | S78: 1827 | T78: 29 | U78: 12 | V78: 2221 | W78: 25.05923502
A79: SALITRAL | B79: 6 | C79: 2884 | D79: 1879 | E79: 65.15256588 | F79: 1856 | G79: 3 | H79: 361 | I79: 3 | J79: 3 | K79: 5 | L79: 182 | M79: 593 | N79: 18 | O79: 10 | P79: 2 | Q79: 103 | R79: 266 | S79: 307 | T79: 21 | U79: 2 | V79: 1005 | W79: 34.84743412
A80: POZOS | B80: 20 | C80: 10890 | D80: 7918 | E80: 72.70890725 | F80: 7857 | G80: 8 | H80: 1714 | I80: 12 | J80: 23 | K80: 20 | L80: 610 | M80: 1636 | N80: 95 | O80: 59 | P80: 32 | Q80: 280 | R80: 1090 | S80: 2278 | T80: 54 | U80: 7 | V80: 2972 | W80: 27.29109275
A81: URUCA | B81: 11 | C81: 5763 | D81: 4084 | E81: 70.86586847 | F81: 4048 | G81: 7 | H81: 875 | I81: 10 | J81: 8 | K81: 16 | L81: 312 | M81: 878 | N81: 66 | O81: 36 | P81: 14 | Q81: 212 | R81: 600 | S81: 1014 | T81: 31 | U81: 5 | V81: 1679 | W81: 29.13413153
A82: PIEDADES | B82: 9 | C82: 5142 | D82: 3695 | E82: 71.85919876 | F82: 3666 | G82: 8 | H82: 909 | I82: 13 | J82: 12 | K82: 18 | L82: 343 | M82: 731 | N82: 29 | O82: 47 | P82: 20 | Q82: 112 | R82: 595 | S82: 829 | T82: 25 | U82: 4 | V82: 1447 | W82: 28.14080124
A83: BRASIL | B83: 3 | C83: 1532 | D83: 1105 | E83: 72.12793734 | F83: 1099 | G83: 3 | H83: 292 | I83: 3 | J83: 2 | K83: 3 | L83: 76 | M83: 207 | N83: 12 | O83: 7 | P83: 5 | Q83: 43 | R83: 194 | S83: 252 | T83: 5 | U83: 1 | V83: 427 | W83: 27.87206266
A84: CANTÓN 10 ALAJUELITA | B84: 88 | C84: 50373 | D84: 32210 | E84: 63.94298533 | F84: 31811 | G84: 145 | H84: 5813 | I84: 132 | J84: 89 | K84: 217 | L84: 3543 | M84: 4020 | N84: 433 | O84: 517 | P84: 239 | Q84: 1930 | R84: 11106 | S84: 3627 | T84: 347 | U84: 52 | V84: 18163 | W84: 36.05701467
A85: ALAJUELITA | B85: 17 | C85: 10147 | D85: 6808 | E85: 67.09372228 | F85: 6740 | G85: 40 | H85: 1458 | I85: 29 | J85: 20 | K85: 33 | L85: 789 | M85: 945 | N85: 75 | O85: 123 | P85: 51 | Q85: 391 | R85: 1939 | S85: 847 | T85: 61 | U85: 7 | V85: 3339 | W85: 32.90627772
A86: SAN JOSÉCITO | B86: 13 | C86: 7605 | D86: 5149 | E86: 67.70545694 | F86: 5099 | G86: 21 | H86: 1121 | I86: 24 | J86: 19 | K86: 26 | L86: 564 | M86: 608 | N86: 44 | O86: 118 | P86: 37 | Q86: 339 | R86: 1464 | S86: 714 | T86: 45 | U86: 5 | V86: 2456 | W86: 32.29454306
A87: SAN ANTONIO | B87: 4 | C87: 1898 | D87: 1244 | E87: 65.5426765 | F87: 1232 | G87: 3 | H87: 276 | I87: 13 | J87: 5 | K87: 13 | L87: 132 | M87: 184 | N87: 19 | O87: 23 | P87: 8 | Q87: 87 | R87: 337 | S87: 132 | T87: 8 | U87: 4 | V87: 654 | W87: 34.4573235
A88: CONCEPCIÓN | B88: 22 | C88: 12310 | D88: 7868 | E88: 63.91551584 | F88: 7766 | G88: 39 | H88: 1254 | I88: 27 | J88: 22 | K88: 60 | L88: 896 | M88: 909 | N88: 110 | O88: 112 | P88: 54 | Q88: 476 | R88: 2989 | S88: 818 | T88: 88 | U88: 14 | V88: 4442 | W88: 36.08448416
A89: SAN FELIPE | B89: 32 | C89: 18413 | D89: 11141 | E89: 60.50616412 | F89: 10974 | G89: 42 | H89: 1704 | I89: 39 | J89: 23 | K89: 85 | L89: 1162 | M89: 1374 | N89: 185 | O89: 141 | P89: 89 | Q89: 637 | R89: 4377 | S89: 1116 | T89: 145 | U89: 22 | V89: 7272 | W89: 39.49383588
A90: CANTÓN 11 VÁZQUEZ DE CORONADO | B90: 92 | C90: 53496 | D90: 38700 | E90: 72.34185734 | F90: 38432 | G90: 124 | H90: 10608 | I90: 181 | J90: 80 | K90: 306 | L90: 3209 | M90: 6063 | N90: 417 | O90: 317 | P90: 218 | Q90: 2033 | R90: 9270 | S90: 5606 | T90: 230 | U90: 38 | V90: 14796 | W90: 27.65814266
A91: SAN ISIDRO | B91: 27 | C91: 15721 | D91: 11783 | E91: 74.95070288 | F91: 11723 | G91: 25 | H91: 3317 | I91: 44 | J91: 23 | K91: 97 | L91: 977 | M91: 1921 | N91: 121 | O91: 96 | P91: 57 | Q91: 620 | R91: 2470 | S91: 1955 | T91: 51 | U91: 9 | V91: 3938 | W91: 25.04929712
A92: SAN RAFAEL | B92: 10 | C92: 5779 | D92: 4052 | E92: 70.11593701 | F92: 4020 | G92: 15 | H92: 1048 | I92: 16 | J92: 10 | K92: 28 | L92: 298 | M92: 807 | N92: 43 | O92: 24 | P92: 17 | Q92: 265 | R92: 897 | S92: 552 | T92: 25 | U92: 7 | V92: 1727 | W92: 29.88406299
A93: DULCE NOMBRE DE JESÚS | B93: 17 | C93: 9798 | D93: 6878 | E93: 70.19799959 | F93: 6832 | G93: 29 | H93: 1747 | I93: 39 | J93: 15 | K93: 62 | L93: 559 | M93: 985 | N93: 76 | O93: 72 | P93: 52 | Q93: 360 | R93: 2044 | S93: 792 | T93: 36 | U93: 10 | V93: 2920 | W93: 29.80200041
A94: PATALILLO | B94: 28 | C94: 16797 | D94: 12637 | E94: 75.23367268 | F94: 12546 | G94: 42 | H94: 3652 | I94: 72 | J94: 23 | K94: 102 | L94: 1130 | M94: 1804 | N94: 122 | O94: 99 | P94: 70 | Q94: 547 | R94: 2969 | S94: 1914 | T94: 82 | U94: 9 | V94: 4160 | W94: 24.76632732
A95: CASCAJAL | B95: 10 | C95: 5401 | D95: 3350 | E95: 62.02555082 | F95: 3311 | G95: 13 | H95: 844 | I95: 10 | J95: 9 | K95: 17 | L95: 245 | M95: 546 | N95: 55 | O95: 26 | P95: 22 | Q95: 241 | R95: 890 | S95: 393 | T95: 36 | U95: 3 | V95: 2051 | W95: 37.97444918
A96: CANTÓN 12 ACOSTA | B96: 43 | C96: 16608 | D96: 10981 | E96: 66.11873796 | F96: 10860 | G96: 34 | H96: 2934 | I96: 33 | J96: 15 | K96: 82 | L96: 1207 | M96: 2478 | N96: 68 | O96: 54 | P96: 72 | Q96: 639 | R96: 1547 | S96: 1697 | T96: 102 | U96: 19 | V96: 5627 | W96: 33.88126204
A97: SAN IGNACIO | B97: 15 | C97: 7543 | D97: 5302 | E97: 70.29033541 | F97: 5272 | G97: 12 | H97: 1717 | I97: 17 | J97: 6 | K97: 40 | L97: 493 | M97: 1147 | N97: 33 | O97: 29 | P97: 34 | Q97: 310 | R97: 619 | S97: 815 | T97: 26 | U97: 4 | V97: 2241 | W97: 29.70966459
A98: GUAITIL | B98: 6 | C98: 1984 | D98: 1257 | E98: 63.35685484 | F98: 1235 | G98: 6 | H98: 241 | I98: 5 | J98: 0 | K98: 6 | L98: 164 | M98: 372 | N98: 7 | O98: 10 | P98: 9 | Q98: 97 | R98: 141 | S98: 177 | T98: 19 | U98: 3 | V98: 727 | W98: 36.64314516
A99: PALMICHAL | B99: 8 | C99: 3660 | D99: 2490 | E99: 68.03278689 | F99: 2461 | G99: 5 | H99: 487 | I99: 5 | J99: 4 | K99: 18 | L99: 287 | M99: 580 | N99: 12 | O99: 11 | P99: 16 | Q99: 129 | R99: 462 | S99: 445 | T99: 24 | U99: 5 | V99: 1170 | W99: 31.96721311
A100: CANGREJAL | B100: 5 | C100: 1506 | D100: 844 | E100: 56.04249668 | F100: 827 | G100: 5 | H100: 242 | I100: 4 | J100: 1 | K100: 6 | L100: 130 | M100: 141 | N100: 8 | O100: 2 | P100: 5 | Q100: 59 | R100: 126 | S100: 98 | T100: 15 | U100: 2 | V100: 662 | W100: 43.95750332
A101: SABANILLAS | B101: 9 | C101: 1915 | D101: 1088 | E101: 56.81462141 | F101: 1065 | G101: 6 | H101: 247 | I101: 2 | J101: 4 | K101: 12 | L101: 133 | M101: 238 | N101: 8 | O101: 2 | P101: 8 | Q101: 44 | R101: 199 | S101: 162 | T101: 18 | U101: 5 | V101: 827 | W101: 43.18537859
A102: CANTÓN 13 TIBÁS | B102: 96 | C102: 55965 | D102: 39009 | E102: 69.70249263 | F102: 38740 | G102: 94 | H102: 9852 | I102: 172 | J102: 68 | K102: 272 | L102: 3556 | M102: 6862 | N102: 393 | O102: 343 | P102: 163 | Q102: 1336 | R102: 8609 | S102: 7020 | T102: 228 | U102: 41 | V102: 16956 | W102: 30.29750737
A103: SAN JUAN | B103: 37 | C103: 21717 | D103: 15796 | E103: 72.73564489 | F103: 15713 | G103: 24 | H103: 4460 | I103: 76 | J103: 29 | K103: 111 | L103: 1426 | M103: 3052 | N103: 141 | O103: 154 | P103: 52 | Q103: 480 | R103: 2542 | S103: 3166 | T103: 71 | U103: 12 | V103: 5921 | W103: 27.26435511
A104: CINCO ESQUINAS | B104: 13 | C104: 7524 | D104: 4703 | E104: 62.5066454 | F104: 4660 | G104: 19 | H104: 933 | I104: 25 | J104: 10 | K104: 34 | L104: 553 | M104: 713 | N104: 53 | O104: 32 | P104: 18 | Q104: 197 | R104: 1289 | S104: 784 | T104: 39 | U104: 4 | V104: 2821 | W104: 37.4933546
A105: ANSELMO LLORENTE | B105: 15 | C105: 8630 | D105: 6420 | E105: 74.39165701 | F105: 6385 | G105: 9 | H105: 1912 | I105: 24 | J105: 9 | K105: 46 | L105: 484 | M105: 1240 | N105: 48 | O105: 58 | P105: 24 | Q105: 177 | R105: 965 | S105: 1389 | T105: 29 | U105: 6 | V105: 2210 | W105: 25.60834299
A106: LEÓN XIII | B106: 13 | C106: 7640 | D106: 4561 | E106: 59.69895288 | F106: 4487 | G106: 24 | H106: 568 | I106: 26 | J106: 9 | K106: 24 | L106: 402 | M106: 640 | N106: 65 | O106: 28 | P106: 36 | Q106: 233 | R106: 1987 | S106: 445 | T106: 61 | U106: 13 | V106: 3079 | W106: 40.30104712
A107: COLIMA | B107: 18 | C107: 10454 | D107: 7529 | E107: 72.02027932 | F107: 7495 | G107: 18 | H107: 1979 | I107: 21 | J107: 11 | K107: 57 | L107: 691 | M107: 1217 | N107: 86 | O107: 71 | P107: 33 | Q107: 249 | R107: 1826 | S107: 1236 | T107: 28 | U107: 6 | V107: 2925 | W107: 27.97972068
A108: CANTÓN 14 MORAVIA | B108: 77 | C108: 44209 | D108: 32439 | E108: 73.37646181 | F108: 32247 | G108: 79 | H108: 9120 | I108: 119 | J108: 53 | K108: 280 | L108: 2708 | M108: 5379 | N108: 299 | O108: 311 | P108: 154 | Q108: 1000 | R108: 6242 | S108: 6503 | T108: 166 | U108: 26 | V108: 11770 | W108: 26.62353819
A109: SAN VICENTE | B109: 45 | C109: 26011 | D109: 19632 | E109: 75.47576026 | F109: 19530 | G109: 32 | H109: 5857 | I109: 63 | J109: 29 | K109: 182 | L109: 1485 | M109: 3559 | N109: 182 | O109: 190 | P109: 67 | Q109: 460 | R109: 2938 | S109: 4486 | T109: 83 | U109: 19 | V109: 6379 | W109: 24.52423974
A110: SAN JERÓNIMO | B110: 8 | C110: 4324 | D110: 2964 | E110: 68.54764107 | F110: 2937 | G110: 23 | H110: 810 | I110: 7 | J110: 3 | K110: 15 | L110: 300 | M110: 433 | N110: 34 | O110: 32 | P110: 14 | Q110: 142 | R110: 680 | S110: 444 | T110: 26 | U110: 1 | V110: 1360 | W110: 31.45235893
A111: LA TRINIDAD | B111: 24 | C111: 13874 | D111: 9843 | E111: 70.94565374 | F111: 9780 | G111: 24 | H111: 2453 | I111: 49 | J111: 21 | K111: 83 | L111: 923 | M111: 1387 | N111: 83 | O111: 89 | P111: 73 | Q111: 398 | R111: 2624 | S111: 1573 | T111: 57 | U111: 6 | V111: 4031 | W111: 29.05434626
A112: CANTÓN 15 MONTES DE OCA | B112: 74 | C112: 42391 | D112: 31246 | E112: 73.70904201 | F112: 31063 | G112: 53 | H112: 10987 | I112: 102 | J112: 70 | K112: 362 | L112: 2249 | M112: 5323 | N112: 265 | O112: 288 | P112: 133 | Q112: 773 | R112: 3732 | S112: 6726 | T112: 151 | U112: 32 | V112: 11145 | W112: 26.29095799
A113: SAN PEDRO | B113: 37 | C113: 21073 | D113: 15234 | E113: 72.29155792 | F113: 15134 | G113: 19 | H113: 5458 | I113: 52 | J113: 37 | K113: 158 | L113: 1094 | M113: 2618 | N113: 118 | O113: 119 | P113: 65 | Q113: 328 | R113: 1702 | S113: 3366 | T113: 82 | U113: 18 | V113: 5839 | W113: 27.70844208
A114: SABANILLA | B114: 21 | C114: 12012 | D114: 9239 | E114: 76.91475191 | F114: 9191 | G114: 21 | H114: 3353 | I114: 30 | J114: 15 | K114: 106 | L114: 622 | M114: 1543 | N114: 88 | O114: 110 | P114: 37 | Q114: 205 | R114: 1034 | S114: 2027 | T114: 38 | U114: 10 | V114: 2773 | W114: 23.08524809
A115: MERCEDES | B115: 5 | C115: 2737 | D115: 2067 | E115: 75.52064304 | F115: 2060 | G115: 2 | H115: 789 | I115: 5 | J115: 4 | K115: 51 | L115: 123 | M115: 368 | N115: 15 | O115: 17 | P115: 7 | Q115: 73 | R115: 232 | S115: 374 | T115: 5 | U115: 2 | V115: 670 | W115: 24.47935696
A116: SAN RAFAEL | B116: 11 | C116: 6569 | D116: 4706 | E116: 71.63951895 | F116: 4678 | G116: 11 | H116: 1387 | I116: 15 | J116: 14 | K116: 47 | L116: 410 | M116: 794 | N116: 44 | O116: 42 | P116: 24 | Q116: 167 | R116: 764 | S116: 959 | T116: 26 | U116: 2 | V116: 1863 | W116: 28.36048105
A117: CANTÓN 16 TURRUBARES | B117: 16 | C117: 4593 | D117: 2924 | E117: 63.66209449 | F117: 2902 | G117: 7 | H117: 378 | I117: 2 | J117: 7 | K117: 6 | L117: 207 | M117: 1148 | N117: 22 | O117: 5 | P117: 8 | Q117: 133 | R117: 367 | S117: 612 | T117: 15 | U117: 7 | V117: 1669 | W117: 36.33790551
A118: SAN PABLO | B118: 3 | C118: 1302 | D118: 885 | E118: =D118/C118*100 -> 67.97235023 | F118: =SUM(G118:S118) -> 881 | G118: 0 | H118: 152 | I118: 1 | J118: 2 | K118: 0 | L118: 64 | M118: 349 | N118: 6 | O118: 3 | P118: 2 | Q118: 24 | R118: 118 | S118: 160 | T118: 3 | U118: 1 | V118: 417 | W118: 32.02764977
A119: SAN PEDRO | B119: 1 | C119: 516 | D119: 356 | E119: 68.99224806 | F119: 354 | G119: 4 | H119: 54 | I119: 0 | J119: 1 | K119: 3 | L119: 31 | M119: 135 | N119: 2 | O119: 0 | P119: 2 | Q119: 14 | R119: 27 | S119: 81 | T119: 2 | U119: 0 | V119: 160 | W119: 31.00775194
A120: SAN JUAN DE MATA | B120: 2 | C120: 954 | D120: 551 | E120: 57.75681342 | F120: 548 | G120: 1 | H120: 75 | I120: 1 | J120: 4 | K120: 1 | L120: 43 | M120: 221 | N120: 3 | O120: 1 | P120: 1 | Q120: 40 | R120: 96 | S120: 61 | T120: 3 | U120: 0 | V120: 403 | W120: 42.24318658
A121: SAN LUIS | B121: 4 | C121: 491 | D121: 311 | E121: 63.3401222 | F121: 304 | G121: 1 | H121: 35 | I121: 0 | J121: 0 | K121: 1 | L121: 28 | M121: 136 | N121: 3 | O121: 0 | P121: 3 | Q121: 27 | R121: 20 | S121: 50 | T121: 4 | U121: 3 | V121: 180 | W121: 36.6598778
A122: CARARA | B122: 6 | C122: 1330 | D122: 821 | E122: 61.72932331 | F122: 815 | G122: 1 | H122: 62 | I122: 0 | J122: 0 | K122: 1 | L122: 41 | M122: 307 | N122: 8 | O122: 1 | P122: 0 | Q122: 28 | R122: 106 | S122: 260 | T122: 3 | U122: 3 | V122: 509 | W122: 38.27067669
A123: CANTÓN 17 DOTA | B123: 14 | C123: 5566 | D123: 3686 | E123: 66.22349982 | F123: 3637 | G123: 17 | H123: 1243 | I123: 8 | J123: 10 | K123: 41 | L123: 299 | M123: 764 | N123: 18 | O123: 31 | P123: 24 | Q123: 217 | R123: 400 | S123: 565 | T123: 41 | U123: 8 | V123: 1880 | W123: 33.77650018
A124: SANTA MARÍA | B124: 8 | C124: 3879 | D124: 2520 | E124: 64.96519722 | F124: 2487 | G124: 11 | H124: 937 | I124: 4 | J124: 6 | K124: 35 | L124: 206 | M124: 484 | N124: 14 | O124: 25 | P124: 13 | Q124: 119 | R124: 260 | S124: 373 | T124: 28 | U124: 5 | V124: 1359 | W124: 35.03480278
A125: JARDÍN | B125: 1 | C125: 309 | D125: 192 | E125: 62.13592233 | F125: 187 | G125: 1 | H125: 43 | I125: 0 | J125: 1 | K125: 3 | L125: 12 | M125: 39 | N125: 1 | O125: 1 | P125: 0 | Q125: 18 | R125: 30 | S125: 38 | T125: 4 | U125: 1 | V125: 117 | W125: 37.86407767
A126: COPEY | B126: 5 | C126: 1378 | D126: 974 | E126: 70.68214804 | F126: 963 | G126: 5 | H126: 263 | I126: 4 | J126: 3 | K126: 3 | L126: 81 | M126: 241 | N126: 3 | O126: 5 | P126: 11 | Q126: 80 | R126: 110 | S126: 154 | T126: 9 | U126: 2 | V126: 404 | W126: 29.31785196
A127: CANTÓN 18 CURRIDABAT | B127: 86 | C127: 48859 | D127: 35032 | E127: 71.70019853 | F127: 34832 | G127: 100 | H127: 9016 | I127: 128 | J127: 62 | K127: 294 | L127: 2598 | M127: 6728 | N127: 351 | O127: 277 | P127: 122 | Q127: 1074 | R127: 6153 | S127: 7929 | T127: 174 | U127: 26 | V127: 13827 | W127: 28.29980147
A128: CURRIDABAT | B128: 44 | C128: 24451 | D128: 18099 | E128: 74.02151241 | F128: 17997 | G128: 38 | H128: 5274 | I128: 70 | J128: 33 | K128: 157 | L128: 1300 | M128: 3499 | N128: 169 | O128: 147 | P128: 65 | Q128: 475 | R128: 2546 | S128: 4224 | T128: 87 | U128: 15 | V128: 6352 | W128: 25.97848759
A129: GRANADILLA | B129: 16 | C129: 9495 | D129: 6716 | E129: 70.73196419 | F129: 6675 | G129: 18 | H129: 1683 | I129: 26 | J129: 19 | K129: 56 | L129: 480 | M129: 1160 | N129: 75 | O129: 50 | P129: 26 | Q129: 261 | R129: 1258 | S129: 1563 | T129: 33 | U129: 8 | V129: 2779 | W129: 29.26803581
A130: SÁNCHEZ | B130: 8 | C130: 4663 | D130: 3743 | E130: 80.27021231 | F130: 3735 | G130: 0 | H130: 794 | I130: 7 | J130: 4 | K130: 30 | L130: 177 | M130: 978 | N130: 31 | O130: 26 | P130: 0 | Q130: 33 | R130: 284 | S130: 1371 | T130: 8 | U130: 0 | V130: 920 | W130: 19.72978769
A131: TIRRASES | B131: 18 | C131: 10250 | D131: 6474 | E131: 63.16097561 | F131: 6425 | G131: 44 | H131: 1265 | I131: 25 | J131: 6 | K131: 51 | L131: 641 | M131: 1091 | N131: 76 | O131: 54 | P131: 31 | Q131: 305 | R131: 2065 | S131: 771 | T131: 46 | U131: 3 | V131: 3776 | W131: 36.83902439
A132: CANTÓN 19 PÉREZ ZELEDÓN | B132: 251 | C132: 111779 | D132: 72612 | E132: 64.9603235 | F132: 71552 | G132: 320 | H132: 11554 | I132: 209 | J132: 153 | K132: 562 | L132: 5914 | M132: 11294 | N132: 583 | O132: 431 | P132: 448 | Q132: 3771 | R132: 20444 | S132: 15869 | T132: 825 | U132: 235 | V132: 39126 | W132: 35.0396765
A133: SAN ISIDRO DE EL GENERAL | B133: 79 | C133: 39658 | D133: 26069 | E133: 65.73453023 | F133: 25754 | G133: 91 | H133: 5295 | I133: 75 | J133: 57 | K133: 245 | L133: 2337 | M133: 3476 | N133: 221 | O133: 199 | P133: 165 | Q133: 1315 | R133: 6964 | S133: 5314 | T133: 257 | U133: 58 | V133: 13589 | W133: 34.26546977
A134: EL GENERAL | B134: 12 | C134: 5070 | D134: 3278 | E134: 64.65483235 | F134: 3209 | G134: 62 | H134: 687 | I134: 13 | J134: 10 | K134: 18 | L134: 283 | M134: 567 | N134: 28 | O134: 10 | P134: 18 | Q134: 184 | R134: 736 | S134: 593 | T134: 51 | U134: 18 | V134: 1792 | W134: 35.34516765
A135: DANIEL FLORES2/ | B135: 53 | C135: 27621 | D135: 17810 | E135: 64.6 | F135: 17564 | G135: 82 | H135: 2989 | I135: 41 | J135: 28 | K135: 141 | L135: 1579 | M135: 2274 | N135: 154 | O135: 103 | P135: 100 | Q135: 874 | R135: 5856 | S135: 3343 | T135: 183 | U135: 63 | V135: 9770 | W135: 35.4
A136: RIVAS | B136: 16 | C136: 5095 | D136: 3499 | E136: 68.67517174 | F136: 3451 | G136: 12 | H136: 603 | I136: 8 | J136: 7 | K136: 34 | L136: 201 | M136: 589 | N136: 25 | O136: 21 | P136: 26 | Q136: 240 | R136: 508 | S136: 1177 | T136: 38 | U136: 10 | V136: 1596 | W136: 31.32482826
A137: SAN PEDRO | B137: 15 | C137: 6376 | D137: 3997 | E137: 62.68820577 | F137: 3944 | G137: 14 | H137: 243 | I137: 10 | J137: 7 | K137: 32 | L137: 319 | M137: 645 | N137: 24 | O137: 19 | P137: 24 | Q137: 143 | R137: 1438 | S137: 1026 | T137: 43 | U137: 10 | V137: 2379 | W137: 37.31179423
A138: PLATANARES | B138: 15 | C138: 5814 | D138: =+F138+T138+U138 -> 3934 | E138: 67.66425869 | F138: 3878 | G138: 12 | H138: 359 | I138: 14 | J138: 10 | K138: 13 | L138: 244 | M138: 745 | N138: 29 | O138: 18 | P138: 19 | Q138: 152 | R138: 1319 | S138: 944 | T138: 44 | U138: 12 | V138: 1880 | W138: 32.33574131
A139: PEJIBAYE | B139: 13 | C139: 4392 | D139: 2688 | E139: 61.20218579 | F139: 2635 | G139: 8 | H139: 240 | I139: 10 | J139: 9 | K139: 18 | L139: 220 | M139: 530 | N139: 23 | O139: 10 | P139: 22 | Q139: 174 | R139: 697 | S139: 674 | T139: 46 | U139: 7 | V139: 1704 | W139: 38.79781421
A140: CAJÓN | B140: 15 | C140: 7471 | D140: 4712 | E140: 63.07053942 | F140: 4606 | G140: 16 | H140: 451 | I140: 13 | J140: 15 | K140: 19 | L140: 286 | M140: 895 | N140: 31 | O140: 28 | P140: 31 | Q140: 281 | R140: 1523 | S140: 1017 | T140: 84 | U140: 22 | V140: 2759 | W140: 36.92946058
A141: BARÚ | B141: 6 | C141: 1986 | D141: 1176 | E141: 59.21450151 | F141: 1153 | G141: 5 | H141: 138 | I141: 3 | J141: 4 | K141: 6 | L141: 99 | M141: 201 | N141: 9 | O141: 4 | P141: 4 | Q141: 79 | R141: 247 | S141: 354 | T141: 19 | U141: 4 | V141: 810 | W141: 40.78549849
A142: RÍO NUEVO | B142: 8 | C142: 2399 | D142: 1522 | E142: 63.44310129 | F142: 1501 | G142: 3 | H142: 124 | I142: 9 | J142: 5 | K142: 9 | L142: 71 | M142: 468 | N142: 8 | O142: 4 | P142: 15 | Q142: 72 | R142: 306 | S142: 407 | T142: 15 | U142: 6 | V142: 877 | W142: 36.55689871
A143: PÁRAMO | B143: 13 | C143: 3740 | D143: 2564 | E143: 68.55614973 | F143: 2530 | G143: 8 | H143: 318 | I143: 8 | J143: 1 | K143: 17 | L143: 176 | M143: 578 | N143: 19 | O143: 11 | P143: 14 | Q143: 159 | R143: 472 | S143: 749 | T143: 23 | U143: 11 | V143: 1176 | W143: 31.44385027
A144: LA AMISTAD | B144: 6 | C144: 2157 | D144: 1363 | E144: 63.18961521 | F144: 1327 | G144: 7 | H144: 107 | I144: 5 | J144: 0 | K144: 10 | L144: 99 | M144: 326 | N144: 12 | O144: 4 | P144: 10 | Q144: 98 | R144: 378 | S144: 271 | T144: 22 | U144: 14 | V144: 794 | W144: 36.81038479
A145: CANTÓN 20 LEÓN CORTÉS | B145: 26 | C145: 9210 | D145: 5914 | E145: 64.21281216 | F145: 5825 | G145: 20 | H145: 1479 | I145: 16 | J145: 12 | K145: 51 | L145: 429 | M145: 1344 | N145: 62 | O145: 39 | P145: 59 | Q145: 473 | R145: 725 | S145: 1116 | T145: 62 | U145: 27 | V145: 3296 | W145: 35.78718784
A146: SAN PABLO | B146: 6 | C146: 3255 | D146: 2025 | E146: 62.21198157 | F146: 2000 | G146: 5 | H146: 575 | I146: 4 | J146: 5 | K146: 16 | L146: 178 | M146: 417 | N146: 19 | O146: 6 | P146: 13 | Q146: 153 | R146: 170 | S146: 439 | T146: 16 | U146: 9 | V146: 1230 | W146: 37.78801843
A147: SAN ANDRÉS | B147: 4 | C147: 1151 | D147: 686 | E147: 59.60034752 | F147: 679 | G147: 4 | H147: 131 | I147: 1 | J147: 0 | K147: 17 | L147: 22 | M147: 165 | N147: 5 | O147: 2 | P147: 2 | Q147: 48 | R147: 150 | S147: 132 | T147: 5 | U147: 2 | V147: 465 | W147: 40.39965248
A148: LLANO BONITO | B148: 5 | C148: 1399 | D148: 898 | E148: 64.18870622 | F148: 877 | G148: 1 | H148: 206 | I148: 2 | J148: 0 | K148: 2 | L148: 53 | M148: 229 | N148: 6 | O148: 3 | P148: 5 | Q148: 63 | R148: 83 | S148: 224 | T148: 14 | U148: 7 | V148: 501 | W148: 35.81129378
A149: SAN ISIDRO | B149: 4 | C149: 1220 | D149: 782 | E149: 64.09836066 | F149: 778 | G149: 1 | H149: 169 | I149: 1 | J149: 4 | K149: 3 | L149: 50 | M149: 225 | N149: 12 | O149: 6 | P149: 12 | Q149: 69 | R149: 132 | S149: 94 | T149: 3 | U149: 1 | V149: 438 | W149: 35.90163934
A150: SANTA CRUZ | B150: 5 | C150: 1371 | D150: 964 | E150: 70.31363968 | F150: 940 | G150: 7 | H150: 244 | I150: 5 | J150: 3 | K150: 5 | L150: 76 | M150: 177 | N150: 12 | O150: 15 | P150: 18 | Q150: 108 | R150: 112 | S150: 158 | T150: 18 | U150: 6 | V150: 407 | W150: 29.68636032
A151: SAN ANTONIO | B151: 2 | C151: 814 | D151: 559 | E151: 68.67321867 | F151: 551 | G151: 2 | H151: 154 | I151: 3 | J151: 0 | K151: 8 | L151: 50 | M151: 131 | N151: 8 | O151: 7 | P151: 9 | Q151: 32 | R151: 78 | S151: 69 | T151: 6 | U151: 2 | V151: 255 | W151: 31.32678133
A154: 1/ En la resolución DGRA-039-2018 se realiza un cambio dentro del Padrón Nacional Electoral en las Juntas Receptoras de Votos número 59 y 60, modificando el dato del abstencionismo.
A155: 2/ En la resolución DGRA-039-2018 se realiza un cambio dentro del Padrón Nacional Electoral en las Juntas Receptoras de Votos número 1944, 1945, 1946 y 1959, modificando el dato del abstencionismo.
A157: FUENTE: Tribunal Supremo de Elecciones.

Sheet C1.4
A2: CUADRO 1.4 ALAJUELA: JUNTAS, ELECTORADO, PARTICIPACIÓN, VOTOS POR PARTIDO, NULOS, BLANCOS Y ABSTENCIONISMO, PARA PRESIDENCIA Y VICEPRESIDENCIAS DE LA REPÚBLICA, SEGÚN CANTÓN Y DISTRITO ADMINISTRATIVO ELECCIONES 4 DE FEBRERO 2018
A4: CANTÓN Y DISTRITO ADMINISTRATIVO | B4: JUNTAS | C4: ELECTORADO | D4: VOTOS RECIBIDOS | V4: ABSTENCIONISMO
D5: TOTAL GENERAL | E5: % PARTICIPACIÓN | F5: VOTOS VÁLIDOS | T5: NULOS | U5: BLANCOS | V5: ABSOLUTO | W5: %
F6: TOTAL | G6: ACCESIBILIDAD SIN EXCLUSIÓN | H6: ACCIÓN CIUDADANA | I6: ALIANZA DEMÓCRATA CRISTIANA | J6: DE LOS TRABAJADORES | K6: FRENTE AMPLIO | L6: INTEGRACIÓN NACIONAL | M6: LIBERACIÓN NACIONAL | N6: MOVIMIENTO LIBERTARIO | O6: NUEVA GENERACIÓN | P6: RENOVACIÓN COSTARRICENSE | Q6: REPUBLICANO SOCIAL CRISTIANO | R6: RESTAURACIÓN NACIONAL | S6: UNIDAD SOCIAL CRISTIANA
A8: PROVINCIA ALAJUELA | B8: =+B9+B24+B39+B48+B53+B62+B71+B79+B85+B91+B105+B113+B119+B128+B133 -> 1266 | C8: =+C9+C24+C39+C48+C53+C62+C71+C79+C85+C91+C105+C113+C119+C128+C133 -> 630990 | D8: =+D9+D24+D39+D48+D53+D62+D71+D79+D85+D91+D105+D113+D119+D128+D133 -> 428247 | E8: =D8/C8*100 -> 67.8690629 | F8: =+F9+F24+F39+F48+F53+F62+F71+F79+F85+F91+F105+F113+F119+F128+F133 -> 423114 | G8: 1381 | H8: 92385 | I8: 1313 | J8: 888 | K8: 3177 | L8: 37462 | M8: 76848 | N8: 3847 | O8: 3039 | P8: 2058 | Q8: 23023 | R8: 113234 | S8: 64459 | T8: 4244 | U8: 889 | V8: 203003 | W8: 32.2
A9: CANTÓN 1 ALAJUELA | B9: 371 | C9: 201480 | D9: =F9+T9+U9 -> 135288 | E9: =D9/C9*100 -> 67.14711138 | F9: =SUM(G9:S9) -> 133977 | G9: 450 | H9: 29960 | I9: 420 | J9: 259 | K9: 783 | L9: 11788 | M9: 23677 | N9: 1338 | O9: 1070 | P9: 641 | Q9: 6898 | R9: 36581 | S9: 20112 | T9: 1116 | U9: 195 | V9: 66478 | W9: 32.85288862
A10: ALAJUELA | B10: 70 | C10: 40250 | D10: =F10+T10+U10 -> 27983 | E10: =D10/C10*100 -> 69.52298137 | F10: =SUM(G10:S10) -> 27790 | G10: 88 | H10: 6983 | I10: 71 | J10: 47 | K10: 204 | L10: 2537 | M10: 5181 | N10: 252 | O10: 221 | P10: 139 | Q10: 1240 | R10: 6368 | S10: 4459 | T10: 158 | U10: 35 | V10: 12267 | W10: 30.47701863
A11: SAN JOSÉ | B11: 58 | C11: 33597 | D11: 22704 | E11: 67.57746227 | F11: 22506 | G11: 82 | H11: 5602 | I11: 72 | J11: 53 | K11: 127 | L11: 1990 | M11: 3419 | N11: 167 | O11: 206 | P11: 108 | Q11: 963 | R11: 6459 | S11: 3258 | T11: 164 | U11: 34 | V11: 10893 | W11: 32.42253773
A12: CARRIZAL | B12: 10 | C12: 4853 | D12: 3230 | E12: 66.55676901 | F12: 3195 | G12: 15 | H12: 785 | I12: 7 | J12: 3 | K12: 29 | L12: 224 | M12: 596 | N12: 38 | O12: 24 | P12: 14 | Q12: 161 | R12: 842 | S12: 457 | T12: 30 | U12: 5 | V12: 1623 | W12: 33.44323099
A13: SAN ANTONIO | B13: 38 | C13: 21921 | D13: 14648 | E13: 66.82176908 | F13: 14484 | G13: 45 | H13: 3024 | I13: 45 | J13: 30 | K13: 70 | L13: 1139 | M13: 2476 | N13: 145 | O13: 99 | P13: 75 | Q13: 860 | R13: 4600 | S13: 1876 | T13: 148 | U13: 16 | V13: 7273 | W13: 33.17823092
A14: GUÁCIMA | B14: 28 | C14: 15013 | D14: 10326 | E14: 68.78039033 | F14: 10222 | G14: 31 | H14: 1885 | I14: 50 | J14: 21 | K14: 42 | L14: 937 | M14: 1857 | N14: 111 | O14: 81 | P14: 52 | Q14: 576 | R14: 2855 | S14: 1724 | T14: 98 | U14: 6 | V14: 4687 | W14: 31.21960967
A15: SAN ISIDRO | B15: 23 | C15: 11880 | D15: 7828 | E15: 65.89225589 | F15: 7745 | G15: 34 | H15: 1542 | I15: 31 | J15: 11 | K15: 38 | L15: 716 | M15: 1288 | N15: 89 | O15: 66 | P15: 36 | Q15: 411 | R15: 2301 | S15: 1182 | T15: 70 | U15: 13 | V15: 4052 | W15: 34.10774411
A16: SABANILLA | B16: 12 | C16: 5496 | D16: 3649 | E16: 66.3937409 | F16: 3609 | G16: 9 | H16: 665 | I16: 12 | J16: 6 | K16: 22 | L16: 259 | M16: 702 | N16: 38 | O16: 42 | P16: 15 | Q16: 201 | R16: 1255 | S16: 383 | T16: 35 | U16: 5 | V16: 1847 | W16: 33.6062591
A17: SAN RAFAEL1/ | B17: 38 | C17: 18601 | D17: 11503 | E17: 60.9 | F17: 11379 | G17: 46 | H17: 2380 | I17: 35 | J17: 32 | K17: 65 | L17: 1016 | M17: 2431 | N17: 126 | O17: 87 | P17: 52 | Q17: 598 | R17: 2714 | S17: 1797 | T17: 105 | U17: 19 | V17: 7384 | W17: 39.1
A18: RÍO SEGUNDO | B18: 16 | C18: 8879 | D18: 6008 | E18: 67.66527762 | F18: 5957 | G18: 17 | H18: 1237 | I18: 19 | J18: 7 | K18: 43 | L18: 544 | M18: 1094 | N18: 75 | O18: 45 | P18: 25 | Q18: 303 | R18: 1718 | S18: 830 | T18: 37 | U18: 14 | V18: 2871 | W18: 32.33472238
A19: DESAMPARADOS | B19: 33 | C19: 18884 | D19: 12730 | E19: 67.41156535 | F19: 12578 | G19: 40 | H19: 2956 | I19: 48 | J19: 23 | K19: 73 | L19: 1205 | M19: 2005 | N19: 134 | O19: 111 | P19: 49 | Q19: 826 | R19: 3333 | S19: 1775 | T19: 130 | U19: 22 | V19: 6154 | W19: 32.58843465
A20: TURRÚCARES | B20: 12 | C20: 5577 | D20: 3758 | E20: 67.38389815 | F20: 3717 | G20: 9 | H20: 770 | I20: 10 | J20: 7 | K20: 18 | L20: 318 | M20: 590 | N20: 32 | O20: 21 | P20: 10 | Q20: 158 | R20: 1066 | S20: 708 | T20: 37 | U20: 4 | V20: 1819 | W20: 32.61610185
A21: TAMBOR | B21: 18 | C21: 9707 | D21: 6296 | E21: 64.86041001 | F21: 6224 | G21: 19 | H21: 1246 | I21: 7 | J21: 16 | K21: 31 | L21: 490 | M21: 1131 | N21: 83 | O21: 40 | P21: 37 | Q21: 373 | R21: 1917 | S21: 834 | T21: 62 | U21: 10 | V21: 3411 | W21: 35.13958999
A22: GARITA | B22: 9 | C22: 4916 | D22: 3332 | E22: 67.77868186 | F22: 3307 | G22: 9 | H22: 714 | I22: 9 | J22: 1 | K22: 17 | L22: 325 | M22: 656 | N22: 26 | O22: 24 | P22: 19 | Q22: 154 | R22: 731 | S22: 622 | T22: 19 | U22: 6 | V22: 1584 | W22: 32.22131814
A23: SARAPIQUÍ | B23: 6 | C23: 1906 | D23: 1293 | E23: 67.83840504 | F23: 1264 | G23: 6 | H23: 171 | I23: 4 | J23: 2 | K23: 4 | L23: 88 | M23: 251 | N23: 22 | O23: 3 | P23: 10 | Q23: 74 | R23: 422 | S23: 207 | T23: 23 | U23: 6 | V23: 613 | W23: 32.16159496
A24: CANTÓN 2 SAN RAMÓN | B24: 130 | C24: 63586 | D24: 44369 | E24: 69.77793854 | F24: 43804 | G24: 139 | H24: 14033 | I24: 131 | J24: 107 | K24: 440 | L24: 4534 | M24: 6922 | N24: 445 | O24: 464 | P24: 228 | Q24: 2589 | R24: 9310 | S24: 4462 | T24: 442 | U24: 123 | V24: 19217 | W24: 30.22206146
A25: SAN RAMÓN | B25: 22 | C25: 13112 | D25: 9799 | E25: 74.73306894 | F25: 9715 | G25: 13 | H25: 4005 | I25: 17 | J25: 22 | K25: 99 | L25: 860 | M25: 1416 | N25: 59 | O25: 130 | P25: 29 | Q25: 420 | R25: 1428 | S25: 1217 | T25: 66 | U25: 18 | V25: 3313 | W25: 25.26693106
A26: SANTIAGO | B26: 8 | C26: 3648 | D26: 2603 | E26: 71.35416667 | F26: 2575 | G26: 7 | H26: 798 | I26: 3 | J26: 11 | K26: 20 | L26: 267 | M26: 521 | N26: 17 | O26: 24 | P26: 12 | Q26: 155 | R26: 437 | S26: 303 | T26: 25 | U26: 3 | V26: 1045 | W26: 28.64583333
A27: SAN JUAN | B27: 18 | C27: 9419 | D27: 6341 | E27: 67.3213717 | F27: 6274 | G27: 22 | H27: 2188 | I27: 23 | J27: 12 | K27: 47 | L27: 730 | M27: 810 | N27: 65 | O27: 79 | P27: 39 | Q27: 302 | R27: 1308 | S27: 649 | T27: 51 | U27: 16 | V27: 3078 | W27: 32.6786283
A28: PIEDADES NORTE | B28: 12 | C28: 5813 | D28: 4049 | E28: 69.65422329 | F28: 3994 | G28: 13 | H28: 1219 | I28: 12 | J28: 7 | K28: 45 | L28: 398 | M28: 672 | N28: 44 | O28: 41 | P28: 21 | Q28: 243 | R28: 873 | S28: 406 | T28: 39 | U28: 16 | V28: 1764 | W28: 30.34577671
A29: PIEDADES SUR | B29: 10 | C29: 3171 | D29: 2251 | E29: 70.98707032 | F29: 2210 | G29: 11 | H29: 806 | I29: 5 | J29: 5 | K29: 21 | L29: 182 | M29: 449 | N29: 20 | O29: 18 | P29: 13 | Q29: 159 | R29: 370 | S29: 151 | T29: 34 | U29: 7 | V29: 920 | W29: 29.01292968
A30: SAN RAFAEL | B30: 11 | C30: 5932 | D30: 4114 | E30: 69.35266352 | F30: 4053 | G30: 17 | H30: 1150 | I30: 14 | J30: 14 | K30: 33 | L30: 446 | M30: 660 | N30: 33 | O30: 42 | P30: 17 | Q30: 288 | R30: 883 | S30: 456 | T30: 47 | U30: 14 | V30: 1818 | W30: 30.64733648
A31: SAN ISIDRO | B31: 6 | C31: 3096 | D31: 2123 | E31: 68.57235142 | F31: 2097 | G31: 6 | H31: 680 | I31: 6 | J31: 4 | K31: 16 | L31: 241 | M31: 379 | N31: 25 | O31: 16 | P31: 13 | Q31: 138 | R31: 412 | S31: 161 | T31: 22 | U31: 4 | V31: 973 | W31: 31.42764858
A32: ÁNGELES | B32: 7 | C32: 3336 | D32: 2299 | E32: 68.91486811 | F32: 2264 | G32: 6 | H32: 790 | I32: 8 | J32: 4 | K32: 29 | L32: 259 | M32: 270 | N32: 28 | O32: 21 | P32: 13 | Q32: 157 | R32: 501 | S32: 178 | T32: 27 | U32: 8 | V32: 1037 | W32: 31.08513189
A33: ALFARO | B33: 8 | C33: 3982 | D33: 2753 | E33: 69.13611251 | F33: 2733 | G33: 9 | H33: 942 | I33: 9 | J33: 7 | K33: 33 | L33: 262 | M33: 405 | N33: 16 | O33: 23 | P33: 13 | Q33: 141 | R33: 629 | S33: 244 | T33: 19 | U33: 1 | V33: 1229 | W33: 30.86388749
A34: VOLIO | B34: 4 | C34: 1748 | D34: 1201 | E34: 68.70709382 | F34: 1176 | G34: 4 | H34: 318 | I34: 8 | J34: 6 | K34: 4 | L34: 126 | M34: 241 | N34: 12 | O34: 25 | P34: 6 | Q34: 82 | R34: 240 | S34: 104 | T34: 17 | U34: 8 | V34: 547 | W34: 31.29290618
A35: CONCEPCIÓN | B35: 3 | C35: 1814 | D35: 1244 | E35: 68.57772878 | F35: 1223 | G35: 5 | H35: 278 | I35: 5 | J35: 4 | K35: 9 | L35: 164 | M35: 231 | N35: 12 | O35: 12 | P35: 4 | Q35: 95 | R35: 279 | S35: 125 | T35: 12 | U35: 9 | V35: 570 | W35: 31.42227122
A36: ZAPOTAL | B36: 3 | C36: 290 | D36: 208 | E36: 71.72413793 | F36: 207 | G36: 1 | H36: 47 | I36: 1 | J36: 2 | K36: 1 | L36: 22 | M36: 54 | N36: 2 | O36: 0 | P36: 0 | Q36: 5 | R36: 48 | S36: 24 | T36: 1 | U36: 0 | V36: 82 | W36: 28.27586207
A37: PEÑAS BLANCAS | B37: 11 | C37: 5353 | D37: 3449 | E37: 64.4311601 | F37: 3396 | G37: 16 | H37: 478 | I37: 10 | J37: 4 | K37: 53 | L37: 411 | M37: 568 | N37: 83 | O37: 19 | P37: 25 | Q37: 260 | R37: 1208 | S37: 261 | T37: 45 | U37: 8 | V37: 1904 | W37: 35.5688399
A38: SAN LORENZO | B38: 7 | C38: 2872 | D38: 1935 | E38: 67.37465181 | F38: 1887 | G38: 9 | H38: 334 | I38: 10 | J38: 5 | K38: 30 | L38: 166 | M38: 246 | N38: 29 | O38: 14 | P38: 23 | Q38: 144 | R38: 694 | S38: 183 | T38: 37 | U38: 11 | V38: 937 | W38: 32.62534819
A39: CANTÓN 3 GRECIA | B39: 120 | C39: 59285 | D39: 42337 | E39: 71.41266762 | F39: 41907 | G39: 125 | H39: 9328 | I39: 141 | J39: 85 | K39: 341 | L39: 3325 | M39: 7314 | N39: 255 | O39: 283 | P39: 202 | Q39: 2984 | R39: 10834 | S39: 6690 | T39: 355 | U39: 75 | V39: 16948 | W39: 28.58733238
A40: GRECIA | B40: 26 | C40: 14884 | D40: 10684 | E40: 71.78177909 | F40: 10614 | G40: 24 | H40: 2498 | I40: 45 | J40: 20 | K40: 126 | L40: 1012 | M40: 1747 | N40: 41 | O40: 79 | P40: 46 | Q40: 618 | R40: 2529 | S40: 1829 | T40: 55 | U40: 15 | V40: 4200 | W40: 28.21822091
A41: SAN ISIDRO | B41: 9 | C41: 4391 | D41: 3272 | E41: 74.51605557 | F41: 3246 | G41: 6 | H41: 707 | I41: 7 | J41: 6 | K41: 19 | L41: 269 | M41: 492 | N41: 15 | O41: 22 | P41: 5 | Q41: 242 | R41: 931 | S41: 525 | T41: 25 | U41: 1 | V41: 1119 | W41: 25.48394443
A42: SAN JOSÉ | B42: 12 | C42: 6529 | D42: 4931 | E42: 75.52458263 | F42: =SUM(G42:S42) -> 4875 | G42: 19 | H42: 1136 | I42: 20 | J42: 9 | K42: 42 | L42: 345 | M42: 896 | N42: 36 | O42: 32 | P42: 16 | Q42: 408 | R42: 997 | S42: 919 | T42: 46 | U42: 10 | V42: 1598 | W42: 24.47541737
A43: SAN ROQUE | B43: 18 | C43: 8771 | D43: 6684 | E43: 76.2056778 | F43: 6628 | G43: 19 | H43: 1682 | I43: 14 | J43: 16 | K43: 47 | L43: 406 | M43: 1262 | N43: 37 | O43: 51 | P43: 30 | Q43: 457 | R43: 1520 | S43: 1087 | T43: 40 | U43: 16 | V43: 2087 | W43: 23.7943222
A44: TACARES | B44: 11 | C44: 5542 | D44: 3838 | E44: 69.25297726 | F44: 3779 | G44: 17 | H44: 768 | I44: 9 | J44: 5 | K44: 27 | L44: 302 | M44: 699 | N44: 33 | O44: 19 | P44: 19 | Q44: 296 | R44: 974 | S44: 611 | T44: 54 | U44: 5 | V44: 1704 | W44: 30.74702274
A45: RÍO CUARTO | B45: 16 | C45: 5790 | D45: 3410 | E45: 58.89464594 | F45: 3362 | G45: 16 | H45: 573 | I45: 12 | J45: 4 | K45: 18 | L45: 259 | M45: 659 | N45: 42 | O45: 16 | P45: 44 | Q45: 314 | R45: 1037 | S45: 368 | T45: 36 | U45: 12 | V45: 2380 | W45: 41.10535406
A46: PUENTE DE PIEDRA | B46: 15 | C46: 7732 | D46: 5534 | E46: 71.57268495 | F46: 5470 | G46: 15 | H46: 1056 | I46: 26 | J46: 18 | K46: 32 | L46: 477 | M46: 866 | N46: 35 | O46: 33 | P46: 29 | Q46: 311 | R46: 1826 | S46: 746 | T46: 58 | U46: 6 | V46: 2198 | W46: 28.42731505
A47: BOLÍVAR | B47: 13 | C47: 5646 | D47: 3984 | E47: 70.56323061 | F47: 3933 | G47: 9 | H47: 908 | I47: 8 | J47: 7 | K47: 30 | L47: 255 | M47: 693 | N47: 16 | O47: 31 | P47: 13 | Q47: 338 | R47: 1020 | S47: 605 | T47: 41 | U47: 10 | V47: 1662 | W47: 29.43676939
A48: CANTÓN 4 SAN MATEO | B48: 12 | C48: 4602 | D48: 2993 | E48: 65.03694046 | F48: 2956 | G48: 8 | H48: 470 | I48: 4 | J48: 5 | K48: 19 | L48: 255 | M48: 860 | N48: 39 | O48: 10 | P48: 9 | Q48: 250 | R48: 471 | S48: 556 | T48: 30 | U48: 7 | V48: 1609 | W48: 34.96305954
A49: SAN MATEO | B49: 6 | C49: 2261 | D49: 1465 | E49: 64.79433879 | F49: 1448 | G49: 4 | H49: 220 | I49: 4 | J49: 4 | K49: 9 | L49: 129 | M49: 446 | N49: 21 | O49: 7 | P49: 6 | Q49: 126 | R49: 189 | S49: 283 | T49: 13 | U49: 4 | V49: 796 | W49: 35.20566121
A50: DESMONTE | B50: 2 | C50: 577 | D50: 379 | E50: 65.68457539 | F50: 375 | G50: 1 | H50: 88 | I50: 0 | J50: 0 | K50: 3 | L50: 37 | M50: 73 | N50: 2 | O50: 1 | P50: 0 | Q50: 15 | R50: 42 | S50: 113 | T50: 3 | U50: 1 | V50: 198 | W50: 34.31542461
A51: JESÚS MARÍA | B51: 2 | C51: 799 | D51: 555 | E51: 69.46182728 | F51: 548 | G51: 0 | H51: 95 | I51: 0 | J51: 0 | K51: 4 | L51: 53 | M51: 166 | N51: 5 | O51: 1 | P51: 1 | Q51: 36 | R51: 114 | S51: 73 | T51: 6 | U51: 1 | V51: 244 | W51: 30.53817272
A52: LABRADOR | B52: 2 | C52: 965 | D52: 594 | E52: 61.55440415 | F52: 585 | G52: 3 | H52: 67 | I52: 0 | J52: 1 | K52: 3 | L52: 36 | M52: 175 | N52: 11 | O52: 1 | P52: 2 | Q52: 73 | R52: 126 | S52: 87 | T52: 8 | U52: 1 | V52: 371 | W52: 38.44559585
A53: CANTÓN 5 ATENAS | B53: 40 | C53: 20429 | D53: 14706 | E53: 71.98590239 | F53: 14565 | G53: 46 | H53: 4028 | I53: 46 | J53: 26 | K53: 95 | L53: 1196 | M53: 2466 | N53: 117 | O53: 87 | P53: 66 | Q53: 684 | R53: 2772 | S53: 2936 | T53: 122 | U53: 19 | V53: 5723 | W53: 28.01409761
A54: ATENAS | B54: 13 | C54: 6855 | D54: 5108 | E54: 74.51495259 | F54: 5074 | G54: 12 | H54: 1700 | I54: 15 | J54: 8 | K54: 32 | L54: 371 | M54: 863 | N54: 37 | O54: 45 | P54: 14 | Q54: 169 | R54: 743 | S54: 1065 | T54: 28 | U54: 6 | V54: 1747 | W54: 25.48504741
A55: JESÚS | B55: 6 | C55: 2965 | D55: 2159 | E55: 72.81618887 | F55: 2144 | G55: 5 | H55: 600 | I55: 10 | J55: 4 | K55: 14 | L55: 152 | M55: 385 | N55: 17 | O55: 11 | P55: 15 | Q55: 128 | R55: 370 | S55: 433 | T55: 13 | U55: 2 | V55: 806 | W55: 27.18381113
A56: MERCEDES | B56: 4 | C56: 2268 | D56: 1527 | E56: 67.32804233 | F56: 1503 | G56: 7 | H56: 386 | I56: 6 | J56: 3 | K56: 13 | L56: 154 | M56: 218 | N56: 12 | O56: 12 | P56: 9 | Q56: 88 | R56: 329 | S56: 266 | T56: 22 | U56: 2 | V56: 741 | W56: 32.67195767
A57: SAN ISIDRO | B57: 5 | C57: 2208 | D57: 1606 | E57: 72.73550725 | F57: 1590 | G57: 10 | H57: 474 | I57: 5 | J57: 4 | K57: 7 | L57: 119 | M57: 222 | N57: 20 | O57: 8 | P57: 11 | Q57: 105 | R57: 264 | S57: 341 | T57: 13 | U57: 3 | V57: 602 | W57: 27.26449275
A58: CONCEPCIÓN | B58: 5 | C58: 2762 | D58: 2024 | E58: 73.28023172 | F58: 2002 | G58: 7 | H58: 410 | I58: 4 | J58: 2 | K58: 10 | L58: 211 | M58: 353 | N58: 20 | O58: 4 | P58: 7 | Q58: 109 | R58: 419 | S58: 446 | T58: 20 | U58: 2 | V58: 738 | W58: 26.71976828
A59: SAN JOSÉ | B59: 2 | C59: 1219 | D59: 817 | E59: 67.0221493 | F59: 812 | G59: 1 | H59: 163 | I59: 3 | J59: 0 | K59: 6 | L59: 104 | M59: 139 | N59: 4 | O59: 3 | P59: 0 | Q59: 34 | R59: 191 | S59: 164 | T59: 4 | U59: 1 | V59: 402 | W59: 32.9778507
A60: SANTA EULALIA | B60: 3 | C60: 1529 | D60: 1026 | E60: 67.10268149 | F60: 1004 | G60: 4 | H60: 201 | I60: 3 | J60: 4 | K60: 6 | L60: 57 | M60: 146 | N60: 4 | O60: 4 | P60: 9 | Q60: 35 | R60: 390 | S60: 141 | T60: 20 | U60: 2 | V60: 503 | W60: 32.89731851
A61: ESCOBAL | B61: 2 | C61: 623 | D61: 439 | E61: 70.46548957 | F61: 436 | G61: 0 | H61: 94 | I61: 0 | J61: 1 | K61: 7 | L61: 28 | M61: 140 | N61: 3 | O61: 0 | P61: 1 | Q61: 16 | R61: 66 | S61: 80 | T61: 2 | U61: 1 | V61: 184 | W61: 29.53451043
A62: CANTÓN 6 NARANJO | B62: 63 | C62: 31782 | D62: 22206 | E62: 69.86973759 | F62: 21930 | G62: 52 | H62: 5525 | I62: 72 | J62: 50 | K62: 103 | L62: 1831 | M62: 3913 | N62: 139 | O62: 162 | P62: 118 | Q62: 1513 | R62: 4572 | S62: 3880 | T62: 228 | U62: 48 | V62: 9576 | W62: 30.13026241
A63: NARANJO | B63: 24 | C63: 12722 | D63: 8792 | E63: 69.10863072 | F63: 8687 | G63: 26 | H63: 2250 | I63: 27 | J63: 27 | K63: 47 | L63: 696 | M63: 1521 | N63: 60 | O63: 79 | P63: 60 | Q63: 532 | R63: 1855 | S63: 1507 | T63: 89 | U63: 16 | V63: 3930 | W63: 30.89136928
A64: SAN MIGUEL | B64: 5 | C64: 2657 | D64: 1828 | E64: 68.79939782 | F64: 1800 | G64: 0 | H64: 425 | I64: 3 | J64: 1 | K64: 5 | L64: 142 | M64: 314 | N64: 20 | O64: 8 | P64: 7 | Q64: 107 | R64: 483 | S64: 285 | T64: 25 | U64: 3 | V64: 829 | W64: 31.20060218
A65: SAN JOSÉ | B65: 5 | C65: 2255 | D65: 1673 | E65: 74.19068736 | F65: 1651 | G65: 4 | H65: 504 | I65: 3 | J65: 4 | K65: 9 | L65: 189 | M65: 302 | N65: 11 | O65: 14 | P65: 9 | Q65: 137 | R65: 224 | S65: 241 | T65: 16 | U65: 6 | V65: 582 | W65: 25.80931264
A66: CIRRÍ SUR | B66: 6 | C66: 3338 | D66: 2328 | E66: 69.7423607 | F66: 2296 | G66: 5 | H66: 525 | I66: 4 | J66: 4 | K66: 9 | L66: 182 | M66: 420 | N66: 20 | O66: 10 | P66: 13 | Q66: 192 | R66: 509 | S66: 403 | T66: 24 | U66: 8 | V66: 1010 | W66: 30.2576393
A67: SAN JERÓNIMO | B67: 5 | C67: 2358 | D67: 1601 | E67: 67.89652248 | F67: 1577 | G67: 5 | H67: 283 | I67: 9 | J67: 2 | K67: 12 | L67: 158 | M67: 318 | N67: 5 | O67: 13 | P67: 7 | Q67: 138 | R67: 328 | S67: 299 | T67: 23 | U67: 1 | V67: 757 | W67: 32.10347752
A68: SAN JUAN | B68: 5 | C68: 2387 | D68: 1716 | E68: 71.88940092 | F68: 1706 | G68: 2 | H68: 442 | I68: 6 | J68: 2 | K68: 5 | L68: 127 | M68: 338 | N68: 7 | O68: 8 | P68: 4 | Q68: 97 | R68: 293 | S68: 375 | T68: 7 | U68: 3 | V68: 671 | W68: 28.11059908
A69: EL ROSARIO | B69: 6 | C69: 2702 | D69: 1922 | E69: 71.13249445 | F69: 1897 | G69: 4 | H69: 423 | I69: 8 | J69: 0 | K69: 5 | L69: 154 | M69: 309 | N69: 3 | O69: 15 | P69: 9 | Q69: 134 | R69: 574 | S69: 259 | T69: 20 | U69: 5 | V69: 780 | W69: 28.86750555
A70: PALMITOS | B70: 7 | C70: 3363 | D70: 2346 | E70: 69.75914362 | F70: 2316 | G70: 6 | H70: 673 | I70: 12 | J70: 10 | K70: 11 | L70: 183 | M70: 391 | N70: 13 | O70: 15 | P70: 9 | Q70: 176 | R70: 306 | S70: 511 | T70: 24 | U70: 6 | V70: 1017 | W70: 30.24085638
A71: CANTÓN 7 PALMARES | B71: 53 | C71: 28973 | D71: 21170 | E71: 73.06802885 | F71: 20944 | G71: 45 | H71: 5862 | I71: 39 | J71: 57 | K71: 171 | L71: 1958 | M71: 4264 | N71: 139 | O71: 158 | P71: 94 | Q71: 839 | R71: 3633 | S71: 3685 | T71: 196 | U71: 30 | V71: 7803 | W71: 26.93197115
A72: PALMARES | B72: 9 | C72: 5013 | D72: 3835 | E72: 76.50109715 | F72: 3808 | G72: 9 | H72: 1231 | I72: 4 | J72: 4 | K72: 27 | L72: 290 | M72: 928 | N72: 15 | O72: 30 | P72: 15 | Q72: 109 | R72: 414 | S72: 732 | T72: 22 | U72: 5 | V72: 1178 | W72: 23.49890285
A73: ZARAGOZA | B73: 15 | C73: 7619 | D73: 5620 | E73: 73.76296102 | F73: 5566 | G73: 12 | H73: 1633 | I73: 11 | J73: 15 | K73: 47 | L73: 478 | M73: 1119 | N73: 26 | O73: 40 | P73: 22 | Q73: 253 | R73: 884 | S73: 1026 | T73: 45 | U73: 9 | V73: 1999 | W73: 26.23703898
A74: BUENOS AIRES | B74: 9 | C74: 5289 | D74: =F74+T74+U74 -> 3986 | E74: 75.36396294 | F74: 3941 | G74: 9 | H74: 1092 | I74: 13 | J74: 14 | K74: 33 | L74: 393 | M74: 742 | N74: 30 | O74: 29 | P74: 22 | Q74: 170 | R74: 668 | S74: 726 | T74: 44 | U74: 1 | V74: 1303 | W74: 24.63603706
A75: SANTIAGO | B75: 3 | C75: 1823 | D75: 1218 | E75: 66.81294569 | F75: 1191 | G75: 3 | H75: 320 | I75: 1 | J75: 5 | K75: 17 | L75: 112 | M75: 249 | N75: 6 | O75: 7 | P75: 2 | Q75: 49 | R75: 198 | S75: 222 | T75: 23 | U75: 4 | V75: 605 | W75: 33.18705431
A76: CANDELARIA | B76: 3 | C76: 1574 | D76: 1045 | E76: =D76/C76*100 -> 66.39135959 | F76: 1030 | G76: 3 | H76: 190 | I76: 2 | J76: 0 | K76: 5 | L76: 127 | M76: 226 | N76: 11 | O76: 8 | P76: 4 | Q76: 53 | R76: 232 | S76: 169 | T76: 11 | U76: 4 | V76: 529 | W76: 33.60864041
A77: ESQUIPULAS | B77: 8 | C77: 4662 | D77: 3186 | E77: 68.33976834 | F77: 3150 | G77: 8 | H77: 737 | I77: 5 | J77: 9 | K77: 19 | L77: 323 | M77: 555 | N77: 39 | O77: 23 | P77: 18 | Q77: 116 | R77: 837 | S77: 461 | T77: 34 | U77: 2 | V77: 1476 | W77: 31.66023166
A78: LA GRANJA | B78: 6 | C78: 2993 | D78: 2280 | E78: 76.17774808 | F78: 2258 | G78: 1 | H78: 659 | I78: 3 | J78: 10 | K78: 23 | L78: 235 | M78: 445 | N78: 12 | O78: 21 | P78: 11 | Q78: 89 | R78: 400 | S78: 349 | T78: 17 | U78: 5 | V78: 713 | W78: 23.82225192
A79: CANTÓN 8 POÁS | B79: 41 | C79: 21821 | D79: 15937 | E79: 73.03514963 | F79: 15781 | G79: 61 | H79: 3596 | I79: 49 | J79: 25 | K79: 85 | L79: 1174 | M79: 3272 | N79: 114 | O79: 89 | P79: 72 | Q79: 892 | R79: 3842 | S79: 2510 | T79: 126 | U79: 30 | V79: 5884 | W79: 26.96485037
A80: SAN PEDRO | B80: 14 | C80: 7392 | D80: 5542 | E80: 74.97294372 | F80: 5492 | G80: 20 | H80: 1455 | I80: 19 | J80: 8 | K80: 45 | L80: 431 | M80: 1094 | N80: 37 | O80: 36 | P80: 28 | Q80: 333 | R80: 1036 | S80: 950 | T80: 43 | U80: 7 | V80: 1850 | W80: 25.02705628
A81: SAN JUAN | B81: 5 | C81: 2414 | D81: 1736 | E81: 71.91383596 | F81: 1711 | G81: 6 | H81: 352 | I81: 5 | J81: 5 | K81: 13 | L81: 135 | M81: 365 | N81: 10 | O81: 6 | P81: 10 | Q81: 118 | R81: 400 | S81: 286 | T81: 18 | U81: 7 | V81: 678 | W81: 28.08616404
A82: SAN RAFAEL | B82: 7 | C82: 3710 | D82: 2939 | E82: 79.21832884 | F82: 2912 | G82: 10 | H82: 697 | I82: 8 | J82: 1 | K82: 8 | L82: 168 | M82: 754 | N82: 21 | O82: 17 | P82: 11 | Q82: 159 | R82: 499 | S82: 559 | T82: 21 | U82: 6 | V82: 771 | W82: 20.78167116
A83: CARRILLOS | B83: 12 | C83: 6591 | D83: 4569 | E83: 69.32180246 | F83: 4530 | G83: 21 | H83: 913 | I83: 10 | J83: 10 | K83: 16 | L83: 353 | M83: 867 | N83: 36 | O83: 18 | P83: 19 | Q83: 217 | R83: 1445 | S83: 605 | T83: 32 | U83: 7 | V83: 2022 | W83: 30.67819754
A84: SABANA REDONDA | B84: 3 | C84: 1714 | D84: 1151 | E84: 67.15285881 | F84: 1136 | G84: 4 | H84: 179 | I84: 7 | J84: 1 | K84: 3 | L84: 87 | M84: 192 | N84: 10 | O84: 12 | P84: 4 | Q84: 65 | R84: 462 | S84: 110 | T84: 12 | U84: 3 | V84: 563 | W84: 32.84714119
A85: CANTÓN 9 OROTINA | B85: 31 | C85: 15594 | D85: 9402 | E85: 60.29242016 | F85: 9294 | G85: 19 | H85: 1319 | I85: 19 | J85: 15 | K85: 41 | L85: 799 | M85: 2316 | N85: 62 | O85: 52 | P85: 30 | Q85: 494 | R85: 2147 | S85: 1981 | T85: 90 | U85: 18 | V85: 6192 | W85: 39.70757984
A86: OROTINA | B86: 15 | C86: 8015 | D86: 5158 | E86: 64.35433562 | F86: 5116 | G86: 12 | H86: 810 | I86: 6 | J86: 11 | K86: 18 | L86: 396 | M86: 1270 | N86: 25 | O86: 35 | P86: 18 | Q86: 253 | R86: 1061 | S86: 1201 | T86: 34 | U86: 8 | V86: 2857 | W86: 35.64566438
A87: EL MASTATE | B87: 3 | C87: 1568 | D87: 956 | E87: 60.96938776 | F87: 943 | G87: 0 | H87: 155 | I87: 3 | J87: 0 | K87: 3 | L87: 106 | M87: 211 | N87: 6 | O87: 7 | P87: 5 | Q87: 65 | R87: 205 | S87: 177 | T87: 9 | U87: 4 | V87: 612 | W87: 39.03061224
A88: HACIENDA VIEJA | B88: 2 | C88: 910 | D88: 582 | E88: 63.95604396 | F88: 571 | G88: 0 | H88: 80 | I88: 4 | J88: 1 | K88: 6 | L88: 49 | M88: 119 | N88: 5 | O88: 5 | P88: 0 | Q88: 20 | R88: 128 | S88: 154 | T88: 11 | U88: 0 | V88: 328 | W88: 36.04395604
A89: COYOLAR | B89: 8 | C89: 3900 | D89: 2009 | E89: 51.51282051 | F89: 1977 | G89: 6 | H89: 205 | I89: 4 | J89: 3 | K89: 13 | L89: 190 | M89: 527 | N89: 21 | O89: 2 | P89: 5 | Q89: 131 | R89: 491 | S89: 379 | T89: 26 | U89: 6 | V89: 1891 | W89: 48.48717949
A90: LA CEIBA | B90: 3 | C90: 1201 | D90: 697 | E90: 58.03497086 | F90: 687 | G90: 1 | H90: 69 | I90: 2 | J90: 0 | K90: 1 | L90: 58 | M90: 189 | N90: 5 | O90: 3 | P90: 2 | Q90: 25 | R90: 262 | S90: 70 | T90: 10 | U90: 0 | V90: 504 | W90: 41.96502914
A91: CANTÓN 10 SAN CARLOS | B91: 228 | C91: 108240 | D91: 74106 | E91: 68.46452328 | F91: 73054 | G91: 281 | H91: 11928 | I91: 246 | J91: 105 | K91: 718 | L91: 7029 | M91: 12431 | N91: 695 | O91: 440 | P91: 362 | Q91: 3608 | R91: 24762 | S91: 10449 | T91: 873 | U91: 179 | V91: 34108 | W91: 31.53547672
A92: QUESADA | B92: 64 | C92: 33186 | D92: 23861 | E92: 71.90080154 | F92: 23621 | G92: 80 | H92: 4789 | I92: 68 | J92: 23 | K92: 304 | L92: 2262 | M92: 3895 | N92: 127 | O92: 199 | P92: 89 | Q92: 744 | R92: 6635 | S92: 4406 | T92: 195 | U92: 45 | V92: 9325 | W92: 28.09919846
A93: FLORENCIA | B93: 23 | C93: 10820 | D93: 7535 | E93: 69.63955638 | F93: 7402 | G93: 33 | H93: 1087 | I93: 41 | J93: 10 | K93: 86 | L93: 767 | M93: 1160 | N93: 53 | O93: 40 | P93: 36 | Q93: 487 | R93: 2499 | S93: 1103 | T93: 115 | U93: 18 | V93: 3285 | W93: 30.36044362
A94: BUENAVISTA | B94: 1 | C94: 299 | D94: 217 | E94: 72.57525084 | F94: 215 | G94: 0 | H94: 29 | I94: 1 | J94: 0 | K94: 1 | L94: 26 | M94: 41 | N94: 2 | O94: 5 | P94: 2 | Q94: 11 | R94: 55 | S94: 42 | T94: 1 | U94: 1 | V94: 82 | W94: 27.42474916
A95: AGUAS ZARCAS | B95: 25 | C95: 13586 | D95: 9113 | E95: 67.07640218 | F95: 8983 | G95: 39 | H95: 1168 | I95: 24 | J95: 12 | K95: 68 | L95: 724 | M95: 1397 | N95: 66 | O95: 40 | P95: 57 | Q95: 499 | R95: 3848 | S95: 1041 | T95: 112 | U95: 18 | V95: 4473 | W95: 32.92359782
A96: VENECIA | B96: 13 | C96: 6349 | D96: 4550 | E96: 71.66482911 | F96: 4466 | G96: 16 | H96: 851 | I96: 8 | J96: 5 | K96: 36 | L96: 353 | M96: 775 | N96: 43 | O96: 21 | P96: 20 | Q96: 339 | R96: 1485 | S96: 514 | T96: 75 | U96: 9 | V96: 1799 | W96: 28.33517089
A97: PITAL | B97: 19 | C97: 9453 | D97: 6103 | E97: 64.56151486 | F97: 5998 | G97: 34 | H97: 922 | I97: 22 | J97: 11 | K97: 40 | L97: 609 | M97: 1125 | N97: 109 | O97: 31 | P97: 40 | Q97: 404 | R97: 1656 | S97: 995 | T97: 88 | U97: 17 | V97: 3350 | W97: 35.43848514
A98: LA FORTUNA | B98: 18 | C98: 9594 | D98: 6244 | E98: 65.08234313 | F98: 6154 | G98: 14 | H98: 960 | I98: 22 | J98: 10 | K98: 42 | L98: 699 | M98: 827 | N98: 72 | O98: 28 | P98: 20 | Q98: 303 | R98: 2441 | S98: 716 | T98: 76 | U98: 14 | V98: 3350 | W98: 34.91765687
A99: LA TIGRA | B99: 9 | C99: 4220 | D99: 2973 | E99: 70.45023697 | F99: 2916 | G99: 15 | H99: 442 | I99: 11 | J99: 5 | K99: 30 | L99: 276 | M99: 478 | N99: 41 | O99: 29 | P99: 19 | Q99: 156 | R99: 1153 | S99: 261 | T99: 44 | U99: 13 | V99: 1247 | W99: 29.54976303
A100: LA PALMERA2/ | B100: 11 | C100: 4363 | D100: 3121 | E100: 72 | F100: 3088 | G100: 9 | H100: 383 | I100: 12 | J100: 9 | K100: 30 | L100: 191 | M100: 597 | N100: 29 | O100: 17 | P100: 15 | Q100: 106 | R100: 1301 | S100: 389 | T100: 26 | U100: 7 | V100: 1216 | W100: 28
A101: VENADO | B101: 3 | C101: 1092 | D101: 683 | E101: 62.54578755 | F101: 671 | G101: 2 | H101: 106 | I101: 1 | J101: 0 | K101: 1 | L101: 54 | M101: 107 | N101: 7 | O101: 1 | P101: 3 | Q101: 54 | R101: 250 | S101: 85 | T101: 6 | U101: 6 | V101: 409 | W101: 37.45421245
A102: CUTRIS | B102: 14 | C102: 4907 | D102: 3128 | E102: 63.74566945 | F102: 3063 | G102: 10 | H102: 296 | I102: 12 | J102: 4 | K102: 24 | L102: 430 | M102: 710 | N102: 31 | O102: 10 | P102: 20 | Q102: 154 | R102: 1028 | S102: 334 | T102: 55 | U102: 10 | V102: 1779 | W102: 36.25433055
A103: MONTERREY | B103: 7 | C103: 2200 | D103: 1476 | E103: 67.09090909 | F103: 1459 | G103: 4 | H103: 313 | I103: 5 | J103: 1 | K103: 12 | L103: 93 | M103: 235 | N103: 23 | O103: 3 | P103: 7 | Q103: 80 | R103: 527 | S103: 156 | T103: 13 | U103: 4 | V103: 724 | W103: 32.90909091
A104: POCOSOL | B104: 21 | C104: 8171 | D104: 5102 | E104: 62.44033778 | F104: 5018 | G104: 25 | H104: 582 | I104: 19 | J104: 15 | K104: 44 | L104: 545 | M104: 1084 | N104: 92 | O104: 16 | P104: 34 | Q104: 271 | R104: 1884 | S104: 407 | T104: 67 | U104: 17 | V104: 3069 | W104: 37.55966222
A105: CANTÓN 11 ZARCERO | B105: 22 | C105: 9056 | D105: 7183 | E105: 79.31757951 | F105: 7108 | G105: 12 | H105: 1618 | I105: 20 | J105: 21 | K105: 39 | L105: 390 | M105: 1919 | N105: 46 | O105: 45 | P105: 29 | Q105: 410 | R105: 899 | S105: 1660 | T105: 54 | U105: 21 | V105: 1873 | W105: 20.68242049
A106: ZARCERO | B106: 8 | C106: 3752 | D106: 2943 | E106: 78.43816631 | F106: =SUM(G106:S106) -> 2915 | G106: 3 | H106: 788 | I106: 9 | J106: 12 | K106: 17 | L106: 193 | M106: 614 | N106: 14 | O106: 22 | P106: 12 | Q106: 147 | R106: 404 | S106: 680 | T106: 23 | U106: 5 | V106: 809 | W106: 21.56183369
A107: LAGUNA | B107: 2 | C107: 1161 | D107: 910 | E107: 78.38070629 | F107: 898 | G107: 1 | H107: 138 | I107: 2 | J107: 2 | K107: 3 | L107: 58 | M107: 231 | N107: 6 | O107: 8 | P107: 4 | Q107: 51 | R107: 133 | S107: 261 | T107: 7 | U107: 5 | V107: 251 | W107: 21.61929371
A108: TAPESCO | B108: 2 | C108: 927 | D108: 781 | E108: 84.25026969 | F108: 777 | G108: 2 | H108: 154 | I108: 3 | J108: 2 | K108: 9 | L108: 26 | M108: 228 | N108: 5 | O108: 3 | P108: 6 | Q108: 45 | R108: 101 | S108: 193 | T108: 1 | U108: 3 | V108: 146 | W108: 15.74973031
A109: GUADALUPE | B109: 3 | C109: 510 | D109: 387 | E109: 75.88235294 | F109: 380 | G109: 0 | H109: 78 | I109: 1 | J109: 1 | K109: 1 | L109: 22 | M109: 81 | N109: 5 | O109: 2 | P109: 1 | Q109: 36 | R109: 38 | S109: 114 | T109: 6 | U109: 1 | V109: 123 | W109: 24.11764706
A110: PALMIRA | B110: 2 | C110: 966 | D110: 741 | E110: 76.70807453 | F110: 732 | G110: 4 | H110: 119 | I110: 1 | J110: 2 | K110: 0 | L110: 33 | M110: 271 | N110: 9 | O110: 7 | P110: 1 | Q110: 40 | R110: 79 | S110: 166 | T110: 8 | U110: 1 | V110: 225 | W110: 23.29192547
A111: ZAPOTE | B111: 2 | C111: 437 | D111: 358 | E111: 81.9221968 | F111: 351 | G111: 1 | H111: 85 | I111: 0 | J111: 0 | K111: 2 | L111: 20 | M111: 122 | N111: 3 | O111: 1 | P111: 1 | Q111: 23 | R111: 37 | S111: 56 | T111: 2 | U111: 5 | V111: 79 | W111: 18.0778032
A112: BRISAS | B112: 3 | C112: 1303 | D112: 1063 | E112: 81.580967 | F112: 1055 | G112: 1 | H112: 256 | I112: 4 | J112: 2 | K112: 7 | L112: 38 | M112: 372 | N112: 4 | O112: 2 | P112: 4 | Q112: 68 | R112: 107 | S112: 190 | T112: 7 | U112: 1 | V112: 240 | W112: 18.419033
A113: CANTÓN 12 VALVERDE VEGA | B113: 29 | C113: 14668 | D113: 9807 | E113: 66.85983092 | F113: 9706 | G113: 30 | H113: 1877 | I113: 30 | J113: 25 | K113: 77 | L113: 915 | M113: 1594 | N113: 126 | O113: 61 | P113: 38 | Q113: 633 | R113: 2398 | S113: 1902 | T113: 83 | U113: 18 | V113: 4861 | W113: 33.14016908
A114: SARCHÍ NORTE | B114: 12 | C114: 6291 | D114: 4167 | E114: 66.23748212 | F114: 4128 | G114: 9 | H114: 827 | I114: 11 | J114: 10 | K114: 30 | L114: 351 | M114: 696 | N114: 64 | O114: 26 | P114: 13 | Q114: 241 | R114: 1008 | S114: 842 | T114: 31 | U114: 8 | V114: 2124 | W114: 33.76251788
A115: SARCHÍ SUR | B115: 8 | C115: 4498 | D115: 2894 | E115: 64.33970654 | F115: 2862 | G115: 9 | H115: 595 | I115: 10 | J115: 9 | K115: 20 | L115: 288 | M115: 389 | N115: 31 | O115: 22 | P115: 11 | Q115: 152 | R115: 774 | S115: 552 | T115: 26 | U115: 6 | V115: 1604 | W115: 35.66029346
A116: TORO AMARILLO | B116: 1 | C116: 179 | D116: 137 | E116: 76.53631285 | F116: 137 | G116: 1 | H116: 15 | I116: 1 | J116: 1 | K116: 0 | L116: 15 | M116: 22 | N116: 2 | O116: 1 | P116: 1 | Q116: 31 | R116: 28 | S116: 19 | T116: 0 | U116: 0 | V116: 42 | W116: 23.46368715
A117: SAN PEDRO | B117: 5 | C117: 2249 | D117: 1582 | E117: 70.34237439 | F117: 1564 | G117: 7 | H117: 232 | I117: 6 | J117: 2 | K117: 16 | L117: 154 | M117: 301 | N117: 15 | O117: 3 | P117: 8 | Q117: 141 | R117: 391 | S117: 288 | T117: 16 | U117: 2 | V117: 667 | W117: 29.65762561
A118: RODRÍGUEZ | B118: 3 | C118: 1451 | D118: 1027 | E118: 70.77877326 | F118: 1015 | G118: 4 | H118: 208 | I118: 2 | J118: 3 | K118: 11 | L118: 107 | M118: 186 | N118: 14 | O118: 9 | P118: 5 | Q118: 68 | R118: 197 | S118: 201 | T118: 10 | U118: 2 | V118: 424 | W118: 29.22122674
A119: CANTÓN 13 UPALA | B119: 69 | C119: 28352 | D119: 15647 | E119: 55.1883465 | F119: 15254 | G119: 70 | H119: 1646 | I119: 51 | J119: 45 | K119: 127 | L119: 1052 | M119: 3307 | N119: 192 | O119: 63 | P119: 95 | Q119: 514 | R119: 6191 | S119: 1901 | T119: 310 | U119: 83 | V119: 12705 | W119: 44.8116535
A120: UPALA | B120: 16 | C120: 8218 | D120: 4731 | E120: 57.56875152 | F120: 4642 | G120: 14 | H120: 548 | I120: 14 | J120: 16 | K120: 22 | L120: 343 | M120: 882 | N120: 49 | O120: 18 | P120: 22 | Q120: 165 | R120: 1968 | S120: 581 | T120: 71 | U120: 18 | V120: 3487 | W120: 42.43124848
A121: AGUAS CLARAS | B121: 11 | C121: 3506 | D121: 2096 | E121: 59.78322875 | F121: 2036 | G121: 11 | H121: 204 | I121: 14 | J121: 5 | K121: 12 | L121: 171 | M121: 499 | N121: 26 | O121: 13 | P121: 13 | Q121: 44 | R121: 856 | S121: 168 | T121: 47 | U121: 13 | V121: 1410 | W121: 40.21677125
A122: SAN JOSÉ (PIZOTE) | B122: 11 | C122: 4389 | D122: 1975 | E122: 44.99886079 | F122: 1898 | G122: 10 | H122: 161 | I122: 9 | J122: 6 | K122: 31 | L122: 98 | M122: 440 | N122: 36 | O122: 10 | P122: 22 | Q122: 69 | R122: 738 | S122: 268 | T122: 59 | U122: 18 | V122: 2414 | W122: 55.00113921
A123: BIJAGUA | B123: 8 | C123: 3229 | D123: 2074 | E123: 64.23041189 | F123: 2030 | G123: 6 | H123: 291 | I123: 3 | J123: 3 | K123: 17 | L123: 104 | M123: 345 | N123: 15 | O123: 6 | P123: 5 | Q123: 74 | R123: 957 | S123: 204 | T123: 35 | U123: 9 | V123: 1155 | W123: 35.76958811
A124: DELICIAS | B124: 5 | C124: 2244 | D124: 1169 | E124: 52.09447415 | F124: 1135 | G124: 1 | H124: 168 | I124: 3 | J124: 6 | K124: 3 | L124: 69 | M124: 255 | N124: 13 | O124: 2 | P124: 5 | Q124: 42 | R124: 403 | S124: 165 | T124: 27 | U124: 7 | V124: 1075 | W124: 47.90552585
A125: DOS RÍOS | B125: 5 | C125: 1866 | D125: 847 | E125: 45.39121115 | F125: 827 | G125: 6 | H125: 57 | I125: 0 | J125: 4 | K125: 18 | L125: 33 | M125: 232 | N125: 13 | O125: 3 | P125: 7 | Q125: 20 | R125: 301 | S125: 133 | T125: 14 | U125: 6 | V125: 1019 | W125: 54.60878885
A126: YOLILLAL | B126: 6 | C126: 2189 | D126: 1228 | E126: 56.09867519 | F126: 1196 | G126: 17 | H126: 85 | I126: 4 | J126: 1 | K126: 3 | L126: 114 | M126: 359 | N126: 23 | O126: 2 | P126: 6 | Q126: 44 | R126: 361 | S126: 177 | T126: 23 | U126: 9 | V126: 961 | W126: 43.90132481
A127: CANALETE | B127: 7 | C127: 2711 | D127: 1527 | E127: 56.32607894 | F127: 1490 | G127: 5 | H127: 132 | I127: 4 | J127: 4 | K127: 21 | L127: 120 | M127: 295 | N127: 17 | O127: 9 | P127: 15 | Q127: 56 | R127: 607 | S127: 205 | T127: 34 | U127: 3 | V127: 1184 | W127: =+V127/C127*100 -> 43.67392106
A128: CANTÓN 14 LOS CHILES | B128: 31 | C128: 12152 | D128: 6499 | E128: 53.48090849 | F128: 6374 | G128: 26 | H128: 791 | I128: 24 | J128: 54 | K128: 103 | L128: 824 | M128: 1049 | N128: 63 | O128: 23 | P128: 51 | Q128: 287 | R128: 2103 | S128: 976 | T128: 108 | U128: 17 | V128: 5653 | W128: 46.51909151
A129: LOS CHILES | B129: 15 | C129: 6501 | D129: 3321 | E129: 51.08444855 | F129: 3258 | G129: 9 | H129: 402 | I129: 18 | J129: 46 | K129: 35 | L129: 456 | M129: 567 | N129: 30 | O129: 15 | P129: 19 | Q129: 167 | R129: 1034 | S129: 460 | T129: 55 | U129: 8 | V129: 3180 | W129: 48.91555145
A130: CAÑO NEGRO | B130: 3 | C130: 1060 | D130: 605 | E130: 57.0754717 | F130: 592 | G130: 2 | H130: 47 | I130: 2 | J130: 3 | K130: 5 | L130: 66 | M130: 95 | N130: 4 | O130: 0 | P130: 3 | Q130: 12 | R130: 198 | S130: 155 | T130: 10 | U130: 3 | V130: 455 | W130: 42.9245283
A131: EL AMPARO | B131: 9 | C131: 3150 | D131: 1707 | E131: 54.19047619 | F131: 1675 | G131: 10 | H131: 240 | I131: 3 | J131: 2 | K131: 52 | L131: 186 | M131: 253 | N131: 20 | O131: 6 | P131: 22 | Q131: 78 | R131: 584 | S131: 219 | T131: 29 | U131: 3 | V131: 1443 | W131: 45.80952381
A132: SAN JORGE | B132: 4 | C132: 1441 | D132: 866 | E132: 60.09715475 | F132: 849 | G132: 5 | H132: 102 | I132: 1 | J132: 3 | K132: 11 | L132: 116 | M132: 134 | N132: 9 | O132: 2 | P132: 7 | Q132: 30 | R132: 287 | S132: 142 | T132: 14 | U132: 3 | V132: 575 | W132: 39.90284525
A133: CANTÓN 15 GUATUSO | B133: 26 | C133: 10970 | D133: 6597 | E133: 60.13673655 | F133: 6460 | G133: 17 | H133: 404 | I133: 21 | J133: 9 | K133: 35 | L133: 392 | M133: 1544 | N133: 77 | O133: 32 | P133: 23 | Q133: 428 | R133: 2719 | S133: 759 | T133: 111 | U133: 26 | V133: 4373 | W133: 39.86326345
A134: SAN RAFAEL | B134: 14 | C134: 5698 | D134: 3339 | E134: 58.5995086 | F134: 3274 | G134: 11 | H134: 258 | I134: 9 | J134: 4 | K134: 18 | L134: 172 | M134: 776 | N134: 38 | O134: 15 | P134: 15 | Q134: 202 | R134: 1303 | S134: 453 | T134: 50 | U134: 15 | V134: 2359 | W134: 41.4004914
A135: BUENAVISTA | B135: 3 | C135: 997 | D135: 604 | E135: 60.58174524 | F135: 591 | G135: 2 | H135: 36 | I135: 3 | J135: 1 | K135: 6 | L135: 50 | M135: 132 | N135: 0 | O135: 5 | P135: 1 | Q135: 43 | R135: 227 | S135: 85 | T135: 13 | U135: 0 | V135: 393 | W135: 39.41825476
A136: COTE | B136: 1 | C136: 528 | D136: 331 | E136: 62.68939394 | F136: 327 | G136: 1 | H136: 28 | I136: 1 | J136: 0 | K136: 3 | L136: 15 | M136: 122 | N136: 13 | O136: 3 | P136: 1 | Q136: 14 | R136: 74 | S136: 52 | T136: 2 | U136: 2 | V136: 197 | W136: 37.31060606
A137: KATIRA | B137: 8 | C137: 3747 | D137: 2323 | E137: 61.99626368 | F137: 2268 | G137: 3 | H137: 82 | I137: 8 | J137: 4 | K137: 8 | L137: 155 | M137: 514 | N137: 26 | O137: 9 | P137: 6 | Q137: 169 | R137: 1115 | S137: 169 | T137: 46 | U137: 9 | V137: 1424 | W137: 38.00373632
A140: 1/ En la resolución DGRA-039-2018 se realiza un cambio dentro del Padrón Nacional Electoral en las Juntas Receptoras de Votos número 2358, 2359, 2360, 2361, 2362, 2363, 2364, 2365, 2366, 2367, 2368 y 2369, modificando el dato del abstencionismo.
A141: 2/ En la resolución DGRA-039-2018 se realiza un cambio dentro del Padrón Nacional Electoral en las Juntas Receptoras de Votos número 3133 y 3134, modificando el dato del abstencionismo.
A143: FUENTE: Tribunal Supremo de Elecciones.

Sheet C1.5
A2: CUADRO 1.5 CARTAGO: JUNTAS, ELECTORADO, PARTICIPACIÓN, VOTOS POR PARTIDO, NULOS, BLANCOS Y ABSTENCIONISMO, PARA PRESIDENCIA Y VICEPRESIDENCIAS DE LA REPÚBLICA, SEGÚN CANTÓN Y DISTRITO ADMINISTRATIVO ELECCIONES 4 DE FEBRERO 2018
A4: CANTÓN Y DISTRITO ADMINISTRATIVO | B4: JUNTAS | C4: ELECTORADO | D4: VOTOS RECIBIDOS | V4: ABSTENCIONISMO
D5: TOTAL GENERAL | E5: % PARTICIPACIÓN | F5: VOTOS VÁLIDOS | T5: NULOS | U5: BLANCOS | V5: ABSOLUTO | W5: %
F6: TOTAL | G6: ACCESIBILIDAD SIN EXCLUSIÓN | H6: ACCIÓN CIUDADANA | I6: ALIANZA DEMÓCRATA CRISTIANA | J6: DE LOS TRABAJADORES | K6: FRENTE AMPLIO | L6: INTEGRACIÓN NACIONAL | M6: LIBERACIÓN NACIONAL | N6: MOVIMIENTO LIBERTARIO | O6: NUEVA GENERACIÓN | P6: RENOVACIÓN COSTARRICENSE | Q6: REPUBLICANO SOCIAL CRISTIANO | R6: RESTAURACIÓN NACIONAL | S6: UNIDAD SOCIAL CRISTIANA
A8: PROVINCIA CARTAGO | B8: =+B9+B21+B27+B36+B40+B53+B57+B63 -> 740 | C8: =+C9+C21+C27+C36+C40+C53+C57+C63 -> 387905 | D8: =+D9+D21+D27+D36+D40+D53+D57+D63 -> 278545 | E8: =D8/C8*100 -> 71.80753019 | F8: =+F9+F21+F27+F36+F40+F53+F57+F63 -> 274459 | G8: =+G9+G21+G27+G36+G40+G53+G57+G63 -> 1061 | H8: 72528 | I8: 5920 | J8: 527 | K8: 2097 | L8: 29839 | M8: 55345 | N8: 2814 | O8: 2361 | P8: 1955 | Q8: 17464 | R8: 41211 | S8: 41337 | T8: 3401 | U8: 685 | V8: 109397 | W8: 28.19246981
A9: CANTÓN 1 CARTAGO | B9: 217 | C9: 121426 | D9: =F9+U9+T9 -> 90683 | E9: =D9/C9*100 -> 74.68169914 | F9: =SUM(G9:S9) -> 89391 | G9: 270 | H9: 24665 | I9: 3295 | J9: 174 | K9: 575 | L9: 9491 | M9: 19042 | N9: 951 | O9: 856 | P9: 613 | Q9: 5269 | R9: 10318 | S9: 13872 | T9: 1108 | U9: 184 | V9: 30742 | W9: 25.31830086
A10: ORIENTAL | B10: 23 | C10: 13484 | D10: 10544 | E10: 78.1963809 | F10: 10469 | G10: 11 | H10: 3302 | I10: 209 | J10: 9 | K10: 68 | L10: 1114 | M10: 2313 | N10: 59 | O10: 68 | P10: 31 | Q10: 413 | R10: 742 | S10: 2130 | T10: 66 | U10: 9 | V10: 2940 | W10: 21.8036191
A11: OCCIDENTAL | B11: 18 | C11: 9866 | D11: 7685 | E11: 77.89377661 | F11: 7624 | G11: 10 | H11: 2373 | I11: 163 | J11: 13 | K11: 44 | L11: 666 | M11: 1799 | N11: 61 | O11: 78 | P11: 28 | Q11: 281 | R11: 644 | S11: 1464 | T11: 52 | U11: 9 | V11: 2181 | W11: 22.10622339
A12: CARMEN | B12: 23 | C12: 13330 | D12: 9921 | E12: 74.42610653 | F12: 9797 | G12: 45 | H12: 3009 | I12: 309 | J12: 20 | K12: 90 | L12: 1043 | M12: 2010 | N12: 103 | O12: 104 | P12: 66 | Q12: 558 | R12: 955 | S12: 1485 | T12: 108 | U12: 16 | V12: 3409 | W12: 25.57389347
A13: SAN NICOLÁS | B13: 34 | C13: 18885 | D13: 13628 | E13: 72.1630924 | F13: 13446 | G13: 42 | H13: 3420 | I13: 487 | J13: 26 | K13: 87 | L13: 1441 | M13: 2876 | N13: 172 | O13: 147 | P13: 118 | Q13: 910 | R13: 2075 | S13: 1645 | T13: 162 | U13: 20 | V13: 5257 | W13: 27.8369076
A14: AGUACALIENTE O SAN FRANCISCO | B14: 43 | C14: 24997 | D14: 18498 | E14: 74.00088011 | F14: 18152 | G14: 45 | H14: 4907 | I14: 1263 | J14: 38 | K14: 129 | L14: 1857 | M14: 2953 | N14: 245 | O14: 178 | P14: 147 | Q14: 1011 | R14: 2692 | S14: 2687 | T14: 311 | U14: 35 | V14: 6498 | W14: 25.99911989
A15: GUADALUPE O ARENILLA | B15: 20 | C15: 11597 | D15: 8984 | E15: 77.46831077 | F15: 8884 | G15: 32 | H15: 2614 | I15: 341 | J15: 18 | K15: 34 | L15: 845 | M15: 1906 | N15: 104 | O15: 74 | P15: 46 | Q15: 452 | R15: 1028 | S15: 1390 | T15: 87 | U15: 13 | V15: 2613 | W15: 22.53168923
A16: CORRALILLO | B16: 18 | C16: 8416 | D16: 6007 | E16: 71.37595057 | F16: 5900 | G16: 18 | H16: 1298 | I16: 98 | J16: 11 | K16: 28 | L16: 484 | M16: 1898 | N16: 49 | O16: 47 | P16: 49 | Q16: 485 | R16: 713 | S16: 722 | T16: 79 | U16: 28 | V16: 2409 | W16: 28.62404943
A17: TIERRA BLANCA | B17: 8 | C17: 4550 | D17: 3459 | E17: 76.02197802 | F17: 3372 | G17: 24 | H17: 810 | I17: 57 | J17: 13 | K17: 15 | L17: 430 | M17: 822 | N17: 34 | O17: 28 | P17: 42 | Q17: 413 | R17: 169 | S17: 515 | T17: 67 | U17: 20 | V17: 1091 | W17: 23.97802198
A18: DULCE NOMBRE | B18: 15 | C18: 8250 | D18: 6528 | E18: 79.12727273 | F18: 6441 | G18: 16 | H18: 1864 | I18: 185 | J18: 18 | K18: 43 | L18: 982 | M18: 1075 | N18: 53 | O18: 81 | P18: 32 | Q18: 320 | R18: 734 | S18: 1038 | T18: 72 | U18: 15 | V18: 1722 | W18: 20.87272727
A19: LLANO GRANDE | B19: 6 | C19: 3377 | D19: 2275 | E19: 67.36748593 | F19: 2216 | G19: 11 | H19: 467 | I19: 95 | J19: 5 | K19: 10 | L19: 293 | M19: 629 | N19: 28 | O19: 12 | P19: 31 | Q19: 220 | R19: 178 | S19: 237 | T19: 48 | U19: 11 | V19: 1102 | W19: 32.63251407
A20: QUEBRADILLA | B20: 9 | C20: 4674 | D20: 3154 | E20: 67.4796748 | F20: 3090 | G20: 16 | H20: 601 | I20: 88 | J20: 3 | K20: 27 | L20: 336 | M20: 761 | N20: 43 | O20: 39 | P20: 23 | Q20: 206 | R20: 388 | S20: 559 | T20: 56 | U20: 8 | V20: 1520 | W20: 32.5203252
A21: CANTÓN 2 PARAÍSO | B21: 86 | C21: 46757 | D21: 34009 | E21: 72.73563317 | F21: 33460 | G21: 212 | H21: 8478 | I21: 421 | J21: 69 | K21: 268 | L21: 6342 | M21: 5418 | N21: 316 | O21: 269 | P21: 282 | Q21: 2872 | R21: 4613 | S21: 3900 | T21: 460 | U21: 89 | V21: 12748 | W21: 27.26436683
A22: PARAÍSO | B22: 33 | C22: 19249 | D22: 14444 | E22: 75.03766429 | F22: 14277 | G22: 56 | H22: 4109 | I22: 133 | J22: 29 | K22: 109 | L22: 3147 | M22: 2247 | N22: 85 | O22: 115 | P22: 98 | Q22: 846 | R22: 1515 | S22: 1788 | T22: 146 | U22: 21 | V22: 4805 | W22: 24.96233571
A23: SANTIAGO | B23: 9 | C23: 4141 | D23: 2916 | E23: 70.41777348 | F23: 2862 | G23: 18 | H23: 551 | I23: 19 | J23: 3 | K23: 17 | L23: 467 | M23: 659 | N23: 26 | O23: 12 | P23: 17 | Q23: 226 | R23: 620 | S23: 227 | T23: 40 | U23: 14 | V23: 1225 | W23: 29.58222652
A24: OROSI | B24: 15 | C24: 7401 | D24: 5284 | E24: 71.39575733 | F24: 5164 | G24: 24 | H24: 1320 | I24: 33 | J24: 14 | K24: 25 | L24: 867 | M24: 767 | N24: 43 | O24: 42 | P24: 50 | Q24: 813 | R24: 528 | S24: 638 | T24: 96 | U24: 24 | V24: 2117 | W24: 28.60424267
A25: CACHÍ | B25: 10 | C25: 4665 | D25: 3498 | E25: 74.98392283 | F25: 3439 | G25: 16 | H25: 909 | I25: 39 | J25: 13 | K25: 34 | L25: 506 | M25: 653 | N25: 23 | O25: 22 | P25: 35 | Q25: 366 | R25: 416 | S25: 407 | T25: 50 | U25: 9 | V25: 1167 | W25: 25.01607717
A26: LLANOS DE SANTA LUCÍA | B26: 19 | C26: 11301 | D26: 7867 | E26: 69.61330856 | F26: 7718 | G26: 98 | H26: 1589 | I26: 197 | J26: 10 | K26: 83 | L26: 1355 | M26: 1092 | N26: 139 | O26: 78 | P26: 82 | Q26: 621 | R26: 1534 | S26: 840 | T26: 128 | U26: 21 | V26: 3434 | W26: 30.38669144
A27: CANTÓN 3 LA UNIÓN | B27: 127 | C27: 70313 | D27: 49210 | E27: 69.98705787 | F27: 48768 | G27: 192 | H27: 11902 | I27: 397 | J27: 83 | K27: 378 | L27: 4145 | M27: 8441 | N27: 599 | O27: 468 | P27: 300 | Q27: 2501 | R27: 10656 | S27: 8706 | T27: 369 | U27: 73 | V27: 21103 | W27: 30.01294213
A28: TRES RÍOS | B28: 20 | C28: 11748 | D28: 8897 | E28: 75.7320395 | F28: 8843 | G28: 22 | H28: 2499 | I28: 81 | J28: 20 | K28: 69 | L28: 738 | M28: 1732 | N28: 78 | O28: 97 | P28: 53 | Q28: 472 | R28: 1264 | S28: 1718 | T28: 49 | U28: 5 | V28: 2851 | W28: 24.2679605
A29: SAN DIEGO | B29: 23 | C29: 13365 | D29: 8889 | E29: 66.50953984 | F29: 8806 | G29: 35 | H29: 1987 | I29: 65 | J29: 13 | K29: 68 | L29: 750 | M29: 1300 | N29: 104 | O29: 100 | P29: 67 | Q29: 448 | R29: 2274 | S29: 1595 | T29: 71 | U29: 12 | V29: 4476 | W29: 33.49046016
A30: SAN JUAN | B30: 16 | C30: 8731 | D30: 6714 | E30: 76.89840797 | F30: 6679 | G30: 20 | H30: 1948 | I30: 30 | J30: 7 | K30: 52 | L30: 490 | M30: 1227 | N30: 57 | O30: 61 | P30: 23 | Q30: 191 | R30: 1183 | S30: 1390 | T30: 27 | U30: 8 | V30: 2017 | W30: 23.10159203
A31: SAN RAFAEL | B31: 16 | C31: 8881 | D31: 6156 | E31: 69.31651841 | F31: 6097 | G31: 35 | H31: 1392 | I31: 68 | J31: 8 | K31: 36 | L31: 582 | M31: 1068 | N31: 73 | O31: 71 | P31: 29 | Q31: 349 | R31: 1442 | S31: 944 | T31: 44 | U31: 15 | V31: 2725 | W31: 30.68348159
A32: CONCEPCIÓN | B32: 23 | C32: 12345 | D32: 8666 | E32: 70.19846092 | F32: 8592 | G32: 44 | H32: 2212 | I32: 73 | J32: 13 | K32: 83 | L32: 774 | M32: 1374 | N32: 127 | O32: 83 | P32: 70 | Q32: 480 | R32: 1820 | S32: 1439 | T32: 67 | U32: 7 | V32: 3679 | W32: 29.80153908
A33: DULCE NOMBRE | B33: 11 | C33: 5980 | D33: 4021 | E33: 67.24080268 | F33: 3974 | G33: 11 | H33: 720 | I33: 32 | J33: 8 | K33: 32 | L33: 345 | M33: 742 | N33: 45 | O33: 28 | P33: 28 | Q33: 313 | R33: 917 | S33: 753 | T33: 38 | U33: 9 | V33: 1959 | W33: 32.75919732
A34: SAN RAMÓN | B34: 7 | C34: 3516 | D34: 2519 | E34: 71.64391354 | F34: 2496 | G34: 5 | H34: 705 | I34: 31 | J34: 7 | K34: 14 | L34: 173 | M34: 431 | N34: 48 | O34: 15 | P34: 12 | Q34: 81 | R34: 460 | S34: 514 | T34: 20 | U34: 3 | V34: 997 | W34: 28.35608646
A35: RÍO AZUL | B35: 11 | C35: 5747 | D35: 3348 | E35: 58.25648164 | F35: 3281 | G35: 20 | H35: 439 | I35: 17 | J35: 7 | K35: 24 | L35: 293 | M35: 567 | N35: 67 | O35: 13 | P35: 18 | Q35: 167 | R35: 1296 | S35: 353 | T35: 53 | U35: 14 | V35: 2399 | W35: 41.74351836
A36: CANTÓN 4 JIMÉNEZ | B36: 27 | C36: 12064 | D36: 8428 | E36: 69.86074271 | F36: 8248 | G36: 37 | H36: 2042 | I36: 128 | J36: 19 | K36: 94 | L36: 776 | M36: 2105 | N36: 72 | O36: 81 | P36: 46 | Q36: 748 | R36: 1319 | S36: 781 | T36: 148 | U36: 32 | V36: 3636 | W36: 30.13925729
A37: JUAN VIÑAS | B37: 13 | C37: 5514 | D37: 3942 | E37: 71.49075082 | F37: 3878 | G37: 22 | H37: 1080 | I37: 35 | J37: 10 | K37: 47 | L37: 365 | M37: 1043 | N37: 42 | O37: 50 | P37: 25 | Q37: 245 | R37: 531 | S37: 383 | T37: 54 | U37: 10 | V37: 1572 | W37: 28.50924918
A38: TUCURRIQUE | B38: 8 | C38: 3725 | D38: 2560 | E38: 68.72483221 | F38: 2483 | G38: 6 | H38: 546 | I38: 83 | J38: 5 | K38: 26 | L38: 163 | M38: 502 | N38: 19 | O38: 22 | P38: 15 | Q38: 381 | R38: 471 | S38: 244 | T38: 59 | U38: 18 | V38: 1165 | W38: 31.27516779
A39: PEJIBAYE | B39: 6 | C39: 2825 | D39: 1926 | E39: 68.17699115 | F39: 1887 | G39: 9 | H39: 416 | I39: 10 | J39: 4 | K39: 21 | L39: 248 | M39: 560 | N39: 11 | O39: 9 | P39: 6 | Q39: 122 | R39: 317 | S39: 154 | T39: 35 | U39: 4 | V39: 899 | W39: 31.82300885
A40: CANTÓN 5 TURRIALBA | B40: 134 | C40: 57210 | D40: 37991 | E40: 66.40622269 | F40: 37347 | G40: 127 | H40: 10185 | I40: 461 | J40: 71 | K40: 337 | L40: 3022 | M40: 7631 | N40: 292 | O40: 186 | P40: 267 | Q40: 2024 | R40: 7507 | S40: 5237 | T40: 506 | U40: 138 | V40: 19219 | W40: 33.59377731
A41: TURRIALBA | B41: 45 | C41: 22242 | D41: 15810 | E41: 71.08173725 | F41: =SUM(G41:S41) -> 15630 | G41: 39 | H41: 5087 | I41: 89 | J41: 32 | K41: 126 | L41: 1359 | M41: 2893 | N41: 85 | O41: 83 | P41: 74 | Q41: 734 | R41: 2902 | S41: 2127 | T41: 147 | U41: 33 | V41: 6432 | W41: 28.91826275
A42: LA SUIZA | B42: 17 | C42: 6894 | D42: 4585 | E42: 66.50710763 | F42: 4492 | G42: 21 | H42: 1159 | I42: 110 | J42: 5 | K42: 26 | L42: 276 | M42: 989 | N42: 36 | O42: 14 | P42: 38 | Q42: 298 | R42: 887 | S42: 633 | T42: 73 | U42: 20 | V42: 2309 | W42: 33.49289237
A43: PERALTA | B43: 1 | C43: 321 | D43: 218 | E43: 67.91277259 | F43: 218 | G43: 0 | H43: 11 | I43: 0 | J43: 0 | K43: 1 | L43: 26 | M43: 58 | N43: 3 | O43: 1 | P43: 0 | Q43: 5 | R43: 23 | S43: 90 | T43: 0 | U43: 0 | V43: 103 | W43: 32.08722741
A44: SANTA CRUZ | B44: 9 | C44: 3026 | D44: 1979 | E44: 65.39986781 | F44: 1945 | G44: 6 | H44: 664 | I44: 6 | J44: 6 | K44: 17 | L44: 171 | M44: 486 | N44: 19 | O44: 10 | P44: 19 | Q44: 146 | R44: 192 | S44: 203 | T44: 28 | U44: 6 | V44: 1047 | W44: 34.60013219
A45: SANTA TERESITA | B45: 11 | C45: 4024 | D45: 2603 | E45: 64.68687873 | F45: 2552 | G45: 6 | H45: 427 | I45: 36 | J45: 3 | K45: 24 | L45: 271 | M45: 833 | N45: 33 | O45: 11 | P45: 20 | Q45: 117 | R45: 492 | S45: 279 | T45: 44 | U45: 7 | V45: 1421 | W45: 35.31312127
A46: PAVONES | B46: 7 | C46: 3583 | D46: 2425 | E46: 67.68071449 | F46: 2387 | G46: 8 | H46: 598 | I46: 37 | J46: 4 | K46: 26 | L46: 159 | M46: 508 | N46: 19 | O46: 10 | P46: 23 | Q46: 153 | R46: 556 | S46: 286 | T46: 26 | U46: 12 | V46: 1158 | W46: 32.31928551
A47: TUIS | B47: 6 | C47: 1838 | D47: 1212 | E47: 65.94124048 | F47: 1196 | G47: 3 | H47: 226 | I47: 10 | J47: 3 | K47: 9 | L47: 80 | M47: 241 | N47: 11 | O47: 6 | P47: 13 | Q47: 94 | R47: 347 | S47: 153 | T47: 14 | U47: 2 | V47: 626 | W47: 34.05875952
A48: TAYUTIC | B48: 5 | C48: 1806 | D48: 1168 | E48: 64.67331118 | F48: 1150 | G48: 8 | H48: 230 | I48: 19 | J48: 1 | K48: 7 | L48: 92 | M48: 317 | N48: 6 | O48: 3 | P48: 21 | Q48: 99 | R48: 221 | S48: 126 | T48: 13 | U48: 5 | V48: 638 | W48: 35.32668882
A49: SANTA ROSA | B49: 7 | C49: 3845 | D49: 2696 | E49: 70.11703511 | F49: 2647 | G49: 11 | H49: 862 | I49: 10 | J49: 3 | K49: 23 | L49: 215 | M49: 488 | N49: 16 | O49: 19 | P49: 19 | Q49: 137 | R49: 527 | S49: 317 | T49: 43 | U49: 6 | V49: 1149 | W49: 29.88296489
A50: TRES EQUIS | B50: 3 | C50: 1408 | D50: 883 | E50: 62.71306818 | F50: 851 | G50: 8 | H50: 127 | I50: 1 | J50: 2 | K50: 9 | L50: 58 | M50: 198 | N50: 22 | O50: 2 | P50: 4 | Q50: 40 | R50: 214 | S50: 166 | T50: 21 | U50: 11 | V50: 525 | W50: 37.28693182
A51: LA ISABEL | B51: 10 | C51: 4856 | D51: 3172 | E51: 65.32125206 | F51: 3107 | G51: 13 | H51: 704 | I51: 41 | J51: 10 | K51: 29 | L51: 268 | M51: 487 | N51: 26 | O51: 21 | P51: 23 | Q51: 171 | R51: 837 | S51: 477 | T51: 47 | U51: 18 | V51: 1684 | W51: 34.67874794
A52: CHIRRIPÓ | B52: 13 | C52: 3367 | D52: 1240 | E52: 36.82803683 | F52: 1172 | G52: 4 | H52: 90 | I52: 102 | J52: 2 | K52: 40 | L52: 47 | M52: 133 | N52: 16 | O52: 6 | P52: 13 | Q52: 30 | R52: 309 | S52: 380 | T52: 50 | U52: 18 | V52: 2127 | W52: 63.17196317
A53: CANTÓN 6 ALVARADO | B53: 22 | C53: 10590 | D53: 7360 | E53: 69.49952786 | F53: 7194 | G53: 33 | H53: 1938 | I53: 76 | J53: 19 | K53: 25 | L53: 735 | M53: 1562 | N53: 59 | O53: 96 | P53: 57 | Q53: 705 | R53: 925 | S53: 964 | T53: 134 | U53: 32 | V53: 3230 | W53: 30.50047214
A54: PACAYAS | B54: 10 | C54: 4464 | D54: 3028 | E54: 67.83154122 | F54: 2964 | G54: 12 | H54: 830 | I54: 15 | J54: 3 | K54: 7 | L54: 283 | M54: 638 | N54: 23 | O54: 57 | P54: 27 | Q54: 309 | R54: 425 | S54: 335 | T54: 48 | U54: 16 | V54: 1436 | W54: 32.16845878
A55: CERVANTES | B55: 8 | C55: 4407 | D55: 3114 | E55: 70.66031314 | F55: 3042 | G55: 15 | H55: 705 | I55: 59 | J55: 11 | K55: 12 | L55: 380 | M55: 645 | N55: 21 | O55: 21 | P55: 20 | Q55: 301 | R55: 413 | S55: 439 | T55: 61 | U55: 11 | V55: 1293 | W55: 29.33968686
A56: CAPELLADES | B56: 4 | C56: 1719 | D56: 1218 | E56: 70.85514834 | F56: 1188 | G56: 6 | H56: 403 | I56: 2 | J56: 5 | K56: 6 | L56: 72 | M56: 279 | N56: 15 | O56: 18 | P56: 10 | Q56: 95 | R56: 87 | S56: 190 | T56: 25 | U56: 5 | V56: 501 | W56: 29.14485166
A57: CANTÓN 7 OREAMUNO | B57: 64 | C57: 36202 | D57: 26135 | E57: 72.19214408 | F57: 25679 | G57: 100 | H57: 7171 | I57: 602 | J57: 52 | K57: 285 | L57: 2779 | M57: 5452 | N57: 259 | O57: 189 | P57: 220 | Q57: 1815 | R57: 2985 | S57: 3770 | T57: 396 | U57: 60 | V57: 10067 | W57: 27.80785592
A58: SAN RAFAEL | B58: 38 | C58: 22197 | D58: 16488 | E58: 74.28030815 | F58: 16254 | G58: 58 | H58: 4700 | I58: 414 | J58: 31 | K58: 196 | L58: 1907 | M58: 3158 | N58: 134 | O58: 139 | P58: 106 | Q58: 937 | R58: 1954 | S58: 2520 | T58: 206 | U58: 28 | V58: 5709 | W58: 25.71969185
A59: COT | B59: 13 | C59: 7366 | D59: 5166 | E59: 70.13304371 | F59: 5032 | G59: 31 | H59: 1347 | I59: 102 | J59: 13 | K59: 54 | L59: 490 | M59: 1014 | N59: 80 | O59: 27 | P59: 62 | Q59: 458 | R59: 698 | S59: 656 | T59: 115 | U59: 19 | V59: 2200 | W59: 29.86695629
A60: POTRERO CERRADO | B60: 3 | C60: 1445 | D60: 1003 | E60: 69.41176471 | F60: 978 | G60: 8 | H60: 202 | I60: 17 | J60: 2 | K60: 14 | L60: 132 | M60: 247 | N60: 10 | O60: 5 | P60: 14 | Q60: 115 | R60: 64 | S60: 148 | T60: 20 | U60: 5 | V60: 442 | W60: 30.58823529
A61: CIPRESES | B61: 5 | C61: 2806 | D61: 1915 | E61: 68.2466144 | F61: 1878 | G61: 2 | H61: 544 | I61: 51 | J61: 4 | K61: 18 | L61: 160 | M61: 526 | N61: 26 | O61: 11 | P61: 21 | Q61: 163 | R61: 144 | S61: 208 | T61: 32 | U61: 5 | V61: 891 | W61: 31.7533856
A62: SANTA ROSA | B62: 5 | C62: 2388 | D62: 1563 | E62: 65.45226131 | F62: 1537 | G62: 1 | H62: 378 | I62: 18 | J62: 2 | K62: 3 | L62: 90 | M62: 507 | N62: 9 | O62: 7 | P62: 17 | Q62: 142 | R62: 125 | S62: 238 | T62: 23 | U62: 3 | V62: 825 | W62: 34.54773869
A63: CANTÓN 8 EL GUARCO1/ | B63: 63 | C63: 33343 | D63: 24729 | E63: 74.1 | F63: 24372 | G63: 90 | H63: 6147 | I63: 540 | J63: 40 | K63: 135 | L63: 2549 | M63: 5694 | N63: 266 | O63: 216 | P63: 170 | Q63: 1530 | R63: 2888 | S63: 4107 | T63: 280 | U63: 77 | V63: 8652 | W63: 25.9
A64: EL TEJAR1/ | B64: 35 | C64: 19494 | D64: 14717 | E64: 75.3 | F64: 14538 | G64: 48 | H64: 4152 | I64: 339 | J64: 19 | K64: 83 | L64: 1477 | M64: 3091 | N64: 126 | O64: 140 | P64: 61 | Q64: 683 | R64: 1760 | S64: 2559 | T64: 145 | U64: 34 | V64: 4815 | W64: 24.7
A65: SAN ISIDRO | B65: 15 | C65: 7894 | D65: 5804 | E65: 73.52419559 | F65: 5699 | G65: 25 | H65: 1141 | I65: 137 | J65: 10 | K65: 34 | L65: 608 | M65: 1572 | N65: 100 | O65: 52 | P65: 70 | Q65: 484 | R65: 623 | S65: 843 | T65: 76 | U65: 29 | V65: 2090 | W65: 26.47580441
A66: TOBOSI | B66: 11 | C66: 5553 | D66: 3942 | E66: 70.98865478 | F66: 3875 | G66: 17 | H66: 826 | I66: 59 | J66: 11 | K66: 16 | L66: 452 | M66: 937 | N66: 40 | O66: 23 | P66: 38 | Q66: 327 | R66: 479 | S66: 650 | T66: 53 | U66: 14 | V66: 1611 | W66: 29.01134522
A67: PATIO DE AGUA | B67: 2 | C67: 402 | D67: 266 | E67: 66.16915423 | F67: 260 | G67: 0 | H67: 28 | I67: 5 | J67: 0 | K67: 2 | L67: 12 | M67: 94 | N67: 0 | O67: 1 | P67: 1 | Q67: 36 | R67: 26 | S67: 55 | T67: 6 | U67: 0 | V67: 136 | W67: 33.83084577
A70: 1/ En la resolución DGRA-039-2018 se realiza un cambio dentro del Padrón Nacional Electoral en las Juntas Receptoras de Votos número 4069 y 4070, modificando el dato del abstencionismo.
A73: FUENTE: Tribunal Supremo de Elecciones.

Sheet C1.6
A2: CUADRO 1.6 HEREDIA: JUNTAS, ELECTORADO, PARTICIPACIÓN, VOTOS POR PARTIDO, NULOS, BLANCOS Y ABSTENCIONISMO, PARA PRESIDENCIA Y VICEPRESIDENCIAS DE LA REPÚBLICA, SEGÚN CANTÓN Y DISTRITO ADMINISTRATIVO ELECCIONES 4 DE FEBRERO 2018
A4: CANTÓN Y DISTRITO ADMINISTRATIVO | B4: JUNTAS | C4: ELECTORADO | D4: VOTOS RECIBIDOS | V4: ABSTENCIONISMO
D5: TOTAL GENERAL | E5: % PARTICIPACIÓN | F5: VOTOS VÁLIDOS | T5: NULOS | U5: BLANCOS | V5: ABSOLUTO | W5: %
F6: TOTAL | G6: ACCESIBILIDAD SIN EXCLUSIÓN | H6: ACCIÓN CIUDADANA | I6: ALIANZA DEMÓCRATA CRISTIANA | J6: DE LOS TRABAJADORES | K6: FRENTE AMPLIO | L6: INTEGRACIÓN NACIONAL | M6: LIBERACIÓN NACIONAL | N6: MOVIMIENTO LIBERTARIO | O6: NUEVA GENERACIÓN | P6: RENOVACIÓN COSTARRICENSE | Q6: REPUBLICANO SOCIAL CRISTIANO | R6: RESTAURACIÓN NACIONAL | S6: UNIDAD SOCIAL CRISTIANA
A8: PROVINCIA HEREDIA | B8: =+B9+B15+B22+B31+B38+B44+B49+B53+B57+B60 -> 613 | C8: =+C9+C15+C22+C31+C38+C44+C49+C53+C57+C60 -> 332859 | D8: 238377 | E8: =D8/C8*100 -> 71.61500816 | F8: 236246 | G8: 580 | H8: 64449 | I8: 682 | J8: 401 | K8: 1896 | L8: 19075 | M8: 41780 | N8: 2410 | O8: 2207 | P8: 1236 | Q8: 8792 | R8: 50033 | S8: 42705 | T8: 1780 | U8: 351 | V8: 94471 | W8: 28.38499184
A9: CANTÓN 1 HEREDIA | B9: 167 | C9: 96661 | D9: =F9+T9+U9 -> 69101 | E9: =D9/C9*100 -> 71.48798378 | F9: =SUM(G9:S9) -> 68559 | G9: 175 | H9: 20130 | I9: 220 | J9: 130 | K9: 566 | L9: 5073 | M9: 12235 | N9: 701 | O9: 693 | P9: 360 | Q9: 2232 | R9: 13913 | S9: 12131 | T9: 458 | U9: 84 | V9: 27560 | W9: 28.51201622
A10: HEREDIA | B10: 30 | C10: 17667 | D10: =F10+T10+U10 -> 12861 | E10: 72.79673968 | F10: =SUM(G10:S10) -> 12769 | G10: 25 | H10: 4049 | I10: 33 | J10: 24 | K10: 101 | L10: 962 | M10: 2594 | N10: 93 | O10: 106 | P10: 48 | Q10: 389 | R10: 1773 | S10: 2572 | T10: 81 | U10: 11 | V10: 4806 | W10: 27.20326032
A11: MERCEDES | B11: 37 | C11: 21663 | D11: 16624 | E11: 76.73914047 | F11: 16528 | G11: 37 | H11: 5648 | I11: 48 | J11: 26 | K11: 129 | L11: 1197 | M11: 3030 | N11: 143 | O11: 191 | P11: 85 | Q11: 541 | R11: 2332 | S11: 3121 | T11: 79 | U11: 17 | V11: 5039 | W11: 23.26085953
A12: SAN FRANCISCO | B12: 63 | C12: 36560 | D12: 24714 | E12: 67.59846827 | F12: 24483 | G12: 62 | H12: 6373 | I12: 95 | J12: 53 | K12: 183 | L12: 1806 | M12: 4030 | N12: 274 | O12: 231 | P12: 126 | Q12: 801 | R12: 6457 | S12: 3992 | T12: 196 | U12: 35 | V12: 11846 | W12: 32.40153173
A13: ULLOA | B13: 35 | C13: 20220 | D13: 14525 | E13: 71.83481701 | F13: 14405 | G13: 49 | H13: 4009 | I13: 44 | J13: 25 | K13: 151 | L13: 1094 | M13: 2470 | N13: 185 | O13: 164 | P13: 94 | Q13: 487 | R13: 3278 | S13: 2355 | T13: 101 | U13: 19 | V13: 5695 | W13: 28.16518299
A14: VARABLANCA | B14: 2 | C14: 551 | D14: 377 | E14: 68.42105263 | F14: 374 | G14: 2 | H14: 51 | I14: 0 | J14: 2 | K14: 2 | L14: 14 | M14: 111 | N14: 6 | O14: 1 | P14: 7 | Q14: 14 | R14: 73 | S14: 91 | T14: 1 | U14: 2 | V14: 174 | W14: 31.57894737
A15: CANTÓN 2 BARVA | B15: 60 | C15: 32786 | D15: 24614 | E15: 75.07472702 | F15: 24450 | G15: 37 | H15: 7331 | I15: 69 | J15: 42 | K15: 269 | L15: 1925 | M15: 4065 | N15: 256 | O15: 274 | P15: 111 | Q15: 1174 | R15: 4975 | S15: 3922 | T15: 143 | U15: 21 | V15: 8171 | W15: 24.92527298
A16: BARVA | B16: 10 | C16: 5982 | D16: 4593 | E16: 76.78034102 | F16: 4572 | G16: 5 | H16: 1494 | I16: 16 | J16: 7 | K16: 48 | L16: 381 | M16: 803 | N16: 37 | O16: 45 | P16: 13 | Q16: 150 | R16: 813 | S16: 760 | T16: 17 | U16: 4 | V16: 1389 | W16: 23.21965898
A17: SAN PEDRO | B17: 15 | C17: 8437 | D17: 5946 | E17: 70.47528742 | F17: 5897 | G17: 10 | H17: 1582 | I17: 14 | J17: 13 | K17: 58 | L17: 491 | M17: 934 | N17: 69 | O17: 80 | P17: 27 | Q17: 408 | R17: 1431 | S17: 780 | T17: 46 | U17: 3 | V17: 2491 | W17: 29.52471258
A18: SAN PABLO | B18: 10 | C18: 5606 | D18: 4272 | E18: 76.20406707 | F18: 4239 | G18: 6 | H18: 1282 | I18: 17 | J18: 6 | K18: 53 | L18: 310 | M18: 660 | N18: 53 | O18: 26 | P18: 24 | Q18: 257 | R18: 838 | S18: 707 | T18: 29 | U18: 4 | V18: 1334 | W18: 23.79593293
A19: SAN ROQUE | B19: 5 | C19: 2915 | D19: 2271 | E19: 77.90737564 | F19: 2259 | G19: 2 | H19: 701 | I19: 5 | J19: 3 | K19: 19 | L19: 186 | M19: 359 | N19: 20 | O19: 21 | P19: 7 | Q19: 71 | R19: 428 | S19: 437 | T19: 11 | U19: 1 | V19: 644 | W19: 22.09262436
A20: SANTA LUCIA | B20: 10 | C20: 5560 | D20: 4349 | E20: 78.21942446 | F20: 4330 | G20: 8 | H20: 1469 | I20: 7 | J20: 8 | K20: 61 | L20: 321 | M20: 701 | N20: 37 | O20: 55 | P20: 25 | Q20: 130 | R20: 726 | S20: 782 | T20: 14 | U20: 5 | V20: 1210 | W20: 21.78057554
A21: SAN JOSÉ DE LA MONTAÑA | B21: 10 | C21: 4286 | D21: 3183 | E21: 74.265049 | F21: 3153 | G21: 6 | H21: 803 | I21: 10 | J21: 5 | K21: 30 | L21: 236 | M21: 608 | N21: 40 | O21: 47 | P21: 15 | Q21: 158 | R21: 739 | S21: 456 | T21: 26 | U21: 4 | V21: 1103 | W21: 25.734951
A22: CANTÓN 3 SANTO DOMINGO | B22: 61 | C22: 34421 | D22: 25701 | E22: 74.66662793 | F22: 25454 | G22: 57 | H22: 6906 | I22: 82 | J22: 35 | K22: 167 | L22: 2051 | M22: 4732 | N22: 223 | O22: 239 | P22: 201 | Q22: 760 | R22: 4657 | S22: 5344 | T22: 211 | U22: 36 | V22: 8720 | W22: 25.33337207
A23: SANTO DOMINGO | B23: 13 | C23: 7680 | D23: 5832 | E23: 75.9375 | F23: 5782 | G23: 9 | H23: 1542 | I23: 22 | J23: 5 | K23: 35 | L23: 425 | M23: 1303 | N23: 32 | O23: 59 | P23: 45 | Q23: 110 | R23: 730 | S23: 1465 | T23: 42 | U23: 8 | V23: 1848 | W23: 24.0625
A24: SAN VICENTE | B24: 8 | C24: 4590 | D24: 3604 | E24: 78.51851852 | F24: 3577 | G24: 4 | H24: 1144 | I24: 8 | J24: 3 | K24: 26 | L24: 239 | M24: 661 | N24: 24 | O24: 29 | P24: 28 | Q24: 62 | R24: 462 | S24: 887 | T24: 22 | U24: 5 | V24: 986 | W24: 21.48148148
A25: SAN MIGUEL | B25: 10 | C25: 5223 | D25: 4007 | E25: 76.7183611 | F25: 3973 | G25: 11 | H25: 1106 | I25: 13 | J25: 6 | K25: 27 | L25: 367 | M25: 621 | N25: 55 | O25: 33 | P25: 35 | Q25: 145 | R25: 820 | S25: 734 | T25: 29 | U25: 5 | V25: 1216 | W25: 23.2816389
A26: PARACITO | B26: 4 | C26: 2217 | D26: 1598 | E26: 72.07938656 | F26: 1575 | G26: 4 | H26: 317 | I26: 3 | J26: 3 | K26: 9 | L26: 143 | M26: 296 | N26: 19 | O26: 10 | P26: 7 | Q26: 40 | R26: 504 | S26: 220 | T26: 22 | U26: 1 | V26: 619 | W26: 27.92061344
A27: SANTO TOMÁS | B27: 7 | C27: 4006 | D27: 3029 | E27: 75.61158263 | F27: 3008 | G27: 3 | H27: 840 | I27: 9 | J27: 4 | K27: 23 | L27: 220 | M27: 537 | N27: 25 | O27: 26 | P27: 14 | Q27: 91 | R27: 538 | S27: 678 | T27: 19 | U27: 2 | V27: 977 | W27: 24.38841737
A28: SANTA ROSA | B28: 9 | C28: 5187 | D28: 3636 | E28: 70.09832273 | F28: 3588 | G28: 15 | H28: 802 | I28: 8 | J28: 8 | K28: 19 | L28: 304 | M28: 661 | N28: 31 | O28: 51 | P28: 39 | Q28: 197 | R28: 853 | S28: 600 | T28: 43 | U28: 5 | V28: 1551 | W28: 29.90167727
A29: TURES | B29: 5 | C29: 2870 | D29: 2061 | E29: 71.81184669 | F29: 2040 | G29: 3 | H29: 591 | I29: 7 | J29: 3 | K29: 17 | L29: 193 | M29: 361 | N29: 13 | O29: 16 | P29: 17 | Q29: 54 | R29: 382 | S29: 383 | T29: 16 | U29: 5 | V29: 809 | W29: 28.18815331
A30: PARÁ | B30: 5 | C30: 2648 | D30: 1934 | E30: 73.03625378 | F30: 1911 | G30: 8 | H30: 564 | I30: 12 | J30: 3 | K30: 11 | L30: 160 | M30: 292 | N30: 24 | O30: 15 | P30: 16 | Q30: 61 | R30: 368 | S30: 377 | T30: 18 | U30: 5 | V30: 714 | W30: 26.96374622
A31: CANTÓN 4 SANTA BÁRBARA | B31: 48 | C31: 26746 | D31: 19102 | E31: 71.42002542 | F31: 18938 | G31: 50 | H31: 4739 | I31: 50 | J31: 27 | K31: 123 | L31: 1702 | M31: 3193 | N31: 187 | O31: 173 | P31: 87 | Q31: 1115 | R31: 4710 | S31: 2782 | T31: 146 | U31: 18 | V31: 7644 | W31: 28.57997458
A32: SANTA BÁRBARA | B32: 12 | C32: 6814 | D32: 4976 | E32: 73.02612269 | F32: 4937 | G32: 9 | H32: 1277 | I32: 11 | J32: 7 | K32: 27 | L32: 486 | M32: 741 | N32: 47 | O32: 47 | P32: 13 | Q32: 239 | R32: 1321 | S32: 712 | T32: 34 | U32: 5 | V32: 1838 | W32: 26.97387731
A33: SAN PEDRO | B33: 5 | C33: 3015 | D33: 2105 | E33: 69.81757877 | F33: 2090 | G33: 6 | H33: 489 | I33: 5 | J33: 1 | K33: 12 | L33: 203 | M33: 385 | N33: 23 | O33: 13 | P33: 6 | Q33: 220 | R33: 406 | S33: 321 | T33: 13 | U33: 2 | V33: 910 | W33: 30.18242123
A34: SAN JUAN | B34: 9 | C34: 5301 | D34: 3866 | E34: 72.92963592 | F34: 3840 | G34: 11 | H34: 1013 | I34: 14 | J34: 5 | K34: 29 | L34: 378 | M34: 590 | N34: 37 | O34: 36 | P34: 19 | Q34: 211 | R34: 848 | S34: 649 | T34: 20 | U34: 6 | V34: 1435 | W34: 27.07036408
A35: JESÚS | B35: 11 | C35: 6121 | D35: 4326 | E35: 70.67472635 | F35: 4283 | G35: 7 | H35: 1013 | I35: 11 | J35: 10 | K35: 29 | L35: 374 | M35: 715 | N35: 43 | O35: 44 | P35: 33 | Q35: 231 | R35: 1217 | S35: 556 | T35: 40 | U35: 3 | V35: 1795 | W35: 29.32527365
A36: SANTO DOMINGO | B36: 5 | C36: 2263 | D36: 1589 | E36: 70.21652673 | F36: 1569 | G36: 9 | H36: 406 | I36: 0 | J36: 1 | K36: 8 | L36: 96 | M36: 309 | N36: 12 | O36: 12 | P36: 4 | Q36: 80 | R36: 360 | S36: 272 | T36: 19 | U36: 1 | V36: 674 | W36: 29.78347327
A37: PURABÁ | B37: 6 | C37: 3232 | D37: 2240 | E37: 69.30693069 | F37: 2219 | G37: 8 | H37: 541 | I37: 9 | J37: 3 | K37: 18 | L37: 165 | M37: 453 | N37: 25 | O37: 21 | P37: 12 | Q37: 134 | R37: 558 | S37: 272 | T37: 20 | U37: 1 | V37: 992 | W37: 30.69306931
A38: CANTÓN 5 SAN RAFAEL | B38: 64 | C38: 35395 | D38: 25287 | E38: 71.44229411 | F38: 25067 | G38: 67 | H38: 7442 | I38: 69 | J38: 46 | K38: 220 | L38: 2064 | M38: 4039 | N38: 224 | O38: 243 | P38: 129 | Q38: 942 | R38: 5238 | S38: 4344 | T38: 180 | U38: 40 | V38: 10108 | W38: 28.55770589
A39: SAN RAFAEL | B39: 16 | C39: 9295 | D39: 6834 | E39: 73.52339968 | F39: 6791 | G39: 18 | H39: 1968 | I39: 17 | J39: 11 | K39: 65 | L39: 588 | M39: 1154 | N39: 53 | O39: 56 | P39: 32 | Q39: 248 | R39: 1340 | S39: 1241 | T39: 36 | U39: 7 | V39: 2461 | W39: 26.47660032
A40: SAN JOSECITO | B40: 13 | C40: 7831 | D40: 5243 | E40: 66.951858 | F40: 5190 | G40: 16 | H40: 1490 | I40: 21 | J40: 11 | K40: 49 | L40: 441 | M40: 749 | N40: 39 | O40: 51 | P40: 35 | Q40: 208 | R40: 1263 | S40: 817 | T40: 45 | U40: 8 | V40: 2588 | W40: 33.048142
A41: SANTIAGO | B41: 11 | C41: 5809 | D41: 4336 | E41: 74.64279566 | F41: 4302 | G41: 11 | H41: 1423 | I41: 6 | J41: 5 | K41: 37 | L41: 368 | M41: 629 | N41: 32 | O41: 38 | P41: 25 | Q41: 139 | R41: 905 | S41: 684 | T41: 24 | U41: 10 | V41: 1473 | W41: 25.35720434
A42: LOS ÁNGELES | B42: 18 | C42: 9236 | D42: 6593 | E42: 71.38371589 | F42: 6525 | G42: 18 | H42: 1810 | I42: 17 | J42: 15 | K42: 45 | L42: 531 | M42: 1044 | N42: 77 | O42: 75 | P42: 25 | Q42: 279 | R42: 1385 | S42: 1204 | T42: 57 | U42: 11 | V42: 2643 | W42: 28.61628411
A43: CONCEPCIÓN | B43: 6 | C43: 3224 | D43: 2281 | E43: 70.75062035 | F43: 2259 | G43: 4 | H43: 751 | I43: 8 | J43: 4 | K43: 24 | L43: 136 | M43: 463 | N43: 23 | O43: 23 | P43: 12 | Q43: 68 | R43: 345 | S43: 398 | T43: 18 | U43: 4 | V43: 943 | W43: 29.24937965
A44: CANTÓN 6 SAN ISIDRO1/ | B44: 33 | C44: 16081 | D44: 11663 | E44: 72.6 | F44: 11559 | G44: 26 | H44: 3393 | I44: 34 | J44: 27 | K44: 87 | L44: 1031 | M44: 2268 | N44: 119 | O44: 103 | P44: 65 | Q44: 348 | R44: 1719 | S44: 2339 | T44: 83 | U44: 21 | V44: 4408 | W44: 27.4
A45: SAN ISIDRO | B45: 14 | C45: 7944 | D45: 5854 | E45: 73.69083585 | F45: 5801 | G45: 20 | H45: 1703 | I45: 16 | J45: 17 | K45: 40 | L45: 550 | M45: 1124 | N45: 67 | O45: 48 | P45: 31 | Q45: 168 | R45: 938 | S45: 1079 | T45: 42 | U45: 11 | V45: 2090 | W45: 26.30916415
A46: SAN JOSÉ | B46: 10 | C46: 4176 | D46: 2957 | E46: 70.80938697 | F46: 2935 | G46: 2 | H46: 858 | I46: 9 | J46: 5 | K46: 22 | L46: 242 | M46: 565 | N46: 26 | O46: 27 | P46: 18 | Q46: 84 | R46: 423 | S46: 654 | T46: 17 | U46: 5 | V46: 1209 | W46: 29
A47: CONCEPCIÓN | B47: 5 | C47: 2112 | D47: 1519 | E47: 71.92234848 | F47: 1503 | G47: 1 | H47: 406 | I47: 4 | J47: 1 | K47: 17 | L47: 127 | M47: 360 | N47: 16 | O47: 14 | P47: 8 | Q47: 56 | R47: 163 | S47: 330 | T47: 12 | U47: 4 | V47: 593 | W47: 28.07765152
A48: SAN FRANCISCO | B48: 4 | C48: 1849 | D48: 1333 | E48: 72.09302326 | F48: 1320 | G48: 3 | H48: 426 | I48: 5 | J48: 4 | K48: 8 | L48: 112 | M48: 219 | N48: 10 | O48: 14 | P48: 8 | Q48: 40 | R48: 195 | S48: 276 | T48: 12 | U48: 1 | V48: 516 | W48: 27.90697674
A49: CANTÓN 7 BELÉN | B49: 33 | C49: 18745 | D49: 14078 | E49: 75.10269405 | F49: 13979 | G49: 28 | H49: 3841 | I49: 23 | J49: 14 | K49: 120 | L49: 999 | M49: 2965 | N49: 149 | O49: 107 | P49: 49 | Q49: 356 | R49: 1575 | S49: 3753 | T49: 82 | U49: 17 | V49: 4667 | W49: 24.89730595
A50: SAN ANTONIO | B50: 15 | C50: 8547 | D50: 6304 | E50: 73.75687376 | F50: 6262 | G50: 13 | H50: 1906 | I50: 7 | J50: 5 | K50: 65 | L50: 465 | M50: 1252 | N50: 63 | O50: 49 | P50: 32 | Q50: 163 | R50: 707 | S50: 1535 | T50: 37 | U50: 5 | V50: 2243 | W50: 26.24312624
A51: LA RIBERA | B51: 11 | C51: 6372 | D51: 4805 | E51: 75.40803515 | F51: 4764 | G51: 11 | H51: 1217 | I51: 10 | J51: 5 | K51: 41 | L51: 352 | M51: 1039 | N51: 53 | O51: 33 | P51: 12 | Q51: 153 | R51: 632 | S51: 1206 | T51: 33 | U51: 8 | V51: 1567 | W51: 24.59196485
A52: LA ASUNCIÓN | B52: 7 | C52: 3826 | D52: 2969 | E52: 77.60062729 | F52: 2953 | G52: 4 | H52: 718 | I52: 6 | J52: 4 | K52: 14 | L52: 182 | M52: 674 | N52: 33 | O52: 25 | P52: 5 | Q52: 40 | R52: 236 | S52: 1012 | T52: 12 | U52: 4 | V52: 857 | W52: 22.39937271
A53: CANTÓN 8 FLORES | B53: 29 | C53: 16683 | D53: 12650 | E53: 75.82569082 | F53: 12584 | G53: 20 | H53: 3389 | I53: 23 | J53: 18 | K53: 83 | L53: 1094 | M53: 2532 | N53: 94 | O53: 112 | P53: 52 | Q53: 545 | R53: 1806 | S53: 2816 | T53: 55 | U53: 11 | V53: 4033 | W53: 24.17430918
A54: SAN JOAQUÍN | B54: 15 | C54: 8620 | D54: 6598 | E54: 76.54292343 | F54: 6567 | G54: 10 | H54: 1847 | I54: 6 | J54: 9 | K54: 46 | L54: 526 | M54: 1247 | N54: 57 | O54: 55 | P54: 30 | Q54: 263 | R54: 851 | S54: 1620 | T54: 30 | U54: 1 | V54: 2022 | W54: 23.45707657
A55: BARRANTES | B55: 5 | C55: 2707 | D55: 2171 | E55: 80.19948282 | F55: 2161 | G55: 3 | H55: 640 | I55: 3 | J55: 4 | K55: 11 | L55: 195 | M55: 502 | N55: 13 | O55: 29 | P55: 2 | Q55: 74 | R55: 200 | S55: 485 | T55: 7 | U55: 3 | V55: 536 | W55: 19.80051718
A56: LLORENTE | B56: 9 | C56: 5356 | D56: 3881 | E56: 72.46079164 | F56: 3856 | G56: 7 | H56: 902 | I56: 14 | J56: 5 | K56: 26 | L56: 373 | M56: 783 | N56: 24 | O56: 28 | P56: 20 | Q56: 208 | R56: 755 | S56: 711 | T56: 18 | U56: 7 | V56: 1475 | W56: 27.53920836
A57: CANTÓN 9 SAN PABLO | B57: 39 | C57: 21950 | D57: 16307 | E57: 74.29157175 | F57: 16188 | G57: 31 | H57: 4689 | I57: 38 | J57: 24 | K57: 115 | L57: 1075 | M57: 2676 | N57: 124 | O57: 132 | P57: 66 | Q57: 508 | R57: 3018 | S57: 3692 | T57: 103 | U57: 16 | V57: 5643 | W57: 25.70842825
A58: SAN PABLO | B58: 28 | C58: 16497 | D58: 12276 | E58: 74.41352973 | F58: 12186 | G58: 20 | H58: 3561 | I58: 21 | J58: 16 | K58: 77 | L58: 761 | M58: 2059 | N58: 94 | O58: 90 | P58: 53 | Q58: 352 | R58: 2247 | S58: 2835 | T58: 77 | U58: 13 | V58: 4221 | W58: 25.58647027
A59: RINCÓN DE SABANILLA | B59: 11 | C59: 5453 | D59: 4031 | E59: 73.92261141 | F59: 4002 | G59: 11 | H59: 1128 | I59: 17 | J59: 8 | K59: 38 | L59: 314 | M59: 617 | N59: 30 | O59: 42 | P59: 13 | Q59: 156 | R59: 771 | S59: 857 | T59: 26 | U59: 3 | V59: 1422 | W59: 26.07738859
A60: CANTÓN 10 SARAPIQUÍ | B60: 79 | C60: 33391 | D60: 19874 | E60: 59.51903207 | F60: 19468 | G60: 89 | H60: 2589 | I60: 74 | J60: 38 | K60: 146 | L60: 2061 | M60: 3075 | N60: 333 | O60: 131 | P60: 116 | Q60: 812 | R60: 8422 | S60: 1582 | T60: 319 | U60: 87 | V60: 13517 | W60: 40.48096793
A61: PUERTO VIEJO | B61: 25 | C61: 10405 | D61: 5696 | E61: 54.74291206 | F61: 5605 | G61: 20 | H61: 703 | I61: 19 | J61: 5 | K61: 51 | L61: 545 | M61: 1072 | N61: 157 | O61: 35 | P61: 27 | Q61: 239 | R61: 2239 | S61: 493 | T61: 67 | U61: 24 | V61: 4709 | W61: 45.25708794
A62: LA VIRGEN | B62: 17 | C62: 6091 | D62: 3724 | E62: 61.13938598 | F62: 3644 | G62: 15 | H62: 514 | I62: 8 | J62: 6 | K62: 25 | L62: 339 | M62: 574 | N62: 49 | O62: 15 | P62: 20 | Q62: 137 | R62: 1471 | S62: 471 | T62: 63 | U62: 17 | V62: 2367 | W62: 38.86061402
A63: HORQUETAS | B63: 34 | C63: 16123 | D63: 10138 | E63: 62.87911679 | F63: 9907 | G63: 52 | H63: 1340 | I63: 47 | J63: 27 | K63: 68 | L63: 1139 | M63: 1323 | N63: 120 | O63: 81 | P63: 65 | Q63: 428 | R63: 4645 | S63: 572 | T63: 187 | U63: 44 | V63: 5985 | W63: 37.12088321
A64: LLANURAS DEL GASPAR | B64: 1 | C64: 413 | D64: 182 | E64: 44.06779661 | F64: 180 | G64: 0 | H64: 14 | I64: 0 | J64: 0 | K64: 1 | L64: 28 | M64: 62 | N64: 1 | O64: 0 | P64: 3 | Q64: 2 | R64: 45 | S64: 24 | T64: 1 | U64: 1 | V64: 231 | W64: 55.93220339
A65: CUREÑA | B65: 2 | C65: 359 | D65: 134 | E65: 37.32590529 | F65: 132 | G65: 2 | H65: 18 | I65: 0 | J65: 0 | K65: 1 | L65: 10 | M65: 44 | N65: 6 | O65: 0 | P65: 1 | Q65: 6 | R65: 22 | S65: 22 | T65: 1 | U65: 1 | V65: 225 | W65: 62.67409471
A68: 1/ En la resolución DGRA-039-2018 se realiza un cambio dentro del Padrón Nacional Electoral en la Junta Receptora de Votos número 4521, modificando el dato del abstencionismo.
A70: FUENTE: Tribunal Supremo de Elecciones.

Sheet C1.7
A2: CUADRO 1.7 GUANACASTE: JUNTAS, ELECTORADO, PARTICIPACIÓN, VOTOS POR PARTIDO, NULOS, BLANCOS Y ABSTENCIONISMO, PARA PRESIDENCIA Y VICEPRESIDENCIAS DE LA REPÚBLICA, SEGÚN CANTÓN Y DISTRITO ADMINISTRATIVO ELECCIONES 4 DE FEBRERO 2018
A4: CANTÓN Y DISTRITO ADMINISTRATIVO | B4: JUNTAS | C4: ELECTORADO | D4: VOTOS RECIBIDOS | V4: ABSTENCIONISMO
D5: TOTAL GENERAL | E5: % PARTICIPACIÓN | F5: VOTOS VÁLIDOS | T5: NULOS | U5: BLANCOS | V5: ABSOLUTO | W5: %
F6: TOTAL | G6: ACCESIBILIDAD SIN EXCLUSIÓN | H6: ACCIÓN CIUDADANA | I6: ALIANZA DEMÓCRATA CRISTIANA | J6: DE LOS TRABAJADORES | K6: FRENTE AMPLIO | L6: INTEGRACIÓN NACIONAL | M6: LIBERACIÓN NACIONAL | N6: MOVIMIENTO LIBERTARIO | O6: NUEVA GENERACIÓN | P6: RENOVACIÓN COSTARRICENSE | Q6: REPUBLICANO SOCIAL CRISTIANO | R6: RESTAURACIÓN NACIONAL | S6: UNIDAD SOCIAL CRISTIANA
A8: PROVINCIA GUANACASTE | B8: =+B9+B15+B23+B33+B38+B43+B49+B54+B62+B69+B74 -> 565 | C8: =+C9+C15+C23+C33+C38+C43+C49+C54+C62+C69+C74 -> 240637 | D8: =+D9+D15+D23+D33+D38+D43+D49+D54+D62+D69+D74 -> 142830 | E8: =D8/C8*100 -> 59.35496204 | F8: =+F9+F15+F23+F33+F38+F43+F49+F54+F62+F69+F74 -> 139808 | G8: 528 | H8: 21089 | I8: 438 | J8: 255 | K8: 942 | L8: 15653 | M8: 32937 | N8: 1346 | O8: 691 | P8: 822 | Q8: 7266 | R8: 35733 | S8: 22108 | T8: 2392 | U8: 630 | V8: 97794 | W8: 40.64503796
A9: CANTÓN 1 LIBERIA1/ | B9: 87 | C9: 44938 | D9: =F9+U9+T9 -> 25813 | E9: 57.5 | F9: =SUM(G9:S9) -> 25399 | G9: 163 | H9: 4384 | I9: 74 | J9: 51 | K9: 178 | L9: 2635 | M9: 5346 | N9: 216 | O9: 159 | P9: 185 | Q9: 1432 | R9: 6902 | S9: 3674 | T9: 327 | U9: 87 | V9: 19112 | W9: 42.5
A10: LIBERIA | B10: 73 | C10: 38295 | D10: =F10+U10+T10 -> 22061 | E10: =D10/C10*100 -> 57.60804283 | F10: =SUM(G10:S10) -> 21731 | G10: 144 | H10: 3929 | I10: 66 | J10: 47 | K10: 164 | L10: 2275 | M10: 4353 | N10: 184 | O10: 141 | P10: 167 | Q10: 1253 | R10: 5827 | S10: 3181 | T10: 261 | U10: 69 | V10: 16221 | W10: 42.39195717
A11: CAÑAS DULCES | B11: 5 | C11: 2193 | D11: 1295 | E11: 59.05152759 | F11: 1265 | G11: 4 | H11: 173 | I11: 2 | J11: 2 | K11: 4 | L11: 117 | M11: 289 | N11: 7 | O11: 8 | P11: 4 | Q11: 82 | R11: 415 | S11: 158 | T11: 26 | U11: 4 | V11: 898 | W11: 40.94847241
A12: MAYORGA | B12: 2 | C12: 1033 | D12: 567 | E12: 54.88867377 | F12: 556 | G12: 3 | H12: 50 | I12: 3 | J12: 1 | K12: 2 | L12: 56 | M12: 167 | N12: 5 | O12: 1 | P12: 5 | Q12: 18 | R12: 151 | S12: 94 | T12: 8 | U12: 3 | V12: 466 | W12: 45.11132623
A13: NACASCOLO | B13: 3 | C13: 1661 | D13: 868 | E13: 52.2576761 | F13: 850 | G13: 6 | H13: 101 | I13: 1 | J13: 0 | K13: 4 | L13: 110 | M13: 256 | N13: 11 | O13: 6 | P13: 4 | Q13: 33 | R13: 198 | S13: 120 | T13: 15 | U13: 3 | V13: 793 | W13: 47.7423239
A14: CURUBANDÉ | B14: 4 | C14: 1756 | D14: 1022 | E14: 58.20045558 | F14: 997 | G14: 6 | H14: 131 | I14: 2 | J14: 1 | K14: 4 | L14: 77 | M14: 281 | N14: 9 | O14: 3 | P14: 5 | Q14: 46 | R14: 311 | S14: 121 | T14: 17 | U14: 8 | V14: 734 | W14: 41.79954442
A15: CANTÓN 2 NICOYA | B15: 106 | C15: 40987 | D15: 25935 | E15: 63.27616073 | F15: 25336 | G15: 58 | H15: 3347 | I15: 83 | J15: 41 | K15: 248 | L15: 2617 | M15: 6603 | N15: 232 | O15: 116 | P15: 126 | Q15: 1350 | R15: 5775 | S15: 4740 | T15: 474 | U15: 125 | V15: 15052 | W15: 36.72383927
A16: NICOYA | B16: 45 | C16: 21196 | D16: 13458 | E16: 63.49311191 | F16: 13191 | G16: 26 | H16: 2175 | I16: 35 | J16: 20 | K16: 104 | L16: 1393 | M16: 3017 | N16: 122 | O16: 58 | P16: 60 | Q16: 752 | R16: 3000 | S16: 2429 | T16: 223 | U16: 44 | V16: 7738 | W16: 36.50688809
A17: MANSIÓN | B17: 12 | C17: 4193 | D17: 2669 | E17: 63.65370856 | F17: 2610 | G17: 5 | H17: 295 | I17: 6 | J17: 3 | K17: 24 | L17: 279 | M17: 697 | N17: 19 | O17: 7 | P17: 14 | Q17: 146 | R17: 669 | S17: 446 | T17: 43 | U17: 16 | V17: 1524 | W17: 36.34629144
A18: SAN ANTONIO | B18: 17 | C18: 5445 | D18: 3565 | E18: 65.47291093 | F18: 3461 | G18: 7 | H18: 287 | I18: 30 | J18: 9 | K18: 62 | L18: 279 | M18: 1093 | N18: 17 | O18: 16 | P18: 14 | Q18: 177 | R18: 712 | S18: 758 | T18: 86 | U18: 18 | V18: 1880 | W18: 34.52708907
A19: QUEBRADA HONDA | B19: 6 | C19: 2152 | D19: 1473 | E19: 68.44795539 | F19: 1451 | G19: 2 | H19: 133 | I19: 1 | J19: 1 | K19: 16 | L19: 127 | M19: 366 | N19: 9 | O19: 5 | P19: 10 | Q19: 62 | R19: 367 | S19: 352 | T19: 16 | U19: 6 | V19: 679 | W19: 31.55204461
A20: SÁMARA | B20: 8 | C20: 2547 | D20: 1467 | E20: 57.59717314 | F20: 1404 | G20: 5 | H20: 133 | I20: 3 | J20: 3 | K20: 24 | L20: 264 | M20: 310 | N20: 23 | O20: 6 | P20: 12 | Q20: 77 | R20: 299 | S20: 245 | T20: 46 | U20: 17 | V20: 1080 | W20: 42.40282686
A21: NOSARA | B21: 9 | C21: 3405 | D21: 1946 | E21: 57.15124816 | F21: 1899 | G21: 7 | H21: 188 | I21: 5 | J21: 2 | K21: 14 | L21: 145 | M21: 659 | N21: 23 | O21: 21 | P21: 12 | Q21: 80 | R21: 559 | S21: 184 | T21: 36 | U21: 11 | V21: 1459 | W21: 42.84875184
A22: BELÉN DE NOSARITA | B22: 9 | C22: 2049 | D22: 1357 | E22: 66.22742801 | F22: 1320 | G22: 6 | H22: 136 | I22: 3 | J22: 3 | K22: 4 | L22: 130 | M22: 461 | N22: 19 | O22: 3 | P22: 4 | Q22: 56 | R22: 169 | S22: 326 | T22: 24 | U22: 13 | V22: 692 | W22: 33.77257199
A23: CANTÓN 3 SANTA CRUZ | B23: 92 | C23: 41107 | D23: 23881 | E23: 58.09472839 | F23: 23243 | G23: 105 | H23: 3319 | I23: 64 | J23: 54 | K23: 143 | L23: 3722 | M23: 5625 | N23: 211 | O23: 87 | P23: 120 | Q23: 1302 | R23: 4622 | S23: 3869 | T23: 480 | U23: 158 | V23: 17226 | W23: 41.90527161
A24: SANTA CRUZ | B24: 36 | C24: 17598 | D24: 10615 | E24: 60.31935447 | F24: 10418 | G24: 42 | H24: 1699 | I24: 27 | J24: 29 | K24: 47 | L24: 1587 | M24: 2406 | N24: 73 | O24: 42 | P24: 45 | Q24: 616 | R24: 1911 | S24: 1894 | T24: 153 | U24: 44 | V24: 6983 | W24: 39.68064553
A25: BOLSÓN | B25: 3 | C25: 1371 | D25: 806 | E25: 58.78920496 | F25: 775 | G25: 1 | H25: 64 | I25: 4 | J25: 2 | K25: 2 | L25: 133 | M25: 230 | N25: 6 | O25: 11 | P25: 7 | Q25: 36 | R25: 176 | S25: 103 | T25: 26 | U25: 5 | V25: 565 | W25: 41.21079504
A26: VEINTISIETE DE ABRIL | B26: 13 | C26: 5229 | D26: 2923 | E26: 55.89978963 | F26: 2812 | G26: 14 | H26: 229 | I26: 6 | J26: 3 | K26: 10 | L26: 585 | M26: 738 | N26: 27 | O26: 7 | P26: 19 | Q26: 135 | R26: 618 | S26: 421 | T26: 85 | U26: 26 | V26: 2306 | W26: 44.10021037
A27: TEMPATE | B27: 8 | C27: 3359 | D27: 1746 | E27: 51.97975588 | F27: 1699 | G27: 9 | H27: 222 | I27: 5 | J27: 4 | K27: 12 | L27: 231 | M27: 402 | N27: 21 | O27: 2 | P27: 8 | Q27: 70 | R27: 422 | S27: 291 | T27: 35 | U27: 12 | V27: 1613 | W27: 48.02024412
A28: CARTAGENA | B28: 6 | C28: 2979 | D28: 1780 | E28: 59.75159449 | F28: 1731 | G28: 9 | H28: 284 | I28: 4 | J28: 6 | K28: 33 | L28: 374 | M28: 380 | N28: 16 | O28: 8 | P28: 11 | Q28: 155 | R28: 306 | S28: 145 | T28: 38 | U28: 11 | V28: 1199 | W28: 40.24840551
A29: CUAJINIQUIL | B29: 6 | C29: 1299 | D29: 766 | E29: 58.96843726 | F29: 731 | G29: 7 | H29: 54 | I29: 2 | J29: 1 | K29: 9 | L29: 81 | M29: 185 | N29: 7 | O29: 0 | P29: 8 | Q29: 35 | R29: 238 | S29: 104 | T29: 21 | U29: 14 | V29: 533 | W29: 41.03156274
A30: DIRIÁ | B30: 7 | C30: 3187 | D30: 1878 | E30: 58.92689049 | F30: 1820 | G30: 11 | H30: 286 | I30: 3 | J30: 2 | K30: 9 | L30: 245 | M30: 409 | N30: 6 | O30: 6 | P30: 6 | Q30: 123 | R30: 278 | S30: 436 | T30: 42 | U30: 16 | V30: 1309 | W30: 41.07310951
A31: CABO VELAS | B31: 5 | C31: 2076 | D31: 1122 | E31: 54.04624277 | F31: 1087 | G31: 2 | H31: 178 | I31: 4 | J31: 1 | K31: 10 | L31: 140 | M31: 324 | N31: 20 | O31: 4 | P31: 4 | Q31: 47 | R31: 238 | S31: 115 | T31: 23 | U31: 12 | V31: 954 | W31: 45.95375723
A32: TAMARINDO | B32: 8 | C32: 4009 | D32: 2245 | E32: 55.99900224 | F32: 2170 | G32: 10 | H32: 303 | I32: 9 | J32: 6 | K32: 11 | L32: 346 | M32: 551 | N32: 35 | O32: 7 | P32: 12 | Q32: 85 | R32: 435 | S32: 360 | T32: 57 | U32: 18 | V32: 1764 | W32: 44.00099776
A33: CANTÓN 4 BAGACES | B33: 32 | C33: 13686 | D33: 7922 | E33: 57.88396902 | F33: 7801 | G33: 24 | H33: 1401 | I33: 17 | J33: 17 | K33: 83 | L33: 785 | M33: 1467 | N33: 59 | O33: 47 | P33: 47 | Q33: 303 | R33: 2470 | S33: 1081 | T33: 101 | U33: 20 | V33: 5764 | W33: 42.11603098
A34: BAGACES | B34: 19 | C34: 8047 | D34: 4251 | E34: 52.82714055 | F34: 4192 | G34: 16 | H34: 589 | I34: 10 | J34: 7 | K34: 36 | L34: 448 | M34: 910 | N34: 46 | O34: 29 | P34: 30 | Q34: 192 | R34: 1215 | S34: 664 | T34: 52 | U34: 7 | V34: 3796 | W34: 47.17285945
A35: LA FORTUNA | B35: 5 | C35: 2195 | D35: 1386 | E35: 63.14350797 | F35: 1367 | G35: 3 | H35: 308 | I35: 0 | J35: 2 | K35: 25 | L35: 121 | M35: 240 | N35: 4 | O35: 3 | P35: 7 | Q35: 38 | R35: 454 | S35: 162 | T35: 15 | U35: 4 | V35: 809 | W35: 36.85649203
A36: MOGOTE | B36: 6 | C36: 2672 | D36: 1766 | E36: 66.09281437 | F36: 1735 | G36: 3 | H36: 453 | I36: 7 | J36: 7 | K36: 15 | L36: 170 | M36: 209 | N36: 9 | O36: 10 | P36: 9 | Q36: 64 | R36: 576 | S36: 203 | T36: 26 | U36: 5 | V36: 906 | W36: 33.90718563
A37: RÍO NARANJO | B37: 2 | C37: 772 | D37: 519 | E37: 67.22797927 | F37: 507 | G37: 2 | H37: 51 | I37: 0 | J37: 1 | K37: 7 | L37: 46 | M37: 108 | N37: 0 | O37: 5 | P37: 1 | Q37: 9 | R37: 225 | S37: 52 | T37: 8 | U37: 4 | V37: 253 | W37: 32.77202073
A38: CANTÓN 5 CARRILLO | B38: 48 | C38: 24283 | D38: 13523 | E38: 55.68916526 | F38: 13141 | G38: 54 | H38: 1571 | I38: 50 | J38: 25 | K38: 66 | L38: 1365 | M38: 3327 | N38: 149 | O38: 77 | P38: 69 | Q38: 710 | R38: 3576 | S38: 2102 | T38: 311 | U38: 71 | V38: 10760 | W38: 44.31083474
A39: FILADELFIA | B39: 11 | C39: 5790 | D39: 3273 | E39: 56.52849741 | F39: 3188 | G39: 17 | H39: 386 | I39: 6 | J39: 9 | K39: 24 | L39: 311 | M39: 825 | N39: 12 | O39: 29 | P39: 13 | Q39: 287 | R39: 697 | S39: 572 | T39: 69 | U39: 16 | V39: 2517 | W39: 43.47150259
A40: PALMIRA | B40: 6 | C40: 3339 | D40: 1876 | E40: 56.18448637 | F40: 1824 | G40: 9 | H40: 235 | I40: 13 | J40: 3 | K40: 9 | L40: 218 | M40: 529 | N40: 20 | O40: 7 | P40: 5 | Q40: 113 | R40: 396 | S40: 267 | T40: 41 | U40: 11 | V40: 1463 | W40: 43.81551363
A41: SARDINAL | B41: 19 | C41: 9231 | D41: 4963 | E41: 53.76448922 | F41: 4855 | G41: 19 | H41: 626 | I41: 20 | J41: 7 | K41: 22 | L41: 523 | M41: 1175 | N41: 86 | O41: 26 | P41: 29 | Q41: 205 | R41: 1450 | S41: 667 | T41: 91 | U41: 17 | V41: 4268 | W41: 46.23551078
A42: BELÉN | B42: 12 | C42: 5923 | D42: 3411 | E42: 57.5890596 | F42: 3274 | G42: 9 | H42: 324 | I42: 11 | J42: 6 | K42: 11 | L42: 313 | M42: 798 | N42: 31 | O42: 15 | P42: 22 | Q42: 105 | R42: 1033 | S42: 596 | T42: 110 | U42: 27 | V42: 2512 | W42: 42.4109404
A43: CANTÓN 6 CAÑAS | B43: 42 | C43: 19476 | D43: 11011 | E43: 56.53624974 | F43: 10804 | G43: 33 | H43: 1557 | I43: 28 | J43: 17 | K43: 75 | L43: 1170 | M43: 2331 | N43: 80 | O43: 47 | P43: 69 | Q43: 423 | R43: 3667 | S43: 1307 | T43: 176 | U43: 31 | V43: 8465 | W43: 43.46375026
A44: CAÑAS | B44: 30 | C44: 15735 | D44: 8825 | E44: 56.08516047 | F44: 8680 | G44: 26 | H44: 1348 | I44: 21 | J44: 13 | K44: 58 | L44: 969 | M44: 1732 | N44: 60 | O44: 37 | P44: 58 | Q44: 341 | R44: 2924 | S44: 1093 | T44: 127 | U44: 18 | V44: 6910 | W44: 43.91483953
A45: PALMIRA | B45: 2 | C45: 700 | D45: 456 | E45: 65.14285714 | F45: 444 | G45: 2 | H45: 57 | I45: 0 | J45: 2 | K45: 1 | L45: 35 | M45: 98 | N45: 4 | O45: 3 | P45: 5 | Q45: 16 | R45: 158 | S45: 63 | T45: 7 | U45: 5 | V45: 244 | W45: 34.85714286
A46: SAN MIGUEL | B46: 5 | C46: 1299 | D46: 753 | E46: 57.96766744 | F46: 731 | G46: 2 | H46: 79 | I46: 2 | J46: 0 | K46: 6 | L46: 87 | M46: 208 | N46: 8 | O46: 4 | P46: 3 | Q46: 38 | R46: 210 | S46: 84 | T46: 19 | U46: 3 | V46: 546 | W46: 42.03233256
A47: BEBEDERO | B47: 3 | C47: 1249 | D47: 672 | E47: 53.80304243 | F47: 653 | G47: 2 | H47: 42 | I47: 2 | J47: 2 | K47: 5 | L47: 49 | M47: 171 | N47: 5 | O47: 3 | P47: 0 | Q47: 23 | R47: 318 | S47: 31 | T47: 16 | U47: 3 | V47: 577 | W47: 46.19695757
A48: POROZAL | B48: 2 | C48: 493 | D48: 305 | E48: 61.86612576 | F48: 296 | G48: 1 | H48: 31 | I48: 3 | J48: 0 | K48: 5 | L48: 30 | M48: 122 | N48: 3 | O48: 0 | P48: 3 | Q48: 5 | R48: 57 | S48: 36 | T48: 7 | U48: 2 | V48: 188 | W48: 38.13387424
A49: CANTÓN 7 ABANGARES | B49: 39 | C49: 13610 | D49: 8242 | E49: 60.55841293 | F49: 8062 | G49: 27 | H49: 1156 | I49: 65 | J49: 12 | K49: 51 | L49: 985 | M49: 1934 | N49: 127 | O49: 26 | P49: 50 | Q49: 445 | R49: 1920 | S49: 1264 | T49: 150 | U49: 30 | V49: 5368 | W49: 39.44158707
A50: LAS JUNTAS | B50: 17 | C50: 7268 | D50: 4297 | E50: 59.12217942 | F50: 4218 | G50: 12 | H50: 645 | I50: 38 | J50: 6 | K50: 34 | L50: 548 | M50: 987 | N50: 46 | O50: 12 | P50: 35 | Q50: 221 | R50: 996 | S50: 638 | T50: 68 | U50: 11 | V50: 2971 | W50: 40.87782058
A51: SIERRA | B51: 7 | C51: 1621 | D51: 1024 | E51: 63.17088217 | F51: 1000 | G51: 7 | H51: 211 | I51: 7 | J51: 1 | K51: 7 | L51: 115 | M51: 228 | N51: 32 | O51: 4 | P51: 3 | Q51: 82 | R51: 188 | S51: 115 | T51: 20 | U51: 4 | V51: 597 | W51: 36.82911783
A52: SAN JUAN | B52: 4 | C52: 1391 | D52: 814 | E52: 58.51905104 | F52: 796 | G52: 5 | H52: 101 | I52: 12 | J52: 2 | K52: 4 | L52: 179 | M52: 132 | N52: 8 | O52: 4 | P52: 5 | Q52: 46 | R52: 170 | S52: 128 | T52: 15 | U52: 3 | V52: 577 | W52: 41.48094896
A53: COLORADO | B53: 11 | C53: 3330 | D53: 2107 | E53: 63.27327327 | F53: 2048 | G53: 3 | H53: 199 | I53: 8 | J53: 3 | K53: 6 | L53: 143 | M53: 587 | N53: 41 | O53: 6 | P53: 7 | Q53: 96 | R53: 566 | S53: 383 | T53: 47 | U53: 12 | V53: 1223 | W53: 36.72672673
A54: CANTÓN 8 TILARÁN | B54: 38 | C54: 15049 | D54: 10136 | E54: 67.35331251 | F54: 10032 | G54: 25 | H54: 1936 | I54: 21 | J54: 11 | K54: 30 | L54: 661 | M54: 2207 | N54: 63 | O54: 51 | P54: 49 | Q54: 693 | R54: 2522 | S54: 1763 | T54: 88 | U54: 16 | V54: 4913 | W54: 32.64668749
A55: TILARÁN | B55: 15 | C55: 7207 | D55: 4912 | E55: 68.15595948 | F55: 4868 | G55: 18 | H55: 1144 | I55: 11 | J55: 2 | K55: 14 | L55: 354 | M55: 934 | N55: 17 | O55: 30 | P55: 23 | Q55: 285 | R55: 1196 | S55: 840 | T55: 36 | U55: 8 | V55: 2295 | W55: 31.84404052
A56: QUEBRADA GRANDE | B56: 6 | C56: 1940 | D56: 1306 | E56: 67.31958763 | F56: 1290 | G56: 0 | H56: 186 | I56: 2 | J56: 3 | K56: 9 | L56: 68 | M56: 327 | N56: 8 | O56: 5 | P56: 10 | Q56: 71 | R56: 408 | S56: 193 | T56: 14 | U56: 2 | V56: 634 | W56: 32.68041237
A57: TRONADORA | B57: 4 | C57: 1317 | D57: 910 | E57: 69.09643128 | F57: 902 | G57: 2 | H57: 178 | I57: 7 | J57: 0 | K57: 0 | L57: 43 | M57: 183 | N57: 6 | O57: 9 | P57: 3 | Q57: 55 | R57: 263 | S57: 153 | T57: 7 | U57: 1 | V57: 407 | W57: 30.90356872
A58: SANTA ROSA | B58: 3 | C58: 1318 | D58: 877 | E58: 66.54021244 | F58: 870 | G58: 0 | H58: 177 | I58: 1 | J58: 3 | K58: 2 | L58: 48 | M58: 255 | N58: 6 | O58: 2 | P58: 2 | Q58: 48 | R58: 217 | S58: 109 | T58: 6 | U58: 1 | V58: 441 | W58: 33.45978756
A59: LÍBANO | B59: 3 | C59: 641 | D59: 447 | E59: 69.73478939 | F59: 439 | G59: 0 | H59: 63 | I59: 0 | J59: 1 | K59: 0 | L59: 33 | M59: 137 | N59: 1 | O59: 1 | P59: 3 | Q59: 39 | R59: 29 | S59: 132 | T59: 6 | U59: 2 | V59: 194 | W59: 30.26521061
A60: TIERRAS MORENAS | B60: 3 | C60: 997 | D60: 658 | E60: 65.99799398 | F60: 648 | G60: 1 | H60: 74 | I60: 0 | J60: 1 | K60: 2 | L60: 51 | M60: 207 | N60: 14 | O60: 3 | P60: 3 | Q60: 29 | R60: 157 | S60: 106 | T60: 8 | U60: 2 | V60: 339 | W60: 34.00200602
A61: ARENAL | B61: 4 | C61: 1629 | D61: 1026 | E61: 62.98342541 | F61: 1015 | G61: 4 | H61: 114 | I61: 0 | J61: 1 | K61: 3 | L61: 64 | M61: 164 | N61: 11 | O61: 1 | P61: 5 | Q61: 166 | R61: 252 | S61: 230 | T61: 11 | U61: 0 | V61: 603 | W61: 37.01657459
A62: CANTÓN 9 NANDAYURE | B62: 30 | C62: 8464 | D62: 5575 | E62: 65.86720227 | F62: 5432 | G62: 21 | H62: 898 | I62: 18 | J62: 9 | K62: 39 | L62: 579 | M62: 1330 | N62: 106 | O62: 48 | P62: 47 | Q62: 326 | R62: 1390 | S62: 621 | T62: 110 | U62: 33 | V62: 2889 | W62: 34.13279773
A63: CARMONA | B63: 5 | C63: 1891 | D63: 1300 | E63: 68.74669487 | F63: 1275 | G63: 3 | H63: 283 | I63: 3 | J63: 0 | K63: 12 | L63: 174 | M63: 262 | N63: 24 | O63: 21 | P63: 3 | Q63: 99 | R63: 238 | S63: 153 | T63: 15 | U63: 10 | V63: 591 | W63: 31.25330513
A64: SANTA RITA | B64: 4 | C64: 1366 | D64: 952 | E64: 69.69253294 | F64: 938 | G64: 3 | H64: 210 | I64: 4 | J64: 3 | K64: 7 | L64: 58 | M64: 221 | N64: 21 | O64: 6 | P64: 6 | Q64: 70 | R64: 232 | S64: 97 | T64: 11 | U64: 3 | V64: 414 | W64: 30.30746706
A65: ZAPOTAL | B65: 5 | C65: 892 | D65: 555 | E65: 62.21973094 | F65: 545 | G65: 1 | H65: 77 | I65: 1 | J65: 0 | K65: 2 | L65: 69 | M65: 187 | N65: 16 | O65: 3 | P65: 4 | Q65: 38 | R65: 55 | S65: 92 | T65: 8 | U65: 2 | V65: 337 | W65: 37.78026906
A66: SAN PABLO | B66: 3 | C66: 1460 | D66: 926 | E66: 63.42465753 | F66: 901 | G66: 2 | H66: 108 | I66: 1 | J66: 0 | K66: 6 | L66: 69 | M66: 143 | N66: 8 | O66: 5 | P66: 9 | Q66: 48 | R66: 408 | S66: 94 | T66: 21 | U66: 4 | V66: 534 | W66: 36.57534247
A67: PORVENIR | B67: 4 | C67: 748 | D67: 496 | E67: 66.31016043 | F67: 476 | G67: 5 | H67: 68 | I67: 3 | J67: 2 | K67: 1 | L67: 54 | M67: 160 | N67: 14 | O67: 1 | P67: 9 | Q67: 25 | R67: 76 | S67: 58 | T67: 18 | U67: 2 | V67: 252 | W67: 33.68983957
A68: BEJUCO | B68: 9 | C68: 2107 | D68: 1346 | E68: 63.8822971 | F68: 1297 | G68: 7 | H68: 152 | I68: 6 | J68: 4 | K68: 11 | L68: 155 | M68: 357 | N68: 23 | O68: 12 | P68: 16 | Q68: 46 | R68: 381 | S68: 127 | T68: 37 | U68: 12 | V68: 761 | W68: 36.1177029
A69: CANTÓN 10 LA CRUZ | B69: 32 | C69: 13023 | D69: 6744 | E69: 51.78530293 | F69: 6589 | G69: 11 | H69: 713 | I69: 14 | J69: 13 | K69: 20 | L69: 638 | M69: 1617 | N69: 44 | O69: 22 | P69: 38 | Q69: 142 | R69: 2221 | S69: 1096 | T69: 116 | U69: 39 | V69: 6279 | W69: 48.21469707
A70: LA CRUZ | B70: 16 | C70: 7311 | D70: 3783 | E70: 51.74394748 | F70: 3693 | G70: 7 | H70: 493 | I70: 6 | J70: 8 | K70: 12 | L70: 410 | M70: 916 | N70: 24 | O70: 10 | P70: 17 | Q70: 104 | R70: 1032 | S70: 654 | T70: 70 | U70: 20 | V70: 3528 | W70: 48.25605252
A71: SANTA CECILIA | B71: 10 | C71: 3593 | D71: 1877 | E71: 52.24046758 | F71: 1835 | G71: 4 | H71: 146 | I71: 7 | J71: 5 | K71: 6 | L71: 72 | M71: 425 | N71: 19 | O71: 9 | P71: 18 | Q71: 30 | R71: 887 | S71: 207 | T71: 33 | U71: 9 | V71: 1716 | W71: 47.75953242
A72: LA GARITA | B72: 3 | C72: 772 | D72: 456 | E72: 59.06735751 | F72: 443 | G72: 0 | H72: 39 | I72: 1 | J72: 0 | K72: 1 | L72: 32 | M72: 144 | N72: 0 | O72: 2 | P72: 1 | Q72: 4 | R72: 102 | S72: 117 | T72: 8 | U72: 5 | V72: 316 | W72: 40.93264249
A73: SANTA ELENA | B73: 3 | C73: 1347 | D73: 628 | E73: =D73/C73*100 -> 46.62212324 | F73: 618 | G73: 0 | H73: 35 | I73: 0 | J73: 0 | K73: 1 | L73: 124 | M73: 132 | N73: 1 | O73: 1 | P73: 2 | Q73: 4 | R73: 200 | S73: 118 | T73: 5 | U73: 5 | V73: 719 | W73: 53.37787676
A74: CANTÓN 11 HOJANCHA | B74: 19 | C74: 6014 | D74: =F74+U74+T74 -> 4048 | E74: 67.30961091 | F74: =SUM(G74:S74) -> 3969 | G74: 7 | H74: 807 | I74: 4 | J74: 5 | K74: 9 | L74: 496 | M74: 1150 | N74: 59 | O74: 11 | P74: 22 | Q74: 140 | R74: 668 | S74: 591 | T74: 59 | U74: 20 | V74: 1966 | W74: 32.69038909
A75: HOJANCHA | B75: 9 | C75: 3702 | D75: =F75+U75+T75 -> 2512 | E75: 67.8552134 | F75: =SUM(G75:S75) -> 2476 | G75: 2 | H75: 592 | I75: 2 | J75: 0 | K75: 5 | L75: 329 | M75: 680 | N75: 13 | O75: 5 | P75: 6 | Q75: 99 | R75: 419 | S75: 324 | T75: 27 | U75: 9 | V75: 1190 | W75: 32.1447866
A76: MONTE ROMO | B76: 3 | C76: 579 | D76: =F76+U76+T76 -> 388 | E76: 67.01208981 | F76: =SUM(G76:S76) -> 372 | G76: 0 | H76: 75 | I76: 0 | J76: 2 | K76: 1 | L76: 34 | M76: 102 | N76: 17 | O76: 3 | P76: 1 | Q76: 12 | R76: 59 | S76: 66 | T76: 9 | U76: 7 | V76: 191 | W76: 32.98791019
A77: PUERTO CARRILLO | B77: 5 | C77: 1203 | D77: =F77+U77+T77 -> 796 | E77: 66.16791355 | F77: =SUM(G77:S77) -> 773 | G77: 5 | H77: 95 | I77: 2 | J77: 2 | K77: 3 | L77: 85 | M77: 210 | N77: 5 | O77: 1 | P77: 11 | Q77: 20 | R77: 169 | S77: 165 | T77: 19 | U77: 4 | V77: 407 | W77: 33.83208645
A78: HUACAS | B78: 2 | C78: 530 | D78: =F78+U78+T78 -> 352 | E78: 66.41509434 | F78: =SUM(G78:S78) -> 348 | G78: 0 | H78: 45 | I78: 0 | J78: 1 | K78: 0 | L78: 48 | M78: 158 | N78: 24 | O78: 2 | P78: 4 | Q78: 9 | R78: 21 | S78: 36 | T78: 4 | U78: 0 | V78: 178 | W78: 33.58490566
A81: 1/ En la resolución DGRA-039-2018 se realiza un cambio dentro del Padrón Nacional Electoral en las Juntas Receptoras de Votos número 4726, 4780 y 4784, modificando el dato del abstencionismo.
A83: FUENTE: Tribunal Supremo de Elecciones.

Sheet C1.8
A2: CUADRO 1.8 PUNTARENAS: JUNTAS, ELECTORADO, PARTICIPACIÓN, VOTOS POR PARTIDO, NULOS, BLANCOS Y ABSTENCIONISMO, PARA PRESIDENCIA Y VICEPRESIDENCIAS DE LA REPÚBLICA, SEGÚN CANTÓN Y DISTRITO ADMINISTRATIVO ELECCIONES 4 DE FEBRERO 2018
A4: CANTÓN Y DISTRITO ADMINISTRATIVO | B4: JUNTAS | C4: ELECTORADO | D4: VOTOS RECIBIDOS | V4: ABSTENCIONISMO
D5: TOTAL GENERAL | E5: % PARTICIPACIÓN | F5: VOTOS VÁLIDOS | T5: NULOS | U5: BLANCOS | V5: ABSOLUTO | W5: %
F6: TOTAL | G6: ACCESIBILIDAD SIN EXCLUSIÓN | H6: ACCIÓN CIUDADANA | I6: ALIANZA DEMÓCRATA CRISTIANA | J6: DE LOS TRABAJADORES | K6: FRENTE AMPLIO | L6: INTEGRACIÓN NACIONAL | M6: LIBERACIÓN NACIONAL | N6: MOVIMIENTO LIBERTARIO | O6: NUEVA GENERACIÓN | P6: RENOVACIÓN COSTARRICENSE | Q6: REPUBLICANO SOCIAL CRISTIANO | R6: RESTAURACIÓN NACIONAL | S6: UNIDAD SOCIAL CRISTIANA
A8: PROVINCIA PUNTARENAS | B8: =+B9+B26+B33+B43+B47+B54+B58+B63+B70+B72+B77 -> 716 | C8: =+C9+C26+C33+C43+C47+C54+C58+C63+C70+C72+C77 -> 310662 | D8: =+D9+D26+D33+D43+D47+D54+D58+D63+D70+D72+D77 -> 172338 | E8: =D8/C8*100 -> 55.47443846 | F8: =+F9+F26+F33+F43+F47+F54+F58+F63+F70+F72+F77 -> 169076 | G8: =+G9+G26+G33+G43+G47+G54+G58+G63+G70+G72+G77 -> 655 | H8: 20330 | I8: 607 | J8: 324 | K8: 1347 | L8: 19462 | M8: 31280 | N8: 1805 | O8: 947 | P8: 954 | Q8: 8202 | R8: 60096 | S8: 23067 | T8: 2659 | U8: 603 | V8: 138356 | W8: 44.52556154
A9: CANTÓN 1 PUNTARENAS | B9: 194 | C9: 86571 | D9: =F9+T9+U9 -> 49356 | E9: =D9/C9*100 -> 57.01216343 | F9: =SUM(G9:S9) -> 48540 | G9: 157 | H9: 6519 | I9: 107 | J9: 92 | K9: 369 | L9: 6470 | M9: 8041 | N9: 399 | O9: 312 | P9: 250 | Q9: 2815 | R9: 15979 | S9: 7030 | T9: 671 | U9: 145 | V9: 37247 | W9: 42.98783657
A10: PUNTARENAS | B10: 15 | C10: 7799 | D10: =F10+T10+U10 -> 5056 | E10: 64.82882421 | F10: =SUM(G10:S10) -> 5004 | G10: 13 | H10: 942 | I10: 6 | J10: 5 | K10: 44 | L10: 710 | M10: 1087 | N10: 22 | O10: 60 | P10: 18 | Q10: 332 | R10: 731 | S10: 1034 | T10: 41 | U10: 11 | V10: 2743 | W10: 35.17117579
A11: PITAHAYA | B11: 4 | C11: 1397 | D11: 848 | E11: 60.70150322 | F11: 838 | G11: 3 | H11: 68 | I11: 0 | J11: 1 | K11: 5 | L11: 145 | M11: 210 | N11: 6 | O11: 2 | P11: 2 | Q11: 23 | R11: 222 | S11: 151 | T11: 8 | U11: 2 | V11: 549 | W11: 39.29849678
A12: CHOMES | B12: 10 | C12: 3762 | D12: 1956 | E12: 51.99362041 | F12: 1872 | G12: 6 | H12: 139 | I12: 6 | J12: 4 | K12: 22 | L12: 272 | M12: 320 | N12: 19 | O12: 4 | P12: 25 | Q12: 135 | R12: 575 | S12: 345 | T12: 72 | U12: 12 | V12: 1806 | W12: 48.00637959
A13: LEPANTO | B13: 26 | C13: 8044 | D13: 4748 | E13: 59.02536052 | F13: 4670 | G13: 25 | H13: 709 | I13: 14 | J13: 5 | K13: 33 | L13: 695 | M13: 1192 | N13: 37 | O13: 13 | P13: 35 | Q13: 205 | R13: 1120 | S13: 587 | T13: 58 | U13: 20 | V13: 3296 | W13: 40.97463948
A14: PAQUERA | B14: 16 | C14: 4805 | D14: 2715 | E14: 56.50364204 | F14: 2665 | G14: 6 | H14: 275 | I14: 13 | J14: 7 | K14: 12 | L14: 543 | M14: 346 | N14: 40 | O14: 11 | P14: 16 | Q14: 75 | R14: 1143 | S14: 178 | T14: 42 | U14: 8 | V14: 2090 | W14: 43.49635796
A15: MANZANILLO | B15: 6 | C15: 2400 | D15: 1339 | E15: 55.79166667 | F15: 1297 | G15: 2 | H15: 65 | I15: 1 | J15: 3 | K15: 19 | L15: 129 | M15: 186 | N15: 12 | O15: 4 | P15: 4 | Q15: 54 | R15: 665 | S15: 153 | T15: 32 | U15: 10 | V15: 1061 | W15: 44.20833333
A16: GUACIMAL | B16: 2 | C16: 721 | D16: 462 | E16: 64.0776699 | F16: 450 | G16: 3 | H16: 83 | I16: 1 | J16: 3 | K16: 34 | L16: 55 | M16: 130 | N16: 7 | O16: 1 | P16: 5 | Q16: 22 | R16: 71 | S16: 35 | T16: 6 | U16: 6 | V16: 259 | W16: 35.9223301
A17: BARRANCA | B17: 40 | C17: 22049 | D17: 12139 | E17: 55.054651 | F17: 11940 | G17: 35 | H17: 1258 | I17: 23 | J17: 23 | K17: 85 | L17: 1419 | M17: 1596 | N17: 96 | O17: 73 | P17: 62 | Q17: 645 | R17: 4809 | S17: 1816 | T17: 168 | U17: 31 | V17: 9910 | W17: 44.945349
A18: MONTE VERDE | B18: 6 | C18: 3207 | D18: 2033 | E18: 63.39257873 | F18: 2013 | G18: 8 | H18: 720 | I18: 3 | J18: 4 | K18: 16 | L18: 207 | M18: 262 | N18: 14 | O18: 7 | P18: 8 | Q18: 164 | R18: 408 | S18: 192 | T18: 15 | U18: 5 | V18: 1174 | W18: 36.60742127
A19: ISLA DEL COCO | B19: 1 | C19: 25 | D19: 1 | E19: 4 | F19: 1 | G19: 0 | H19: 1 | I19: 0 | J19: 0 | K19: 0 | L19: 0 | M19: 0 | N19: 0 | O19: 0 | P19: 0 | Q19: 0 | R19: 0 | S19: 0 | T19: 0 | U19: 0 | V19: 24 | W19: 96
A20: COBANO | B20: 15 | C20: 5205 | D20: 2756 | E20: 52.94908742 | F20: 2703 | G20: 7 | H20: 349 | I20: 4 | J20: 6 | K20: 12 | L20: 249 | M20: 334 | N20: 46 | O20: 20 | P20: 9 | Q20: 90 | R20: 1254 | S20: 323 | T20: 39 | U20: 14 | V20: 2449 | W20: 47.05091258
A21: CHACARITA | B21: 22 | C21: 12843 | D21: 6765 | E21: 52.67460874 | F21: 6645 | G21: 18 | H21: 695 | I21: 19 | J21: 15 | K21: 27 | L21: 855 | M21: 1006 | N21: 25 | O21: 50 | P21: 27 | Q21: 570 | R21: 2362 | S21: 976 | T21: 107 | U21: 13 | V21: 6078 | W21: 47.32539126
A22: CHIRA | B22: 3 | C22: 1214 | D22: 697 | E22: 57.41350906 | F22: 688 | G22: 6 | H22: 33 | I22: 1 | J22: 0 | K22: 4 | L22: 54 | M22: 84 | N22: 4 | O22: 3 | P22: 2 | Q22: 53 | R22: 383 | S22: 61 | T22: 4 | U22: 5 | V22: 517 | W22: 42.58649094
A23: ACAPULCO | B23: 3 | C23: 1014 | D23: 630 | E23: 62.13017751 | F23: 622 | G23: 2 | H23: 71 | I23: 3 | J23: 0 | K23: 3 | L23: 88 | M23: 131 | N23: 8 | O23: 2 | P23: 5 | Q23: 38 | R23: 180 | S23: 91 | T23: 7 | U23: 1 | V23: 384 | W23: 37.86982249
A24: EL ROBLE1/ | B24: 22 | C24: 11548 | D24: 6844 | E24: 59.1 | F24: 6768 | G24: 23 | H24: 1056 | I24: 13 | J24: 15 | K24: 52 | L24: 1033 | M24: 1061 | N24: 50 | O24: 62 | P24: 32 | Q24: 397 | R24: 1945 | S24: 1029 | T24: 69 | U24: 7 | V24: 4736 | W24: 40.9
A25: ARANCIBIA | B25: 3 | C25: 538 | D25: 367 | E25: 68.21561338 | F25: 364 | G25: 0 | H25: 55 | I25: 0 | J25: 1 | K25: 1 | L25: 16 | M25: 96 | N25: 13 | O25: 0 | P25: 0 | Q25: 12 | R25: 111 | S25: 59 | T25: 3 | U25: 0 | V25: 171 | W25: 31.78438662
A26: CANTÓN 2 ESPARZA | B26: 48 | C26: 22598 | D26: 14833 | E26: 65.63855208 | F26: 14673 | G26: 29 | H26: 2140 | I26: 39 | J26: 19 | K26: 105 | L26: 1409 | M26: 2985 | N26: 114 | O26: 84 | P26: 47 | Q26: 1052 | R26: 4470 | S26: 2180 | T26: 128 | U26: 32 | V26: 7765 | W26: 34.36144792
A27: ESPÍRITU SANTO | B27: 24 | C27: 13507 | D27: 9113 | E27: 67.46871992 | F27: 9050 | G27: 14 | H27: 1476 | I27: 17 | J27: 16 | K27: 61 | L27: 932 | M27: 1824 | N27: 58 | O27: 59 | P27: 29 | Q27: 668 | R27: 2603 | S27: 1293 | T27: 49 | U27: 14 | V27: 4394 | W27: 32.53128008
A28: SAN JUAN GRANDE | B28: 6 | C28: 2622 | D28: 1595 | E28: 60.83142639 | F28: 1570 | G28: 5 | H28: 164 | I28: 6 | J28: 1 | K28: 12 | L28: 133 | M28: 308 | N28: 17 | O28: 8 | P28: 1 | Q28: 120 | R28: 498 | S28: 297 | T28: 20 | U28: 5 | V28: 1027 | W28: 39.16857361
A29: MACACONA | B29: 6 | C29: 2968 | D29: 1936 | E29: 65.22911051 | F29: 1913 | G29: 8 | H29: 266 | I29: 9 | J29: 2 | K29: 20 | L29: 184 | M29: 336 | N29: 22 | O29: 11 | P29: 11 | Q29: 144 | R29: 668 | S29: 232 | T29: 19 | U29: 4 | V29: 1032 | W29: 34.77088949
A30: SAN RAFAEL | B30: 3 | C30: 1037 | D30: 719 | E30: 69.33461909 | F30: 702 | G30: 0 | H30: 119 | I30: 5 | J30: 0 | K30: 5 | L30: 43 | M30: 197 | N30: 5 | O30: 2 | P30: 2 | Q30: 52 | R30: 166 | S30: 106 | T30: 13 | U30: 4 | V30: 318 | W30: 30.66538091
A31: SAN JERÓNIMO | B31: 4 | C31: 662 | D31: 467 | E31: 70.54380665 | F31: 462 | G31: 0 | H31: 52 | I31: 0 | J31: 0 | K31: 1 | L31: 48 | M31: 139 | N31: 1 | O31: 0 | P31: 0 | Q31: 38 | R31: 97 | S31: 86 | T31: 4 | U31: 1 | V31: 195 | W31: 29.45619335
A32: CALDERA | B32: 5 | C32: 1802 | D32: 1003 | E32: 55.66037736 | F32: 976 | G32: 2 | H32: 63 | I32: 2 | J32: 0 | K32: 6 | L32: 69 | M32: 181 | N32: 11 | O32: 4 | P32: 4 | Q32: 30 | R32: 438 | S32: 166 | T32: 23 | U32: 4 | V32: 799 | W32: 44.33962264
A33: CANTÓN 3 BUENOS AIRES | B33: 79 | C33: 31975 | D33: 16843 | E33: 52.67552776 | F33: 16458 | G33: 59 | H33: 1530 | I33: 61 | J33: 36 | K33: 194 | L33: 2060 | M33: 3110 | N33: 236 | O33: 144 | P33: 169 | Q33: 764 | R33: 5983 | S33: 2112 | T33: 305 | U33: 80 | V33: 15132 | W33: 47.32447224
A34: BUENOS AIRES | B34: 33 | C34: 15558 | D34: 8261 | E34: 53.09808459 | F34: 8104 | G34: 27 | H34: 713 | I34: 24 | J34: 15 | K34: 78 | L34: 1327 | M34: 1116 | N34: 104 | O34: 108 | P34: 111 | Q34: 443 | R34: 3119 | S34: 919 | T34: 129 | U34: 28 | V34: 7297 | W34: 46.90191541
A35: VOLCÁN | B35: 5 | C35: 2711 | D35: 1443 | E35: 53.22759129 | F35: 1415 | G35: 6 | H35: 101 | I35: 6 | J35: 3 | K35: 15 | L35: 131 | M35: 260 | N35: 32 | O35: 9 | P35: 11 | Q35: 56 | R35: 581 | S35: 204 | T35: 22 | U35: 6 | V35: 1268 | W35: 46.77240871
A36: POTRERO GRANDE | B36: 11 | C36: 4222 | D36: 2156 | E36: 51.06584557 | F36: 2113 | G36: 11 | H36: 127 | I36: 14 | J36: 5 | K36: 60 | L36: 202 | M36: 440 | N36: 32 | O36: 8 | P36: 10 | Q36: 68 | R36: 835 | S36: 301 | T36: 36 | U36: 7 | V36: 2066 | W36: 48.93415443
A37: BORUCA | B37: 5 | C37: 2013 | D37: 986 | E37: 48.98161947 | F37: 960 | G37: 3 | H37: 281 | I37: 3 | J37: 2 | K37: 24 | L37: 89 | M37: 165 | N37: 9 | O37: 5 | P37: 14 | Q37: 37 | R37: 230 | S37: 98 | T37: 19 | U37: 7 | V37: 1027 | W37: 51.01838053
A38: PILAS | B38: 4 | C38: 1156 | D38: 572 | E38: 49.48096886 | F38: 555 | G38: 3 | H38: 48 | I38: 4 | J38: 1 | K38: 4 | L38: 31 | M38: 150 | N38: 5 | O38: 3 | P38: 2 | Q38: 30 | R38: 188 | S38: 86 | T38: 14 | U38: 3 | V38: 584 | W38: 50.51903114
A39: COLINAS | B39: 3 | C39: 919 | D39: 484 | E39: 52.66594124 | F39: 472 | G39: 4 | H39: 61 | I39: 3 | J39: 2 | K39: 4 | L39: 50 | M39: 99 | N39: 2 | O39: 3 | P39: 4 | Q39: 23 | R39: 112 | S39: 105 | T39: 6 | U39: 6 | V39: 435 | W39: 47.33405876
A40: CHÁNGUENA | B40: 8 | C40: 1554 | D40: 771 | E40: 49.61389961 | F40: 736 | G40: 2 | H40: 42 | I40: 5 | J40: 1 | K40: 2 | L40: 71 | M40: 213 | N40: 28 | O40: 2 | P40: 5 | Q40: 35 | R40: 199 | S40: 131 | T40: 25 | U40: 10 | V40: 783 | W40: 50.38610039
A41: BIOLLEY | B41: 5 | C41: 1625 | D41: 828 | E41: 50.95384615 | F41: 796 | G41: 2 | H41: 78 | I41: 2 | J41: 5 | K41: 5 | L41: 60 | M41: 264 | N41: 8 | O41: 2 | P41: 7 | Q41: 21 | R41: 248 | S41: 94 | T41: 25 | U41: 7 | V41: 797 | W41: 49.04615385
A42: BRUNKA | B42: 5 | C42: 2217 | D42: 1342 | E42: 60.53225079 | F42: 1307 | G42: 1 | H42: 79 | I42: 0 | J42: 2 | K42: 2 | L42: 99 | M42: 403 | N42: 16 | O42: 4 | P42: 5 | Q42: 51 | R42: 471 | S42: 174 | T42: 29 | U42: 6 | V42: 875 | W42: 39.46774921
A43: CANTÓN 4 MONTES DE ORO | B43: 26 | C43: 10241 | D43: 6817 | E43: 66.56576506 | F43: 6722 | G43: 19 | H43: 1211 | I43: 17 | J43: 9 | K43: 38 | L43: 558 | M43: 1054 | N43: 54 | O43: 43 | P43: 36 | Q43: 224 | R43: 2441 | S43: 1018 | T43: 79 | U43: 16 | V43: 3424 | W43: 33.43423494
A44: MIRAMAR | B44: 16 | C44: 6704 | D44: 4480 | E44: 66.82577566 | F44: 4418 | G44: 12 | H44: 872 | I44: 13 | J44: 5 | K44: 33 | L44: 382 | M44: 618 | N44: 31 | O44: 29 | P44: 20 | Q44: 146 | R44: 1602 | S44: 655 | T44: 54 | U44: 8 | V44: 2224 | W44: 33.17422434
A45: LA UNIÓN | B45: 4 | C45: 966 | D45: 678 | E45: 70.1863354 | F45: 671 | G45: 0 | H45: 101 | I45: 0 | J45: 1 | K45: 0 | L45: 37 | M45: 208 | N45: 2 | O45: 2 | P45: 5 | Q45: 19 | R45: 245 | S45: 51 | T45: 4 | U45: 3 | V45: 288 | W45: 29.8136646
A46: SAN ISIDRO | B46: 6 | C46: 2571 | D46: 1659 | E46: 64.52742124 | F46: 1633 | G46: 7 | H46: 238 | I46: 4 | J46: 3 | K46: 5 | L46: 139 | M46: 228 | N46: 21 | O46: 12 | P46: 11 | Q46: 59 | R46: 594 | S46: 312 | T46: 21 | U46: 5 | V46: 912 | W46: 35.47257876
A47: CANTÓN 5 OSA | B47: 59 | C47: 22210 | D47: 11507 | E47: 51.8099955 | F47: 11236 | G47: 44 | H47: 1012 | I47: 68 | J47: 22 | K47: 133 | L47: 1396 | M47: 1973 | N47: 122 | O47: 61 | P47: 48 | Q47: 725 | R47: 4532 | S47: 1100 | T47: 235 | U47: 36 | V47: 10703 | W47: 48.1900045
A48: PUERTO CORTÉS | B48: 14 | C48: 6164 | D48: 3214 | E48: 52.14146658 | F48: 3146 | G48: 13 | H48: 297 | I48: 17 | J48: 1 | K48: 24 | L48: 436 | M48: 678 | N48: 35 | O48: 12 | P48: 13 | Q48: 127 | R48: 1092 | S48: 401 | T48: 56 | U48: 12 | V48: 2950 | W48: 47.85853342
A49: PALMAR | B49: 18 | C49: 7505 | D49: 3946 | E49: 52.57828115 | F49: 3862 | G49: 13 | H49: 357 | I49: 32 | J49: 7 | K49: 73 | L49: 457 | M49: 647 | N49: 33 | O49: 28 | P49: 16 | Q49: 390 | R49: 1494 | S49: 315 | T49: 76 | U49: 8 | V49: 3559 | W49: 47.42171885
A50: SIERPE | B50: 9 | C50: 1783 | D50: 902 | E50: 50.58889512 | F50: 885 | G50: 4 | H50: 47 | I50: 5 | J50: 5 | K50: 7 | L50: 103 | M50: 127 | N50: 17 | O50: 2 | P50: 3 | Q50: 42 | R50: 425 | S50: 98 | T50: 12 | U50: 5 | V50: 881 | W50: 49.41110488
A51: BAHÍA BALLENA | B51: 6 | C51: 2589 | D51: 1400 | E51: 54.07493241 | F51: 1362 | G51: 7 | H51: 147 | I51: 6 | J51: 1 | K51: 12 | L51: 120 | M51: 236 | N51: 11 | O51: 17 | P51: 3 | Q51: 50 | R51: 624 | S51: 128 | T51: 33 | U51: 5 | V51: 1189 | W51: 45.92506759
A52: PIEDRAS BLANCAS | B52: 7 | C52: 3071 | D52: 1545 | E52: 50.30934549 | F52: 1505 | G52: 5 | H52: 125 | I52: 5 | J52: 4 | K52: 13 | L52: 225 | M52: 220 | N52: 23 | O52: 0 | P52: 9 | Q52: 95 | R52: 665 | S52: 116 | T52: 37 | U52: 3 | V52: 1526 | W52: 49.69065451
A53: BAHÍA DRAKE | B53: 5 | C53: 1098 | D53: 500 | E53: 45.53734062 | F53: 476 | G53: 2 | H53: 39 | I53: 3 | J53: 4 | K53: 4 | L53: 55 | M53: 65 | N53: 3 | O53: 2 | P53: 4 | Q53: 21 | R53: 232 | S53: 42 | T53: 21 | U53: 3 | V53: 598 | W53: 54.46265938
A54: CANTÓN 6 AGUIRRE | B54: 45 | C54: 19595 | D54: 10684 | E54: 54.52411329 | F54: 10501 | G54: 56 | H54: 1166 | I54: 39 | J54: 17 | K54: 47 | L54: 1287 | M54: 1739 | N54: 110 | O54: 78 | P54: 58 | Q54: 457 | R54: 3948 | S54: 1499 | T54: 142 | U54: 41 | V54: 8911 | W54: 45.47588671
A55: QUEPOS | B55: 30 | C55: 14634 | D55: 7695 | E55: 52.58302583 | F55: 7574 | G55: 42 | H55: 894 | I55: 27 | J55: 9 | K55: 32 | L55: 945 | M55: 1068 | N55: 75 | O55: 52 | P55: 33 | Q55: 301 | R55: 2983 | S55: 1113 | T55: 97 | U55: 24 | V55: 6939 | W55: 47.41697417
A56: SAVEGRE | B56: 9 | C56: 2335 | D56: 1466 | E56: 62.78372591 | F56: 1435 | G56: 8 | H56: 105 | I56: 7 | J56: 1 | K56: 11 | L56: 184 | M56: 348 | N56: 22 | O56: 9 | P56: 18 | Q56: 65 | R56: 457 | S56: 200 | T56: 21 | U56: 10 | V56: 869 | W56: 37.21627409
A57: NARANJITO | B57: 6 | C57: 2626 | D57: 1523 | E57: 57.99695354 | F57: 1492 | G57: 6 | H57: 167 | I57: 5 | J57: 7 | K57: 4 | L57: 158 | M57: 323 | N57: 13 | O57: 17 | P57: 7 | Q57: 91 | R57: 508 | S57: 186 | T57: 24 | U57: 7 | V57: 1103 | W57: 42.00304646
A58: CANTÓN 7 GOLFITO | B58: 68 | C58: 29563 | D58: 14768 | E58: 49.95433481 | F58: 14426 | G58: 80 | H58: 1590 | I58: 75 | J58: 32 | K58: 118 | L58: 1601 | M58: 2578 | N58: 160 | O58: 54 | P58: 100 | Q58: 665 | R58: 5681 | S58: 1692 | T58: 287 | U58: 55 | V58: 14795 | W58: 50.04566519
A59: GOLFITO | B59: 18 | C59: 8880 | D59: 3965 | E59: 44.6509009 | F59: 3863 | G59: 11 | H59: 472 | I59: 12 | J59: 8 | K59: 34 | L59: 541 | M59: 779 | N59: 23 | O59: 16 | P59: 26 | Q59: 181 | R59: 1194 | S59: 566 | T59: 89 | U59: 13 | V59: 4915 | W59: 55.3490991
A60: PUERTO JIMÉNEZ | B60: 13 | C60: 6176 | D60: 3080 | E60: 49.87046632 | F60: 2998 | G60: 16 | H60: 408 | I60: 12 | J60: 5 | K60: 21 | L60: 324 | M60: 399 | N60: 34 | O60: 8 | P60: 22 | Q60: 215 | R60: 1260 | S60: 274 | T60: 65 | U60: 17 | V60: 3096 | W60: 50.12953368
A61: GUAYCARÁ | B61: 23 | C61: 10147 | D61: 5522 | E61: 54.42002562 | F61: 5429 | G61: 17 | H61: 508 | I61: 29 | J61: 13 | K61: 42 | L61: 510 | M61: 1051 | N61: 62 | O61: 15 | P61: 32 | Q61: 181 | R61: 2443 | S61: 526 | T61: 82 | U61: 11 | V61: 4625 | W61: 45.57997438
A62: PAVÓN | B62: 14 | C62: 4360 | D62: 2201 | E62: 50.48165138 | F62: 2136 | G62: 36 | H62: 202 | I62: 22 | J62: 6 | K62: 21 | L62: 226 | M62: 349 | N62: 41 | O62: 15 | P62: 20 | Q62: 88 | R62: 784 | S62: 326 | T62: 51 | U62: 14 | V62: 2159 | W62: 49.51834862
A63: CANTÓN 8 COTO BRUS | B63: 71 | C63: 29923 | D63: 16631 | E63: 55.57932026 | F63: 16271 | G63: 106 | H63: 2060 | I63: 82 | J63: 38 | K63: 96 | L63: 1433 | M63: 3524 | N63: 236 | O63: 71 | P63: 83 | Q63: 667 | R63: 5429 | S63: 2446 | T63: 281 | U63: 79 | V63: 13292 | W63: 44.42067974
A64: SAN VITO | B64: 20 | C64: 9171 | D64: 5467 | E64: 59.61181987 | F64: 5370 | G64: 54 | H64: 799 | I64: 30 | J64: 12 | K64: 27 | L64: 396 | M64: 1041 | N64: 65 | O64: 27 | P64: 25 | Q64: 222 | R64: 1770 | S64: 902 | T64: 69 | U64: 28 | V64: 3704 | W64: 40.38818013
A65: SABALITO | B65: 16 | C65: 7745 | D65: 3862 | E65: 49.86442866 | F65: 3788 | G65: 21 | H65: 444 | I65: 15 | J65: 9 | K65: 20 | L65: 434 | M65: 744 | N65: 95 | O65: 20 | P65: 20 | Q65: 133 | R65: 1267 | S65: 566 | T65: 63 | U65: 11 | V65: 3883 | W65: 50.13557134
A66: AGUA BUENA | B66: 12 | C66: 5050 | D66: 2937 | E66: 58.15841584 | F66: 2864 | G66: 12 | H66: 377 | I66: 16 | J66: 9 | K66: 11 | L66: 291 | M66: 801 | N66: 29 | O66: 4 | P66: 9 | Q66: 149 | R66: 805 | S66: 351 | T66: 63 | U66: 10 | V66: 2113 | W66: 41.84158416
A67: LIMONCITO | B67: 9 | C67: 3018 | D67: 1599 | E67: 52.98210736 | F67: 1556 | G67: 6 | H67: 194 | I67: 5 | J67: 3 | K67: 20 | L67: 168 | M67: 354 | N67: 14 | O67: 7 | P67: 13 | Q67: 50 | R67: 500 | S67: 222 | T67: 35 | U67: 8 | V67: 1419 | W67: 47.01789264
A68: PITTIER | B68: 6 | C68: 1772 | D68: 978 | E68: 55.19187359 | F68: 959 | G68: 5 | H68: 81 | I68: 3 | J68: 2 | K68: 8 | L68: 54 | M68: 249 | N68: 14 | O68: 4 | P68: 5 | Q68: 39 | R68: 355 | S68: 140 | T68: 14 | U68: 5 | V68: 794 | W68: 44.80812641
A69: GUTIÉRREZ BRAUN | B69: 8 | C69: 3167 | D69: 1788 | E69: 56.45721503 | F69: 1734 | G69: 8 | H69: 165 | I69: 13 | J69: 3 | K69: 10 | L69: 90 | M69: 335 | N69: 19 | O69: 9 | P69: 11 | Q69: 74 | R69: 732 | S69: 265 | T69: 37 | U69: 17 | V69: 1379 | W69: 43.54278497
A70: CANTÓN 9 PARRITA | B70: 34 | C70: 12052 | D70: 7044 | E70: 58.44673083 | F70: 6892 | G70: 19 | H70: 572 | I70: 14 | J70: 16 | K70: 32 | L70: 625 | M70: 1453 | N70: 103 | O70: 16 | P70: 25 | Q70: 221 | R70: 2718 | S70: 1078 | T70: 120 | U70: 32 | V70: 5008 | W70: 41.55326917
A71: PARRITA | B71: 34 | C71: 12052 | D71: 7044 | E71: 58.44673083 | F71: 6892 | G71: 19 | H71: 572 | I71: 14 | J71: 16 | K71: 32 | L71: 625 | M71: 1453 | N71: 103 | O71: 16 | P71: 25 | Q71: 221 | R71: 2718 | S71: 1078 | T71: 120 | U71: 32 | V71: 5008 | W71: 41.55326917
A72: CANTÓN 10 CORREDORES | B72: 70 | C72: 34163 | D72: 17731 | E72: 51.90117964 | F72: 17312 | G72: 70 | H72: 1716 | I72: 95 | J72: 32 | K72: 175 | L72: 1728 | M72: 3360 | N72: 178 | O72: 62 | P72: 101 | Q72: 445 | R72: 7499 | S72: 1851 | T72: 344 | U72: 75 | V72: 16432 | W72: 48.09882036
A73: CORREDOR | B73: 32 | C73: 14715 | D73: 8338 | E73: =D73/C73*100 -> 56.66326877 | F73: 8169 | G73: 31 | H73: 909 | I73: 34 | J73: 14 | K73: 58 | L73: 802 | M73: 1413 | N73: 102 | O73: 26 | P73: 46 | Q73: 231 | R73: 3566 | S73: 937 | T73: 147 | U73: 22 | V73: 6377 | W73: 43.33673123
A74: LA CUESTA | B74: 6 | C74: 3411 | D74: =F74+T74+U74 -> 1525 | E74: 44.70829669 | F74: =SUM(G74:S74) -> 1494 | G74: 10 | H74: 163 | I74: 9 | J74: 4 | K74: 47 | L74: 150 | M74: 313 | N74: 15 | O74: 5 | P74: 5 | Q74: 53 | R74: 546 | S74: 174 | T74: 26 | U74: 5 | V74: 1886 | W74: 55.29170331
A75: CANOAS | B75: 18 | C75: 9033 | D75: 4098 | E75: 45.36698771 | F75: 3994 | G75: 14 | H75: 349 | I75: 29 | J75: 8 | K75: 30 | L75: 424 | M75: 762 | N75: 23 | O75: 17 | P75: 24 | Q75: 90 | R75: 1776 | S75: 448 | T75: 80 | U75: 24 | V75: 4935 | W75: 54.63301229
A76: LAUREL | B76: 14 | C76: 7004 | D76: 3770 | E76: 53.82638492 | F76: 3655 | G76: 15 | H76: 295 | I76: 23 | J76: 6 | K76: 40 | L76: 352 | M76: 872 | N76: 38 | O76: 14 | P76: 26 | Q76: 71 | R76: 1611 | S76: 292 | T76: 91 | U76: 24 | V76: 3234 | W76: 46.17361508
A77: CANTÓN 11 GARABITO | B77: 22 | C77: 11771 | D77: 6124 | E77: 52.026166 | F77: 6045 | G77: 16 | H77: 814 | I77: 10 | J77: 11 | K77: 40 | L77: 895 | M77: 1463 | N77: 93 | O77: 22 | P77: 37 | Q77: 167 | R77: 1416 | S77: 1061 | T77: 67 | U77: 12 | V77: 5647 | W77: 47.973834
A78: JACÓ | B78: 15 | C78: 7764 | D78: 3935 | E78: 50.68263782 | F78: 3900 | G78: 13 | H78: 538 | I78: 10 | J78: 8 | K78: 24 | L78: 597 | M78: 956 | N78: 58 | O78: 13 | P78: 31 | Q78: 96 | R78: 916 | S78: 640 | T78: 28 | U78: 7 | V78: 3829 | W78: 49.31736218
A79: TÁRCOLES | B79: 7 | C79: 4007 | D79: 2189 | E79: 54.62939855 | F79: 2145 | G79: 3 | H79: 276 | I79: 0 | J79: 3 | K79: 16 | L79: 298 | M79: 507 | N79: 35 | O79: 9 | P79: 6 | Q79: 71 | R79: 500 | S79: 421 | T79: 39 | U79: 5 | V79: 1818 | W79: 45.37060145
A82: 1/ En la resolución DGRA-039-2018 se realiza un cambio dentro del Padrón Nacional Electoral en las Juntas Receptoras de Votos número 5458 y 5459, modificando el dato del abstencionismo.
A84: FUENTE: Tribunal Supremo de Elecciones.

Sheet C1.9
A2: CUADRO 1.9 LIMÓN: JUNTAS, ELECTORADO, PARTICIPACIÓN, VOTOS POR PARTIDO, NULOS, BLANCOS Y ABSTENCIONISMO, PARA PRESIDENCIA Y VICEPRESIDENCIAS DE LA REPÚBLICA, SEGÚN CANTÓN Y DISTRITO ADMINISTRATIVO ELECCIONES 4 DE FEBRERO 2018
A4: CANTÓN Y DISTRITO ADMINISTRATIVO | B4: JUNTAS | C4: ELECTORADO | D4: VOTOS RECIBIDOS | V4: ABSTENCIONISMO
D5: TOTAL GENERAL | E5: % PARTICIPACIÓN | F5: VOTOS VÁLIDOS | T5: NULOS | U5: BLANCOS | V5: ABSOLUTO | W5: %
F6: TOTAL | G6: ACCESIBILIDAD SIN EXCLUSIÓN | H6: ACCIÓN CIUDADANA | I6: ALIANZA DEMÓCRATA CRISTIANA | J6: DE LOS TRABAJADORES | K6: FRENTE AMPLIO | L6: INTEGRACIÓN NACIONAL | M6: LIBERACIÓN NACIONAL | N6: MOVIMIENTO LIBERTARIO | O6: NUEVA GENERACIÓN | P6: RENOVACIÓN COSTARRICENSE | Q6: REPUBLICANO SOCIAL CRISTIANO | R6: RESTAURACIÓN NACIONAL | S6: UNIDAD SOCIAL CRISTIANA
A8: PROVINCIA LIMÓN | B8: =+B9+B14+B22+B29+B34+B38 -> 550 | C8: =+C9+C14+C22+C29+C34+C38 -> 272633 | D8: =+D9+D14+D22+D29+D34+D38 -> 155574 | E8: =D8/C8*100 -> 57.06352496 | F8: =+F9+F14+F22+F29+F34+F38 -> 151987 | G8: =+G9+G14+G22+G29+G34+G38 -> 989 | H8: 16050 | I8: 1003 | J8: 453 | K8: 1434 | L8: 15810 | M8: 26684 | N8: 1963 | O8: 657 | P8: 1215 | Q8: 6978 | R8: 64710 | S8: 14041 | T8: 2818 | U8: 769 | V8: 116997 | W8: 42.93647504
A9: CANTÓN 1 LIMÓN1/ | B9: 138 | C9: 68866 | D9: =F9+T9+U9 -> 37241 | E9: 54 | F9: =SUM(G9:S9) -> 36258 | G9: 225 | H9: 3277 | I9: 274 | J9: 97 | K9: 266 | L9: 4336 | M9: 5553 | N9: 357 | O9: 162 | P9: 335 | Q9: 1943 | R9: 15704 | S9: 3729 | T9: 736 | U9: 247 | V9: 31670 | W9: 46
A10: LIMÓN | B10: 85 | C10: 47139 | D10: =F10+T10+U10 -> 25844 | E10: =D10/C10*100 -> 54.82509175 | F10: =SUM(G10:S10) -> 25244 | G10: 165 | H10: 2661 | I10: 126 | J10: 72 | K10: 188 | L10: 3384 | M10: 3587 | N10: 210 | O10: 134 | P10: 245 | Q10: 1471 | R10: 10396 | S10: 2605 | T10: 461 | U10: 139 | V10: 21295 | W10: 45.17490825
A11: VALLE LA ESTRELLA | B11: 26 | C11: 10768 | D11: 5565 | E11: 51.68090639 | F11: 5352 | G11: 21 | H11: 246 | I11: 96 | J11: 13 | K11: 35 | L11: 366 | M11: 1159 | N11: 86 | O11: 10 | P11: 52 | Q11: 210 | R11: 2531 | S11: 527 | T11: 146 | U11: 67 | V11: 5203 | W11: 48.31909361
A12: RÍO BLANCO1/ | B12: 15 | C12: 5653 | D12: 2966 | E12: 52.1 | F12: 2869 | G12: 22 | H12: 196 | I12: 44 | J12: 4 | K12: 19 | L12: 221 | M12: 397 | N12: 35 | O12: 7 | P12: 20 | Q12: 151 | R12: 1481 | S12: 272 | T12: 78 | U12: 19 | V12: 2732 | W12: 47.9
A13: MATAMA | B13: 12 | C13: 5306 | D13: 2866 | E13: 54.01432341 | F13: 2793 | G13: 17 | H13: 174 | I13: 8 | J13: 8 | K13: 24 | L13: 365 | M13: 410 | N13: 26 | O13: 11 | P13: 18 | Q13: 111 | R13: 1296 | S13: 325 | T13: 51 | U13: 22 | V13: 2440 | W13: 45.98567659
A14: CANTÓN 2 POCOCÍ2/ | B14: 180 | C14: 92004 | D14: 55843 | E14: 60.8 | F14: 54788 | G14: 423 | H14: 7438 | I14: 317 | J14: 200 | K14: 381 | L14: 6829 | M14: 9586 | N14: 884 | O14: 267 | P14: 382 | Q14: 1785 | R14: 21662 | S14: 4634 | T14: 881 | U14: 174 | V14: 36054 | W14: 39.2
A15: GUÁPILES | B15: 42 | C15: 22990 | D15: 15116 | E15: 65.75032623 | F15: 14960 | G15: 60 | H15: 2834 | I15: 70 | J15: 31 | K15: 90 | L15: 1885 | M15: 2422 | N15: 151 | O15: 103 | P15: 78 | Q15: 554 | R15: 5091 | S15: 1591 | T15: 133 | U15: 23 | V15: 7874 | W15: 34.24967377
A16: JIMÉNEZ | B16: 15 | C16: 7964 | D16: 5286 | E16: 66.37368157 | F16: 5188 | G16: 27 | H16: 775 | I16: 21 | J16: 16 | K16: 58 | L16: 676 | M16: 790 | N16: 123 | O16: 25 | P16: 34 | Q16: 223 | R16: 1930 | S16: 490 | T16: 84 | U16: 14 | V16: 2678 | W16: 33.62631843
A17: RITA | B17: 35 | C17: 16955 | D17: 10159 | E17: 59.91742849 | F17: 9892 | G17: 135 | H17: 1059 | I17: 71 | J17: 36 | K17: 67 | L17: 1194 | M17: 1778 | N17: 211 | O17: 46 | P17: 75 | Q17: 300 | R17: 4232 | S17: 688 | T17: 216 | U17: 51 | V17: 6796 | W17: 40.08257151
A18: ROXANA2/ | B18: 24 | C18: 10746 | D18: 5954 | E18: 56 | F18: 5805 | G18: 57 | H18: 571 | I18: 46 | J18: 40 | K18: 36 | L18: 644 | M18: 1225 | N18: 108 | O18: 22 | P18: 51 | Q18: 146 | R18: 2480 | S18: 379 | T18: 122 | U18: 27 | V18: 4685 | W18: 44
A19: CARIARI | B19: 47 | C19: 24865 | D19: 14209 | E19: 57.14458074 | F19: 13904 | G19: 119 | H19: 1563 | I19: 86 | J19: 67 | K19: 92 | L19: 1809 | M19: 2551 | N19: 236 | O19: 49 | P19: 94 | Q19: 387 | R19: 5832 | S19: 1019 | T19: 257 | U19: 48 | V19: 10656 | W19: 42.85541926
A20: COLORADO | B20: 4 | C20: 1679 | D20: 746 | E20: 44.43120905 | F20: 732 | G20: 7 | H20: 61 | I20: 2 | J20: 4 | K20: 10 | L20: 69 | M20: 147 | N20: 9 | O20: 1 | P20: 4 | Q20: 9 | R20: 283 | S20: 126 | T20: 11 | U20: 3 | V20: 933 | W20: 55.56879095
A21: LA COLONIA | B21: 13 | C21: 6805 | D21: 4373 | E21: 64.26157237 | F21: 4307 | G21: 18 | H21: 575 | I21: 21 | J21: 6 | K21: 28 | L21: 552 | M21: 673 | N21: 46 | O21: 21 | P21: 46 | Q21: 166 | R21: 1814 | S21: 341 | T21: 58 | U21: 8 | V21: 2432 | W21: 35.73842763
A22: CANTÓN 3 SIQUIRRES | B22: 86 | C22: 40171 | D22: 23059 | E22: 57.402106 | F22: 22557 | G22: 141 | H22: 2030 | I22: 102 | J22: 57 | K22: 274 | L22: 1737 | M22: 4460 | N22: 302 | O22: 95 | P22: 202 | Q22: 963 | R22: 10253 | S22: 1941 | T22: 395 | U22: 107 | V22: 17112 | W22: 42.597894
A23: SIQUIRRES | B23: 46 | C23: 22994 | D23: 13061 | E23: 56.80177438 | F23: 12809 | G23: 75 | H23: 1313 | I23: 44 | J23: 29 | K23: 188 | L23: 978 | M23: 2312 | N23: 147 | O23: 52 | P23: 126 | Q23: 555 | R23: 5962 | S23: 1028 | T23: 206 | U23: 46 | V23: 9933 | W23: 43.19822562
A24: PACUARITO | B24: 12 | C24: 5102 | D24: 2601 | E24: 50.98000784 | F24: 2523 | G24: 15 | H24: 124 | I24: 14 | J24: 10 | K24: 12 | L24: 199 | M24: 772 | N24: 30 | O24: 14 | P24: 21 | Q24: 60 | R24: 1061 | S24: 191 | T24: 61 | U24: 17 | V24: 2501 | W24: 49.01999216
A25: FLORIDA | B25: 5 | C25: 1431 | D25: 959 | E25: 67.01607268 | F25: 932 | G25: 9 | H25: 69 | I25: 11 | J25: 1 | K25: 7 | L25: 70 | M25: 194 | N25: 10 | O25: 4 | P25: 4 | Q25: 28 | R25: 400 | S25: 125 | T25: 20 | U25: 7 | V25: 472 | W25: 32.98392732
A26: GERMANIA | B26: 5 | C26: 2090 | D26: 1274 | E26: 60.9569378 | F26: 1254 | G26: 10 | H26: 121 | I26: 8 | J26: 5 | K26: 18 | L26: 88 | M26: 287 | N26: 18 | O26: 4 | P26: 10 | Q26: 61 | R26: 519 | S26: 105 | T26: 11 | U26: 9 | V26: 816 | W26: 39.0430622
A27: EL CAIRO | B27: 10 | C27: 4622 | D27: 2645 | E27: 57.22630896 | F27: 2575 | G27: 18 | H27: 194 | I27: 11 | J27: 5 | K27: 29 | L27: 226 | M27: 441 | N27: 65 | O27: 18 | P27: 29 | Q27: 126 | R27: 1218 | S27: 195 | T27: 57 | U27: 13 | V27: 1977 | W27: 42.77369104
A28: LA ALEGRÍA | B28: 8 | C28: 3932 | D28: 2519 | E28: 64.06408952 | F28: 2464 | G28: 14 | H28: 209 | I28: 14 | J28: 7 | K28: 20 | L28: 176 | M28: 454 | N28: 32 | O28: 3 | P28: 12 | Q28: 133 | R28: 1093 | S28: 297 | T28: 40 | U28: 15 | V28: 1413 | W28: 35.93591048
A29: CANTÓN 4 TALAMANCA | B29: 46 | C29: 20870 | D29: 10518 | E29: 50.39770005 | F29: 10193 | G29: 30 | H29: 872 | I29: 70 | J29: 26 | K29: 268 | L29: 724 | M29: 1614 | N29: 78 | O29: 38 | P29: 92 | Q29: 1259 | R29: 3662 | S29: 1460 | T29: 218 | U29: 107 | V29: 10352 | W29: 49.60229995
A30: BRATSI | B30: 12 | C30: 5831 | D30: 3074 | E30: 52.71823015 | F30: 3002 | G30: 7 | H30: 264 | I30: 11 | J30: 8 | K30: 65 | L30: 194 | M30: 440 | N30: 24 | O30: 13 | P30: 25 | Q30: 363 | R30: 1248 | S30: 340 | T30: 51 | U30: 21 | V30: 2757 | W30: 47.28176985
A31: SIXAOLA | B31: 10 | C31: 4657 | D31: 2302 | E31: 49.43096414 | F31: 2239 | G31: 10 | H31: 153 | I31: 28 | J31: 7 | K31: 30 | L31: 194 | M31: 341 | N31: 20 | O31: 9 | P31: 23 | Q31: 346 | R31: 827 | S31: 251 | T31: 45 | U31: 18 | V31: 2355 | W31: 50.56903586
A32: CAHUITA | B32: 12 | C32: 5719 | D32: 2993 | E32: 52.33432418 | F32: 2901 | G32: 4 | H32: 355 | I32: 21 | J32: 7 | K32: 48 | L32: 266 | M32: 430 | N32: 22 | O32: 13 | P32: 16 | Q32: 240 | R32: 1039 | S32: 440 | T32: 57 | U32: 35 | V32: 2726 | W32: 47.66567582
A33: TELIRE | B33: 12 | C33: 4663 | D33: 2149 | E33: 46.08621059 | F33: 2051 | G33: 9 | H33: 100 | I33: 10 | J33: 4 | K33: 125 | L33: 70 | M33: 403 | N33: 12 | O33: 3 | P33: 28 | Q33: 310 | R33: 548 | S33: 429 | T33: 65 | U33: 33 | V33: 2514 | W33: 53.91378941
A34: CANTÓN 5 MATINA | B34: 44 | C34: 21862 | D34: 11890 | E34: 54.3866069 | F34: 11591 | G34: 56 | H34: 731 | I34: 76 | J34: 35 | K34: 94 | L34: 771 | M34: 2246 | N34: 122 | O34: 28 | P34: 67 | Q34: 423 | R34: 5839 | S34: 1103 | T34: 231 | U34: 68 | V34: 9972 | W34: 45.6133931
A35: MATINA | B35: 12 | C35: 5195 | D35: 2765 | E35: 53.22425409 | F35: 2694 | G35: 24 | H35: 148 | I35: 9 | J35: 7 | K35: 15 | L35: 169 | M35: 538 | N35: 26 | O35: 4 | P35: 16 | Q35: 105 | R35: 1396 | S35: 237 | T35: 50 | U35: 21 | V35: 2430 | W35: 46.77574591
A36: BATÁN | B36: 21 | C36: 11007 | D36: 5902 | E36: 53.62042337 | F36: 5762 | G36: 18 | H36: 429 | I36: 52 | J36: 19 | K36: 66 | L36: 376 | M36: 1113 | N36: 44 | O36: 15 | P36: 32 | Q36: 228 | R36: 2738 | S36: 632 | T36: 112 | U36: 28 | V36: 5105 | W36: 46.37957663
A37: CARRANDI | B37: 11 | C37: 5660 | D37: 3223 | E37: 56.9434629 | F37: 3135 | G37: 14 | H37: 154 | I37: 15 | J37: 9 | K37: 13 | L37: 226 | M37: 595 | N37: 52 | O37: 9 | P37: 19 | Q37: 90 | R37: 1705 | S37: 234 | T37: 69 | U37: 19 | V37: 2437 | W37: 43.0565371
A38: CANTÓN 6 GUÁCIMO | B38: 56 | C38: 28860 | D38: 17023 | E38: 58.98475398 | F38: 16600 | G38: 114 | H38: 1702 | I38: 164 | J38: 38 | K38: 151 | L38: 1413 | M38: 3225 | N38: 220 | O38: 67 | P38: 137 | Q38: 605 | R38: 7590 | S38: 1174 | T38: 357 | U38: 66 | V38: 11837 | W38: 41.01524602
A39: GUÁCIMO | B39: 25 | C39: 12877 | D39: 7200 | E39: 55.91364448 | F39: 7069 | G39: 68 | H39: 908 | I39: 41 | J39: 13 | K39: 64 | L39: 794 | M39: 1167 | N39: 105 | O39: 22 | P39: 62 | Q39: 327 | R39: 2891 | S39: 607 | T39: 114 | U39: 17 | V39: 5677 | W39: 44.08635552
A40: MERCEDES | B40: 2 | C40: 888 | D40: 605 | E40: 68.13063063 | F40: 592 | G40: 2 | H40: 92 | I40: 7 | J40: 1 | K40: 3 | L40: 34 | M40: 132 | N40: 3 | O40: 5 | P40: 5 | Q40: 18 | R40: 265 | S40: 25 | T40: 11 | U40: 2 | V40: 283 | W40: 31.86936937
A41: POCORA | B41: 10 | C41: 4592 | D41: 2883 | E41: 62.78310105 | F41: 2807 | G41: 14 | H41: 265 | I41: 28 | J41: 10 | K41: 17 | L41: 160 | M41: 401 | N41: 41 | O41: 15 | P41: 24 | Q41: 90 | R41: 1548 | S41: 194 | T41: 59 | U41: 17 | V41: 1709 | W41: 37.21689895
A42: RÍO JIMÉNEZ | B42: 11 | C42: 6481 | D42: 3960 | E42: 61.10168184 | F42: 3820 | G42: 17 | H42: 272 | I42: 62 | J42: 10 | K42: 30 | L42: 271 | M42: 894 | N42: 53 | O42: 18 | P42: 32 | Q42: 100 | R42: 1864 | S42: 197 | T42: 124 | U42: 16 | V42: 2521 | W42: 38.89831816
A43: DUACARÍ | B43: 8 | C43: 4022 | D43: 2375 | E43: 59.05022377 | F43: 2312 | G43: 13 | H43: 165 | I43: 26 | J43: 4 | K43: 37 | L43: 154 | M43: 631 | N43: 18 | O43: 7 | P43: 14 | Q43: 70 | R43: 1022 | S43: 151 | T43: 49 | U43: 14 | V43: 1647 | W43: 40.94977623
A46: 1/ En la resolución DGRA-039-2018 se realiza un cambio dentro del Padrón Nacional Electoral en las Juntas Receptoras de Votos número 6116 y 6117, modificando el dato del abstencionismo.
A47: 2/ En la resolución DGRA-039-2018 se realiza un cambio dentro del Padrón Nacional Electoral en las Juntas Receptoras de Votos número 6239, 6240 y 6245, modificando el dato del abstencionismo.
A49: FUENTE: Tribunal Supremo de Elecciones.

Sheet C1.10
A2: CUADRO 1.10 EXTRANJERO: JUNTAS, ELECTORADO, PARTICIPACIÓN, VOTOS POR PARTIDO, NULOS, BLANCOS Y ABSTENCIONISMO, PARA PRESIDENCIA Y VICEPRESIDENCIAS DE LA REPÚBLICA, SEGÚN CONTINENTE Y PAÍS ELECCIONES 4 DE FEBRERO 2018
A4: CONTINENTE Y PAÍS | B4: JUNTAS | C4: ELECTORADO | D4: VOTOS RECIBIDOS | V4: ABSTENCIONISMO
D5: TOTAL GENERAL | E5: % PARTICIPACIÓN | F5: VOTOS VÁLIDOS | T5: NULOS | U5: BLANCOS | V5: ABSOLUTO | W5: %
F6: TOTAL | G6: ACCESIBILIDAD SIN EXCLUSIÓN | H6: ACCIÓN CIUDADANA | I6: ALIANZA DEMÓCRATA CRISTIANA | J6: DE LOS TRABAJADORES | K6: FRENTE AMPLIO | L6: INTEGRACIÓN NACIONAL | M6: LIBERACIÓN NACIONAL | N6: MOVIMIENTO LIBERTARIO | O6: NUEVA GENERACIÓN | P6: RENOVACIÓN COSTARRICENSE | Q6: REPUBLICANO SOCIAL CRISTIANO | R6: RESTAURACIÓN NACIONAL | S6: UNIDAD SOCIAL CRISTIANA
A8: TOTAL EXTRANJERO | B8: =+B9+B33+B45+B53 -> 70 | C8: =+C9+C33+C45+C53 -> 31864 | D8: =+D9+D33+D45+D53 -> 4431 | E8: =D8/C8*100 -> 13.9059754 | F8: =+F9+F33+F45+F53 -> 4391 | G8: 6 | H8: 1655 | I8: 16 | J8: 6 | K8: 80 | L8: 243 | M8: 748 | N8: 31 | O8: 32 | P8: 21 | Q8: 43 | R8: 512 | S8: 998 | T8: 37 | U8: 3 | V8: 27433 | W8: 86.0940246
A9: AMÉRICA | B9: =SUM(B10:B32) -> 50 | C9: =SUM(C10:C32) -> 28307 | D9: =F9+T9+U9 -> 3248 | E9: =D9/C9*100 -> 11.47419366 | F9: =SUM(G9:S9) -> 3217 | G9: =SUM(G10:G32) -> 6 | H9: 1017 | I9: 15 | J9: 4 | K9: 48 | L9: 206 | M9: 576 | N9: 25 | O9: 25 | P9: 18 | Q9: 41 | R9: 472 | S9: 764 | T9: 29 | U9: 2 | V9: 25059 | W9: 88.52580634
A10: ARGENTINA1/ | B10: 1 | C10: 225 | D10: =F10+T10+U10 -> 82 | E10: 36.3 | F10: =SUM(G10:S10) -> 80 | G10: 0 | H10: 44 | I10: 0 | J10: 0 | K10: 8 | L10: 4 | M10: 7 | N10: 1 | O10: 1 | P10: 0 | Q10: 0 | R10: 3 | S10: 12 | T10: 2 | U10: 0 | V10: 143 | W10: 63.7
A11: BELICE | B11: 1 | C11: 9 | D11: 4 | E11: 44.44444444 | F11: 4 | G11: 0 | H11: 1 | I11: 0 | J11: 0 | K11: 0 | L11: 0 | M11: 3 | N11: 0 | O11: 0 | P11: 0 | Q11: 0 | R11: 0 | S11: 0 | T11: 0 | U11: 0 | V11: 5 | W11: 55.55555556
A12: BOLIVIA | B12: 1 | C12: 39 | D12: 8 | E12: 20.51282051 | F12: 8 | G12: 0 | H12: 6 | I12: 0 | J12: 0 | K12: 0 | L12: 0 | M12: 0 | N12: 0 | O12: 0 | P12: 0 | Q12: 0 | R12: 0 | S12: 2 | T12: 0 | U12: 0 | V12: 31 | W12: 79.48717949
A13: BRASIL | B13: 1 | C13: 91 | D13: 21 | E13: 23.07692308 | F13: 21 | G13: 0 | H13: 7 | I13: 0 | J13: 0 | K13: 3 | L13: 1 | M13: 3 | N13: 1 | O13: 0 | P13: 0 | Q13: 0 | R13: 3 | S13: 3 | T13: 0 | U13: 0 | V13: 70 | W13: 76.92307692
A14: CANADÁ2/ | B14: 2 | C14: 996 | D14: 145 | E14: 14.5 | F14: 144 | G14: 0 | H14: 69 | I14: 0 | J14: 0 | K14: 4 | L14: 7 | M14: 17 | N14: 3 | O14: 3 | P14: 2 | Q14: 3 | R14: 11 | S14: 25 | T14: 1 | U14: 0 | V14: 851 | W14: 85.5
A15: CHILE | B15: 1 | C15: 232 | D15: 108 | E15: 46.55172414 | F15: 108 | G15: 0 | H15: 52 | I15: 1 | J15: 1 | K15: 2 | L15: 1 | M15: 21 | N15: 0 | O15: 0 | P15: 0 | Q15: 0 | R15: 4 | S15: 26 | T15: 0 | U15: 0 | V15: 124 | W15: 53.44827586
A16: COLOMBIA | B16: 1 | C16: 352 | D16: 72 | E16: 20.45454545 | F16: 72 | G16: 0 | H16: 22 | I16: 0 | J16: 0 | K16: 1 | L16: 5 | M16: 26 | N16: 0 | O16: 0 | P16: 0 | Q16: 1 | R16: 2 | S16: 15 | T16: 0 | U16: 0 | V16: 280 | W16: 79.54545455
A17: CUBA | B17: 1 | C17: 43 | D17: 25 | E17: 58.13953488 | F17: 24 | G17: 1 | H17: 11 | I17: 0 | J17: 0 | K17: 2 | L17: 3 | M17: 1 | N17: 1 | O17: 1 | P17: 3 | Q17: 0 | R17: 1 | S17: 0 | T17: 1 | U17: 0 | V17: 18 | W17: 41.86046512
A18: ECUADOR | B18: 1 | C18: 142 | D18: 25 | E18: 17.6056338 | F18: 25 | G18: 0 | H18: 12 | I18: 0 | J18: 0 | K18: 3 | L18: 0 | M18: 1 | N18: 1 | O18: 0 | P18: 0 | Q18: 0 | R18: 2 | S18: 6 | T18: 0 | U18: 0 | V18: 117 | W18: 82.3943662
A19: ESTADOS UNIDOS | B19: 25 | C19: 22384 | D19: 1787 | E19: 7.983380986 | F19: 1768 | G19: 4 | H19: 539 | I19: 7 | J19: 2 | K19: 11 | L19: 127 | M19: 284 | N19: 7 | O19: 14 | P19: 5 | Q19: 30 | R19: 326 | S19: 412 | T19: 18 | U19: 1 | V19: 20597 | W19: 92.01661901
A20: GUATEMALA | B20: 1 | C20: 434 | D20: 162 | E20: 37.32718894 | F20: 160 | G20: 1 | H20: 37 | I20: 0 | J20: 0 | K20: 5 | L20: 16 | M20: 33 | N20: 0 | O20: 2 | P20: 0 | Q20: 1 | R20: 25 | S20: 40 | T20: 1 | U20: 1 | V20: 272 | W20: 62.67281106
A21: HONDURAS | B21: 1 | C21: 228 | D21: 76 | E21: 33.33333333 | F21: 76 | G21: 0 | H21: 19 | I21: 1 | J21: 0 | K21: 1 | L21: 6 | M21: 15 | N21: 1 | O21: 1 | P21: 0 | Q21: 1 | R21: 9 | S21: 22 | T21: 0 | U21: 0 | V21: 152 | W21: 66.66666667
A22: JAMAICA | B22: 1 | C22: 3 | D22: 0 | E22: 0 | F22: =SUM(G22:S22) -> 0 | G22: 0 | H22: 0 | I22: 0 | J22: 0 | K22: 0 | L22: 0 | M22: 0 | N22: 0 | O22: 0 | P22: 0 | Q22: 0 | R22: 0 | S22: 0 | T22: 0 | U22: 0 | V22: 3 | W22: 100
A23: MÉXICO | B23: 1 | C23: 883 | D23: 188 | E23: 21.29105323 | F23: =SUM(G23:S23) -> 188 | G23: 0 | H23: 67 | I23: 1 | J23: 0 | K23: 4 | L23: 6 | M23: 23 | N23: 1 | O23: 1 | P23: 3 | Q23: 0 | R23: 14 | S23: 68 | T23: 0 | U23: 0 | V23: 695 | W23: 78.70894677
A24: NICARAGUA | B24: 2 | C24: 507 | D24: 106 | E24: 20.90729783 | F24: 102 | G24: 0 | H24: 21 | I24: 3 | J24: 0 | K24: 1 | L24: 4 | M24: 26 | N24: 3 | O24: 0 | P24: 3 | Q24: 0 | R24: 13 | S24: 28 | T24: 4 | U24: 0 | V24: 401 | W24: 79.09270217
A25: PANAMÁ | B25: 2 | C25: 733 | D25: 199 | E25: 27.14870396 | F25: 199 | G25: 0 | H25: 47 | I25: 1 | J25: 0 | K25: 0 | L25: 10 | M25: 57 | N25: 5 | O25: 1 | P25: 1 | Q25: 0 | R25: 27 | S25: 50 | T25: 0 | U25: 0 | V25: 534 | W25: 72.85129604
A26: PARAGUAY | B26: 1 | C26: 29 | D26: 14 | E26: 48.27586207 | F26: 14 | G26: 0 | H26: 2 | I26: 0 | J26: 1 | K26: 0 | L26: 0 | M26: 4 | N26: 0 | O26: 0 | P26: 0 | Q26: 1 | R26: 4 | S26: 2 | T26: 0 | U26: 0 | V26: 15 | W26: 51.72413793
A27: PERÚ | B27: 1 | C27: 159 | D27: 44 | E27: 27.67295597 | F27: 43 | G27: 0 | H27: 16 | I27: 0 | J27: 0 | K27: 0 | L27: 3 | M27: 9 | N27: 0 | O27: 0 | P27: 0 | Q27: 0 | R27: 7 | S27: 8 | T27: 1 | U27: 0 | V27: 115 | W27: 72.32704403
A28: REPÚBLICA DOMINICANA | B28: 1 | C28: 116 | D28: 47 | E28: 40.51724138 | F28: 47 | G28: 0 | H28: 10 | I28: 1 | J28: 0 | K28: 0 | L28: 0 | M28: 8 | N28: 0 | O28: 1 | P28: 0 | Q28: 0 | R28: 9 | S28: 18 | T28: 0 | U28: 0 | V28: 69 | W28: 59.48275862
A29: SALVADOR | B29: 1 | C29: 286 | D29: 67 | E29: 23.42657343 | F29: 67 | G29: 0 | H29: 18 | I29: 0 | J29: 0 | K29: 1 | L29: 10 | M29: 16 | N29: 1 | O29: 0 | P29: 1 | Q29: 1 | R29: 4 | S29: 15 | T29: 0 | U29: 0 | V29: 219 | W29: 76.57342657
A30: TRINIDAD Y TOBAGO | B30: 1 | C30: 6 | D30: 3 | E30: 50 | F30: 3 | G30: 0 | H30: 1 | I30: 0 | J30: 0 | K30: 0 | L30: 0 | M30: 1 | N30: 0 | O30: 0 | P30: 0 | Q30: 0 | R30: 1 | S30: 0 | T30: 0 | U30: 0 | V30: 3 | W30: 50
A31: URUGUAY | B31: 1 | C31: 20 | D31: 14 | E31: 70 | F31: 14 | G31: 0 | H31: 8 | I31: 0 | J31: 0 | K31: 0 | L31: 2 | M31: 0 | N31: 0 | O31: 0 | P31: 0 | Q31: 0 | R31: 2 | S31: 2 | T31: 0 | U31: 0 | V31: 6 | W31: 30
A32: VENEZUELA | B32: 1 | C32: 390 | D32: 51 | E32: 13.07692308 | F32: 50 | G32: 0 | H32: 8 | I32: 0 | J32: 0 | K32: 2 | L32: 1 | M32: 21 | N32: 0 | O32: 0 | P32: 0 | Q32: 3 | R32: 5 | S32: 10 | T32: 1 | U32: 0 | V32: 339 | W32: 86.92307692
A33: EUROPA | B33: =SUM(B34:B44) -> 11 | C33: =SUM(C34:C44) -> 3000 | D33: 1003 | E33: 33.43333333 | F33: 997 | G33: =SUM(G34:G44) -> 0 | H33: 559 | I33: 0 | J33: 2 | K33: 27 | L33: 27 | M33: 145 | N33: 3 | O33: 7 | P33: 3 | Q33: 2 | R33: 29 | S33: 193 | T33: 6 | U33: 0 | V33: 1997 | W33: 66.56666667
A34: ALEMANIA | B34: 1 | C34: 481 | D34: 163 | E34: 33.88773389 | F34: 163 | G34: 0 | H34: 109 | I34: 0 | J34: 0 | K34: 6 | L34: 5 | M34: 9 | N34: 0 | O34: 3 | P34: 0 | Q34: 0 | R34: 2 | S34: 29 | T34: 0 | U34: 0 | V34: 318 | W34: 66.11226611
A35: AUSTRIA | B35: 1 | C35: 102 | D35: 38 | E35: 37.25490196 | F35: 38 | G35: 0 | H35: 22 | I35: 0 | J35: 0 | K35: 0 | L35: 3 | M35: 3 | N35: 0 | O35: 0 | P35: 0 | Q35: 0 | R35: 1 | S35: 9 | T35: 0 | U35: 0 | V35: 64 | W35: 62.74509804
A36: BÉLGICA | B36: 1 | C36: 147 | D36: 51 | E36: 34.69387755 | F36: 51 | G36: 0 | H36: 25 | I36: 0 | J36: 0 | K36: 1 | L36: 2 | M36: 11 | N36: 0 | O36: 0 | P36: 0 | Q36: 1 | R36: 0 | S36: 11 | T36: 0 | U36: 0 | V36: 96 | W36: 65.30612245
A37: ESPAÑA | B37: 1 | C37: 789 | D37: 207 | E37: 26.23574144 | F37: 202 | G37: 0 | H37: 105 | I37: 0 | J37: 1 | K37: 4 | L37: 3 | M37: 26 | N37: 1 | O37: 1 | P37: 0 | Q37: 0 | R37: 11 | S37: 50 | T37: 5 | U37: 0 | V37: 582 | W37: 73.76425856
A38: FRANCIA | B38: 1 | C38: 371 | D38: 141 | E38: 38.00539084 | F38: 141 | G38: 0 | H38: 90 | I38: 0 | J38: 0 | K38: 6 | L38: 4 | M38: 20 | N38: 0 | O38: 2 | P38: 0 | Q38: 0 | R38: 1 | S38: 18 | T38: 0 | U38: 0 | V38: 230 | W38: 61.99460916
A39: INGLATERRA | B39: 1 | C39: 295 | D39: 121 | E39: 41.01694915 | F39: 120 | G39: 0 | H39: 53 | I39: 0 | J39: 1 | K39: 3 | L39: 1 | M39: 31 | N39: 0 | O39: 1 | P39: 0 | Q39: 0 | R39: 2 | S39: 28 | T39: 1 | U39: 0 | V39: 174 | W39: 58.98305085
A40: ITALIA | B40: 1 | C40: 251 | D40: 64 | E40: 25.49800797 | F40: 64 | G40: 0 | H40: 29 | I40: 0 | J40: 0 | K40: 0 | L40: 3 | M40: 13 | N40: 0 | O40: 0 | P40: 3 | Q40: 1 | R40: 4 | S40: 11 | T40: 0 | U40: 0 | V40: 187 | W40: 74.50199203
A41: PAÍSES BAJOS (HOLANDA) | B41: 1 | C41: 225 | D41: 109 | E41: 48.44444444 | F41: 109 | G41: 0 | H41: 75 | I41: 0 | J41: 0 | K41: 3 | L41: 3 | M41: 8 | N41: 2 | O41: 0 | P41: 0 | Q41: 0 | R41: 1 | S41: 17 | T41: 0 | U41: 0 | V41: 116 | W41: 51.55555556
A42: RUSIA | B42: 1 | C42: 39 | D42: 14 | E42: 35.8974359 | F42: 14 | G42: 0 | H42: 9 | I42: 0 | J42: 0 | K42: 0 | L42: 2 | M42: 3 | N42: 0 | O42: 0 | P42: 0 | Q42: 0 | R42: 0 | S42: 0 | T42: 0 | U42: 0 | V42: 25 | W42: 64.1025641
A43: SUIZA | B43: 1 | C43: 298 | D43: 94 | E43: 31.54362416 | F43: =SUM(G43:S43) -> 94 | G43: 0 | H43: 41 | I43: 0 | J43: 0 | K43: 4 | L43: 1 | M43: 21 | N43: 0 | O43: 0 | P43: 0 | Q43: 0 | R43: 7 | S43: 20 | T43: 0 | U43: 0 | V43: 204 | W43: 68.45637584
A44: TURQUÍA | B44: 1 | C44: 2 | D44: 1 | E44: 50 | F44: 1 | G44: 0 | H44: 1 | I44: 0 | J44: 0 | K44: 0 | L44: 0 | M44: 0 | N44: 0 | O44: 0 | P44: 0 | Q44: 0 | R44: 0 | S44: 0 | T44: 0 | U44: 0 | V44: 1 | W44: 50
A45: ASIA | B45: =SUM(B46:B52) -> 8 | C45: =SUM(C46:C52) -> 434 | D45: 130 | E45: 29.95391705 | F45: 127 | G45: =SUM(G46:G52) -> 0 | H45: =SUM(H46:H52) -> 51 | I45: =SUM(I46:I52) -> 1 | J45: 0 | K45: 2 | L45: 7 | M45: 23 | N45: 2 | O45: 0 | P45: 0 | Q45: 0 | R45: 7 | S45: 34 | T45: 2 | U45: 1 | V45: 304 | W45: 70.04608295
A46: CHINA | B46: 2 | C46: 142 | D46: 44 | E46: 30.98591549 | F46: 44 | G46: 0 | H46: 20 | I46: 1 | J46: 0 | K46: 1 | L46: 0 | M46: 10 | N46: 1 | O46: 0 | P46: 0 | Q46: 0 | R46: 1 | S46: 10 | T46: 0 | U46: 0 | V46: 98 | W46: 69.01408451
A47: COREA | B47: 1 | C47: 33 | D47: 14 | E47: 42.42424242 | F47: 14 | G47: 0 | H47: 7 | I47: 0 | J47: 0 | K47: 0 | L47: 1 | M47: 2 | N47: 0 | O47: 0 | P47: 0 | Q47: 0 | R47: 2 | S47: 2 | T47: 0 | U47: 0 | V47: 19 | W47: 57.57575758
A48: INDIA | B48: 1 | C48: 9 | D48: 2 | E48: 22.22222222 | F48: 2 | G48: 0 | H48: 0 | I48: 0 | J48: 0 | K48: 0 | L48: 0 | M48: 2 | N48: 0 | O48: 0 | P48: 0 | Q48: 0 | R48: 0 | S48: 0 | T48: 0 | U48: 0 | V48: 7 | W48: 77.77777778
A49: ISRAEL | B49: 1 | C49: 90 | D49: 14 | E49: 15.55555556 | F49: 13 | G49: 0 | H49: 2 | I49: 0 | J49: 0 | K49: 0 | L49: 2 | M49: 4 | N49: 0 | O49: 0 | P49: 0 | Q49: 0 | R49: 0 | S49: 5 | T49: 1 | U49: 0 | V49: 76 | W49: 84.44444444
A50: JAPÓN | B50: 1 | C50: 79 | D50: 27 | E50: 34.17721519 | F50: 26 | G50: 0 | H50: 14 | I50: 0 | J50: 0 | K50: 1 | L50: 2 | M50: 0 | N50: 0 | O50: 0 | P50: 0 | Q50: 0 | R50: 2 | S50: 7 | T50: 0 | U50: 1 | V50: 52 | W50: 65.82278481
A51: QATAR | B51: 1 | C51: 39 | D51: 17 | E51: 43.58974359 | F51: 16 | G51: 0 | H51: 3 | I51: 0 | J51: 0 | K51: 0 | L51: 2 | M51: 4 | N51: 0 | O51: 0 | P51: 0 | Q51: 0 | R51: 0 | S51: 7 | T51: 1 | U51: 0 | V51: 22 | W51: 56.41025641
A52: SINGAPUR | B52: 1 | C52: 42 | D52: 12 | E52: 28.57142857 | F52: 12 | G52: 0 | H52: 5 | I52: 0 | J52: 0 | K52: 0 | L52: 0 | M52: 1 | N52: 1 | O52: 0 | P52: 0 | Q52: 0 | R52: 2 | S52: 3 | T52: 0 | U52: 0 | V52: 30 | W52: 71.42857143
A53: OCEANÍA | B53: =B54 -> 1 | C53: =C54 -> 123 | D53: =D54 -> 50 | E53: =E54 -> 40.6504065 | F53: 50 | G53: 0 | H53: 28 | I53: 0 | J53: 0 | K53: 3 | L53: 3 | M53: 4 | N53: 1 | O53: 0 | P53: 0 | Q53: 0 | R53: 4 | S53: 7 | T53: 0 | U53: 0 | V53: 73 | W53: 59.3495935
A54: AUSTRALIA | B54: 1 | C54: 123 | D54: 50 | E54: 40.6504065 | F54: 50 | G54: 0 | H54: 28 | I54: 0 | J54: 0 | K54: 3 | L54: 3 | M54: 4 | N54: 1 | O54: 0 | P54: 0 | Q54: 0 | R54: 4 | S54: 7 | T54: 0 | U54: 0 | V54: 73 | W54: 59.3495935
A57: 1/ En la resolución DGRA-260-2017 se realiza un cambio dentro del Padrón Nacional Electoral en la Junta Receptora de Votos número 6544, modificando el dato del abstencionismo.
A58: 2/ En la resolución DGRA-285-2017 se realiza un cambio dentro del Padrón Nacional Electoral en la Junta Receptora de Votos número 6549, modificando el dato del abstencionismo.
A60: FUENTE: Tribunal Supremo de Elecciones.

Sheet M1.1
A2: MAPA 1.1 COSTA RICA: PARTIDO GANADOR PARA PRESIDENCIA Y VICEPRESIDENCIAS DE LA REPÚBLICA, SEGÚN DISTRITO ADMINISTRATIVO ELECCIONES 4 DE FEBRERO 2018
A48: Nota: Mapa elaborado con fines ilustrativos por el SIGE-DGRE a partir de coberturas digitales del TSE e IGN. Datum WGS 84, sistema de proyección de coordenadas CRTM05, junio de 2018.
A50: FUENTE: Tribunal Supremo de Elecciones.

Sheet M1.2
A2: MAPA 1.2 COSTA RICA: PARTICIPACIÓN PARA PRESIDENCIA Y VICEPRESIDENCIAS DE LA REPÚBLICA, SEGÚN DISTRITO ADMINISTRATIVO ELECCIONES 4 DE FEBRERO 2018
A48: Nota: Mapa elaborado con fines ilustrativos por el SIGE-DGRE a partir de coberturas digitales del TSE e IGN. Datum WGS 84, sistema de proyección de coordenadas CRTM05, junio de 2018.
A50: FUENTE: Tribunal Supremo de Elecciones.

Sheet M1.3
A2: MAPA 1.3 COSTA RICA: ABSTENCIONISMO PARA PRESIDENCIA Y VICEPRESIDENCIAS DE LA REPÚBLICA, SEGÚN DISTRITO ADMINISTRATIVO, ELECCIONES 4 DE FEBRERO 2018
A48: Nota: Mapa elaborado con fines ilustrativos por el SIGE-DGRE a partir de coberturas digitales del TSE e IGN. Datum WGS 84, sistema de proyección de coordenadas CRTM05, junio de 2018.
A50: FUENTE: Tribunal Supremo de Elecciones.

Sheet C1.11
A2: CUADRO 1.11 SAN JOSÉ: JUNTAS, ELECTORADO, PARTICIPACIÓN, VOTOS POR PARTIDO, NULOS, BLANCOS Y ABSTENCIONISMO, PARA PRESIDENCIA Y VICEPRESIDENCIAS DE LA REPÚBLICA, SEGÚN CANTÓN, DISTRITO ADMINISTRATIVO Y DISTRITO ELECTORAL ELECCIONES 4 DE FEBRERO 2018
A4: CANTÓN, DISTRITO ADMINISTRATIVO Y DISTRITO ELECTORAL | B4: JUNTAS | C4: ELECTORADO | D4: VOTOS RECIBIDOS | V4: ABSTENCIONISMO
D5: TOTAL GENERAL | E5: % PARTICIPACIÓN | F5: VOTOS VÁLIDOS | T5: NULOS | U5: BLANCOS | V5: ABSOLUTO | W5: %
F6: TOTAL | G6: ACCESIBILIDAD SIN EXCLUSIÓN | H6: ACCIÓN CIUDADANA | I6: ALIANZA DEMÓCRATA CRISTIANA | J6: DE LOS TRABAJADORES | K6: FRENTE AMPLIO | L6: INTEGRACIÓN NACIONAL | M6: LIBERACIÓN NACIONAL | N6: MOVIMIENTO LIBERTARIO | O6: NUEVA GENERACIÓN | P6: RENOVACIÓN COSTARRICENSE | Q6: REPUBLICANO SOCIAL CRISTIANO | R6: RESTAURACIÓN NACIONAL | S6: UNIDAD SOCIAL CRISTIANA
A8: PROVINCIA SAN JOSÉ | B8: =B9+B60+B72+B126+B175+B193+B223+B252+B273+B291+B306+B320+B354+B367+B378+B390+B410+B422+B436+B573 -> 2091.5 | C8: =C9+C60+C72+C126+C175+C193+C223+C252+C273+C291+C306+C320+C354+C367+C378+C390+C410+C422+C436+C573 -> 1114749 | D8: =F8+T8+U8 -> 762400.5 | E8: =D8/C8*100 -> 68.39212235 | F8: =SUM(G8:S8) -> 755595 | G8: =G9+G60+G72+G126+G175+G193+G223+G252+G273+G291+G306+G320+G354+G367+G378+G390+G410+G422+G436+G573 -> 2339 | H8: 177639.5 | I8: 2659 | J8: 1497 | K8: 5889 | L8: 68058 | M8: 135870 | N8: 7673.5 | O8: 6395 | P8: 4047.5 | Q8: 34676 | R8: 172974 | S8: 135877.5 | T8: 5642.5 | U8: 1163 | V8: =V9+V60+V72+V126+V175+V193+V223+V252+V273+V291+V306+V320+V354+V367+V378+V390+V410+V422+X436+V573 -> 313182.5 | W8: 31.60787765
A9: CANTÓN 1 SAN JOSÉ | B9: 409 | C9: 234558 | D9: =F9+T9+U9 -> 156152 | E9: =D9/C9*100 -> 66.57287323 | F9: =SUM(G9:S9) -> 154842 | G9: 416 | H9: 34657 | I9: 575 | J9: 303 | K9: 1260 | L9: 15513 | M9: 27669 | N9: 1608 | O9: 1316 | P9: 769 | Q9: 6227 | R9: 37931 | S9: 26598 | T9: 1106 | U9: 204 | V9: 78406 | W9: 33.42712677
A10: DISTRITO 1 CARMEN | B10: 9 | C10: 4967 | D10: =F10+T10+U10 -> 3216 | E10: =D10/C10*100 -> 64.74733239 | F10: =SUM(G10:S10) -> 3195 | G10: 7 | H10: 822 | I10: 11 | J10: 5 | K10: 53 | L10: 298 | M10: 683 | N10: 21 | O10: 28 | P10: 7 | Q10: 98 | R10: 349 | S10: 813 | T10: 18 | U10: 3 | V10: 1751 | W10: 35.25266761
A11: CARMEN | B11: 2 | C11: 1175 | D11: =F11+T11+U11 -> 710 | E11: =D11/C11*100 -> 60.42553191 | F11: 702 | G11: 1 | H11: 202 | I11: 1 | J11: 0 | K11: 9 | L11: 71 | M11: 133 | N11: 4 | O11: 8 | P11: 3 | Q11: 20 | R11: 76 | S11: 174 | T11: 7 | U11: 1 | V11: 465 | W11: 39.57446809
A12: ARANJUEZ | B12: 7 | C12: 3792 | D12: =F12+T12+U12 -> 2506 | E12: 66.08649789 | F12: 2493 | G12: 6 | H12: 620 | I12: 10 | J12: 5 | K12: 44 | L12: 227 | M12: 550 | N12: 17 | O12: 20 | P12: 4 | Q12: 78 | R12: 273 | S12: 639 | T12: 11 | U12: 2 | V12: 1286 | W12: 33.91350211
A13: DISTRITO 2 MERCED | B13: 17 | C13: 9904 | D13: =F13+T13+U13 -> 6139 | E13: 61.98505654 | F13: 6067 | G13: 21 | H13: 1424 | I13: 19 | J13: 14 | K13: 49 | L13: 735 | M13: 1182 | N13: 81 | O13: 44 | P13: 32 | Q13: 274 | R13: 1263 | S13: 929 | T13: 52 | U13: 20 | V13: 3765 | W13: 38.01494346
A14: BARRIO MÉXICO | B14: 14 | C14: 8330 | D14: 5098 | E14: 61.20048019 | F14: 5042 | G14: 20 | H14: 1133 | I14: 17 | J14: 13 | K14: 35 | L14: 636 | M14: 983 | N14: 76 | O14: 37 | P14: 27 | Q14: 245 | R14: 1091 | S14: 729 | T14: 39 | U14: 17 | V14: 3232 | W14: 38.79951981
A15: PITAHAYA | B15: 3 | C15: 1574 | D15: 1041 | E15: 66.13722999 | F15: 1025 | G15: 1 | H15: 291 | I15: 2 | J15: 1 | K15: 14 | L15: 99 | M15: 199 | N15: 5 | O15: 7 | P15: 5 | Q15: 29 | R15: 172 | S15: 200 | T15: 13 | U15: 3 | V15: 533 | W15: 33.86277001
A16: DISTRITO: 3 HOSPITAL1/ | B16: 34 | C16: 19095 | D16: 11625 | E16: 61.5 | F16: 11517 | G16: 45 | H16: 2176 | I16: 59 | J16: 21 | K16: 96 | L16: 1410 | M16: 2174 | N16: 111 | O16: 109 | P16: 72 | Q16: 596 | R16: 3053 | S16: 1595 | T16: 86 | U16: 22 | V16: 7265 | W16: 38.5
A17: HOSPITAL | B17: 3 | C17: 1663 | D17: 881 | E17: 52.97654841 | F17: 875 | G17: 3 | H17: 170 | I17: 6 | J17: 1 | K17: 7 | L17: 132 | M17: 182 | N17: 10 | O17: 9 | P17: 5 | Q17: 34 | R17: 198 | S17: 118 | T17: 5 | U17: 1 | V17: 782 | W17: 47.02345159
A18: CRISTO REY | B18: 8 | C18: 4264 | D18: 2702 | E18: 63.36772983 | F18: 2679 | G18: 10 | H18: 465 | I18: 13 | J18: 6 | K18: 30 | L18: 323 | M18: 563 | N18: 26 | O18: 24 | P18: 18 | Q18: 138 | R18: 748 | S18: 315 | T18: 18 | U18: 5 | V18: 1562 | W18: 36.63227017
A19: OMAR DENGO | B19: 16 | C19: 9623 | D19: 6064 | E19: 63.01569157 | F19: 6000 | G19: 21 | H19: 1127 | I19: 32 | J19: 10 | K19: 47 | L19: 783 | M19: 1012 | N19: 54 | O19: 58 | P19: 36 | Q19: 354 | R19: 1750 | S19: 716 | T19: 52 | U19: 12 | V19: 3559 | W19: 36.98430843
A20: SAN BOSCO | B20: 5 | C20: 2746 | D20: 1926 | E20: 70.1383831 | F20: 1911 | G20: 11 | H20: 408 | I20: 8 | J20: 4 | K20: 9 | L20: 171 | M20: 406 | N20: 18 | O20: 17 | P20: 4 | Q20: 68 | R20: 346 | S20: 441 | T20: 11 | U20: 4 | V20: 820 | W20: 29.8616169
A21: C.P. CRISTO REY1/ | B21: 2 | C21: 799 | D21: 52 | E21: 8.8 | F21: 52 | G21: 0 | H21: 6 | I21: 0 | J21: 0 | K21: 3 | L21: 1 | M21: 11 | N21: 3 | O21: 1 | P21: 9 | Q21: 2 | R21: 11 | S21: 5 | T21: 0 | U21: 0 | V21: 542 | W21: 91.2
A22: DISTRITO 4 CATEDRAL | B22: 27 | C22: 15321 | D22: 10164 | E22: 66.34031721 | F22: 10094 | G22: 26 | H22: 2509 | I22: 37 | J22: 24 | K22: 91 | L22: 1129 | M22: 1948 | N22: 109 | O22: 69 | P22: 61 | Q22: 444 | R22: 1797 | S22: 1850 | T22: 57 | U22: 13 | V22: 5157 | W22: 33.65968279
A23: CATEDRAL | B23: 3 | C23: 1572 | D23: 859 | E23: 54.6437659 | F23: 852 | G23: 1 | H23: 212 | I23: 2 | J23: 4 | K23: 4 | L23: 119 | M23: 167 | N23: 9 | O23: 2 | P23: 5 | Q23: 33 | R23: 107 | S23: 187 | T23: 4 | U23: 3 | V23: 713 | W23: 45.3562341
A24: GONZÁLEZ VÍQUEZ | B24: 12 | C24: 6713 | D24: 4397 | E24: 65.49977655 | F24: 4372 | G24: 11 | H24: 1029 | I24: 18 | J24: 10 | K24: 43 | L24: 501 | M24: 867 | N24: 55 | O24: 29 | P24: 28 | Q24: 176 | R24: 886 | S24: 719 | T24: 20 | U24: 5 | V24: 2316 | W24: 34.50022345
A25: NACIONES UNIDAS | B25: 3 | C25: 1854 | D25: 1321 | E25: 71.25134844 | F25: 1311 | G25: 6 | H25: 360 | I25: 0 | J25: 5 | K25: 10 | L25: 131 | M25: 229 | N25: 12 | O25: 11 | P25: 8 | Q25: 53 | R25: 270 | S25: 216 | T25: 8 | U25: 2 | V25: 533 | W25: 28.74865156
A26: BARRIO LUJÁN | B26: 9 | C26: 5182 | D26: 3587 | E26: 69.22037823 | F26: 3559 | G26: 8 | H26: 908 | I26: 17 | J26: 5 | K26: 34 | L26: 378 | M26: 685 | N26: 33 | O26: 27 | P26: 20 | Q26: 182 | R26: 534 | S26: 728 | T26: 25 | U26: 3 | V26: 1595 | W26: 30.77962177
A27: DISTRITO 5 ZAPOTE | B27: 32 | C27: 18251 | D27: 13224 | E27: 72.45630376 | F27: 13149 | G27: 22 | H27: 3628 | I27: 48 | J27: 29 | K27: 112 | L27: 1279 | M27: 2422 | N27: 129 | O27: 127 | P27: 61 | Q27: 455 | R27: 2304 | S27: 2533 | T27: 64 | U27: 11 | V27: 5027 | W27: 27.54369624
A28: ZAPOTE | B28: 23 | C28: 13250 | D28: 9507 | E28: 71.7509434 | F28: 9446 | G28: 18 | H28: 2471 | I28: 39 | J28: 16 | K28: 89 | L28: 923 | M28: 1737 | N28: 93 | O28: 89 | P28: 48 | Q28: 370 | R28: 1863 | S28: 1690 | T28: 53 | U28: 8 | V28: 3743 | W28: 28.2490566
A29: CÓRDOBA | B29: 9 | C29: 5001 | D29: 3717 | E29: 74.32513497 | F29: 3703 | G29: 4 | H29: 1157 | I29: 9 | J29: 13 | K29: 23 | L29: 356 | M29: 685 | N29: 36 | O29: 38 | P29: 13 | Q29: 85 | R29: 441 | S29: 843 | T29: 11 | U29: 3 | V29: 1284 | W29: 25.67486503
A30: DISTRITO 6 SAN FRANCISCO DE DOS RÍOS | B30: 32 | C30: 18366 | D30: 13607 | E30: 74.08798867 | F30: 13546 | G30: 22 | H30: 3823 | I30: 51 | J30: 17 | K30: 140 | L30: 1220 | M30: 2675 | N30: 106 | O30: 121 | P30: 48 | Q30: 367 | R30: 2159 | S30: 2797 | T30: 53 | U30: 8 | V30: 4759 | W30: 25.91201133
A31: SAN FRANCISCO DE DOS RÍOS | B31: 20 | C31: 11534 | D31: 8562 | E31: 74.23270331 | F31: 8521 | G31: 13 | H31: 2362 | I31: 30 | J31: 11 | K31: 88 | L31: 758 | M31: 1698 | N31: 53 | O31: 73 | P31: 33 | Q31: 250 | R31: 1338 | S31: 1814 | T31: 35 | U31: 6 | V31: 2972 | W31: 25.76729669
A32: SANTA MARTA | B32: 12 | C32: 6832 | D32: 5045 | E32: 73.84367681 | F32: 5025 | G32: 9 | H32: 1461 | I32: 21 | J32: 6 | K32: 52 | L32: 462 | M32: 977 | N32: 53 | O32: 48 | P32: 15 | Q32: 117 | R32: 821 | S32: 983 | T32: 18 | U32: 2 | V32: 1787 | W32: 26.15632319
A33: DISTRITO 7 URUCA | B33: 29 | C33: 15982 | D33: 9908 | E33: 61.99474409 | F33: 9799 | G33: 27 | H33: 2073 | I33: 31 | J33: 21 | K33: 73 | L33: 737 | M33: 1705 | N33: 119 | O33: 77 | P33: 37 | Q33: 273 | R33: 2699 | S33: 1927 | T33: 94 | U33: 15 | V33: 6074 | W33: 38.00525591
A34: URUCA | B34: 5 | C34: 2887 | D34: 1804 | E34: 62.48701074 | F34: 1788 | G34: 5 | H34: 460 | I34: 4 | J34: 2 | K34: 12 | L34: 133 | M34: 346 | N34: 26 | O34: 11 | P34: 7 | Q34: 49 | R34: 291 | S34: 442 | T34: 11 | U34: 5 | V34: 1083 | W34: 37.51298926
A35: LA CAJA | B35: 5 | C35: 2980 | D35: 2133 | E35: 71.57718121 | F35: 2127 | G35: 3 | H35: 529 | I35: 4 | J35: 2 | K35: 16 | L35: 149 | M35: 410 | N35: 21 | O35: 16 | P35: 4 | Q35: 29 | R35: 213 | S35: 731 | T35: 6 | U35: 0 | V35: 847 | W35: 28.42281879
A36: CORAZÓN DE JESÚS | B36: 2 | C36: 926 | D36: 617 | E36: 66.63066955 | F36: 612 | G36: 2 | H36: 96 | I36: 0 | J36: 2 | K36: 4 | L36: 48 | M36: 165 | N36: 8 | O36: 3 | P36: 4 | Q36: 28 | R36: 165 | S36: 87 | T36: 5 | U36: 0 | V36: 309 | W36: 33.36933045
A37: ROSITER CARBALLO [LAS BRISAS] | B37: 2 | C37: 1001 | D37: 668 | E37: 66.73326673 | F37: 654 | G37: 1 | H37: 66 | I37: 1 | J37: 1 | K37: 6 | L37: 46 | M37: 79 | N37: 9 | O37: 3 | P37: 3 | Q37: 46 | R37: 373 | S37: 20 | T37: 12 | U37: 2 | V37: 333 | W37: 33.26673327
A38: LA CARPIO | B38: 8 | C38: 4694 | D38: 2146 | E38: 45.71793779 | F38: 2106 | G38: 8 | H38: 285 | I38: 7 | J38: 6 | K38: 3 | L38: 137 | M38: 253 | N38: 27 | O38: 14 | P38: 11 | Q38: 42 | R38: 1100 | S38: 213 | T38: 34 | U38: 6 | V38: 2548 | W38: 54.28206221
A39: PEREGRINA | B39: 6 | C39: 3364 | D39: 2482 | E39: 73.78121284 | F39: 2456 | G39: 8 | H39: 635 | I39: 15 | J39: 7 | K39: 32 | L39: 217 | M39: 429 | N39: 25 | O39: 29 | P39: 7 | Q39: 79 | R39: 545 | S39: 428 | T39: 25 | U39: 1 | V39: 882 | W39: 26.21878716
A40: C.S.M. CAPEMCOL | B40: 1 | C40: 130 | D40: 58 | E40: 44.61538462 | F40: 56 | G40: 0 | H40: 2 | I40: 0 | J40: 1 | K40: 0 | L40: 7 | M40: 23 | N40: 3 | O40: 1 | P40: 1 | Q40: 0 | R40: 12 | S40: 6 | T40: 1 | U40: 1 | V40: 72 | W40: 55.38461538
A41: DISTRITO 8 MATA REDONDA | B41: 13 | C41: 7579 | D41: 5304 | E41: 69.98284734 | F41: 5271 | G41: 8 | H41: 1200 | I41: 16 | J41: 11 | K41: 32 | L41: 468 | M41: 1209 | N41: 48 | O41: 44 | P41: 17 | Q41: 107 | R41: 585 | S41: 1526 | T41: 28 | U41: 5 | V41: 2275 | W41: 30.01715266
A42: MATA REDONDA | B42: 6 | C42: 3411 | D42: 2357 | E42: 69.09997068 | F42: 2344 | G42: 3 | H42: 483 | I42: 6 | J42: 2 | K42: 9 | L42: 182 | M42: 617 | N42: 25 | O42: 17 | P42: 3 | Q42: 34 | R42: 188 | S42: 775 | T42: 11 | U42: 2 | V42: 1054 | W42: 30.90002932
A43: PERPETUO SOCORRO | B43: 7 | C43: 4168 | D43: 2947 | E43: 70.70537428 | F43: 2927 | G43: 5 | H43: 717 | I43: 10 | J43: 9 | K43: 23 | L43: 286 | M43: 592 | N43: 23 | O43: 27 | P43: 14 | Q43: 73 | R43: 397 | S43: 751 | T43: 17 | U43: 3 | V43: 1221 | W43: 29.29462572
A44: DISTRITO 9 PAVAS | B44: 87 | C44: 50685 | D44: 33098 | E44: 65.30137121 | F44: 32755 | G44: 81 | H44: 5971 | I44: 121 | J44: 55 | K44: 205 | L44: 2916 | M44: 5598 | N44: 394 | O44: 266 | P44: 149 | Q44: 1294 | R44: 10154 | S44: 5551 | T44: 290 | U44: 53 | V44: 17586 | W44: 34.69665582
A45: PAVAS | B45: 25 | C45: 14706 | D45: 10490 | E45: 71.33142935 | F45: 10432 | G45: 17 | H45: 2390 | I45: 36 | J45: 10 | K45: 57 | L45: 860 | M45: 2389 | N45: 82 | O45: 96 | P45: 27 | Q45: 280 | R45: 1439 | S45: 2749 | T45: 50 | U45: 8 | V45: 4215 | W45: 28.66177071
A46: RINCÓN GRANDE | B46: 35 | C46: 20648 | D46: 12281 | E46: 59.47791554 | F46: 12112 | G46: 35 | H46: 1572 | I46: 52 | J46: 31 | K46: 85 | L46: 1010 | M46: 1543 | N46: 186 | O46: 90 | P46: 75 | Q46: 523 | R46: 5717 | S46: 1193 | T46: 138 | U46: 31 | V46: 8367 | W46: 40.52208446
A47: MARÍA REINA | B47: 10 | C47: 5721 | D47: 4286 | E47: 74.91697256 | F47: 4268 | G47: 6 | H47: 1086 | I47: 12 | J47: 2 | K47: 28 | L47: 371 | M47: 786 | N47: 48 | O47: 45 | P47: 18 | Q47: 108 | R47: 808 | S47: 950 | T47: 12 | U47: 6 | V47: 1435 | W47: 25.08302744
A48: VILLA ESPERANZA | B48: 16 | C48: 9488 | D48: 6015 | E48: 63.39586847 | F48: 5920 | G48: 22 | H48: 921 | I48: 21 | J48: 11 | K48: 32 | L48: 674 | M48: 870 | N48: 78 | O48: 35 | P48: 28 | Q48: 382 | R48: 2189 | S48: 657 | T48: 87 | U48: 8 | V48: 3473 | W48: 36.60413153
A49: C.S.M. MANUEL ANTONIO CHAPUÍ | B49: 1 | C49: 122 | D49: 26 | E49: 21.31147541 | F49: 23 | G49: 1 | H49: 2 | I49: 0 | J49: 1 | K49: 3 | L49: 1 | M49: 10 | N49: 0 | O49: 0 | P49: 1 | Q49: 1 | R49: 1 | S49: 2 | T49: 3 | U49: 0 | V49: 96 | W49: 78.68852459
A50: DISTRITO 10 HATILLO | B50: 76 | C50: 43972 | D50: 28893 | E50: 65.7077231 | F50: 28640 | G50: 111 | H50: 6169 | I50: 110 | J50: 61 | K50: 224 | L50: 3103 | M50: 4804 | N50: 279 | O50: 242 | P50: 166 | Q50: 1398 | R50: 8106 | S50: 3867 | T50: 218 | U50: 35 | V50: 15079 | W50: 34.2922769
A51: HATILLO | B51: 29 | C51: 17039 | D51: 11716 | E51: 68.75990375 | F51: 11630 | G51: 35 | H51: 2788 | I51: 47 | J51: 31 | K51: 103 | L51: 1304 | M51: 2068 | N51: 98 | O51: 109 | P51: 66 | Q51: 565 | R51: 2758 | S51: 1658 | T51: 74 | U51: 12 | V51: 5323 | W51: 31.24009625
A52: SAGRADA FAMILIA | B52: 11 | C52: 6140 | D52: 3472 | E52: 56.54723127 | F52: 3425 | G52: 21 | H52: 530 | I52: 16 | J52: 6 | K52: 27 | L52: 308 | M52: 586 | N52: 56 | O52: 17 | P52: 19 | Q52: 167 | R52: 1308 | S52: 364 | T52: 39 | U52: 8 | V52: 2668 | W52: 43.45276873
A53: HATILLO 8 | B53: 27 | C53: 15843 | D53: 10526 | E53: 66.43943698 | F53: 10440 | G53: 42 | H53: 2376 | I53: 39 | J53: 13 | K53: 82 | L53: 1158 | M53: 1729 | N53: 95 | O53: 92 | P53: 60 | Q53: 491 | R53: 2768 | S53: 1495 | T53: 73 | U53: 13 | V53: 5317 | W53: 33.56056302
A54: COLONIA 15 DE SETIEMBRE | B54: 9 | C54: 4950 | D54: 3179 | E54: 64.22222222 | F54: 3145 | G54: 13 | H54: 475 | I54: 8 | J54: 11 | K54: 12 | L54: 333 | M54: 421 | N54: 30 | O54: 24 | P54: 21 | Q54: 175 | R54: 1272 | S54: 350 | T54: 32 | U54: 2 | V54: 1771 | W54: 35.77777778
A55: DISTRITO 11 SAN SEBASTIÁN | B55: 53 | C55: 30436 | D55: 20974 | E55: 68.91181496 | F55: 20809 | G55: 46 | H55: 4862 | I55: 72 | J55: 45 | K55: 185 | L55: 2218 | M55: 3269 | N55: 211 | O55: 189 | P55: 119 | Q55: 921 | R55: 5462 | S55: 3210 | T55: 146 | U55: 19 | V55: 9462 | W55: 31.08818504
A56: SAN SEBASTIÁN | B56: 19 | C56: 11236 | D56: 7736 | E56: 68.8501246 | F56: 7670 | G56: 23 | H56: 1646 | I56: 33 | J56: 16 | K56: 51 | L56: 783 | M56: 1196 | N56: 71 | O56: 71 | P56: 48 | Q56: 334 | R56: 2340 | S56: 1058 | T56: 55 | U56: 11 | V56: 3500 | W56: 31.1498754
A57: PASO ANCHO SUR | B57: 17 | C57: 9694 | D57: 6777 | E57: 69.9092222 | F57: 6732 | G57: 12 | H57: 1692 | I57: 21 | J57: 15 | K57: 66 | L57: 676 | M57: 1051 | N57: 82 | O57: 65 | P57: 37 | Q57: 273 | R57: 1574 | S57: 1168 | T57: 41 | U57: 4 | V57: 2917 | W57: 30.0907778
A58: PASO ANCHO NORTE | B58: 11 | C58: 6111 | D58: 4107 | E58: =D58/C58*100 -> 67.20667649 | F58: 4076 | G58: 7 | H58: 942 | I58: 9 | J58: 8 | K58: 44 | L58: 516 | M58: 638 | N58: 35 | O58: 36 | P58: 24 | Q58: 186 | R58: 1011 | S58: 620 | T58: 28 | U58: 3 | V58: 2004 | W58: 32.79332351
A59: COLONIA KENNEDY | B59: 6 | C59: 3395 | D59: 2354 | E59: =D59/C59*100 -> 69.33726068 | F59: 2331 | G59: 4 | H59: 582 | I59: 9 | J59: 6 | K59: 24 | L59: 243 | M59: 384 | N59: 23 | O59: 17 | P59: 10 | Q59: 128 | R59: 537 | S59: 364 | T59: 22 | U59: 1 | V59: 1041 | W59: 30.66273932
A60: CANTÓN 2 ESCAZÚ | B60: 80.5 | C60: 46941 | D60: 33450.5 | E60: 71.26073156 | F60: 33231 | G60: 94 | H60: 7242.5 | I60: 60 | J60: 69 | K60: 227 | L60: 2674 | M60: 7248 | N60: 406.5 | O60: 262 | P60: 155.5 | Q60: 1166 | R60: 4666 | S60: 8960.5 | T60: 193.5 | U60: 26 | V60: 13490.5 | W60: 28.73926844
A61: DISTRITO 1 ESCAZÚ | B61: 21 | C61: 12370 | D61: 8910 | E61: 72.02910267 | F61: 8851 | G61: 26 | H61: 2100 | I61: 20 | J61: 18 | K61: 75 | L61: 811 | M61: 1811 | N61: 96 | O61: 75 | P61: 50 | Q61: 349 | R61: 1288 | S61: 2132 | T61: 51 | U61: 8 | V61: 3460 | W61: 27.97089733
A62: ESCAZÚ | B62: 21 | C62: 12370 | D62: 8910 | E62: 72.02910267 | F62: 8851 | G62: 26 | H62: 2100 | I62: 20 | J62: 18 | K62: 75 | L62: 811 | M62: 1811 | N62: 96 | O62: 75 | P62: 50 | Q62: 349 | R62: 1288 | S62: 2132 | T62: 51 | U62: 8 | V62: 3460 | W62: 27.97089733
A63: DISTRITO 2 SAN ANTONIO | B63: 26 | C63: 15243 | D63: 10383 | E63: 68.1165125 | F63: 10296 | G63: 55 | H63: 2585 | I63: 19 | J63: 23 | K63: 91 | L63: 1003 | M63: 1793 | N63: 142 | O63: 96 | P63: 79 | Q63: 554 | R63: 2063 | S63: 1793 | T63: 77 | U63: 10 | V63: 4860 | W63: 31.8834875
A64: SAN ANTONIO | B64: 20 | C64: 11949 | D64: 8308 | E64: 69.52883086 | F64: 8238 | G64: 44 | H64: 2093 | I64: 17 | J64: 22 | K64: 70 | L64: 755 | M64: 1381 | N64: 115 | O64: 79 | P64: 61 | Q64: 419 | R64: 1688 | S64: 1494 | T64: 63 | U64: 7 | V64: 3641 | W64: 30.47116914
A65: BEBEDERO O SAN FRANCISCO | B65: 1 | C65: 544 | D65: 323 | E65: 59.375 | F65: 318 | G65: 1 | H65: 52 | I65: 1 | J65: 0 | K65: 3 | L65: 34 | M65: 83 | N65: 6 | O65: 4 | P65: 5 | Q65: 24 | R65: 58 | S65: 47 | T65: 3 | U65: 2 | V65: 221 | W65: 40.625
A66: CARMEN [CHIVERRAL] | B66: 5 | C66: 2750 | D66: 1752 | E66: 63.70909091 | F66: 1740 | G66: 10 | H66: 440 | I66: 1 | J66: 1 | K66: 18 | L66: 214 | M66: 329 | N66: 21 | O66: 13 | P66: 13 | Q66: 111 | R66: 317 | S66: 252 | T66: 11 | U66: 1 | V66: 998 | W66: 36.29090909
A67: DISTRITO 3 SAN RAFAEL | B67: 34 | C67: 19358 | D67: 14179 | E67: 73.24620312 | F67: 14105 | G67: 13 | H67: 2561 | I67: 21 | J67: 28 | K67: 61 | L67: 860 | M67: 3657 | N67: 169 | O67: 91 | P67: 27 | Q67: 263 | R67: 1316 | S67: 5038 | T67: 66 | U67: 8 | V67: 5179 | W67: 26.75379688
A68: SAN RAFAEL | B68: 16 | C68: 9256 | D68: 6731 | E68: 72.72039758 | F68: 6697 | G68: 4 | H68: 1083 | I68: 11 | J68: 16 | K68: 26 | L68: 366 | M68: 1875 | N68: 72 | O68: 29 | P68: 13 | Q68: 93 | R68: 460 | S68: 2649 | T68: 30 | U68: 4 | V68: 2525 | W68: 27.27960242
A69: GUACHIPELÍN [SAN GABRIEL] | B69: 10 | C69: 6021 | D69: 4534 | E69: 75.3031058 | F69: 4507 | G69: 3 | H69: 822 | I69: 8 | J69: 6 | K69: 17 | L69: 286 | M69: 1160 | N69: 43 | O69: 46 | P69: 7 | Q69: 75 | R69: 445 | S69: 1589 | T69: 23 | U69: 4 | V69: 1487 | W69: 24.6968942
A70: BELO HORIZONTE NORTE | B70: 7 | C70: 4021 | D70: 2871 | E70: 71.40014922 | F70: 2859 | G70: 6 | H70: 649 | I70: 2 | J70: 6 | K70: 18 | L70: 208 | M70: 596 | N70: 53 | O70: 16 | P70: 6 | Q70: 95 | R70: 409 | S70: 795 | T70: 12 | U70: 0 | V70: 1150 | W70: 28.59985078
A71: H.A. MAGDALA | B71: 1 | C71: 60 | D71: 43 | E71: =D71/C71*100 -> 71.66666667 | F71: 42 | G71: 0 | H71: 7 | I71: 0 | J71: 0 | K71: 0 | L71: 0 | M71: 26 | N71: 1 | O71: 0 | P71: 1 | Q71: 0 | R71: 2 | S71: 5 | T71: 1 | U71: 0 | V71: 17 | W71: 28.33333333
A72: CANTÓN 3 DESAMPARADOS | B72: 289 | C72: 160243 | D72: 109313 | E72: =D72/C72*100 -> 68.2170204 | F72: 108371 | G72: 397 | H72: 24445 | I72: 388 | J72: 219 | K72: 816 | L72: 10014 | M72: 19343 | N72: 1182 | O72: 887 | P72: 593 | Q72: 5428 | R72: 29462 | S72: 15197 | T72: 797 | U72: 145 | V72: 50931 | W72: 31.7829796
A73: DISTRITO 1 DESAMPARADOS | B73: 53 | C73: 30885 | D73: 21767 | E73: =D73/C73*100 -> 70.47757811 | F73: 21591 | G73: 69 | H73: 5285 | I73: 92 | J73: 41 | K73: 183 | L73: 2045 | M73: 3805 | N73: 187 | O73: 192 | P73: 116 | Q73: 946 | R73: 5384 | S73: 3246 | T73: 156 | U73: 20 | V73: 9118 | W73: 29.52242189
A74: DESAMPARADOS | B74: 17 | C74: 9980 | D74: =F74+T74+U74 -> 7337 | E74: =D74/C74*100 -> 73.51703407 | F74: =SUM(G74:S74) -> 7297 | G74: 17 | H74: 1819 | I74: 32 | J74: 12 | K74: 58 | L74: 681 | M74: 1559 | N74: 49 | O74: 59 | P74: 28 | Q74: 290 | R74: 1408 | S74: 1285 | T74: 33 | U74: 7 | V74: 2643 | W74: 26.48296593
A75: CALLE FALLAS | B75: 24 | C75: 14343 | D75: 9823 | E75: 68.48636966 | F75: 9740 | G75: 32 | H75: 2380 | I75: 48 | J75: 22 | K75: 85 | L75: 902 | M75: 1540 | N75: 103 | O75: 88 | P75: 67 | Q75: 450 | R75: 2626 | S75: 1397 | T75: 75 | U75: 8 | V75: 4520 | W75: 31.51363034
A76: SAN JERÓNIMO | B76: 11 | C76: 6486 | D76: 4570 | E76: 70.45945113 | F76: 4522 | G76: 19 | H76: 1084 | I76: 11 | J76: 6 | K76: 39 | L76: 455 | M76: 697 | N76: 35 | O76: 43 | P76: 21 | Q76: 201 | R76: 1350 | S76: 561 | T76: 43 | U76: 5 | V76: 1916 | W76: 29.54054887
A77: H.A. OFELIA CARVAJAL DE NARANJO | B77: 1 | C77: 76 | D77: =F77+T77+U77 -> 37 | E77: 48.68421053 | F77: 32 | G77: 1 | H77: 2 | I77: 1 | J77: 1 | K77: 1 | L77: 7 | M77: 9 | N77: 0 | O77: 2 | P77: 0 | Q77: 5 | R77: 0 | S77: 3 | T77: 5 | U77: 0 | V77: 39 | W77: 51.31578947
A78: DISTRITO 2 SAN MIGUEL | B78: 52 | C78: 28465 | D78: 18952 | E78: 66.58001054 | F78: 18789 | G78: 59 | H78: 3746 | I78: 50 | J78: 32 | K78: 111 | L78: 1642 | M78: 3169 | N78: 215 | O78: 131 | P78: 106 | Q78: 1102 | R78: 6315 | S78: 2111 | T78: 147 | U78: 16 | V78: 9513 | W78: 33.41998946
A79: SAN MIGUEL | B79: 15 | C79: 8935 | D79: 5875 | E79: 65.75265809 | F79: 5841 | G79: 14 | H79: 1296 | I79: 13 | J79: 11 | K79: 39 | L79: 495 | M79: 905 | N79: 66 | O79: 45 | P79: 25 | Q79: 241 | R79: 1908 | S79: 783 | T79: 29 | U79: 5 | V79: 3060 | W79: 34.24734191
A80: JERICÓ | B80: 2 | C80: 919 | D80: 647 | E80: 70.40261153 | F80: 638 | G80: 1 | H80: 144 | I80: 1 | J80: 1 | K80: 10 | L80: 55 | M80: 211 | N80: 4 | O80: 7 | P80: 5 | Q80: 37 | R80: 111 | S80: 51 | T80: 7 | U80: 2 | V80: 272 | W80: 29.59738847
A81: HIGUITO | B81: 16 | C81: 9136 | D81: 6061 | E81: 66.34194396 | F81: 6002 | G81: 18 | H81: 1184 | I81: 15 | J81: 10 | K81: 29 | L81: 526 | M81: 972 | N81: 76 | O81: 37 | P81: 35 | Q81: 318 | R81: 2155 | S81: 627 | T81: 53 | U81: 6 | V81: 3075 | W81: 33.65805604
A82: PACAYA | B82: 1 | C82: 91 | D82: 78 | E82: 85.71428571 | F82: 78 | G82: 1 | H82: 2 | I82: 0 | J82: 0 | K82: 0 | L82: 7 | M82: 42 | N82: 0 | O82: 1 | P82: 0 | Q82: 6 | R82: 19 | S82: 0 | T82: 0 | U82: 0 | V82: 13 | W82: 14.28571429
A83: EL LLANO | B83: 6 | C83: 3223 | D83: 2227 | E83: 69.09711449 | F83: 2201 | G83: 6 | H83: 405 | I83: 8 | J83: 3 | K83: 9 | L83: 180 | M83: 476 | N83: 18 | O83: 14 | P83: 11 | Q83: 190 | R83: 598 | S83: 283 | T83: 26 | U83: 0 | V83: 996 | W83: 30.90288551
A84: MANZANO [MANZANILLO] | B84: 1 | C84: 172 | D84: 118 | E84: 68.60465116 | F84: 118 | G84: 0 | H84: 29 | I84: 1 | J84: 0 | K84: 0 | L84: 9 | M84: 20 | N84: 0 | O84: 0 | P84: 1 | Q84: 12 | R84: 29 | S84: 17 | T84: 0 | U84: 0 | V84: 54 | W84: 31.39534884
A85: LAS LOMAS | B85: 2 | C85: 911 | D85: 606 | E85: 66.52030735 | F85: 598 | G85: 3 | H85: 130 | I85: 8 | J85: 2 | K85: 4 | L85: 58 | M85: 101 | N85: 9 | O85: 6 | P85: 3 | Q85: 37 | R85: 175 | S85: 62 | T85: 6 | U85: 2 | V85: 305 | W85: 33.47969265
A86: LA CAPRI | B86: 9 | C86: 5078 | D86: 3340 | E86: 65.77392674 | F86: 3313 | G86: 16 | H86: 556 | I86: 4 | J86: 5 | K86: 20 | L86: 312 | M86: 442 | N86: 42 | O86: 21 | P86: 26 | Q86: 261 | R86: 1320 | S86: 288 | T86: 26 | U86: 1 | V86: 1738 | W86: 34.22607326
A87: DISTRITO 3 SAN JUAN DE DIOS | B87: 22 | C87: 12997 | D87: 8426 | E87: 64.83034546 | F87: 8362 | G87: 37 | H87: 1739 | I87: 21 | J87: 30 | K87: 51 | L87: 938 | M87: 1277 | N87: 117 | O87: 58 | P87: 53 | Q87: 506 | R87: 2288 | S87: 1247 | T87: 57 | U87: 7 | V87: 4571 | W87: 35.16965454
A88: SAN JUAN DE DIOS | B88: 22 | C88: 12997 | D88: 8426 | E88: 64.83034546 | F88: 8362 | G88: 37 | H88: 1739 | I88: 21 | J88: 30 | K88: 51 | L88: 938 | M88: 1277 | N88: 117 | O88: 58 | P88: 53 | Q88: 506 | R88: 2288 | S88: 1247 | T88: 57 | U88: 7 | V88: 4571 | W88: 35.16965454
A89: DISTRITO 4 SAN RAFAEL ARRIBA | B89: 22 | C89: 11494 | D89: 7849 | E89: 68.28780233 | F89: 7804 | G89: 28 | H89: 1924 | I89: 41 | J89: 16 | K89: 61 | L89: 653 | M89: 1430 | N89: 89 | O89: 72 | P89: 34 | Q89: 341 | R89: 1893 | S89: 1222 | T89: 33 | U89: 12 | V89: 3646 | W89: 31.72089786
A90: SAN RAFAEL ARRIBA | B90: 19 | C90: 11039 | D90: 7692 | E90: 69.68022466 | F90: 7647 | G90: 26 | H90: 1872 | I90: 41 | J90: 16 | K90: 61 | L90: 651 | M90: 1382 | N90: 88 | O90: 71 | P90: 34 | Q90: 337 | R90: 1859 | S90: 1209 | T90: 33 | U90: 12 | V90: 3347 | W90: 30.31977534
A91: C P SAN RAFAEL ARRIBA2/ | B91: 1 | C91: 371 | D91: 118 | E91: 31.7 | F91: 118 | G91: 0 | H91: 51 | I91: 0 | J91: 0 | K91: 0 | L91: 1 | M91: 20 | N91: 1 | O91: 1 | P91: 0 | Q91: 3 | R91: 33 | S91: 8 | T91: 0 | U91: 0 | V91: 254 | W91: 68.3
A92: H.A. SAN CAYETANO | B92: 1 | C92: 39 | D92: 10 | E92: 25.64102564 | F92: 10 | G92: 0 | H92: 1 | I92: 0 | J92: 0 | K92: 0 | L92: 1 | M92: 6 | N92: 0 | O92: 0 | P92: 0 | Q92: 0 | R92: 0 | S92: 2 | T92: 0 | U92: 0 | V92: 29 | W92: 74.35897436
A93: H.A. COM MORICE [LA CASONA] | B93: 1 | C93: 45 | D93: 29 | E93: =D93/C93*100 -> 64.44444444 | F93: 29 | G93: 2 | H93: 0 | I93: 0 | J93: 0 | K93: 0 | L93: 0 | M93: 22 | N93: 0 | O93: 0 | P93: 0 | Q93: 1 | R93: 1 | S93: 3 | T93: 0 | U93: 0 | V93: 16 | W93: 35.55555556
A94: DISTRITO 5 SAN ANTONIO | B94: 16 | C94: 9192 | D94: 6859 | E94: =D94/C94*100 -> 74.61923412 | F94: 6821 | G94: 15 | H94: 1966 | I94: 27 | J94: 9 | K94: 59 | L94: 561 | M94: 1294 | N94: 64 | O94: 63 | P94: 25 | Q94: 271 | R94: 1171 | S94: 1296 | T94: 32 | U94: 6 | V94: 2333 | W94: 25.38076588
A95: SAN ANTONIO | B95: 16 | C95: 9192 | D95: 6859 | E95: 74.61923412 | F95: 6821 | G95: 15 | H95: 1966 | I95: 27 | J95: 9 | K95: 59 | L95: 561 | M95: 1294 | N95: 64 | O95: 63 | P95: 25 | Q95: 271 | R95: 1171 | S95: 1296 | T95: 32 | U95: 6 | V95: 2333 | W95: 25.38076588
A96: DISTRITO 6 FRAILES | B96: 6 | C96: 2955 | D96: 2053 | E96: 69.47546531 | F96: 2017 | G96: 14 | H96: 461 | I96: 6 | J96: 4 | K96: 16 | L96: 140 | M96: 706 | N96: 20 | O96: 13 | P96: 13 | Q96: 155 | R96: 236 | S96: 233 | T96: 28 | U96: 8 | V96: 902 | W96: 30.52453469
A97: FRAILES | B97: 3 | C97: 1844 | D97: 1279 | E97: 69.36008677 | F97: 1255 | G97: 11 | H97: 326 | I97: 4 | J97: 3 | K97: 8 | L97: 76 | M97: 417 | N97: 9 | O97: 6 | P97: 6 | Q97: 101 | R97: 157 | S97: 131 | T97: 17 | U97: 7 | V97: 565 | W97: 30.63991323
A98: BUSTAMANTE O ALCIRA | B98: 2 | C98: 908 | D98: 630 | E98: 69.38325991 | F98: 619 | G98: 3 | H98: 106 | I98: 2 | J98: 1 | K98: 8 | L98: 47 | M98: 250 | N98: 9 | O98: 6 | P98: 4 | Q98: 35 | R98: 62 | S98: 86 | T98: 10 | U98: 1 | V98: 278 | W98: 30.61674009
A99: VIOLETA [RINCÓN MORALES] | B99: 1 | C99: 203 | D99: 144 | E99: 70.93596059 | F99: 143 | G99: 0 | H99: 29 | I99: 0 | J99: 0 | K99: 0 | L99: 17 | M99: 39 | N99: 2 | O99: 1 | P99: 3 | Q99: 19 | R99: 17 | S99: 16 | T99: 1 | U99: 0 | V99: 59 | W99: 29.06403941
A100: DISTRITO 7 PATARRÁ | B100: 12 | C100: 6858 | D100: 4470 | E100: 65.17935258 | F100: 4433 | G100: 19 | H100: 877 | I100: 8 | J100: 7 | K100: 49 | L100: 436 | M100: 774 | N100: 68 | O100: 36 | P100: 19 | Q100: 302 | R100: 1192 | S100: 646 | T100: 31 | U100: 6 | V100: 2388 | W100: 34.82064742
A101: PATARRÁ | B101: 6 | C101: 3301 | D101: 2303 | E101: 69.76673735 | F101: 2282 | G101: 9 | H101: 506 | I101: 5 | J101: 3 | K101: 20 | L101: 228 | M101: 434 | N101: 27 | O101: 21 | P101: 9 | Q101: 131 | R101: 512 | S101: 377 | T101: 16 | U101: 5 | V101: 998 | W101: 30.23326265
A102: GUATUSO | B102: 6 | C102: 3557 | D102: 2167 | E102: 60.92212539 | F102: 2151 | G102: 10 | H102: 371 | I102: 3 | J102: 4 | K102: 29 | L102: 208 | M102: 340 | N102: 41 | O102: 15 | P102: 10 | Q102: 171 | R102: 680 | S102: 269 | T102: 15 | U102: 1 | V102: 1390 | W102: 39.07787461
A103: DISTRITO 8 SAN CRISTÓBAL | B103: 7 | C103: 3216 | D103: 2359 | E103: 73.35199005 | F103: 2319 | G103: 8 | H103: 577 | I103: 3 | J103: 8 | K103: 14 | L103: 218 | M103: 820 | N103: 21 | O103: 24 | P103: 21 | Q103: 169 | R103: 238 | S103: 198 | T103: 30 | U103: 10 | V103: 857 | W103: 26.64800995
A104: SAN CRISTÓBAL SUR | B104: 2 | C104: 856 | D104: 645 | E104: 75.35046729 | F104: 635 | G104: 1 | H104: 151 | I104: 0 | J104: 4 | K104: 8 | L104: 66 | M104: 213 | N104: 2 | O104: 9 | P104: 4 | Q104: 64 | R104: 54 | S104: 59 | T104: 8 | U104: 2 | V104: 211 | W104: 24.64953271
A105: SAN CRISTÓBAL NORTE | B105: 2 | C105: 855 | D105: 618 | E105: 72.28070175 | F105: 606 | G105: 1 | H105: 150 | I105: 1 | J105: 0 | K105: 2 | L105: 35 | M105: 215 | N105: 2 | O105: 3 | P105: 6 | Q105: 57 | R105: 76 | S105: 58 | T105: 8 | U105: 4 | V105: 237 | W105: 27.71929825
A106: CRISTO REY | B106: 2 | C106: 1031 | D106: 746 | E106: 72.35693501 | F106: 735 | G106: 5 | H106: 207 | I106: 0 | J106: 1 | K106: 1 | L106: 81 | M106: 261 | N106: 10 | O106: 10 | P106: 3 | Q106: 22 | R106: 88 | S106: 46 | T106: 9 | U106: 2 | V106: 285 | W106: 27.64306499
A107: EMPALME ARRIBA GUARIA [PARTE OESTE] | B107: 1 | C107: 474 | D107: 350 | E107: 73.83966245 | F107: 343 | G107: 1 | H107: 69 | I107: 2 | J107: 3 | K107: 3 | L107: 36 | M107: 131 | N107: 7 | O107: 2 | P107: 8 | Q107: 26 | R107: 20 | S107: 35 | T107: 5 | U107: 2 | V107: 124 | W107: 26.16033755
A108: DISTRITO 9 ROSARIO | B108: 9 | C108: 3034 | D108: 2036 | E108: 67.10613052 | F108: 2005 | G108: 17 | H108: 389 | I108: 2 | J108: 2 | K108: 15 | L108: 207 | M108: 670 | N108: 30 | O108: 8 | P108: 7 | Q108: 184 | R108: 310 | S108: 164 | T108: 24 | U108: 7 | V108: 998 | W108: 32.89386948
A109: ROSARIO | B109: 3 | C109: 1476 | D109: 1017 | E109: 68.90243902 | F109: 998 | G109: 8 | H109: 200 | I109: 1 | J109: 1 | K109: 8 | L109: 93 | M109: 321 | N109: 13 | O109: 6 | P109: 5 | Q109: 99 | R109: 138 | S109: 105 | T109: 15 | U109: 4 | V109: 459 | W109: 31.09756098
A110: GUADARRAMA | B110: 1 | C110: 354 | D110: 203 | E110: 57.34463277 | F110: 201 | G110: 1 | H110: 42 | I110: 0 | J110: 0 | K110: 2 | L110: 15 | M110: 81 | N110: 2 | O110: 0 | P110: 0 | Q110: 15 | R110: 28 | S110: 15 | T110: 2 | U110: 0 | V110: 151 | W110: 42.65536723
A111: LA JOYA | B111: 1 | C111: 161 | D111: 90 | E111: 55.90062112 | F111: 90 | G111: 0 | H111: 4 | I111: 0 | J111: 0 | K111: 1 | L111: 12 | M111: 38 | N111: 3 | O111: 0 | P111: 0 | Q111: 6 | R111: 24 | S111: 2 | T111: 0 | U111: 0 | V111: 71 | W111: 44.09937888
A112: TRINIDAD [PARTE ESTE] | B112: 2 | C112: 702 | D112: 450 | E112: 64.1025641 | F112: 442 | G112: 5 | H112: 102 | I112: 1 | J112: 0 | K112: 3 | L112: 57 | M112: 88 | N112: 10 | O112: 1 | P112: 1 | Q112: 43 | R112: 95 | S112: 36 | T112: 6 | U112: 2 | V112: 252 | W112: 35.8974359
A113: LLANO BONITO | B113: 1 | C113: 121 | D113: 93 | E113: 76.85950413 | F113: 93 | G113: 0 | H113: 10 | I113: 0 | J113: 0 | K113: 0 | L113: 8 | M113: 59 | N113: 1 | O113: 0 | P113: 0 | Q113: 4 | R113: 9 | S113: 2 | T113: 0 | U113: 0 | V113: 28 | W113: 23.14049587
A114: CHIROGRES | B114: 1 | C114: 220 | D114: 183 | E114: 83.18181818 | F114: 181 | G114: 3 | H114: 31 | I114: 0 | J114: 1 | K114: 1 | L114: 22 | M114: 83 | N114: 1 | O114: 1 | P114: 1 | Q114: 17 | R114: 16 | S114: 4 | T114: 1 | U114: 1 | V114: 37 | W114: 16.81818182
A115: DISTRITO 10 DAMAS | B115: 17 | C115: 9294 | D115: 6597 | E115: 70.98127824 | F115: 6547 | G115: 25 | H115: 1608 | I115: 22 | J115: 16 | K115: 39 | L115: 571 | M115: 997 | N115: 63 | O115: 57 | P115: 33 | Q115: 310 | R115: 1905 | S115: 901 | T115: 44 | U115: 6 | V115: 2697 | W115: 29.01872176
A116: FÁTIMA DE DAMAS | B116: 5 | C116: 2629 | D116: 2015 | E116: 76.64511221 | F116: 1994 | G116: 7 | H116: 589 | I116: 8 | J116: 3 | K116: 9 | L116: 138 | M116: 334 | N116: 11 | O116: 12 | P116: 10 | Q116: 104 | R116: 471 | S116: 298 | T116: 18 | U116: 3 | V116: 614 | W116: 23.35488779
A117: SAN LORENZO | B117: 12 | C117: 6665 | D117: 4582 | E117: 68.7471868 | F117: 4553 | G117: 18 | H117: 1019 | I117: 14 | J117: 13 | K117: 30 | L117: 433 | M117: 663 | N117: 52 | O117: 45 | P117: 23 | Q117: 206 | R117: 1434 | S117: 603 | T117: 26 | U117: 3 | V117: 2083 | W117: 31.2528132
A118: DISTRITO 11 SAN RAFAEL ABAJO | B118: 28 | C118: 16128 | D118: 11367 | E118: 70.47991071 | F118: 11288 | G118: 25 | H118: 2715 | I118: 44 | J118: 22 | K118: 85 | L118: 1175 | M118: 1777 | N118: 116 | O118: 81 | P118: 56 | Q118: 489 | R118: 3011 | S118: 1692 | T118: 69 | U118: 10 | V118: 4761 | W118: 29.52008929
A119: SAN RAFAEL ABAJO | B119: 19 | C119: 10933 | D119: 7648 | E119: 69.95335224 | F119: 7594 | G119: 19 | H119: 1872 | I119: 28 | J119: 12 | K119: 63 | L119: 793 | M119: 1200 | N119: 71 | O119: 54 | P119: 39 | Q119: 312 | R119: 1988 | S119: 1143 | T119: 45 | U119: 9 | V119: 3285 | W119: 30.04664776
A120: VALENCIA | B120: 9 | C120: 5195 | D120: 3719 | E120: 71.58806545 | F120: 3694 | G120: 6 | H120: 843 | I120: 16 | J120: 10 | K120: 22 | L120: 382 | M120: 577 | N120: 45 | O120: 27 | P120: 17 | Q120: 177 | R120: 1023 | S120: 549 | T120: 24 | U120: 1 | V120: 1476 | W120: 28.41193455
A121: DISTRITO 12 GRAVILIAS | B121: 23 | C121: 12889 | D121: 9654 | E121: 74.90107844 | F121: 9592 | G121: 33 | H121: 2504 | I121: 43 | J121: 13 | K121: 85 | L121: 875 | M121: 1680 | N121: 88 | O121: 106 | P121: 59 | Q121: 380 | R121: 2111 | S121: 1615 | T121: 47 | U121: 15 | V121: 3235 | W121: 25.09892156
A122: GRAVILIAS | B122: 13 | C122: 7307 | D122: 5452 | E122: 74.61338443 | F122: 5416 | G122: 20 | H122: 1388 | I122: 24 | J122: 6 | K122: 47 | L122: 515 | M122: 1002 | N122: 43 | O122: 69 | P122: 35 | Q122: 241 | R122: 1206 | S122: 820 | T122: 30 | U122: 6 | V122: 1855 | W122: 25.38661557
A123: EL PORVENIR | B123: 10 | C123: 5582 | D123: 4202 | E123: 75.27767825 | F123: 4176 | G123: 13 | H123: 1116 | I123: 19 | J123: 7 | K123: 38 | L123: 360 | M123: 678 | N123: 45 | O123: 37 | P123: 24 | Q123: 139 | R123: 905 | S123: 795 | T123: 17 | U123: 9 | V123: 1380 | W123: 24.72232175
A124: DISTRITO 13 LOS GUIDO | B124: 22 | C124: 12836 | D124: 6924 | E124: 53.94203802 | F124: 6803 | G124: 48 | H124: 654 | I124: 29 | J124: 19 | K124: 48 | L124: 553 | M124: 944 | N124: 104 | O124: 46 | P124: 51 | Q124: 273 | R124: 3408 | S124: 626 | T124: 99 | U124: 22 | V124: 5912 | W124: 46.05796198
A125: LOS GUIDO | B125: 22 | C125: 12836 | D125: 6924 | E125: 53.94203802 | F125: 6803 | G125: 48 | H125: 654 | I125: 29 | J125: 19 | K125: 48 | L125: 553 | M125: 944 | N125: 104 | O125: 46 | P125: 51 | Q125: 273 | R125: 3408 | S125: 626 | T125: 99 | U125: 22 | V125: 5912 | W125: 46.05796198
A126: CANTÓN 4 PURISCAL | B126: 72 | C126: 28424 | D126: 19815 | E126: 69.71221503 | F126: 19570 | G126: 54 | H126: 4651 | I126: 43 | J126: 25 | K126: 109 | L126: 1945 | M126: 4983 | N126: 147 | O126: 129 | P126: 98 | Q126: 1722 | R126: 2561 | S126: 3103 | T126: 189 | U126: 56 | V126: 8609 | W126: 30.28778497
A127: DISTRITO 1 SANTIAGO | B127: 22 | C127: 10631 | D127: 7529 | E127: 70.82118333 | F127: 7472 | G127: 12 | H127: 2110 | I127: 19 | J127: 10 | K127: 48 | L127: 684 | M127: 1690 | N127: 49 | O127: 61 | P127: 26 | Q127: 523 | R127: 887 | S127: 1353 | T127: 47 | U127: 10 | V127: 3102 | W127: 29.17881667
A128: SANTIAGO | B128: 14 | C128: 8231 | D128: 5870 | E128: 71.3157575 | F128: 5830 | G128: 12 | H128: 1652 | I128: 17 | J128: 9 | K128: 41 | L128: 507 | M128: 1322 | N128: 41 | O128: 48 | P128: 20 | Q128: 410 | R128: 728 | S128: 1023 | T128: 34 | U128: 6 | V128: 2361 | W128: 28.6842425
A129: POZOS | B129: 2 | C129: 900 | D129: 550 | E129: 61.11111111 | F129: 544 | G129: 0 | H129: 152 | I129: 1 | J129: 0 | K129: 3 | L129: 82 | M129: 127 | N129: 4 | O129: 3 | P129: 1 | Q129: 32 | R129: 45 | S129: 94 | T129: 6 | U129: 0 | V129: 350 | W129: 38.88888889
A130: CARIT | B130: 2 | C130: 705 | D130: 542 | E130: 76.87943262 | F130: 538 | G130: 0 | H130: 140 | I130: 0 | J130: 0 | K130: 2 | L130: 54 | M130: 119 | N130: 3 | O130: 1 | P130: 1 | Q130: 31 | R130: 58 | S130: 129 | T130: 3 | U130: 1 | V130: 163 | W130: 23.12056738
A131: BAJO BADILLA | B131: 1 | C131: 74 | D131: 35 | E131: 47.2972973 | F131: 32 | G131: 0 | H131: 11 | I131: 0 | J131: 0 | K131: 0 | L131: 7 | M131: 4 | N131: 0 | O131: 0 | P131: 0 | Q131: 1 | R131: 4 | S131: 5 | T131: 0 | U131: 3 | V131: 39 | W131: 52.7027027
A132: H.A. CORAZÓN DE JESÚS | B132: 1 | C132: 38 | D132: 25 | E132: 65.78947368 | F132: 24 | G132: 0 | H132: 2 | I132: 0 | J132: 0 | K132: 0 | L132: 0 | M132: 8 | N132: 0 | O132: 0 | P132: 1 | Q132: 4 | R132: 0 | S132: 9 | T132: 1 | U132: 0 | V132: 13 | W132: 34.21052632
A133: SANTA CECILIA | B133: 2 | C133: 683 | D133: 507 | E133: 74.23133236 | F133: 504 | G133: 0 | H133: 153 | I133: 1 | J133: 1 | K133: 2 | L133: 34 | M133: 110 | N133: 1 | O133: 9 | P133: 3 | Q133: 45 | R133: 52 | S133: 93 | T133: 3 | U133: 0 | V133: 176 | W133: 25.76866764
A134: DISTRITO 2 MERCEDES SUR | B134: 14 | C134: 4481 | D134: 3080 | E134: 68.73465744 | F134: 3020 | G134: 16 | H134: 674 | I134: 5 | J134: 1 | K134: 29 | L134: 337 | M134: 835 | N134: 23 | O134: 17 | P134: 21 | Q134: 224 | R134: 400 | S134: 438 | T134: 48 | U134: 12 | V134: 1401 | W134: 31.26534256
A135: MERCEDES SUR | B135: 1 | C135: 547 | D135: 376 | E135: 68.73857404 | F135: 369 | G135: 3 | H135: 84 | I135: 0 | J135: 1 | K135: 2 | L135: 52 | M135: 117 | N135: 3 | O135: 0 | P135: 2 | Q135: 27 | R135: 31 | S135: 47 | T135: 5 | U135: 2 | V135: 171 | W135: 31.26142596
A136: MERCEDES NORTE | B136: 3 | C136: 1296 | D136: 897 | E136: 69.21296296 | F136: 882 | G136: 2 | H136: 163 | I136: 2 | J136: 0 | K136: 8 | L136: 75 | M136: 226 | N136: 1 | O136: 3 | P136: 3 | Q136: 84 | R136: 174 | S136: 141 | T136: 11 | U136: 4 | V136: 399 | W136: 30.78703704
A137: BOCANA | B137: 1 | C137: 108 | D137: 72 | E137: 66.66666667 | F137: 72 | G137: 0 | H137: 8 | I137: 1 | J137: 0 | K137: 2 | L137: 1 | M137: 29 | N137: 0 | O137: 0 | P137: 1 | Q137: 5 | R137: 2 | S137: 23 | T137: 0 | U137: 0 | V137: 36 | W137: 33.33333333
A138: JILGUERAL | B138: 1 | C138: 166 | D138: 97 | E138: 58.43373494 | F138: =SUM(G138:S138) -> 95 | G138: 1 | H138: 22 | I138: 1 | J138: 0 | K138: 1 | L138: 10 | M138: 27 | N138: 0 | O138: 2 | P138: 1 | Q138: 3 | R138: 9 | S138: 18 | T138: 1 | U138: 1 | V138: 69 | W138: 41.56626506
A139: TÚFARES | B139: 1 | C139: 79 | D139: 54 | E139: =D139/C139*100 -> 68.35443038 | F139: 54 | G139: 1 | H139: 7 | I139: 0 | J139: 0 | K139: 0 | L139: 14 | M139: 23 | N139: 0 | O139: 0 | P139: 1 | Q139: 1 | R139: 4 | S139: 3 | T139: 0 | U139: 0 | V139: 25 | W139: 31.64556962
A140: SALITRALES | B140: 1 | C140: 183 | D140: 120 | E140: 65.57377049 | F140: 115 | G140: 2 | H140: 17 | I140: 1 | J140: 0 | K140: 1 | L140: 10 | M140: 33 | N140: 4 | O140: 0 | P140: 3 | Q140: 18 | R140: 12 | S140: 14 | T140: 5 | U140: 0 | V140: 63 | W140: 34.42622951
A141: ALTO LA PALMA | B141: 1 | C141: 289 | D141: =F141+T141+U141 -> 197 | E141: 68.16608997 | F141: 191 | G141: 1 | H141: 35 | I141: 0 | J141: 0 | K141: 0 | L141: 42 | M141: 42 | N141: 4 | O141: 2 | P141: 2 | Q141: 20 | R141: 13 | S141: 30 | T141: 6 | U141: 0 | V141: 92 | W141: 31.83391003
A142: LLANO GRANDE | B142: 1 | C142: 103 | D142: 53 | E142: 51.45631068 | F142: 53 | G142: 0 | H142: 3 | I142: 0 | J142: 0 | K142: 0 | L142: 1 | M142: 26 | N142: 0 | O142: 0 | P142: 0 | Q142: 1 | R142: 5 | S142: 17 | T142: 0 | U142: 0 | V142: 50 | W142: 48.54368932
A143: SANTA MARTA | B143: 1 | C143: 350 | D143: 240 | E143: 68.57142857 | F143: 236 | G143: 2 | H143: 48 | I143: 0 | J143: 0 | K143: 2 | L143: 29 | M143: 88 | N143: 3 | O143: 2 | P143: 0 | Q143: 18 | R143: 15 | S143: 29 | T143: 3 | U143: 1 | V143: 110 | W143: 31.42857143
A144: CERBATANA | B144: 3 | C144: 1360 | D144: 974 | E144: 71.61764706 | F144: 953 | G144: 4 | H144: 287 | I144: 0 | J144: 0 | K144: 13 | L144: 103 | M144: 224 | N144: 8 | O144: 8 | P144: 8 | Q144: 47 | R144: 135 | S144: 116 | T144: 17 | U144: 4 | V144: 386 | W144: 28.38235294
A145: DISTRITO 3 BARBACOAS | B145: 8 | C145: 3640 | D145: 2632 | E145: 72.30769231 | F145: 2600 | G145: 11 | H145: 519 | I145: 4 | J145: 4 | K145: 11 | L145: 287 | M145: 611 | N145: 14 | O145: 14 | P145: 17 | Q145: 295 | R145: 425 | S145: 388 | T145: 21 | U145: 11 | V145: 1008 | W145: 27.69230769
A146: BARBACOAS [SAN ISIDRO] | B146: 3 | C146: 1319 | D146: 981 | E146: 74.37452616 | F146: 967 | G146: 4 | H146: 206 | I146: 0 | J146: 1 | K146: 4 | L146: 119 | M146: 172 | N146: 6 | O146: 5 | P146: 9 | Q146: 103 | R146: 156 | S146: 182 | T146: 8 | U146: 6 | V146: 338 | W146: 25.62547384
A147: PIEDADES | B147: 2 | C147: 836 | D147: 606 | E147: 72.48803828 | F147: 600 | G147: 4 | H147: 114 | I147: 3 | J147: 2 | K147: 4 | L147: 51 | M147: 146 | N147: 5 | O147: 3 | P147: 2 | Q147: 87 | R147: 85 | S147: 94 | T147: 4 | U147: 2 | V147: 230 | W147: 27.51196172
A148: SAN JUAN | B148: 2 | C148: 1119 | D148: 806 | E148: 72.02859696 | F148: 799 | G148: 2 | H148: 159 | I148: 1 | J148: 1 | K148: 2 | L148: 93 | M148: 220 | N148: 3 | O148: 6 | P148: 5 | Q148: 69 | R148: 155 | S148: 83 | T148: 5 | U148: 2 | V148: 313 | W148: 27.97140304
A149: CORTEZAL | B149: 1 | C149: 366 | D149: 239 | E149: 65.30054645 | F149: 234 | G149: 1 | H149: 40 | I149: 0 | J149: 0 | K149: 1 | L149: 24 | M149: 73 | N149: 0 | O149: 0 | P149: 1 | Q149: 36 | R149: 29 | S149: 29 | T149: 4 | U149: 1 | V149: 127 | W149: 34.69945355
A150: DISTRITO 4 GRIFO ALTO | B150: 3 | C150: 984 | D150: 719 | E150: 73.06910569 | F150: 717 | G150: 0 | H150: 128 | I150: 1 | J150: 0 | K150: 6 | L150: 77 | M150: 223 | N150: 4 | O150: 5 | P150: 2 | Q150: 55 | R150: 63 | S150: 153 | T150: 1 | U150: 1 | V150: 265 | W150: 26.93089431
A151: GRIFO ALTO | B151: 2 | C151: 827 | D151: 607 | E151: 73.39782346 | F151: 605 | G151: 0 | H151: 102 | I151: 1 | J151: 0 | K151: 4 | L151: 71 | M151: 192 | N151: 4 | O151: 5 | P151: 2 | Q151: 48 | R151: 57 | S151: 119 | T151: 1 | U151: 1 | V151: 220 | W151: 26.60217654
A152: GRIFO BAJO | B152: 1 | C152: 157 | D152: 112 | E152: 71.33757962 | F152: 112 | G152: 0 | H152: 26 | I152: 0 | J152: 0 | K152: 2 | L152: 6 | M152: 31 | N152: 0 | O152: 0 | P152: 0 | Q152: 7 | R152: 6 | S152: 34 | T152: 0 | U152: 0 | V152: 45 | W152: 28.66242038
A153: DISTRITO 5 SAN RAFAEL | B153: 3 | C153: 1306 | D153: 896 | E153: 68.60643185 | F153: 883 | G153: 2 | H153: 163 | I153: 3 | J153: 2 | K153: 2 | L153: 115 | M153: 248 | N153: 5 | O153: 3 | P153: 3 | Q153: 205 | R153: 52 | S153: 80 | T153: 9 | U153: 4 | V153: 410 | W153: 31.39356815
A154: SAN RAFAEL ARRIBA | B154: 2 | C154: 965 | D154: 668 | E154: 69.22279793 | F154: 658 | G154: 1 | H154: 142 | I154: 2 | J154: 2 | K154: 2 | L154: 90 | M154: 192 | N154: 5 | O154: 2 | P154: 2 | Q154: 101 | R154: 44 | S154: 73 | T154: 6 | U154: 4 | V154: 297 | W154: 30.77720207
A155: FLORALIA | B155: 1 | C155: 341 | D155: 228 | E155: 66.86217009 | F155: 225 | G155: 1 | H155: 21 | I155: 1 | J155: 0 | K155: 0 | L155: 25 | M155: 56 | N155: 0 | O155: 1 | P155: 1 | Q155: 104 | R155: 8 | S155: 7 | T155: 3 | U155: 0 | V155: 113 | W155: 33.13782991
A156: DISTRITO 6 CANDELARITA | B156: 4 | C156: 1431 | D156: 984 | E156: 68.76310273 | F156: 963 | G156: 1 | H156: 193 | I156: 2 | J156: 2 | K156: 1 | L156: 68 | M156: 407 | N156: 23 | O156: 2 | P156: 10 | Q156: 65 | R156: 68 | S156: 121 | T156: 18 | U156: 3 | V156: 447 | W156: 31.23689727
A157: CANDELARITA | B157: 2 | C157: 756 | D157: 498 | E157: 65.87301587 | F157: 483 | G157: 0 | H157: 70 | I157: 0 | J157: 0 | K157: 1 | L157: 29 | M157: 224 | N157: 16 | O157: 1 | P157: 4 | Q157: 38 | R157: 40 | S157: 60 | T157: 13 | U157: 2 | V157: 258 | W157: 34.12698413
A158: PEDERNAL O SAN PEDRO | B158: 2 | C158: 675 | D158: 486 | E158: 72 | F158: 480 | G158: 1 | H158: 123 | I158: 2 | J158: 2 | K158: 0 | L158: 39 | M158: 183 | N158: 7 | O158: 1 | P158: 6 | Q158: 27 | R158: 28 | S158: 61 | T158: 5 | U158: 1 | V158: 189 | W158: 28
A159: DISTRITO 7 DESAMPARADITOS | B159: 1 | C159: 591 | D159: 453 | E159: 76.64974619 | F159: 444 | G159: 0 | H159: 128 | I159: 3 | J159: 1 | K159: 0 | L159: 41 | M159: 80 | N159: 3 | O159: 5 | P159: 0 | Q159: 43 | R159: 44 | S159: 96 | T159: 6 | U159: 3 | V159: 138 | W159: 23.35025381
A160: DESAMPARADITOS | B160: 1 | C160: 591 | D160: 453 | E160: 76.64974619 | F160: 444 | G160: 0 | H160: 128 | I160: 3 | J160: 1 | K160: 0 | L160: 41 | M160: 80 | N160: 3 | O160: 5 | P160: 0 | Q160: 43 | R160: 44 | S160: 96 | T160: 6 | U160: 3 | V160: 138 | W160: 23.35025381
A161: DISTRITO 8 SAN ANTONIO | B161: 6 | C161: 3109 | D161: 2106 | E161: 67.73882277 | F161: 2088 | G161: 6 | H161: 579 | I161: 5 | J161: 4 | K161: 6 | L161: 212 | M161: 438 | N161: 17 | O161: 13 | P161: 10 | Q161: 133 | R161: 390 | S161: 275 | T161: 14 | U161: 4 | V161: 1003 | W161: 32.26117723
A162: SAN ANTONIO | B162: 5 | C162: 2889 | D162: 1951 | E162: 67.532018 | F162: 1933 | G162: 5 | H162: 535 | I162: 5 | J162: 3 | K162: 6 | L162: 191 | M162: 406 | N162: 14 | O162: 11 | P162: 8 | Q162: 129 | R162: 367 | S162: 253 | T162: 14 | U162: 4 | V162: 938 | W162: 32.467982
A163: CHARCÓN [RÍO VIEJO] | B163: 1 | C163: 220 | D163: 155 | E163: 70.45454545 | F163: 155 | G163: 1 | H163: 44 | I163: 0 | J163: 1 | K163: 0 | L163: 21 | M163: 32 | N163: 3 | O163: 2 | P163: 2 | Q163: 4 | R163: 23 | S163: 22 | T163: 0 | U163: 0 | V163: 65 | W163: 29.54545455
A164: DISTRITO 9 CHIRES | B164: 11 | C164: 2251 | D164: 1416 | E164: 62.90537539 | F164: 1383 | G164: 6 | H164: 157 | I164: 1 | J164: 1 | K164: 6 | L164: 124 | M164: 451 | N164: 9 | O164: 9 | P164: 9 | Q164: 179 | R164: 232 | S164: 199 | T164: 25 | U164: 8 | V164: 835 | W164: 37.09462461
A165: GUARUMAL | B165: 1 | C165: 202 | D165: 128 | E165: 63.36633663 | F165: 127 | G165: 0 | H165: 19 | I165: 0 | J165: 0 | K165: 0 | L165: 10 | M165: 68 | N165: 0 | O165: 1 | P165: 0 | Q165: 12 | R165: 4 | S165: 13 | T165: 0 | U165: 1 | V165: 74 | W165: 36.63366337
A166: ZAPATÓN [SAN CARLOS] | B166: 1 | C166: 349 | D166: 218 | E166: 62.46418338 | F166: 214 | G166: 1 | H166: 6 | I166: 0 | J166: 0 | K166: 2 | L166: 6 | M166: 55 | N166: 2 | O166: 2 | P166: 2 | Q166: 60 | R166: 38 | S166: 40 | T166: 4 | U166: 0 | V166: 131 | W166: 37.53581662
A167: GAMALOTILLO | B167: 1 | C167: 266 | D167: 176 | E167: 66.16541353 | F167: 174 | G167: 1 | H167: 27 | I167: 0 | J167: 0 | K167: 1 | L167: 24 | M167: 43 | N167: 2 | O167: 0 | P167: 1 | Q167: 16 | R167: 29 | S167: 30 | T167: 2 | U167: 0 | V167: 90 | W167: 33.83458647
A168: LOS ÁNGELES | B168: 1 | C168: 135 | D168: 90 | E168: 66.66666667 | F168: 86 | G168: 1 | H168: 12 | I168: 0 | J168: 0 | K168: 0 | L168: 8 | M168: 22 | N168: 1 | O168: 0 | P168: 0 | Q168: 13 | R168: 13 | S168: 16 | T168: 2 | U168: 2 | V168: 45 | W168: 33.33333333
A169: LA GLORIA | B169: 2 | C169: 671 | D169: 402 | E169: 59.91058122 | F169: 386 | G169: 1 | H169: 52 | I169: 1 | J169: 0 | K169: 1 | L169: 35 | M169: 116 | N169: 2 | O169: 3 | P169: 1 | Q169: 24 | R169: 105 | S169: 45 | T169: 13 | U169: 3 | V169: 269 | W169: 40.08941878
A170: MASTATAL | B170: 1 | C170: 108 | D170: 73 | E170: 67.59259259 | F170: 70 | G170: 2 | H170: 6 | I170: 0 | J170: 0 | K170: 2 | L170: 6 | M170: 28 | N170: 0 | O170: 1 | P170: 3 | Q170: 10 | R170: 4 | S170: 8 | T170: 2 | U170: 1 | V170: 35 | W170: 32.40740741
A171: SAN MARTÍN | B171: 1 | C171: 104 | D171: 70 | E171: 67.30769231 | F171: 70 | G171: 0 | H171: 6 | I171: 0 | J171: 0 | K171: 0 | L171: 19 | M171: 19 | N171: 0 | O171: 0 | P171: 0 | Q171: 7 | R171: 12 | S171: 7 | T171: 0 | U171: 0 | V171: 34 | W171: 32.69230769
A172: SAN MIGUEL | B172: 1 | C172: 153 | D172: 106 | E172: 69.28104575 | F172: 104 | G172: 0 | H172: 13 | I172: 0 | J172: 0 | K172: 0 | L172: 5 | M172: 35 | N172: 0 | O172: 1 | P172: 0 | Q172: 29 | R172: 6 | S172: 15 | T172: 1 | U172: 1 | V172: 47 | W172: 30.71895425
A173: VISTA DE MAR NORTE | B173: 1 | C173: 216 | D173: 128 | E173: 59.25925926 | F173: 128 | G173: 0 | H173: 15 | I173: 0 | J173: 1 | K173: 0 | L173: 10 | M173: 60 | N173: 1 | O173: 1 | P173: 2 | Q173: 2 | R173: 12 | S173: 24 | T173: 0 | U173: 0 | V173: 88 | W173: 40.74074074
A174: BAJO REY | B174: 1 | C174: 47 | D174: 25 | E174: 53.19148936 | F174: 24 | G174: 0 | H174: 1 | I174: 0 | J174: 0 | K174: 0 | L174: 1 | M174: 5 | N174: 1 | O174: 0 | P174: 0 | Q174: 6 | R174: 9 | S174: 1 | T174: 1 | U174: 0 | V174: 22 | W174: 46.80851064
A175: CANTÓN 5 TARRAZÚ | B175: 28 | C175: 12188 | D175: 7984 | E175: 65.50705612 | F175: 7872 | G175: 31 | H175: 2293 | I175: 34 | J175: 11 | K175: 96 | L175: 494 | M175: 1498 | N175: 65 | O175: 60 | P175: 66 | Q175: 661 | R175: 1051 | S175: 1512 | T175: 93 | U175: 19 | V175: 4204 | W175: 34.49294388
A176: DISTRITO 1 SAN MARCOS | B176: 15 | C176: 7736 | D176: 5165 | E176: 66.76577042 | F176: 5097 | G176: 24 | H176: 1663 | I176: 22 | J176: 6 | K176: 72 | L176: 335 | M176: 892 | N176: 38 | O176: 48 | P176: 41 | Q176: 407 | R176: 635 | S176: 914 | T176: 57 | U176: 11 | V176: 2571 | W176: 33.23422958
A177: SAN MARCOS | B177: 9 | C177: 4933 | D177: 3350 | E177: 67.90999392 | F177: 3297 | G177: 13 | H177: 1112 | I177: 12 | J177: 4 | K177: 46 | L177: 208 | M177: 570 | N177: 17 | O177: 30 | P177: 20 | Q177: 250 | R177: 387 | S177: 628 | T177: 47 | U177: 6 | V177: 1583 | W177: 32.09000608
A178: SAN PEDRO | B178: 1 | C178: 450 | D178: 327 | E178: 72.66666667 | F178: 324 | G178: 2 | H178: 119 | I178: 0 | J178: 1 | K178: 1 | L178: 4 | M178: 53 | N178: 3 | O178: 2 | P178: 2 | Q178: 35 | R178: 29 | S178: 73 | T178: 0 | U178: 3 | V178: 123 | W178: 27.33333333
A179: GUADALUPE | B179: 2 | C179: 1099 | D179: 728 | E179: 66.24203822 | F179: 726 | G179: 4 | H179: 238 | I179: 4 | J179: 1 | K179: 16 | L179: 77 | M179: 114 | N179: 10 | O179: 7 | P179: 10 | Q179: 47 | R179: 102 | S179: 96 | T179: 2 | U179: 0 | V179: 371 | W179: 33.75796178
A180: RODEO NORTE | B180: 2 | C180: 1207 | D180: 732 | E180: 60.64623032 | F180: 722 | G180: 4 | H180: 192 | I180: 5 | J180: 0 | K180: 8 | L180: 46 | M180: 145 | N180: 8 | O180: 9 | P180: 7 | Q180: 74 | R180: 117 | S180: 107 | T180: 8 | U180: 2 | V180: 475 | W180: 39.35376968
A181: H.A. LOS SANTOS | B181: 1 | C181: 47 | D181: 28 | E181: 59.57446809 | F181: 28 | G181: 1 | H181: 2 | I181: 1 | J181: 0 | K181: 1 | L181: 0 | M181: 10 | N181: 0 | O181: 0 | P181: 2 | Q181: 1 | R181: 0 | S181: 10 | T181: 0 | U181: 0 | V181: 19 | W181: 40.42553191
A182: DISTRITO 2 SAN LORENZO | B182: 10 | C182: 3010 | D182: 1891 | E182: 62.82392027 | F182: 1866 | G182: 4 | H182: 463 | I182: 5 | J182: 4 | K182: 14 | L182: 110 | M182: 435 | N182: 17 | O182: 9 | P182: 18 | Q182: 184 | R182: 269 | S182: 334 | T182: 18 | U182: 7 | V182: 1119 | W182: 37.17607973
A183: SAN MARTÍN | B183: 1 | C183: 127 | D183: 87 | E183: 68.50393701 | F183: 85 | G183: 0 | H183: 20 | I183: 0 | J183: 1 | K183: 0 | L183: 5 | M183: 25 | N183: 1 | O183: 0 | P183: 0 | Q183: 9 | R183: 15 | S183: 9 | T183: 0 | U183: 2 | V183: 40 | W183: 31.49606299
A184: SAN LORENZO | B184: 4 | C184: 2202 | D184: 1359 | E184: 61.71662125 | F184: 1342 | G184: 3 | H184: 370 | I184: 4 | J184: 1 | K184: 11 | L184: 86 | M184: 276 | N184: 13 | O184: 8 | P184: 16 | Q184: 133 | R184: 176 | S184: 245 | T184: 13 | U184: 4 | V184: 843 | W184: 38.28337875
A185: ESQUIPULAS | B185: 1 | C185: 29 | D185: 15 | E185: 51.72413793 | F185: 14 | G185: 0 | H185: 1 | I185: 0 | J185: 0 | K185: 0 | L185: 0 | M185: 1 | N185: 0 | O185: 0 | P185: 0 | Q185: 1 | R185: 6 | S185: 5 | T185: 1 | U185: 0 | V185: 14 | W185: 48.27586207
A186: SAN MIGUEL O SALADO | B186: 1 | C186: 130 | D186: 75 | E186: 57.69230769 | F186: 73 | G186: 0 | H186: 18 | I186: 0 | J186: 0 | K186: 1 | L186: 2 | M186: 27 | N186: 0 | O186: 0 | P186: 1 | Q186: 13 | R186: 4 | S186: 7 | T186: 1 | U186: 1 | V186: 55 | W186: 42.30769231
A187: ZAPOTAL | B187: 1 | C187: 205 | D187: 135 | E187: 65.85365854 | F187: 132 | G187: 0 | H187: 18 | I187: 0 | J187: 1 | K187: 1 | L187: 6 | M187: 55 | N187: 2 | O187: 1 | P187: 1 | Q187: 8 | R187: 22 | S187: 17 | T187: 3 | U187: 0 | V187: 70 | W187: 34.14634146
A188: NÁPOLES | B188: 1 | C188: 268 | D188: 178 | E188: 66.41791045 | F188: 178 | G188: 0 | H188: 35 | I188: 1 | J188: 1 | K188: 1 | L188: 9 | M188: 48 | N188: 0 | O188: 0 | P188: 0 | Q188: 20 | R188: 19 | S188: 44 | T188: 0 | U188: 0 | V188: 90 | W188: 33.58208955
A189: QUEBRADA ARROYO | B189: 1 | C189: 49 | D189: 42 | E189: 85.71428571 | F189: 42 | G189: 1 | H189: 1 | I189: 0 | J189: 0 | K189: 0 | L189: 2 | M189: 3 | N189: 1 | O189: 0 | P189: 0 | Q189: 0 | R189: 27 | S189: 7 | T189: 0 | U189: 0 | V189: 7 | W189: 14.28571429
A190: DISTRITO 3 SAN CARLOS | B190: 3 | C190: 1442 | D190: 928 | E190: 64.35506241 | F190: 909 | G190: 3 | H190: 167 | I190: 7 | J190: 1 | K190: 10 | L190: 49 | M190: 171 | N190: 10 | O190: 3 | P190: 7 | Q190: 70 | R190: 147 | S190: 264 | T190: 18 | U190: 1 | V190: 514 | W190: 35.64493759
A191: SAN CARLOS | B191: 2 | C191: 912 | D191: 573 | E191: 62.82894737 | F191: 557 | G191: 1 | H191: 114 | I191: 4 | J191: 1 | K191: 9 | L191: 34 | M191: 109 | N191: 6 | O191: 2 | P191: 3 | Q191: 53 | R191: 67 | S191: 154 | T191: 16 | U191: 0 | V191: 339 | W191: 37.17105263
A192: SAN JERÓNIMO | B192: 1 | C192: 530 | D192: 355 | E192: 66.98113208 | F192: 352 | G192: 2 | H192: 53 | I192: 3 | J192: 0 | K192: 1 | L192: 15 | M192: 62 | N192: 4 | O192: 1 | P192: 4 | Q192: 17 | R192: 80 | S192: 110 | T192: 2 | U192: 1 | V192: 175 | W192: 33.01886792
A193: CANTÓN 6 ASERRÍ | B193: 83 | C193: 42853 | D193: 28799 | E193: =D193/C193*100 -> 67.20416307 | F193: 28516 | G193: 107 | H193: 6424 | I193: 84 | J193: 59 | K193: 201 | L193: 2700 | M193: 6024 | N193: 296 | O193: 204 | P193: 167 | Q193: 1902 | R193: 6351 | S193: 3997 | T193: 234 | U193: 49 | V193: 14054 | W193: 32.79583693
A194: DISTRITO 1 ASERRÍ | B194: 42 | C194: 24220 | D194: 16358 | E194: =D194/C194*100 -> 67.53922378 | F194: 16239 | G194: 48 | H194: 3502 | I194: 51 | J194: 36 | K194: 128 | L194: 1568 | M194: 3103 | N194: 164 | O194: 133 | P194: 97 | Q194: 964 | R194: 3920 | S194: 2525 | T194: 102 | U194: 17 | V194: 7862 | W194: 32.46077622
A195: ASERRÍ | B195: 31 | C195: 18627 | D195: 12622 | E195: =D195/C195*100 -> 67.76185108 | F195: 12533 | G195: 33 | H195: 2852 | I195: 38 | J195: 22 | K195: 104 | L195: 1238 | M195: 2460 | N195: 126 | O195: 104 | P195: 77 | Q195: 683 | R195: 2793 | S195: 2003 | T195: 79 | U195: 10 | V195: 6005 | W195: 32.23814892
A196: POÁS | B196: 10 | C196: 5551 | D196: 3710 | E196: 66.83480454 | F196: 3681 | G196: 14 | H196: 650 | I196: 13 | J196: 13 | K196: 24 | L196: 328 | M196: 639 | N196: 38 | O196: 28 | P196: 20 | Q196: 281 | R196: 1127 | S196: 506 | T196: 23 | U196: 6 | V196: 1841 | W196: 33.16519546
A197: H.A. SAN FRANCISCO DE ASÍS | B197: 1 | C197: 42 | D197: 26 | E197: 61.9047619 | F197: 25 | G197: 1 | H197: 0 | I197: 0 | J197: 1 | K197: 0 | L197: 2 | M197: 4 | N197: 0 | O197: 1 | P197: 0 | Q197: 0 | R197: 0 | S197: 16 | T197: 0 | U197: 1 | V197: 16 | W197: 38.0952381
A198: DISTRITO 2 TARBACA | B198: 5 | C198: 1785 | D198: 1166 | E198: 65.32212885 | F198: 1147 | G198: 6 | H198: 250 | I198: 7 | J198: 1 | K198: 12 | L198: 112 | M198: 297 | N198: 16 | O198: 8 | P198: 5 | Q198: 77 | R198: 166 | S198: 190 | T198: 13 | U198: 6 | V198: 619 | W198: 34.67787115
A199: TARBACA O PRAGA | B199: 3 | C199: 1303 | D199: 850 | E199: 65.23407521 | F199: 838 | G199: 5 | H199: 204 | I199: 6 | J199: 1 | K199: 9 | L199: 74 | M199: 211 | N199: 13 | O199: 6 | P199: 5 | Q199: 44 | R199: 114 | S199: 146 | T199: 8 | U199: 4 | V199: 453 | W199: 34.76592479
A200: EL TIGRE | B200: 1 | C200: 184 | D200: 113 | E200: 61.41304348 | F200: 111 | G200: 1 | H200: 18 | I200: 0 | J200: 0 | K200: 0 | L200: 20 | M200: 28 | N200: 1 | O200: 1 | P200: 0 | Q200: 7 | R200: 26 | S200: 9 | T200: 2 | U200: 0 | V200: 71 | W200: 38.58695652
A201: CEDRAL | B201: 1 | C201: 298 | D201: 203 | E201: 68.12080537 | F201: 198 | G201: 0 | H201: 28 | I201: 1 | J201: 0 | K201: 3 | L201: 18 | M201: 58 | N201: 2 | O201: 1 | P201: 0 | Q201: 26 | R201: 26 | S201: 35 | T201: 3 | U201: 2 | V201: 95 | W201: 31.87919463
A202: DISTRITO 3 VUELTA DE JORCO | B202: 11 | C202: 5056 | D202: 3441 | E202: 68.05775316 | F202: =SUM(G202:S202) -> 3407 | G202: 19 | H202: 947 | I202: 10 | J202: 6 | K202: 18 | L202: 327 | M202: 746 | N202: 27 | O202: 15 | P202: 26 | Q202: 314 | R202: 584 | S202: 368 | T202: 25 | U202: 9 | V202: 1615 | W202: 31.94224684
A203: JOCOTAL ABAJO | B203: 1 | C203: 217 | D203: 142 | E203: 65.43778802 | F203: 141 | G203: 1 | H203: 23 | I203: 0 | J203: 0 | K203: 1 | L203: 12 | M203: 30 | N203: 1 | O203: 0 | P203: 3 | Q203: 12 | R203: 47 | S203: 11 | T203: 1 | U203: 0 | V203: 75 | W203: 34.56221198
... 398 more rows

Sheet C1.12
A2: CUADRO 1.12 ALAJUELA: JUNTAS, ELECTORADO, PARTICIPACIÓN, VOTOS POR PARTIDO, NULOS, BLANCOS Y ABSTENCIONISMO, PARA PRESIDENCIA Y VICEPRESIDENCIAS DE LA REPÚBLICA, SEGÚN CANTÓN, DISTRITO ADMINISTRATIVO Y DISTRITO ELECTORAL ELECCIONES 4 DE FEBRERO 2018
A4: CANTÓN, DISTRITO ADMINISTRATIVO Y DISTRITO ELECTORAL | B4: JUNTAS | C4: ELECTORADO | D4: VOTOS RECIBIDOS | V4: ABSTENCIONISMO
D5: TOTAL GENERAL | E5: % PARTICIPACIÓN | F5: VOTOS VÁLIDOS | T5: NULOS | U5: BLANCOS | V5: ABSOLUTO | W5: %
F6: TOTAL | G6: ACCESIBILIDAD SIN EXCLUSIÓN | H6: ACCIÓN CIUDADANA | I6: ALIANZA DEMÓCRATA CRISTIANA | J6: DE LOS TRABAJADORES | K6: FRENTE AMPLIO | L6: INTEGRACIÓN NACIONAL | M6: LIBERACIÓN NACIONAL | N6: MOVIMIENTO LIBERTARIO | O6: NUEVA GENERACIÓN | P6: RENOVACIÓN COSTARRICENSE | Q6: REPUBLICANO SOCIAL CRISTIANO | R6: RESTAURACIÓN NACIONAL | S6: UNIDAD SOCIAL CRISTIANA
A8: PROVINCIA ALAJUELA | B8: =B9+B95+B158+B212+B225+B249+B281+B300+B317+B334+B443+B464+B479+B530+B556 -> 1312.5 | C8: =C9+C95+C158+C212+C225+C249+C281+C300+C317+C334+C443+C464+C479+C530+C556 -> 630990 | D8: =F8+T8+U8 -> 437995.5 | E8: =D8/C8*100 -> 69.41401607 | F8: =SUM(G8:S8) -> 432675 | G8: =G9+G95+G158+G212+G225+G249+G281+G300+G317+G334+G443+G464+G479+G530+G556 -> 1420 | H8: 93571.5 | I8: 1349 | J8: 969 | K8: 3331.5 | L8: 38698 | M8: 78421.5 | N8: 3941.5 | O8: 3073.5 | P8: 2134.5 | Q8: 23453.5 | R8: 116388.5 | S8: 65923 | T8: 4178.5 | U8: 1142 | V8: 211482.5 | W8: 32.2
A9: CANTÓN 1 ALAJUELA | B9: 371 | C9: 201480 | D9: =F9+T9+U9 -> 135288 | E9: =D9/C9*100 -> 67.14711138 | F9: =SUM(G9:S9) -> 133977 | G9: 450 | H9: 29960 | I9: 420 | J9: 259 | K9: 783 | L9: 11788 | M9: 23677 | N9: 1338 | O9: 1070 | P9: 641 | Q9: 6898 | R9: 36581 | S9: 20112 | T9: 1116 | U9: 195 | V9: 66478 | W9: 32.94807
A10: DISTRITO 1 ALAJUELA | B10: 70 | C10: 40250 | D10: 27983 | E10: =D10/C10*100 -> 69.52298137 | F10: 27790 | G10: 88 | H10: 6983 | I10: 71 | J10: 47 | K10: 204 | L10: 2537 | M10: 5181 | N10: 252 | O10: 221 | P10: 139 | Q10: 1240 | R10: 6368 | S10: 4459 | T10: 158 | U10: 35 | V10: 12267 | W10: 30.47701863
A11: ALAJUELA | B11: 12 | C11: 7088 | D11: 5066 | E11: 71.47291196 | F11: 5041 | G11: 9 | H11: 1295 | I11: 13 | J11: 9 | K11: 34 | L11: 434 | M11: 1166 | N11: 35 | O11: 44 | P11: 11 | Q11: 155 | R11: 682 | S11: 1154 | T11: 22 | U11: 3 | V11: 2022 | W11: 28.52708804
A12: CONCEPCIÓN O EL LLANO | B12: 18 | C12: 10246 | D12: 7445 | E12: 72.66250244 | F12: 7392 | G12: 17 | H12: 2026 | I12: 13 | J12: 13 | K12: 58 | L12: 651 | M12: 1367 | N12: 71 | O12: 42 | P12: 47 | Q12: 312 | R12: 1595 | S12: 1180 | T12: 43 | U12: 10 | V12: 2801 | W12: 27.33749756
A13: CANOAS | B13: 16 | C13: 9180 | D13: 6203 | E13: 67.5708061 | F13: 6162 | G13: 31 | H13: 1515 | I13: 13 | J13: 6 | K13: 44 | L13: 486 | M13: 902 | N13: 59 | O13: 68 | P13: 39 | Q13: 333 | R13: 1764 | S13: 902 | T13: 34 | U13: 7 | V13: 2977 | W13: 32.4291939
A14: MONTECILLOS [PARTE NORTE] | B14: 8 | C14: 4758 | D14: 3037 | E14: 63.82934006 | F14: 3002 | G14: 15 | H14: 582 | I14: 19 | J14: 6 | K14: 17 | L14: 327 | M14: 485 | N14: 35 | O14: 17 | P14: 21 | Q14: 165 | R14: 1011 | S14: 302 | T14: 26 | U14: 9 | V14: 1721 | W14: 36.17065994
A15: H.A. SANTIAGO CRESPO CALVO | B15: 1 | C15: 173 | D15: 73 | E15: 42.19653179 | F15: 71 | G15: 0 | H15: 8 | I15: 0 | J15: 2 | K15: 0 | L15: 6 | M15: 28 | N15: 1 | O15: 0 | P15: 2 | Q15: 9 | R15: 2 | S15: 13 | T15: 1 | U15: 1 | V15: 100 | W15: 57.80346821
A16: CORAZÓN DE JESÚS | B16: 3 | C16: 1662 | D16: 1224 | E16: 73.64620939 | F16: 1216 | G16: 4 | H16: 310 | I16: 3 | J16: 2 | K16: 10 | L16: 109 | M16: 235 | N16: 5 | O16: 9 | P16: 5 | Q16: 49 | R16: 287 | S16: 188 | T16: 8 | U16: 0 | V16: 438 | W16: 26.35379061
A17: EL ARROYO | B17: 3 | C17: 1744 | D17: 1308 | E17: 75 | F17: 1301 | G17: 4 | H17: 331 | I17: 6 | J17: 1 | K17: 15 | L17: 127 | M17: 312 | N17: 10 | O17: 11 | P17: 2 | Q17: 41 | R17: 232 | S17: 209 | T17: 6 | U17: 1 | V17: 436 | W17: 25
A18: EL CARMEN | B18: 9 | C18: 5399 | D18: 3627 | E18: 67.17910724 | F18: 3605 | G18: 8 | H18: 916 | I18: 4 | J18: 8 | K18: 26 | L18: 397 | M18: 686 | N18: 36 | O18: 30 | P18: 12 | Q18: 176 | R18: 795 | S18: 511 | T18: 18 | U18: 4 | V18: 1772 | W18: 32.82089276
A19: DISTRITO 2 SAN JOSÉ | B19: 58 | C19: 33597 | D19: 22704 | E19: 67.57746227 | F19: 22506 | G19: 82 | H19: 5602 | I19: 72 | J19: 53 | K19: 127 | L19: 1990 | M19: 3419 | N19: 167 | O19: 206 | P19: 108 | Q19: 963 | R19: 6459 | S19: 3258 | T19: 164 | U19: 34 | V19: 10893 | W19: 32.42253773
A20: SAN JOSÉ | B20: 16 | C20: 9454 | D20: 5930 | E20: 62.72477258 | F20: 5871 | G20: 27 | H20: 1253 | I20: 15 | J20: 13 | K20: 35 | L20: 602 | M20: 914 | N20: 50 | O20: 52 | P20: 39 | Q20: 282 | R20: 1878 | S20: 711 | T20: 52 | U20: 7 | V20: 3524 | W20: 37.27522742
A21: EL COYOL | B21: 12 | C21: 6672 | D21: 4613 | E21: 69.13968825 | F21: 4579 | G21: 11 | H21: 1249 | I21: 15 | J21: 11 | K21: 23 | L21: 354 | M21: 629 | N21: 34 | O21: 45 | P21: 17 | Q21: 189 | R21: 1228 | S21: 774 | T21: 26 | U21: 8 | V21: 2059 | W21: 30.86031175
A22: TUETAL SUR | B22: 3 | C22: 1561 | D22: 941 | E22: 60.2818706 | F22: 930 | G22: 4 | H22: 140 | I22: 6 | J22: 2 | K22: 3 | L22: 111 | M22: 146 | N22: 8 | O22: 7 | P22: 7 | Q22: 28 | R22: 366 | S22: 102 | T22: 8 | U22: 3 | V22: 620 | W22: 39.7181294
A23: PUEBLO NUEVO | B23: 7 | C23: 4012 | D23: 2754 | E23: 68.6440678 | F23: 2726 | G23: 13 | H23: 594 | I23: 13 | J23: 4 | K23: 16 | L23: 232 | M23: 425 | N23: 14 | O23: 34 | P23: 14 | Q23: 106 | R23: 861 | S23: 400 | T23: 24 | U23: 4 | V23: 1258 | W23: 31.3559322
A24: PACTO DEL JOCOTE | B24: 20 | C24: 11898 | D24: 8466 | E24: 71.15481594 | F24: 8400 | G24: 27 | H24: 2366 | I24: 23 | J24: 23 | K24: 50 | L24: 691 | M24: 1305 | N24: 61 | O24: 68 | P24: 31 | Q24: 358 | R24: 2126 | S24: 1271 | T24: 54 | U24: 12 | V24: 3432 | W24: 28.84518406
A25: DISTRITO 3 CARRIZAL | B25: 10 | C25: 4853 | D25: 3230 | E25: 66.55676901 | F25: 3195 | G25: 15 | H25: 785 | I25: 7 | J25: 3 | K25: 29 | L25: 224 | M25: 596 | N25: 38 | O25: 24 | P25: 14 | Q25: 161 | R25: 842 | S25: 457 | T25: 30 | U25: 5 | V25: 1623 | W25: 33.44323099
A26: CARRIZAL | B26: 5 | C26: 2608 | D26: 1764 | E26: 67.63803681 | F26: 1745 | G26: 6 | H26: 442 | I26: 5 | J26: 2 | K26: 18 | L26: 140 | M26: 336 | N26: 18 | O26: 16 | P26: 6 | Q26: 104 | R26: 360 | S26: 292 | T26: 18 | U26: 1 | V26: 844 | W26: 32.36196319
A27: CINCO ESQUINAS | B27: 2 | C27: 897 | D27: 550 | E27: 61.3154961 | F27: 542 | G27: 3 | H27: 142 | I27: 1 | J27: 0 | K27: 6 | L27: 34 | M27: 94 | N27: 4 | O27: 3 | P27: 3 | Q27: 25 | R27: 182 | S27: 45 | T27: 5 | U27: 3 | V27: 347 | W27: 38.6845039
A28: PAVAS [GUARARÍ] | B28: 3 | C28: 1348 | D28: 916 | E28: 67.95252226 | F28: 908 | G28: 6 | H28: 201 | I28: 1 | J28: 1 | K28: 5 | L28: 50 | M28: 166 | N28: 16 | O28: 5 | P28: 5 | Q28: 32 | R28: 300 | S28: 120 | T28: 7 | U28: 1 | V28: 432 | W28: 32.04747774
A29: DISTRITO 4 SAN ANTONIO | B29: 38 | C29: 21921 | D29: 14648 | E29: 66.82176908 | F29: 14484 | G29: 45 | H29: 3024 | I29: 45 | J29: 30 | K29: 70 | L29: 1139 | M29: 2476 | N29: 145 | O29: 99 | P29: 75 | Q29: 860 | R29: 4600 | S29: 1876 | T29: 148 | U29: 16 | V29: 7273 | W29: 33.17823092
A30: SAN ANTONIO DEL TEJAR | B30: 5 | C30: 2648 | D30: 1892 | E30: 71.45015106 | F30: 1874 | G30: 3 | H30: 425 | I30: 3 | J30: 4 | K30: 11 | L30: 178 | M30: 390 | N30: 16 | O30: 10 | P30: 5 | Q30: 98 | R30: 413 | S30: 318 | T30: 15 | U30: 3 | V30: 756 | W30: 28.54984894
A31: EL ROBLE | B31: 15 | C31: 8960 | D31: 6046 | E31: 67.47767857 | F31: 5987 | G31: 21 | H31: 1212 | I31: 20 | J31: 13 | K31: 21 | L31: 451 | M31: 893 | N31: 69 | O31: 45 | P31: 37 | Q31: 385 | R31: 2050 | S31: 770 | T31: 53 | U31: 6 | V31: 2914 | W31: 32.52232143
A32: VILLA BONITA [PARTE SUR] | B32: 11 | C32: 6179 | D32: 4097 | E32: 66.30522738 | F32: 4049 | G32: 10 | H32: 930 | I32: 11 | J32: 8 | K32: 23 | L32: 323 | M32: 706 | N32: 32 | O32: 23 | P32: 19 | Q32: 248 | R32: 1194 | S32: 522 | T32: 43 | U32: 5 | V32: 2082 | W32: 33.69477262
A33: CIRUELAS | B33: 7 | C33: 4134 | D33: 2613 | E33: 63.20754717 | F33: 2574 | G33: 11 | H33: 457 | I33: 11 | J33: 5 | K33: 15 | L33: 187 | M33: 487 | N33: 28 | O33: 21 | P33: 14 | Q33: 129 | R33: 943 | S33: 266 | T33: 37 | U33: 2 | V33: 1521 | W33: 36.79245283
A34: DISTRITO 5 GUÁCIMA | B34: 28 | C34: 15013 | D34: 10326 | E34: 68.78039033 | F34: 10222 | G34: 31 | H34: 1885 | I34: 50 | J34: 21 | K34: 42 | L34: 937 | M34: 1857 | N34: 111 | O34: 81 | P34: 52 | Q34: 576 | R34: 2855 | S34: 1724 | T34: 98 | U34: 6 | V34: 4687 | W34: 31.21960967
A35: GUÁCIMA [SANTIAGO OESTE] | B35: 9 | C35: 4949 | D35: 3475 | E35: 70.21620529 | F35: 3446 | G35: 8 | H35: 754 | I35: 17 | J35: 5 | K35: 18 | L35: 278 | M35: 699 | N35: 30 | O35: 35 | P35: 15 | Q35: 202 | R35: 741 | S35: 644 | T35: 27 | U35: 2 | V35: 1474 | W35: 29.78379471
A36: EL COCO | B36: 4 | C36: 2114 | D36: 1397 | E36: 66.08325449 | F36: 1382 | G36: 5 | H36: 298 | I36: 5 | J36: 3 | K36: 7 | L36: 133 | M36: 251 | N36: 16 | O36: 12 | P36: 7 | Q36: 73 | R36: 351 | S36: 221 | T36: 15 | U36: 0 | V36: 717 | W36: 33.91674551
A37: LAS VUELTAS | B37: 3 | C37: 1309 | D37: 982 | E37: 75.01909855 | F37: 974 | G37: 1 | H37: 165 | I37: 3 | J37: 6 | K37: 5 | L37: 112 | M37: 254 | N37: 7 | O37: 9 | P37: 3 | Q37: 48 | R37: 172 | S37: 189 | T37: 7 | U37: 1 | V37: 327 | W37: 24.98090145
A38: NUESTRO AMO | B38: 3 | C38: 1743 | D38: 1310 | E38: 75.15777395 | F38: 1294 | G38: 4 | H38: 202 | I38: 10 | J38: 3 | K38: 6 | L38: 153 | M38: 300 | N38: 11 | O38: 5 | P38: 4 | Q38: 62 | R38: 187 | S38: 347 | T38: 16 | U38: 0 | V38: 433 | W38: 24.84222605
A39: RINCÓN CHIQUITO | B39: 5 | C39: 2574 | D39: 1657 | E39: 64.37451437 | F39: 1637 | G39: 8 | H39: 213 | I39: 6 | J39: 4 | K39: 2 | L39: 149 | M39: 202 | N39: 35 | O39: 10 | P39: 15 | Q39: 101 | R39: 735 | S39: 157 | T39: 18 | U39: 2 | V39: 917 | W39: 35.62548563
A40: RINCÓN DE HERRERA | B40: 4 | C40: 2324 | D40: 1505 | E40: 64.75903614 | F40: 1489 | G40: 5 | H40: 253 | I40: 9 | J40: 0 | K40: 4 | L40: 112 | M40: 151 | N40: 12 | O40: 10 | P40: 8 | Q40: 90 | R40: 669 | S40: 166 | T40: 15 | U40: 1 | V40: 819 | W40: 35.24096386
A41: DISTRITO 6 SAN ISIDRO | B41: 23 | C41: 11880 | D41: 7828 | E41: 65.89225589 | F41: 7745 | G41: 34 | H41: 1542 | I41: 31 | J41: 11 | K41: 38 | L41: 716 | M41: 1288 | N41: 89 | O41: 66 | P41: 36 | Q41: 411 | R41: 2301 | S41: 1182 | T41: 70 | U41: 13 | V41: 4052 | W41: 34.10774411
A42: SAN ISIDRO | B42: 4 | C42: 1928 | D42: 1230 | E42: 63.7966805 | F42: 1216 | G42: 6 | H42: 227 | I42: 3 | J42: 1 | K42: 6 | L42: 129 | M42: 201 | N42: 8 | O42: 4 | P42: 3 | Q42: 66 | R42: 371 | S42: 191 | T42: 12 | U42: 2 | V42: 698 | W42: 36.2033195
A43: ITIQUÍS | B43: 6 | C43: 3257 | D43: 2046 | E43: 62.81854467 | F43: 2021 | G43: 11 | H43: 419 | I43: 8 | J43: 4 | K43: 12 | L43: 213 | M43: 355 | N43: 33 | O43: 9 | P43: 13 | Q43: 116 | R43: 530 | S43: 298 | T43: 19 | U43: 6 | V43: 1211 | W43: 37.18145533
A44: DULCE NOMBRE DE LAGUNA | B44: 3 | C44: 1438 | D44: 922 | E44: 64.11682893 | F44: 904 | G44: 3 | H44: 107 | I44: 4 | J44: 1 | K44: 3 | L44: 53 | M44: 132 | N44: 20 | O44: 11 | P44: 2 | Q44: 56 | R44: 441 | S44: 71 | T44: 16 | U44: 2 | V44: 516 | W44: 35.88317107
A45: SAN MARTÍN | B45: 4 | C45: 2257 | D45: 1609 | E45: 71.28932211 | F45: 1598 | G45: 4 | H45: 428 | I45: 7 | J45: 4 | K45: 8 | L45: 133 | M45: 298 | N45: 13 | O45: 19 | P45: 6 | Q45: 43 | R45: 307 | S45: 328 | T45: 9 | U45: 2 | V45: 648 | W45: 28.71067789
A46: TACACORÍ | B46: 3 | C46: 1674 | D46: 1135 | E46: 67.80167264 | F46: 1124 | G46: 6 | H46: 192 | I46: 7 | J46: 0 | K46: 6 | L46: 91 | M46: 174 | N46: 7 | O46: 7 | P46: 9 | Q46: 82 | R46: 406 | S46: 137 | T46: 11 | U46: 0 | V46: 539 | W46: 32.19832736
A47: CERRILLAL | B47: 1 | C47: 314 | D47: 185 | E47: 58.91719745 | F47: 183 | G47: 0 | H47: 43 | I47: 1 | J47: 0 | K47: 2 | L47: 15 | M47: 37 | N47: 3 | O47: 0 | P47: 0 | Q47: 11 | R47: 35 | S47: 36 | T47: 1 | U47: 1 | V47: 129 | W47: 41.08280255
A48: LAS PILAS | B48: 2 | C48: 1012 | D48: 701 | E48: 69.2687747 | F48: 699 | G48: 4 | H48: 126 | I48: 1 | J48: 1 | K48: 1 | L48: 82 | M48: 91 | N48: 5 | O48: 16 | P48: 3 | Q48: 37 | R48: 211 | S48: 121 | T48: 2 | U48: 0 | V48: 311 | W48: 30.7312253
A49: DISTRITO 7 SABANILLA | B49: 12 | C49: 5496 | D49: 3649 | E49: 66.3937409 | F49: 3609 | G49: 9 | H49: 665 | I49: 12 | J49: 6 | K49: 22 | L49: 259 | M49: 702 | N49: 38 | O49: 42 | P49: 15 | Q49: 201 | R49: 1255 | S49: 383 | T49: 35 | U49: 5 | V49: 1847 | W49: 33.6062591
A50: SABANILLA | B50: 3 | C50: 1286 | D50: 896 | E50: 69.67340591 | F50: 888 | G50: 3 | H50: 212 | I50: 2 | J50: 2 | K50: 5 | L50: 49 | M50: 238 | N50: 10 | O50: 7 | P50: 5 | Q50: 29 | R50: 218 | S50: 108 | T50: 7 | U50: 1 | V50: 390 | W50: 30.32659409
A51: SAN LUIS | B51: 2 | C51: 1033 | D51: 706 | E51: 68.3446273 | F51: 706 | G51: 2 | H51: 138 | I51: 3 | J51: 1 | K51: 4 | L51: 44 | M51: 149 | N51: 1 | O51: 6 | P51: 5 | Q51: 53 | R51: 221 | S51: 79 | T51: 0 | U51: 0 | V51: 327 | W51: 31.6553727
A52: LOS ÁNGELES | B52: 2 | C52: 1038 | D52: 629 | E52: 60.5973025 | F52: 623 | G52: 2 | H52: 100 | I52: 3 | J52: 2 | K52: 3 | L52: 72 | M52: 115 | N52: 12 | O52: 10 | P52: 1 | Q52: 25 | R52: 235 | S52: 43 | T52: 5 | U52: 1 | V52: 409 | W52: 39.4026975
A53: FRAIJANES | B53: 2 | C53: 803 | D53: 509 | E53: 63.38729763 | F53: 498 | G53: 0 | H53: 79 | I53: 2 | J53: 1 | K53: 6 | L53: 33 | M53: 76 | N53: 4 | O53: 3 | P53: 3 | Q53: 41 | R53: 197 | S53: 53 | T53: 11 | U53: 0 | V53: 294 | W53: 36.61270237
A54: POASITO | B54: 2 | C54: 767 | D54: 529 | E54: 68.97001304 | F54: 521 | G54: 1 | H54: 79 | I54: 1 | J54: 0 | K54: 3 | L54: 30 | M54: 74 | N54: 3 | O54: 1 | P54: 0 | Q54: 34 | R54: 246 | S54: 49 | T54: 5 | U54: 3 | V54: 238 | W54: 31.02998696
A55: EL CERRO | B55: 1 | C55: 569 | D55: 380 | E55: 66.78383128 | F55: 373 | G55: 1 | H55: 57 | I55: 1 | J55: 0 | K55: 1 | L55: 31 | M55: 50 | N55: 8 | O55: 15 | P55: 1 | Q55: 19 | R55: 138 | S55: 51 | T55: 7 | U55: 0 | V55: 189 | W55: 33.21616872
A56: DISTRITO 8 SAN RAFAEL1/ | B56: 38 | C56: 18601 | D56: 11503 | E56: 60.9 | F56: 11379 | G56: 46 | H56: 2380 | I56: 35 | J56: 32 | K56: 65 | L56: 1016 | M56: 2431 | N56: 126 | O56: 87 | P56: 52 | Q56: 598 | R56: 2714 | S56: 1797 | T56: 105 | U56: 19 | V56: 7384 | W56: 39.1
A57: SAN RAFAEL ESTE | B57: 12 | C57: 7183 | D57: 4928 | E57: 68.60643185 | F57: 4878 | G57: 10 | H57: 1052 | I57: 13 | J57: 11 | K57: 22 | L57: 428 | M57: 1082 | N57: 42 | O57: 31 | P57: 15 | Q57: 290 | R57: 975 | S57: 907 | T57: 44 | U57: 6 | V57: 2255 | W57: 31.39356815
A58: SAN RAFAEL OESTE | B58: 14 | C58: 8262 | D58: 5688 | E58: 68.8453159 | F58: 5640 | G58: 20 | H58: 1178 | I58: 18 | J58: 8 | K58: 39 | L58: 564 | M58: 1174 | N58: 75 | O58: 52 | P58: 28 | Q58: 277 | R58: 1358 | S58: 849 | T58: 42 | U58: 6 | V58: 2574 | W58: 31.1546841
A59: C. P. U.A.I. REYNALDO VILLALOBOS ZUÑIGA1/ | B59: 1 | C59: 212 | D59: 156 | E59: 56.5 | F59: 154 | G59: 8 | H59: 50 | I59: 0 | J59: 2 | K59: 0 | L59: 2 | M59: 22 | N59: 0 | O59: 3 | P59: 0 | Q59: 2 | R59: 58 | S59: 7 | T59: 2 | U59: 0 | V59: 120 | W59: 43.5
A60: C. P. LUIS PAULINO MORA MORA1/ | B60: 2 | C60: 517 | D60: 110 | E60: 19.7 | F60: 104 | G60: 2 | H60: 16 | I60: 1 | J60: 1 | K60: 0 | L60: 4 | M60: 15 | N60: 0 | O60: 0 | P60: 3 | Q60: 3 | R60: 51 | S60: 8 | T60: 6 | U60: 0 | V60: 447 | W60: 80.3
A61: C P ÁMBITO B [MÍNIMA]1/ | B61: 2 | C61: 557 | D61: 137 | E61: 19.6 | F61: 125 | G61: 1 | H61: 9 | I61: 0 | J61: 3 | K61: 0 | L61: 3 | M61: 35 | N61: 5 | O61: 1 | P61: 1 | Q61: 8 | R61: 52 | S61: 7 | T61: 6 | U61: 6 | V61: 561 | W61: 80.4
A62: C P ÁMBITO C [MEDIANA ABIERTA]1/ | B62: 1 | C62: 360 | D62: 85 | E62: 26 | F62: 85 | G62: 1 | H62: 12 | I62: 1 | J62: 0 | K62: 1 | L62: 2 | M62: 24 | N62: 0 | O62: 0 | P62: 1 | Q62: 4 | R62: 37 | S62: 2 | T62: 0 | U62: 0 | V62: 242 | W62: 74
A63: C P ÁMBITOS D [MED CERRADA] E [MÁXIMA]1/ | B63: 1 | C63: 379 | D63: 84 | E63: 23 | F63: 83 | G63: 1 | H63: 2 | I63: 0 | J63: 1 | K63: 1 | L63: 6 | M63: 17 | N63: 1 | O63: 0 | P63: 2 | Q63: 5 | R63: 42 | S63: 5 | T63: 1 | U63: 0 | V63: 282 | W63: 77
A64: C P GERARDO RODRÍGUEZ ECHEVERRÍA1/ | B64: 2 | C64: 721 | D64: 160 | E64: 18.8 | F64: 156 | G64: 1 | H64: 22 | I64: 0 | J64: 6 | K64: 1 | L64: 3 | M64: 28 | N64: 1 | O64: 0 | P64: 2 | Q64: 5 | R64: 84 | S64: 3 | T64: 3 | U64: 1 | V64: 689 | W64: 81.2
A65: C P ADULTO MAYOR1/ | B65: 1 | C65: 113 | D65: 66 | E65: 52 | F65: 66 | G65: 0 | H65: 10 | I65: 1 | J65: 0 | K65: 0 | L65: 2 | M65: 23 | N65: 0 | O65: 0 | P65: 0 | Q65: 1 | R65: 23 | S65: 6 | T65: 0 | U65: 0 | V65: 61 | W65: 48
A66: C P ADULTO JOVEN1/ | B66: 1 | C66: 160 | D66: 49 | E66: 39.8 | F66: 49 | G66: 1 | H66: 24 | I66: 0 | J66: 0 | K66: 0 | L66: 2 | M66: 4 | N66: 0 | O66: 0 | P66: 0 | Q66: 2 | R66: 15 | S66: 1 | T66: 0 | U66: 0 | V66: 74 | W66: 60.2
A67: C.P. MEDIANA NUEVA Y PENSIONES1/ | B67: 1 | C67: 137 | D67: 40 | E67: 33.6 | F67: 39 | G67: 1 | H67: 5 | I67: 1 | J67: 0 | K67: 1 | L67: 0 | M67: 7 | N67: 2 | O67: 0 | P67: 0 | Q67: 1 | R67: 19 | S67: 2 | T67: 1 | U67: 0 | V67: 79 | W67: 66.4
A68: DISTRITO 9 RÍO SEGUNDO | B68: 16 | C68: 8879 | D68: 6008 | E68: 67.66527762 | F68: 5957 | G68: 17 | H68: 1237 | I68: 19 | J68: 7 | K68: 43 | L68: 544 | M68: 1094 | N68: 75 | O68: 45 | P68: 25 | Q68: 303 | R68: 1718 | S68: 830 | T68: 37 | U68: 14 | V68: 2871 | W68: 32.33472238
A69: RÍO SEGUNDO [SANTIAGO ESTE] | B69: 8 | C69: 4519 | D69: 3157 | E69: 69.86058863 | F69: 3138 | G69: 9 | H69: 637 | I69: 9 | J69: 4 | K69: 18 | L69: 294 | M69: 566 | N69: 41 | O69: 31 | P69: 8 | Q69: 166 | R69: 866 | S69: 489 | T69: 16 | U69: 3 | V69: 1362 | W69: 30.13941137
A70: CACIQUE | B70: 4 | C70: 2339 | D70: 1553 | E70: 66.39589568 | F70: 1535 | G70: 2 | H70: 373 | I70: 8 | J70: 2 | K70: 14 | L70: 164 | M70: 303 | N70: 13 | O70: 11 | P70: 10 | Q70: 87 | R70: 364 | S70: 184 | T70: 14 | U70: 4 | V70: 786 | W70: 33.60410432
A71: VILLA HELIA [FINCA HELIA] | B71: 2 | C71: 1004 | D71: 721 | E71: 71.812749 | F71: 710 | G71: 6 | H71: 136 | I71: 1 | J71: 1 | K71: 3 | L71: 48 | M71: 97 | N71: 12 | O71: 3 | P71: 1 | Q71: 29 | R71: 261 | S71: 112 | T71: 5 | U71: 6 | V71: 283 | W71: 28.187251
A72: CALIFORNIA | B72: 2 | C72: 1017 | D72: 577 | E72: 56.73549656 | F72: 574 | G72: 0 | H72: 91 | I72: 1 | J72: 0 | K72: 8 | L72: 38 | M72: 128 | N72: 9 | O72: 0 | P72: 6 | Q72: 21 | R72: 227 | S72: 45 | T72: 2 | U72: 1 | V72: 440 | W72: 43.26450344
A73: DISTRITO 10 DESAMPARADOS | B73: 33 | C73: 18884 | D73: 12730 | E73: 67.41156535 | F73: 12578 | G73: 40 | H73: 2956 | I73: 48 | J73: 23 | K73: 73 | L73: 1205 | M73: 2005 | N73: 134 | O73: 111 | P73: 49 | Q73: 826 | R73: 3333 | S73: 1775 | T73: 130 | U73: 22 | V73: 6154 | W73: 32.58843465
A74: DESAMPARADOS | B74: 18 | C74: 10435 | D74: =F74+T74+U74 -> 7107 | E74: 68.1073311 | F74: =SUM(G74:S74) -> 7039 | G74: 22 | H74: 1676 | I74: 25 | J74: 13 | K74: 40 | L74: 697 | M74: 1025 | N74: 87 | O74: 55 | P74: 25 | Q74: 540 | R74: 1850 | S74: 984 | T74: 56 | U74: 12 | V74: 3328 | W74: 31.8926689
A75: INVU LOS RODRÍGUEZ | B75: 13 | C75: 7265 | D75: 4902 | E75: =D75/C75*100 -> 67.47419133 | F75: 4832 | G75: 16 | H75: 1137 | I75: 20 | J75: 8 | K75: 30 | L75: 433 | M75: 841 | N75: 40 | O75: 36 | P75: 21 | Q75: 235 | R75: 1324 | S75: 691 | T75: 62 | U75: 8 | V75: 2363 | W75: 32.52580867
A76: ROSALES | B76: 2 | C76: 1184 | D76: 721 | E76: 60.89527027 | F76: 707 | G76: 2 | H76: 143 | I76: 3 | J76: 2 | K76: 3 | L76: 75 | M76: 139 | N76: 7 | O76: 20 | P76: 3 | Q76: 51 | R76: 159 | S76: 100 | T76: 12 | U76: 2 | V76: 463 | W76: 39.10472973
A77: DISTRITO 11 TURRÚCARES | B77: 12 | C77: 5577 | D77: 3758 | E77: 67.38389815 | F77: 3717 | G77: 9 | H77: 770 | I77: 10 | J77: 7 | K77: 18 | L77: 318 | M77: 590 | N77: 32 | O77: 21 | P77: 10 | Q77: 158 | R77: 1066 | S77: 708 | T77: 37 | U77: 4 | V77: 1819 | W77: 32.61610185
A78: TURRÚCARES | B78: 7 | C78: 3669 | D78: 2508 | E78: 68.35650041 | F78: 2480 | G78: 4 | H78: 521 | I78: 6 | J78: 1 | K78: 9 | L78: 214 | M78: 387 | N78: 21 | O78: 13 | P78: 10 | Q78: 104 | R78: 729 | S78: 461 | T78: 25 | U78: 3 | V78: 1161 | W78: 31.64349959
A79: CEBADILLA | B79: 2 | C79: 916 | D79: 629 | E79: 68.66812227 | F79: 624 | G79: 3 | H79: 124 | I79: 1 | J79: 3 | K79: 3 | L79: 64 | M79: 80 | N79: 4 | O79: 4 | P79: 0 | Q79: 30 | R79: 180 | S79: 128 | T79: 5 | U79: 0 | V79: 287 | W79: 31.33187773
